Workbook

Sheet Coor (hidden)
B1: Lat | C1: Long | D1: R | E1: 6.371 | G1: 1.3 | J1: Sources: | K1: https://www.mrexcel.com/forum/excel-questions/202255-calculating-distance-between-two-latitude-longitude-points.html
A2: Sadova 2122, Nymburk, Czech Republic | B2: =GetLatidue(A2) -> 50.1905764 | C2: =GetLongitude(A2) -> 15.030892 | D2: a | E2: =SIN(ABS(B3-B2)*PI()/180/2)^2+COS(B2*PI()/180)*COS(B3*PI()/180)*SIN(ABS(C3-C2)*PI()/180/2)^2 -> 2.070489859e-05 | K2: https://www.adventuresincre.com/auto-populate-latitude-longitude-excel/
A3: Souvrat 137, Mostek, Czech republic | B3: =GetLatidue(A3) -> 50.4821839 | C3: =GetLongitude(A3) -> 15.7081235 | D3: c | E3: =2*ATAN2(SQRT(1-E2),SQRT(E2)) -> 0.009100558552 | K3: http://analystcave.com/excel-calculate-distances-between-addresses/#Calculate_distance_between_two_addresses_using_Google_Maps_in_Excel
D4: d | E4: =E1*E3 -> 0.05797965853 | F4: =ACOS(COS(RADIANS(90-B2)) * COS(RADIANS(90-B3)) + SIN(RADIANS(90-B2)) * SIN(RADIANS(90-B3)) * COS(RADIANS(C2-C3))) * 6371 -> 57.97965853 | G4: =F4*$G$1 -> 75.37355609 | K4: https://maps.googleapis.com/maps/api/distancematrix/json?origins=Vancouver+BC|Seattle&destinations=San+Francisco|Victoria+BC&key=YOUR_API_KEY
N5: Cim vetsi Long tim vice na vychod
B6: Lat | C6: Long | D6: R | E6: 6.371 | N6: Cim mensi Long tim vice na zapad
A7: Sadova 2122, Nymburk, Czech Republic | B7: =GetLatidue(A7) -> 50.1905764 | C7: =GetLongitude(A7) -> 15.030892 | D7: a | E7: =SIN(ABS(B8-B7)*PI()/180/2)^2+COS(B7*PI()/180)*COS(B8*PI()/180)*SIN(ABS(C8-C7)*PI()/180/2)^2 -> 0.002315652138 | N7: Cim vetsi Lat tim vice na sever
A8: Adolf-Glattacker-Strasse 4, Weil Am Rhein, Germany | B8: =GetLatidue(A8) -> 47.59733 | C8: =GetLongitude(A8) -> 7.61919 | D8: c | E8: =2*ATAN2(SQRT(1-E7),SQRT(E7)) -> 0.0962796295 | N8: Cim mensi Lat tim vice na jih
D9: d | E9: =E6*E8 -> 0.6133975195 | F9: =ACOS(COS(RADIANS(90-B7)) * COS(RADIANS(90-B8)) + SIN(RADIANS(90-B7)) * SIN(RADIANS(90-B8)) * COS(RADIANS(C7-C8))) * 6371 -> 613.3975195 | G9: =F9*$G$1 -> 797.4167754 | K9: AIzaSyAKNzex92qJzXuMO4aGYN4Q8byVpCv1h1c
K10: https://maps.googleapis.com/maps/api/distancematrix/json?origins=Vancouver+BC|Seattle&destinations=San+Francisco|Victoria+BC&key=AIzaSyAKNzex92qJzXuMO4aGYN4Q8byVpCv1h1c
B11: Lat | C11: Long | D11: R | E11: 6.371
A12: Adolf-Glattacker-Strasse 4, Weil Am Rhein, Germany | B12: =GetLatidue(A12) -> 47.59733 | C12: =GetLongitude(A12) -> 7.61919 | D12: a | E12: =SIN(ABS(B13-B12)*PI()/180/2)^2+COS(B12*PI()/180)*COS(B13*PI()/180)*SIN(ABS(C13-C12)*PI()/180/2)^2 -> 0.0007685441148 | K12: https://support.office.com/en-us/article/Geocode-your-Power-Map-data-3857c274-1a44-4020-876a-398fecee70e7
A13: Herseler Strasse 14, 53117 Bonn, Germany | B13: =GetLatidue(A13) -> 50.7554135 | C13: =GetLongitude(A13) -> 7.0867051 | D13: c | E13: =2*ATAN2(SQRT(1-E12),SQRT(E12)) -> 0.0554523609
D14: d | E14: =E11*E13 -> 0.3532869913 | F14: =ACOS(COS(RADIANS(90-B12)) * COS(RADIANS(90-B13)) + SIN(RADIANS(90-B12)) * SIN(RADIANS(90-B13)) * COS(RADIANS(C12-C13))) * 6371 -> 353.2869913 | G14: =F14*$G$1 -> 459.2730887
A16: Sadova 2122, Nymburk, Czech Republic | B16: =GetLatidue(A16) -> 50.1905764 | C16: =GetLongitude(A16) -> 15.030892 | D16: a | E16: =SIN(ABS(B17-B16)*PI()/180/2)^2+COS(B16*PI()/180)*COS(B17*PI()/180)*SIN(ABS(C17-C16)*PI()/180/2)^2 -> 2.029429504e-05
A17: Komenskeho 6, Hradec Kralove, Czech Republic | B17: =GetLatidue(A17) -> 50.2089076 | C17: =GetLongitude(A17) -> 15.8368501 | D17: a | E17: =SIN(ABS(B18-B17)*PI()/180/2)^2+COS(B17*PI()/180)*COS(B18*PI()/180)*SIN(ABS(C18-C17)*PI()/180/2)^2 -> 0.1921510341

Sheet MISTA
M1: 1.3 | U1: 12.5 | V1: 13 | W1: 13.5 | X1: 14 | Y1: 14.5 | Z1: 15 | AA1: 15.5 | AB1: 16 | AC1: 16.5 | AD1: 17 | AE1: 17.5 | AF1: 18 | AH1: MAX = ZAPAD | AJ1: 50.5 | AK1: 50.375 | AL1: 50.25 | AM1: 50.125 | AN1: 50 | AO1: 49.875 | AP1: 49.75 | AQ1: 49.625 | AR1: 49.5 | AS1: 49.375 | AT1: 49.25 | AU1: 49.125 | AW1: MAX = SEVER
B2: COUNTRY1 | C2: COUNTRY2 | E2: Combination | M2: CZLa | N2: CZLo | O2: DeLa | P2: DELo | Q2: Distance | T2: GROUPS | U2: CZS1 | V2: CZS2 | W2: CZS3 | X2: CZS4 | Y2: CZS5 | Z2: CZS6 | AA2: CZS7 | AB2: CZS8 | AC2: CZS9 | AD2: CZS10 | AE2: CZS11 | AF2: CZS12 | AJ2: CZD1 | AK2: CZD2 | AL2: CZD3 | AM2: CZD4 | AN2: CZD5 | AO2: CZD6 | AP2: CZD7 | AQ2: CZD8 | AR2: CZD9 | AS2: CZD10 | AT2: CZD11 | AU2: CZD12
B3: A | C3: A | D3: 1 | E3: A | F3: 18 | G3: =VLOOKUP(F3,$D$3:$E$22,2,FALSE) -> R | I3: A | J3: R | K3: =VLOOKUP(I3,CR!$AR$1:$AS$20,2,FALSE) -> Sadova 2122, Nymburk, Czech Republic | L3: =VLOOKUP(J3,DE!$AR$1:$AS$21,2,FALSE) -> Beuchstrasse 25, 03044 Cottbus | M3: 50.1905764 | N3: 15.030892 | O3: 51.7702759 | P3: 14.3352167 | Q3: =(ACOS(COS(RADIANS(90-$M3)) *COS(RADIANS(90-$O3)) +SIN(RADIANS(90-$M3)) *SIN(RADIANS(90-$O3)) *COS(RADIANS($N3-$P3))) *6371)*$M$1 -> 236.9624203 | U3: =IF($N3>U$1,TRUE,FALSE) -> TRUE | V3: =IF($N3>V$1,TRUE,FALSE) -> TRUE | W3: =IF($N3>W$1,TRUE,FALSE) -> TRUE | X3: TRUE | Y3: TRUE | Z3: TRUE | AA3: FALSE | AB3: FALSE | AC3: FALSE | AD3: FALSE | AE3: FALSE | AF3: FALSE | AG3: =COUNTIF(U3:AF3,TRUE) -> 6 | AJ3: =IF($M3>AJ$1,TRUE,FALSE) -> FALSE | AK3: FALSE | AL3: FALSE | AM3: TRUE | AN3: TRUE | AO3: TRUE | AP3: TRUE | AQ3: TRUE | AR3: TRUE | AS3: TRUE | AT3: TRUE | AU3: TRUE | AV3: =COUNTIF(AJ3:AU3,TRUE) -> 9
B4: B | C4: B | D4: 2 | E4: B | F4: 7 | G4: =VLOOKUP(F4,$D$3:$E$22,2,FALSE) -> G | I4: B | J4: G | K4: =VLOOKUP(I4,CR!$AR$1:$AS$20,2,FALSE) -> Komenskeho 16, Hradec Kralove, Czech Republic | L4: =VLOOKUP(J4,DE!$AR$1:$AS$21,2,FALSE) -> Feineisenstrasse 4, 44339 Dortmund | M4: 50.2087825 | N4: 15.8365125 | O4: 51.54786 | P4: 7.49568 | Q4: =(ACOS(COS(RADIANS(90-$M4)) *COS(RADIANS(90-$O4)) +SIN(RADIANS(90-$M4)) *SIN(RADIANS(90-$O4)) *COS(RADIANS($N4-$P4))) *6371)*$M$1 -> 784.5118487 | U4: =IF($N4>U$1,TRUE,FALSE) -> TRUE | V4: =IF($N4>V$1,TRUE,FALSE) -> TRUE | W4: TRUE | X4: TRUE | Y4: TRUE | Z4: TRUE | AA4: TRUE | AB4: FALSE | AC4: FALSE | AD4: FALSE | AE4: FALSE | AF4: FALSE | AG4: =COUNTIF(U4:AF4,TRUE) -> 7 | AJ4: FALSE | AK4: FALSE | AL4: FALSE | AM4: TRUE | AN4: TRUE | AO4: TRUE | AP4: TRUE | AQ4: TRUE | AR4: TRUE | AS4: TRUE | AT4: TRUE | AU4: TRUE | AV4: 9
B5: C | C5: C | D5: 3 | E5: C | F5: 13 | G5: M | I5: C | J5: M | K5: =VLOOKUP(I5,CR!$AR$1:$AS$20,2,FALSE) -> Janderova 20, Jindrichuv Hradec, Czech Republic | L5: =VLOOKUP(J5,DE!$AR$1:$AS$21,2,FALSE) -> Margeritenstrasse 40, 17033 Neubrandenburg | M5: 49.1469409 | N5: 14.9994879 | O5: 53.5230291 | P5: 13.2721851 | Q5: 651.4767195 | U5: TRUE | V5: TRUE | W5: TRUE | X5: TRUE | Y5: TRUE | Z5: FALSE | AA5: FALSE | AB5: FALSE | AC5: FALSE | AD5: FALSE | AE5: FALSE | AF5: FALSE | AG5: 5 | AJ5: FALSE | AK5: FALSE | AL5: FALSE | AM5: FALSE | AN5: FALSE | AO5: FALSE | AP5: FALSE | AQ5: FALSE | AR5: FALSE | AS5: FALSE | AT5: FALSE | AU5: TRUE | AV5: 1
B6: D | C6: D | D6: 4 | E6: D | F6: 6 | G6: F | I6: D | J6: F | K6: =VLOOKUP(I6,CR!$AR$1:$AS$20,2,FALSE) -> Prumyslova 499, 463 12 Liberec, Czech Republic | L6: =VLOOKUP(J6,DE!$AR$1:$AS$21,2,FALSE) -> Neuer Weyerstrasserweg 120, 50969 Koln | M6: 50.736641 | N6: 15.038794 | O6: 50.90439 | P6: 6.92845 | Q6: 740.675568 | U6: TRUE | V6: TRUE | W6: TRUE | X6: TRUE | Y6: TRUE | Z6: TRUE | AA6: FALSE | AB6: FALSE | AC6: FALSE | AD6: FALSE | AE6: FALSE | AF6: FALSE | AG6: 6 | AJ6: TRUE | AK6: TRUE | AL6: TRUE | AM6: TRUE | AN6: TRUE | AO6: TRUE | AP6: TRUE | AQ6: TRUE | AR6: TRUE | AS6: TRUE | AT6: TRUE | AU6: TRUE | AV6: 12 | AW6: S
B7: E | C7: E | D7: 5 | E7: E | F7: 1 | G7: A | I7: E | J7: A | K7: =VLOOKUP(I7,CR!$AR$1:$AS$20,2,FALSE) -> Karlovarska 22, Plzen, Czech Republic | L7: =VLOOKUP(J7,DE!$AR$1:$AS$21,2,FALSE) -> Industriestrasse 25, 83607 Holzkirchen | M7: 49.7572577 | N7: 13.3735381 | O7: 47.8793 | P7: 11.71304 | Q7: 314.1027429 | U7: TRUE | V7: TRUE | W7: FALSE | X7: FALSE | Y7: FALSE | Z7: FALSE | AA7: FALSE | AB7: FALSE | AC7: FALSE | AD7: FALSE | AE7: FALSE | AF7: FALSE | AG7: 2 | AJ7: FALSE | AK7: FALSE | AL7: FALSE | AM7: FALSE | AN7: FALSE | AO7: FALSE | AP7: TRUE | AQ7: TRUE | AR7: TRUE | AS7: TRUE | AT7: TRUE | AU7: TRUE | AV7: 6
B8: F | C8: F | D8: 6 | E8: F | F8: 14 | G8: N | I8: F | J8: N | K8: =VLOOKUP(I8,CR!$AR$1:$AS$20,2,FALSE) -> Prazska 44, Brno, Czech Republic | L8: =VLOOKUP(J8,DE!$AR$1:$AS$21,2,FALSE) -> Schwanenfeldstrasse 11, 13627 Berlin | M8: 49.1744849 | N8: 16.5334434 | O8: 52.53804 | P8: 13.31762 | Q8: 567.7728888 | U8: TRUE | V8: TRUE | W8: TRUE | X8: TRUE | Y8: TRUE | Z8: TRUE | AA8: TRUE | AB8: TRUE | AC8: TRUE | AD8: FALSE | AE8: FALSE | AF8: FALSE | AG8: 9 | AJ8: FALSE | AK8: FALSE | AL8: FALSE | AM8: FALSE | AN8: FALSE | AO8: FALSE | AP8: FALSE | AQ8: FALSE | AR8: FALSE | AS8: FALSE | AT8: FALSE | AU8: TRUE | AV8: 1
B9: G | C9: G | D9: 7 | E9: G | F9: 9 | G9: I | I9: G | J9: I | K9: =VLOOKUP(I9,CR!$AR$1:$AS$20,2,FALSE) -> Americka 42, 350 02 Cheb, Czech Republic | L9: =VLOOKUP(J9,DE!$AR$1:$AS$21,2,FALSE) -> Von-Thunen-Strasse 14, 28307 Bremen | M9: 50.0749381 | N9: 12.3529616 | O9: 53.04182 | P9: 8.9695 | Q9: 525.6031579 | U9: =IF($N9>U$1,TRUE,FALSE) -> FALSE | V9: FALSE | W9: FALSE | X9: FALSE | Y9: FALSE | Z9: FALSE | AA9: FALSE | AB9: FALSE | AC9: FALSE | AD9: FALSE | AE9: FALSE | AF9: FALSE | AG9: 0 | AJ9: FALSE | AK9: FALSE | AL9: FALSE | AM9: FALSE | AN9: TRUE | AO9: TRUE | AP9: TRUE | AQ9: TRUE | AR9: TRUE | AS9: TRUE | AT9: TRUE | AU9: TRUE | AV9: 8
B10: H | C10: H | D10: 8 | E10: H | F10: 11 | G10: K | I10: H | J10: K | K10: =VLOOKUP(I10,CR!$AR$1:$AS$20,2,FALSE) -> Jihlavska 12, Humpolec, Czech republic | L10: =VLOOKUP(J10,DE!$AR$1:$AS$21,2,FALSE) -> Karlsruher Strasse 10, 30519 Hannover | M10: 49.5344617 | N10: 15.3657743 | O10: 52.3266755 | P10: 9.7924844 | Q10: 648.3282492 | U10: TRUE | V10: TRUE | W10: TRUE | X10: TRUE | Y10: TRUE | Z10: TRUE | AA10: FALSE | AB10: FALSE | AC10: FALSE | AD10: FALSE | AE10: FALSE | AF10: FALSE | AG10: 6 | AJ10: FALSE | AK10: FALSE | AL10: FALSE | AM10: FALSE | AN10: FALSE | AO10: FALSE | AP10: FALSE | AQ10: FALSE | AR10: TRUE | AS10: TRUE | AT10: TRUE | AU10: TRUE | AV10: 4
B11: I | C11: I | D11: 9 | E11: I | F11: 4 | G11: D | I11: I | J11: D | K11: =VLOOKUP(I11,CR!$AR$1:$AS$20,2,FALSE) -> Komenskeho 11, Dvur Kralove nad Labem, Czech Republic | L11: =VLOOKUP(J11,DE!$AR$1:$AS$21,2,FALSE) -> Am Felsbrunnen, 66119 Saarbrucken | M11: 50.4316195 | N11: 15.8158819 | O11: 49.1973321 | P11: 7.0234011 | Q11: 838.7641862 | U11: TRUE | V11: TRUE | W11: TRUE | X11: TRUE | Y11: TRUE | Z11: TRUE | AA11: TRUE | AB11: FALSE | AC11: FALSE | AD11: FALSE | AE11: FALSE | AF11: FALSE | AG11: 7 | AJ11: FALSE | AK11: TRUE | AL11: TRUE | AM11: TRUE | AN11: TRUE | AO11: TRUE | AP11: TRUE | AQ11: TRUE | AR11: TRUE | AS11: TRUE | AT11: TRUE | AU11: TRUE | AV11: 11
B12: J | C12: J | D12: 10 | E12: J | F12: 8 | G12: H | I12: J | J12: H | K12: =VLOOKUP(I12,CR!$AR$1:$AS$20,2,FALSE) -> Prazska 14, Tabor, Czech Republic | L12: =VLOOKUP(J12,DE!$AR$1:$AS$21,2,FALSE) -> Gottfried Schenker Strasse 1, 33758 Schloss Holte-Stukenbrock | M12: 49.4136402 | N12: 14.6598363 | O12: 51.916249 | P12: 8.6159279 | Q12: 661.1383965 | U12: TRUE | V12: TRUE | W12: TRUE | X12: TRUE | Y12: TRUE | Z12: FALSE | AA12: FALSE | AB12: FALSE | AC12: FALSE | AD12: FALSE | AE12: FALSE | AF12: FALSE | AG12: 5 | AJ12: FALSE | AK12: FALSE | AL12: FALSE | AM12: FALSE | AN12: FALSE | AO12: FALSE | AP12: FALSE | AQ12: FALSE | AR12: FALSE | AS12: TRUE | AT12: TRUE | AU12: TRUE | AV12: 3
B13: K | C13: K | D13: 11 | E13: K | F13: 5 | G13: E | I13: K | J13: E | K13: =VLOOKUP(I13,CR!$AR$1:$AS$20,2,FALSE) -> Kutnohorska 14, Praha, Czech Republic | L13: =VLOOKUP(J13,DE!$AR$1:$AS$21,2,FALSE) -> Rheinstrasse 2, 55116 Mainz | M13: 50.0553289 | N13: 14.5635059 | O13: 49.9941603 | P13: 8.281838 | Q13: 583.2693656 | U13: TRUE | V13: TRUE | W13: TRUE | X13: TRUE | Y13: TRUE | Z13: FALSE | AA13: FALSE | AB13: FALSE | AC13: FALSE | AD13: FALSE | AE13: FALSE | AF13: FALSE | AG13: 5 | AJ13: FALSE | AK13: FALSE | AL13: FALSE | AM13: FALSE | AN13: TRUE | AO13: TRUE | AP13: TRUE | AQ13: TRUE | AR13: TRUE | AS13: TRUE | AT13: TRUE | AU13: TRUE | AV13: 8
B14: L | C14: L | D14: 12 | E14: L | F14: 12 | G14: L | I14: L | J14: L | K14: =VLOOKUP(I14,CR!$AR$1:$AS$20,2,FALSE) -> Prazska 14, Kutna Hora, Czech Republic | L14: =VLOOKUP(J14,DE!$AR$1:$AS$21,2,FALSE) -> Heidenkampsweg 79, 20097 Hamburg | M14: 49.9184149 | N14: 15.3867248 | O14: 53.54674 | P14: 10.03 | Q14: 710.2975908 | U14: TRUE | V14: TRUE | W14: TRUE | X14: TRUE | Y14: TRUE | Z14: TRUE | AA14: FALSE | AB14: FALSE | AC14: FALSE | AD14: FALSE | AE14: FALSE | AF14: FALSE | AG14: 6 | AJ14: FALSE | AK14: FALSE | AL14: FALSE | AM14: FALSE | AN14: FALSE | AO14: TRUE | AP14: TRUE | AQ14: TRUE | AR14: TRUE | AS14: TRUE | AT14: TRUE | AU14: TRUE | AV14: 7
B15: M | C15: M | D15: 13 | E15: M | F15: 10 | G15: J | I15: M | J15: J | K15: =VLOOKUP(I15,CR!$AR$1:$AS$20,2,FALSE) -> Brnenska 4, Nove Mesto na Morave, Czech Republic | L15: =VLOOKUP(J15,DE!$AR$1:$AS$21,2,FALSE) -> Geschaftsstelle Kassel, Schwarze Breite 2, 34260 Kaufungen | M15: 49.5585869 | N15: 15.9459131 | O15: 51.2866381 | P15: 9.5655084 | Q15: 638.2349196 | U15: TRUE | V15: TRUE | W15: TRUE | X15: TRUE | Y15: TRUE | Z15: TRUE | AA15: TRUE | AB15: FALSE | AC15: FALSE | AD15: FALSE | AE15: FALSE | AF15: FALSE | AG15: 7 | AJ15: FALSE | AK15: FALSE | AL15: FALSE | AM15: FALSE | AN15: FALSE | AO15: FALSE | AP15: FALSE | AQ15: FALSE | AR15: TRUE | AS15: TRUE | AT15: TRUE | AU15: TRUE | AV15: 4
B16: N | C16: N | D16: 14 | E16: N | F16: 15 | G16: O | I16: N | J16: O | K16: =VLOOKUP(I16,CR!$AR$1:$AS$20,2,FALSE) -> Ostravska 11, Karvinna, Czech Republic | L16: =VLOOKUP(J16,DE!$AR$1:$AS$21,2,FALSE) -> Edmund-Rumpler-Strasse 3, 60549 Frankfurt am Main | M16: 49.8542788 | N16: 18.535164 | O16: 50.0563372 | P16: 8.5889965 | Q16: 924.8056886 | U16: TRUE | V16: TRUE | W16: TRUE | X16: TRUE | Y16: TRUE | Z16: TRUE | AA16: TRUE | AB16: TRUE | AC16: TRUE | AD16: TRUE | AE16: TRUE | AF16: TRUE | AG16: 12 | AH16: Z | AJ16: FALSE | AK16: FALSE | AL16: FALSE | AM16: FALSE | AN16: FALSE | AO16: FALSE | AP16: TRUE | AQ16: TRUE | AR16: TRUE | AS16: TRUE | AT16: TRUE | AU16: TRUE | AV16: 6
B17: O | C17: O | D17: 15 | E17: O | F17: 3 | G17: C | I17: O | J17: C | K17: =VLOOKUP(I17,CR!$AR$1:$AS$20,2,FALSE) -> Oderska 19, 742 36 Jakubcovice nad Odrou, Czech Republic | L17: =VLOOKUP(J17,DE!$AR$1:$AS$21,2,FALSE) -> Charles-Eames-Strasse 2, 79576 Weil am Rhein | M17: 49.6934464 | N17: 17.7935959 | O17: 47.6014074 | P17: 7.6179802 | Q17: 1016.849006 | U17: TRUE | V17: TRUE | W17: TRUE | X17: TRUE | Y17: TRUE | Z17: TRUE | AA17: TRUE | AB17: TRUE | AC17: TRUE | AD17: TRUE | AE17: TRUE | AF17: FALSE | AG17: 11 | AJ17: FALSE | AK17: FALSE | AL17: FALSE | AM17: FALSE | AN17: FALSE | AO17: FALSE | AP17: FALSE | AQ17: TRUE | AR17: TRUE | AS17: TRUE | AT17: TRUE | AU17: TRUE | AV17: 5
B18: P | C18: P | D18: 16 | E18: P | F18: 16 | G18: P | I18: P | J18: P | K18: =VLOOKUP(I18,CR!$AR$1:$AS$20,2,FALSE) -> Cukrovarska 4, 682 01 Vyskov, Czech Republic | L18: =VLOOKUP(J18,DE!$AR$1:$AS$21,2,FALSE) -> Poststrasse 23, 04158 Leipzig | M18: 49.2748267 | N18: 16.9941755 | O18: 51.4134473 | P18: 12.2976523 | Q18: 532.0733329 | U18: TRUE | V18: TRUE | W18: TRUE | X18: TRUE | Y18: TRUE | Z18: TRUE | AA18: TRUE | AB18: TRUE | AC18: TRUE | AD18: FALSE | AE18: FALSE | AF18: FALSE | AG18: 9 | AJ18: FALSE | AK18: FALSE | AL18: FALSE | AM18: FALSE | AN18: FALSE | AO18: FALSE | AP18: FALSE | AQ18: FALSE | AR18: FALSE | AS18: FALSE | AT18: TRUE | AU18: TRUE | AV18: 2
B19: Q | C19: Q | D19: 17 | E19: Q | F19: 19 | G19: S | I19: Q | J19: S | K19: =VLOOKUP(I19,CR!$AR$1:$AS$20,2,FALSE) -> Domazlicka 909, 339 01 Klatovy, Czech Republic | L19: =VLOOKUP(J19,DE!$AR$1:$AS$21,2,FALSE) -> Bremer Strasse 90, 90451 Nurnberg | M19: 49.3928975 | N19: 13.2858263 | O19: 49.3977885 | P19: 11.0608549 | Q19: 209.3201435 | U19: TRUE | V19: TRUE | W19: FALSE | X19: FALSE | Y19: FALSE | Z19: FALSE | AA19: FALSE | AB19: FALSE | AC19: FALSE | AD19: FALSE | AE19: FALSE | AF19: FALSE | AG19: 2 | AJ19: =IF($M19>AJ$1,TRUE,FALSE) -> FALSE | AK19: FALSE | AL19: FALSE | AM19: FALSE | AN19: FALSE | AO19: FALSE | AP19: FALSE | AQ19: FALSE | AR19: FALSE | AS19: TRUE | AT19: TRUE | AU19: TRUE | AV19: 3
B20: R | C20: R | D20: 18 | E20: R | F20: 17 | G20: Q | I20: R | J20: Q | K20: =VLOOKUP(I20,CR!$AR$1:$AS$20,2,FALSE) -> Podhori 80, 400 10 Usti nad Labem, Czech Republic | L20: =VLOOKUP(J20,DE!$AR$1:$AS$21,2,FALSE) -> Potthoffstrasse 5, 01159 Dresden | M20: 50.6997147 | N20: 13.9909361 | O20: 51.05242 | P20: 13.70626 | Q20: 57.21605172 | U20: TRUE | V20: TRUE | W20: TRUE | X20: FALSE | Y20: FALSE | Z20: FALSE | AA20: FALSE | AB20: FALSE | AC20: FALSE | AD20: FALSE | AE20: FALSE | AF20: FALSE | AG20: 3 | AJ20: TRUE | AK20: TRUE | AL20: TRUE | AM20: TRUE | AN20: TRUE | AO20: TRUE | AP20: TRUE | AQ20: TRUE | AR20: TRUE | AS20: TRUE | AT20: TRUE | AU20: TRUE | AV20: 12
B21: S | C21: S | D21: 19 | E21: S | F21: 2 | G21: B | I21: S | J21: B | K21: =VLOOKUP(I21,CR!$AR$1:$AS$20,2,FALSE) -> Chebska 713/16A, 353 01 Marianske Lazne, Czech Republic | L21: =VLOOKUP(J21,DE!$AR$1:$AS$21,2,FALSE) -> Messepiazza, 70629 Stuttgart | M21: 49.9655332 | N21: 12.6975899 | O21: 48.693439 | P21: 9.1935003 | Q21: 377.8138424 | U21: TRUE | V21: FALSE | W21: FALSE | X21: FALSE | Y21: FALSE | Z21: FALSE | AA21: FALSE | AB21: FALSE | AC21: FALSE | AD21: FALSE | AE21: FALSE | AF21: FALSE | AG21: 1 | AJ21: FALSE | AK21: FALSE | AL21: FALSE | AM21: FALSE | AN21: FALSE | AO21: TRUE | AP21: TRUE | AQ21: TRUE | AR21: TRUE | AS21: TRUE | AT21: TRUE | AU21: TRUE | AV21: 7
B22: T | C22: T | D22: 20 | E22: T | F22: 20 | G22: T | I22: T | J22: T | K22: =VLOOKUP(I22,CR!$AR$1:$AS$20,2,FALSE) -> Priessnitzova 299/12, 790 03 Jesenik, Czech Republic | L22: =VLOOKUP(J22,DE!$AR$1:$AS$21,2,FALSE) -> Am Hauptbahnhof 1, 53111 Bonn | M22: 50.2401616 | N22: 17.1847494 | O22: 50.7322897 | P22: 7.0969954 | Q22: 929.8079233 | U22: TRUE | V22: TRUE | W22: TRUE | X22: TRUE | Y22: TRUE | Z22: TRUE | AA22: TRUE | AB22: TRUE | AC22: TRUE | AD22: TRUE | AE22: FALSE | AF22: FALSE | AG22: 10 | AJ22: FALSE | AK22: FALSE | AL22: FALSE | AM22: TRUE | AN22: TRUE | AO22: TRUE | AP22: TRUE | AQ22: TRUE | AR22: TRUE | AS22: TRUE | AT22: TRUE | AU22: TRUE | AV22: 9
I27: A | J27: A | K27: Sadová 2122, 288 02 Nymburk | L27: Industriestrasse 25, 83607 Holzkirchen | T27: =TRIM(RIGHT(SUBSTITUTE(K27,",",REPT(" ",LEN(K27))),LEN(K27))) -> 288 02 Nymburk | U27: =TRIM(RIGHT(SUBSTITUTE(L27,",",REPT(" ",LEN(L27))),LEN(L27))) -> 83607 Holzkirchen
I28: B | J28: B | K28: Komenského 16, 500 03 Hradec Králové | L28: Messepiazza, 70629 Stuttgart | T28: =TRIM(RIGHT(SUBSTITUTE(K28,",",REPT(" ",LEN(K28))),LEN(K28))) -> 500 03 Hradec Králové | U28: =TRIM(RIGHT(SUBSTITUTE(L28,",",REPT(" ",LEN(L28))),LEN(L28))) -> 70629 Stuttgart
I29: C | J29: C | K29: Janderova 160, 377 01 Jindřichův Hradec | L29: Charles-Eames-Strasse 2, 79576 Weil am Rhein | T29: 377 01 Jindřichův Hradec | U29: 79576 Weil am Rhein
I30: D | J30: D | K30: Průmyslová 499, 463 12 Liberec | L30: Am Felsbrunnen, 66119 Saarbrucken | T30: 463 12 Liberec | U30: 66119 Saarbrucken
I31: E | J31: E | K31: Karlovarská 485/22, 301 00 Plzeň 1-Sever | L31: Rheinstrasse 2, 55116 Mainz | T31: 301 00 Plzeň 1-Sever | U31: 55116 Mainz
I32: F | J32: F | K32: Pražská 44, 642 00 Brno-Bosonohy | L32: Neuer Weyerstrasserweg 120, 50969 Koln | T32: 642 00 Brno-Bosonohy | U32: 50969 Koln
I33: G | J33: G | K33: Americká 42, 350 02 Cheb | L33: Feineisenstrasse 4, 44339 Dortmund | T33: 350 02 Cheb | U33: 44339 Dortmund
I34: H | J34: H | K34: Jihlavská 375, 396 01 Humpolec | L34: Gottfried Schenker Strasse 1, 33758 Schloss Holte-Stukenbrock | T34: 396 01 Humpolec | U34: 33758 Schloss Holte-Stukenbrock
I35: I | J35: I | K35: Komenského 31, 544 01 Dvůr Králové nad Labem | L35: Von-Thunen-Strasse 14, 28307 Bremen | T35: 544 01 Dvůr Králové nad Labem | U35: 28307 Bremen
I36: J | J36: J | K36: Pražská 156/14, 390 01 Tábor | L36: Schwarze Breite 2, 34260 Kaufungen | T36: 390 01 Tábor | U36: 34260 Kaufungen
I37: K | J37: K | K37: Kutnohorská 14/65, 109 00 Praha-Dolní Měcholupy | L37: Karlsruher Strasse 10, 30519 Hannover | T37: 109 00 Praha-Dolní Měcholupy | U37: 30519 Hannover
I38: L | J38: L | K38: Masarykova 197/1, 284 01 Kutná Hora | L38: Heidenkampsweg 79, 20097 Hamburg | T38: 284 01 Kutná Hora | U38: 20097 Hamburg
I39: M | J39: M | K39: Brněnská 257, 592 31 Nové Město na Moravě | L39: Margeritenstrasse 40, 17033 Neubrandenburg | T39: 592 31 Nové Město na Moravě | U39: 17033 Neubrandenburg
I40: N | J40: N | K40: Ostravská 774/11, 733 01 Karviná | L40: Schwanenfeldstrasse 11, 13627 Berlin | T40: 733 01 Karviná | U40: 13627 Berlin
I41: O | J41: O | K41: Oderská 19, 742 36 Jakubčovice nad Odrou | L41: Edmund-Rumpler-Strasse 3, 60549 Frankfurt am Main | T41: 742 36 Jakubčovice nad Odrou | U41: 60549 Frankfurt am Main
I42: P | J42: P | K42: Cukrovarská 492/4, 682 01 Vyškov | L42: Poststrasse 23, 04158 Leipzig | T42: 682 01 Vyškov | U42: 04158 Leipzig
I43: Q | J43: Q | K43: Domažlická 909, 339 01 Klatovy | L43: Potthoffstrasse 5, 01159 Dresden | T43: 339 01 Klatovy | U43: 01159 Dresden
I44: R | J44: R | K44: Podhoří 380/80, 400 10 Ústí nad Labem | L44: Beuchstrasse 25, 03044 Cottbus | T44: 400 10 Ústí nad Labem | U44: 03044 Cottbus
I45: S | J45: S | K45: Chebská 713/16A, 353 01 Mariánské Lázně | L45: Bremer Strasse 90, 90451 Nurnberg | T45: 353 01 Mariánské Lázně | U45: 90451 Nurnberg
I46: T | J46: T | K46: Priessnitzova 299/12, 790 01 Jeseník | L46: Am Hauptbahnhof 1, 53111 Bonn | T46: 790 01 Jeseník | U46: 53111 Bonn

Sheet CENY
B1: Automobil | C1: Cena za 1 ujetý kilometr | D1: Nosnost | E1: Průměr
B2: Dodávka do 1,5t | C2: 8 – 10 Kč/Km | D2: 1500 | E2: 9 | G2: =RANDBETWEEN(7,9)*0.1+IF(MOD(H2,2),0.05,0) -> 0.85 | H2: =ZADANI!J3 -> 442.6683614
B3: Solo vůz do 3,5t | C3: 14 – 16 Kč/Km | D3: 3500 | E3: 15 | G3: =IF(G2<0.95,G2,0.9) -> 0.85
B4: Solo vůz do 6,5t | C4: 17 – 19 Kč/Km | D4: 6500 | E4: 18
B5: Solo vůz do 12t | C5: 21 – 23 Kč/Km | D5: 12000 | E5: 22
B6: Návěs 13,6 m do 24t | C6: 25 – 27 Kč/Km | D6: 24000 | E6: 26

Sheet CR
A1: Sadova 2122, Nymburk, Czech Republic | B1: A | C1: A | D1: 50.1905764 | E1: 15.030892 | F1: 50.1905764, 15.0308920 | J1: =IF(ROW()-ROW($J$1)+1>COUNTA(B:B)*COUNTA(C:C),"",INDEX(B:B,INT((ROW()-ROW($J$1))/COUNTA(C:C)+1))&INDEX(C:C,MOD(ROW()-ROW($J$1),COUNTA(C:C))+1)) -> AA | K1: =LEFT(J1,1) -> A | L1: =VLOOKUP(K1,$A$24:$B$37,2,FALSE) -> 1 | M1: =RIGHT(J1,1) -> A | N1: =VLOOKUP(M1,$A$24:$B$51,2,FALSE) -> 1 | O1: =K1=M1 -> TRUE | P1: =IF(O1=TRUE,"",J1) ->  | Q1: =INDEX($T$3:$AM$22,L1,N1) -> 0 | T1: 1 | U1: 2 | V1: 3 | W1: 4 | X1: 5 | Y1: 6 | Z1: 7 | AA1: 8 | AB1: 9 | AC1: 10 | AD1: 11 | AE1: 12 | AF1: 13 | AG1: 14 | AR1: =B1 -> A | AS1: =A1 -> Sadova 2122, Nymburk, Czech Republic
A2: Komenskeho 16, Hradec Kralove, Czech Republic | B2: B | C2: B | D2: 50.2087825 | E2: 15.8365125 | F2: 50.2087825, 15.8365125 | J2: AB | K2: =LEFT(J2,1) -> A | L2: =VLOOKUP(K2,$A$24:$B$37,2,FALSE) -> 1 | M2: =RIGHT(J2,1) -> B | N2: =VLOOKUP(M2,$A$24:$B$51,2,FALSE) -> 2 | O2: =K2=M2 -> FALSE | P2: =IF(O2=TRUE,"",J2) -> AB | Q2: =INDEX($T$3:$AM$22,L2,N2) -> 76.31199586 | S2: 1.33 | T2: A | U2: B | V2: C | W2: D | X2: E | Y2: F | Z2: G | AA2: H | AB2: I | AC2: J | AD2: K | AE2: L | AF2: M | AG2: N | AH2: O | AI2: P | AJ2: Q | AK2: R | AL2: S | AM2: T | AR2: =B2 -> B | AS2: =A2 -> Komenskeho 16, Hradec Kralove, Czech Republic
A3: Janderova 20, Jindrichuv Hradec, Czech Republic | B3: C | C3: C | D3: 49.1462367 | E3: 15.0001153 | F3: 49.1462367, 15.0001153 | J3: AC | K3: A | L3: 1 | M3: C | N3: 3 | O3: FALSE | P3: AC | Q3: 154.4747041 | R3: 1 | S3: A | T3: =(ACOS(COS(RADIANS(90-$D$1)) *COS(RADIANS(90-$D1)) +SIN(RADIANS(90-$D$1)) *SIN(RADIANS(90-$D1)) *COS(RADIANS($E$1-$E1))) *6371)*$S$2 -> 0 | U3: =(ACOS(COS(RADIANS(90-$D$2)) *COS(RADIANS(90-$D1)) +SIN(RADIANS(90-$D$2)) *SIN(RADIANS(90-$D1)) *COS(RADIANS($E$2-$E1))) *6371)*$S$2 -> 76.31199586 | V3: =(ACOS(COS(RADIANS(90-$D$3)) *COS(RADIANS(90-$D1)) +SIN(RADIANS(90-$D$3)) *SIN(RADIANS(90-$D1)) *COS(RADIANS($E$3-$E1))) *6371)*$S$2 -> 154.4747041 | W3: =(ACOS(COS(RADIANS(90-$D$4)) *COS(RADIANS(90-$D1)) +SIN(RADIANS(90-$D$4)) *SIN(RADIANS(90-$D1)) *COS(RADIANS($E$4-$E1))) *6371)*$S$2 -> 80.76051157 | X3: =(ACOS(COS(RADIANS(90-$D$5)) *COS(RADIANS(90-$D1)) +SIN(RADIANS(90-$D$5)) *SIN(RADIANS(90-$D1)) *COS(RADIANS($E$5-$E1))) *6371)*$S$2 -> 170.1589346 | Y3: =(ACOS(COS(RADIANS(90-$D$6)) *COS(RADIANS(90-$D1)) +SIN(RADIANS(90-$D$6)) *SIN(RADIANS(90-$D1)) *COS(RADIANS($E$6-$E1))) *6371)*$S$2 -> 207.9632463 | Z3: =(ACOS(COS(RADIANS(90-$D$7)) *COS(RADIANS(90-$D1)) +SIN(RADIANS(90-$D$7)) *SIN(RADIANS(90-$D1)) *COS(RADIANS($E$7-$E1))) *6371)*$S$2 -> 254.4256901 | AA3: =(ACOS(COS(RADIANS(90-$D$8)) *COS(RADIANS(90-$D1)) +SIN(RADIANS(90-$D$8)) *SIN(RADIANS(90-$D1)) *COS(RADIANS($E$8-$E1))) *6371)*$S$2 -> 102.1490851 | AB3: =(ACOS(COS(RADIANS(90-$D$9)) *COS(RADIANS(90-$D1)) +SIN(RADIANS(90-$D$9)) *SIN(RADIANS(90-$D1)) *COS(RADIANS($E$9-$E1))) *6371)*$S$2 -> 82.26265275 | AC3: =(ACOS(COS(RADIANS(90-$D$10)) *COS(RADIANS(90-$D1)) +SIN(RADIANS(90-$D$10)) *SIN(RADIANS(90-$D1)) *COS(RADIANS($E$10-$E1))) *6371)*$S$2 -> 120.2350342 | AD3: =(ACOS(COS(RADIANS(90-$D$11)) *COS(RADIANS(90-$D1)) +SIN(RADIANS(90-$D$11)) *SIN(RADIANS(90-$D1)) *COS(RADIANS($E$11-$E1))) *6371)*$S$2 -> 48.62118084 | AE3: =(ACOS(COS(RADIANS(90-$D$12)) *COS(RADIANS(90-$D1)) +SIN(RADIANS(90-$D$12)) *SIN(RADIANS(90-$D1)) *COS(RADIANS($E$12-$E1))) *6371)*$S$2 -> 52.55122857 | AF3: =(ACOS(COS(RADIANS(90-$D$13)) *COS(RADIANS(90-$D1)) +SIN(RADIANS(90-$D$13)) *SIN(RADIANS(90-$D1)) *COS(RADIANS($E$13-$E1))) *6371)*$S$2 -> 127.8306257 | AG3: =(ACOS(COS(RADIANS(90-$D$14)) *COS(RADIANS(90-$D1)) +SIN(RADIANS(90-$D$14)) *SIN(RADIANS(90-$D1)) *COS(RADIANS($E$14-$E1))) *6371)*$S$2 -> 336.6268047 | AH3: =(ACOS(COS(RADIANS(90-$D$15)) *COS(RADIANS(90-$D1)) +SIN(RADIANS(90-$D$15)) *SIN(RADIANS(90-$D1)) *COS(RADIANS($E$15-$E1))) *6371)*$S$2 -> 273.0094467 | AI3: =(ACOS(COS(RADIANS(90-$D$16)) *COS(RADIANS(90-$D1)) +SIN(RADIANS(90-$D$16)) *SIN(RADIANS(90-$D1)) *COS(RADIANS($E$16-$E1))) *6371)*$S$2 -> 231.4185902 | AJ3: =(ACOS(COS(RADIANS(90-$D$17)) *COS(RADIANS(90-$D1)) +SIN(RADIANS(90-$D$17)) *SIN(RADIANS(90-$D1)) *COS(RADIANS($E$17-$E1))) *6371)*$S$2 -> 204.1333201 | AK3: =(ACOS(COS(RADIANS(90-$D$18)) *COS(RADIANS(90-$D1)) +SIN(RADIANS(90-$D$18)) *SIN(RADIANS(90-$D1)) *COS(RADIANS($E$18-$E1))) *6371)*$S$2 -> 123.5374657 | AL3: =(ACOS(COS(RADIANS(90-$D$19)) *COS(RADIANS(90-$D1)) +SIN(RADIANS(90-$D$19)) *SIN(RADIANS(90-$D1)) *COS(RADIANS($E$19-$E1))) *6371)*$S$2 -> 223.9239428 | AM3: =(ACOS(COS(RADIANS(90-$D$20)) *COS(RADIANS(90-$D1)) +SIN(RADIANS(90-$D$20)) *SIN(RADIANS(90-$D1)) *COS(RADIANS($E$20-$E1))) *6371)*$S$2 -> 203.9547528 | AR3: =B3 -> C | AS3: Janderova 20, Jindrichuv Hradec, Czech Republic
A4: Prumyslova 499, 463 12 Liberec, Czech Republic | B4: D | C4: D | D4: 50.736641 | E4: 15.038794 | F4: 50.0876674, 14.4033415 | J4: AD | K4: A | L4: 1 | M4: D | N4: 4 | O4: FALSE | P4: AD | Q4: 80.76051157 | R4: 2 | S4: B | T4: 76.31199586 | U4: 0 | V4: 176.3470096 | W4: 108.3116987 | X4: 243.5361904 | Y4: 166.8596564 | Z4: 330.7355033 | AA4: 109.3530111 | AB4: 33.01272521 | AC4: 162.5945564 | AD4: 122.7947053 | AE4: 60.55884044 | AF4: 96.72037017 | AG4: 261.6592615 | AH4: =(ACOS(COS(RADIANS(90-$D$15)) *COS(RADIANS(90-$D2)) +SIN(RADIANS(90-$D$15)) *SIN(RADIANS(90-$D2)) *COS(RADIANS($E$15-$E2))) *6371)*$S$2 -> 201.2152649 | AI4: =(ACOS(COS(RADIANS(90-$D$16)) *COS(RADIANS(90-$D2)) +SIN(RADIANS(90-$D$16)) *SIN(RADIANS(90-$D2)) *COS(RADIANS($E$16-$E2))) *6371)*$S$2 -> 176.9661568 | AJ4: =(ACOS(COS(RADIANS(90-$D$17)) *COS(RADIANS(90-$D2)) +SIN(RADIANS(90-$D$17)) *SIN(RADIANS(90-$D2)) *COS(RADIANS($E$17-$E2))) *6371)*$S$2 -> 271.7130974 | AK4: =(ACOS(COS(RADIANS(90-$D$18)) *COS(RADIANS(90-$D2)) +SIN(RADIANS(90-$D$18)) *SIN(RADIANS(90-$D2)) *COS(RADIANS($E$18-$E2))) *6371)*$S$2 -> 188.32998 | AL4: =(ACOS(COS(RADIANS(90-$D$19)) *COS(RADIANS(90-$D2)) +SIN(RADIANS(90-$D$19)) *SIN(RADIANS(90-$D2)) *COS(RADIANS($E$19-$E2))) *6371)*$S$2 -> 299.9906736 | AM4: =(ACOS(COS(RADIANS(90-$D$20)) *COS(RADIANS(90-$D2)) +SIN(RADIANS(90-$D$20)) *SIN(RADIANS(90-$D2)) *COS(RADIANS($E$20-$E2))) *6371)*$S$2 -> 127.6485057 | AR4: D | AS4: Prumyslova 499, 463 12 Liberec, Czech Republic
A5: Karlovarska 22, Plzen, Czech Republic | B5: E | C5: E | D5: 49.7572577 | E5: 13.3735381 | F5: 49.7572577, 13.3735381 | J5: AE | K5: A | L5: 1 | M5: E | N5: 5 | O5: FALSE | P5: AE | Q5: 170.1589346 | R5: 3 | S5: C | T5: 154.4747041 | U5: 176.3470096 | V5: 0 | W5: 235.232501 | X5: 180.605628 | Y5: 148.3464688 | Z5: 288.4449695 | AA5: 67.36362373 | AB5: 205.4287593 | AC5: 51.39694135 | AD5: 140.8067375 | AE5: 120.0741826 | AF5: 109.6372167 | AG5: 355.266674 | AH5: 280.6435707 | AI5: 193.5833257 | AJ5: 169.3954293 | AK5: 249.0209393 | AL5: 251.9290079 | AM5: 264.2769963 | AR5: E | AS5: Karlovarska 22, Plzen, Czech Republic
A6: Prazska 44, Brno, Czech Republic | B6: F | C6: F | D6: 49.1744849 | E6: 16.5334434 | F6: 49.1744849, 16.5334434 | J6: AF | K6: A | L6: 1 | M6: F | N6: 6 | O6: FALSE | P6: AF | Q6: 207.9632463 | R6: 4 | S6: D | T6: 80.76051157 | U6: 108.3116987 | V6: 235.232501 | W6: 0 | X6: 213.9546234 | Y6: 271.2763107 | Z6: 271.3932051 | AA6: 180.4704989 | AB6: 85.78646498 | AC6: 198.9353665 | AD6: 110.2722778 | AE6: 125.3858363 | AF6: 194.2729725 | AG6: 355.1192247 | AH6: 302.9014993 | AI6: 285.0761817 | AJ6: 259.1865494 | AK6: 98.26606561 | AL6: 248.6087006 | AM6: 214.8432737 | AR6: F | AS6: Prazska 44, Brno, Czech Republic
A7: Americka 42, 350 02 Cheb, Czech Republic | B7: G | C7: G | D7: 50.0749381 | E7: 12.3529616 | F7: 49.8399219, 18.2875134 | J7: AG | K7: A | L7: 1 | M7: G | N7: 7 | O7: FALSE | P7: AG | Q7: 254.4256901 | R7: 5 | S7: E | T7: 170.1589346 | U7: 243.5361904 | V7: 180.605628 | W7: 213.9546234 | X7: 0 | Y7: 315.6733298 | Z7: 107.9454888 | AA7: 193.5944465 | AB7: 252.2510175 | AC7: 133.3855245 | AD7: 121.6091497 | AE7: 193.4884322 | AF7: 248.0029757 | AG7: 492.7621842 | AH7: 422.6165467 | AI7: 354.8430113 | AJ7: 54.53751221 | AK7: 151.1225665 | AL7: 71.42420385 | AM7: 369.2362499 | AR7: G | AS7: Americka 42, 350 02 Cheb, Czech Republic
A8: Jihlavska 12, Humpolec, Czech republic | B8: H | C8: H | D8: 49.5344617 | E8: 15.3657743 | F8: 49.5344617, 15.3657743 | J8: AH | K8: A | L8: 1 | M8: H | N8: 8 | O8: FALSE | P8: AH | Q8: 102.1490851 | R8: 6 | S8: F | T8: 207.9632463 | U8: 166.8596564 | V8: 148.3464688 | W8: 271.2763107 | X8: 315.6733298 | Y8: 0 | Z8: 421.9860721 | AA8: 124.4436954 | AB8: 198.1289408 | AC8: 184.1327869 | AD8: 229.3350071 | AE8: 155.597308 | AF8: 80.17742916 | AG8: 216.89666 | AH8: 143.4506253 | AI8: 46.90909408 | AJ8: 314.9342277 | AK8: 330.7942664 | AL8: 385.9930794 | AM8: 169.4635399 | AR8: H | AS8: Jihlavska 12, Humpolec, Czech republic
A9: Komenskeho 11, Dvur Kralove nad Labem, Czech Republic | B9: I | C9: I | D9: 50.4316195 | E9: 15.8158819 | F9: 50.4316195, 15.8158819 | J9: AI | K9: A | L9: 1 | M9: I | N9: 9 | O9: FALSE | P9: AI | Q9: 82.26265275 | R9: 7 | S9: G | T9: 254.4256901 | U9: 330.7355033 | V9: 288.4449695 | W9: 271.3932051 | X9: 107.9454888 | Y9: 421.9860721 | Z9: 0 | AA9: 298.4419504 | AB9: 331.642135 | AC9: 241.1640818 | AD9: 209.8649438 | AE9: 289.3209144 | AF9: 351.2142074 | AG9: 588.8569011 | AH9: 521.3815123 | AI9: 459.5814766 | AJ9: 134.6276757 | AK9: 179.9720726 | AL9: 36.5260442 | AM9: 458.3803759 | AR9: I | AS9: Komenskeho 11, Dvur Kralove nad Labem, Czech Republic
A10: Prazska 14, Tabor, Czech Republic | B10: J | C10: J | D10: 49.4136402 | E10: 14.6598363 | F10: 49.4136402, 14.6598363 | J10: AJ | K10: A | L10: 1 | M10: J | N10: 10 | O10: FALSE | P10: AJ | Q10: 120.2350342 | R10: 8 | S10: H | T10: 102.1490851 | U10: 109.3530111 | V10: 67.36362373 | W10: 180.4704989 | X10: 193.5944465 | Y10: 124.4436954 | Z10: 298.4419504 | AA10: 0 | AB10: 139.4125924 | AC10: 70.15215642 | AD10: 108.6251591 | AE10: 56.81786411 | AF10: 55.78132187 | AG10: 306.8402749 | AH10: 233.8147199 | AI10: 161.3385851 | AJ10: 201.0063806 | AK10: 216.08158 | AL10: 262.7912214 | AM10: 202.307298 | AR10: J | AS10: Prazska 14, Tabor, Czech Republic
A11: Kutnohorska 14, Praha, Czech Republic | B11: K | C11: K | D11: 50.0553289 | E11: 14.5635059 | F11: 50.0553289, 14.5635059 | J11: AK | K11: A | L11: 1 | M11: K | N11: 11 | O11: FALSE | P11: AK | Q11: 48.62118084 | R11: 9 | S11: I | T11: 82.26265275 | U11: 33.01272521 | V11: 205.4287593 | W11: 85.78646498 | X11: 252.2510175 | Y11: 198.1289408 | Z11: 331.642135 | AA11: 139.4125924 | AB11: 0 | AC11: 186.4904946 | AD11: 130.8675694 | AE11: 86.09635986 | AF11: 129.7025552 | AG11: 271.4852303 | AH11: 217.1788398 | AI11: 204.6652103 | AJ11: 285.7280291 | AK11: 175.9523988 | AL11: 303.1184262 | AM11: 132.2788522 | AR11: K | AS11: Kutnohorska 14, Praha, Czech Republic
A12: Prazska 14, Kutna Hora, Czech Republic | B12: L | C12: L | D12: 49.9184149 | E12: 15.3867248 | F12: 49.9184149, 15.3867248 | J12: AL | K12: A | L12: 1 | M12: L | N12: 12 | O12: FALSE | P12: AL | Q12: 52.55122857 | R12: 10 | S12: J | T12: 120.2350342 | U12: 162.5945564 | V12: 51.39694135 | W12: 198.9353665 | X12: 133.3855245 | Y12: 184.1327869 | Z12: 241.1640818 | AA12: 70.15215642 | AB12: 186.4904946 | AC12: 0 | AD12: 95.34449413 | AE12: 102.0471123 | AF12: 125.402118 | AG12: 376.8229598 | AH12: 303.4680958 | AI12: 225.8434265 | AJ12: 132.2631206 | AK12: 200.5181926 | AL12: 204.7018988 | AM12: 270.1033702 | AR12: L | AS12: Prazska 14, Kutna Hora, Czech Republic
A13: Brnenska 4, Nove Mesto na Morave, Czech Republic | B13: M | C13: M | D13: 49.5585869 | E13: 15.9459131 | F13: 49.5585869, 15.9459131 | J13: AM | K13: A | L13: 1 | M13: M | N13: 13 | O13: FALSE | P13: AM | Q13: 127.8306257 | R13: 11 | S13: K | T13: 48.62118084 | U13: 122.7947053 | V13: 140.8067375 | W13: 110.2722778 | X13: 121.6091497 | Y13: 229.3350071 | Z13: 209.8649438 | AA13: 108.6251591 | AB13: 130.8675694 | AC13: 95.34449413 | AD13: 0 | AE13: 80.85360632 | AF13: 151.0099524 | AG13: 379.0287595 | AH13: 312.449456 | AI13: 259.7098373 | AJ13: 156.5812965 | AK13: 109.5333433 | AL13: 177.829907 | AM13: 249.8985855 | AR13: M | AS13: Brnenska 4, Nove Mesto na Morave, Czech Republic
A14: Ostravska 11, Karvinna, Czech Republic | B14: N | C14: N | D14: 49.8542788 | E14: 18.535164 | F14: 49.8542788, 18.5351640 | J14: AN | K14: A | L14: 1 | M14: N | N14: 14 | O14: FALSE | P14: AN | Q14: 336.6268047 | R14: 12 | S14: L | T14: 52.55122857 | U14: 60.55884044 | V14: 120.0741826 | W14: 125.3858363 | X14: 193.4884322 | Y14: 155.597308 | Z14: 289.3209144 | AA14: 56.81786411 | AB14: 86.09635986 | AC14: 102.0471123 | AD14: 80.85360632 | AE14: 0 | AF14: 75.42011723 | AG14: 300.1296688 | AH14: 232.1089956 | AI14: 181.1052772 | AJ14: 215.6242086 | AK14: 175.2946751 | AL14: 256.0223214 | AM14: 177.1455661 | AR14: N | AS14: Ostravska 11, Karvinna, Czech Republic
A15: Oderska 19, 742 36 Jakubcovice nad Odrou, Czech Republic | B15: O | C15: O | D15: 49.6934464 | E15: 17.7935959 | F15: 49.6934464, 17.7935959 | J15: AO | K15: A | L15: 1 | M15: O | N15: 15 | O15: FALSE | P15: AO | Q15: 273.0094467 | R15: 13 | S15: M | T15: 127.8306257 | U15: 96.72037017 | V15: 109.6372167 | W15: 194.2729725 | X15: 248.0029757 | Y15: 80.17742916 | Z15: 351.2142074 | AA15: 55.78132187 | AB15: 129.7025552 | AC15: 125.402118 | AD15: 151.0099524 | AE15: 75.42011723 | AF15: 0 | AG15: 251.4554308 | AH15: 178.1212702 | AI15: 109.2343477 | AJ15: 256.7764748 | AK15: 250.6475663 | AL15: 316.0706762 | AM15: 155.1958665 | AR15: O | AS15: Oderska 19, 742 36 Jakubcovice nad Odrou, Czech Republic
A16: Cukrovarska 4, 682 01 Vyskov, Czech Republic | B16: P | C16: P | D16: 49.2748267 | E16: 16.9941755 | F16: 49.2748267, 16.9941755 | J16: AP | K16: A | L16: 1 | M16: P | N16: 16 | O16: FALSE | P16: AP | Q16: 231.4185902 | R16: 14 | S16: N | T16: 336.6268047 | U16: 261.6592615 | V16: 355.266674 | W16: 355.1192247 | X16: 492.7621842 | Y16: 216.89666 | Z16: 588.8569011 | AA16: 306.8402749 | AB16: 271.4852303 | AC16: 376.8229598 | AD16: 379.0287595 | AE16: 300.1296688 | AF16: 251.4554308 | AG16: 0 | AH16: 74.71238607 | AI16: 170.850734 | AJ16: 507.4050847 | AK16: 447.2319479 | AL16: 556.0692911 | AM16: 140.3675386 | AR16: P | AS16: Cukrovarska 4, 682 01 Vyskov, Czech Republic
A17: Domazlicka 909, 339 01 Klatovy, Czech Republic | B17: Q | C17: Q | D17: 49.3928975 | E17: 13.2858263 | F17: 49.3928975, 13.2858263 | J17: AQ | K17: A | L17: 1 | M17: Q | N17: 17 | O17: FALSE | P17: AQ | Q17: 204.1333201 | R17: 15 | S17: O | T17: =(ACOS(COS(RADIANS(90-$D$1)) *COS(RADIANS(90-$D15)) +SIN(RADIANS(90-$D$1)) *SIN(RADIANS(90-$D15)) *COS(RADIANS($E$1-$E15))) *6371)*$S$2 -> 273.0094467 | U17: =(ACOS(COS(RADIANS(90-$D$2)) *COS(RADIANS(90-$D15)) +SIN(RADIANS(90-$D$2)) *SIN(RADIANS(90-$D15)) *COS(RADIANS($E$2-$E15))) *6371)*$S$2 -> 201.2152649 | V17: =(ACOS(COS(RADIANS(90-$D$3)) *COS(RADIANS(90-$D15)) +SIN(RADIANS(90-$D$3)) *SIN(RADIANS(90-$D15)) *COS(RADIANS($E$3-$E15))) *6371)*$S$2 -> 280.6435707 | W17: =(ACOS(COS(RADIANS(90-$D$4)) *COS(RADIANS(90-$D15)) +SIN(RADIANS(90-$D$4)) *SIN(RADIANS(90-$D15)) *COS(RADIANS($E$4-$E15))) *6371)*$S$2 -> 302.9014993 | X17: =(ACOS(COS(RADIANS(90-$D$5)) *COS(RADIANS(90-$D15)) +SIN(RADIANS(90-$D$5)) *SIN(RADIANS(90-$D15)) *COS(RADIANS($E$5-$E15))) *6371)*$S$2 -> 422.6165467 | Y17: =(ACOS(COS(RADIANS(90-$D$6)) *COS(RADIANS(90-$D15)) +SIN(RADIANS(90-$D$6)) *SIN(RADIANS(90-$D15)) *COS(RADIANS($E$6-$E15))) *6371)*$S$2 -> 143.4506253 | Z17: =(ACOS(COS(RADIANS(90-$D$7)) *COS(RADIANS(90-$D15)) +SIN(RADIANS(90-$D$7)) *SIN(RADIANS(90-$D15)) *COS(RADIANS($E$7-$E15))) *6371)*$S$2 -> 521.3815123 | AA17: =(ACOS(COS(RADIANS(90-$D$8)) *COS(RADIANS(90-$D15)) +SIN(RADIANS(90-$D$8)) *SIN(RADIANS(90-$D15)) *COS(RADIANS($E$8-$E15))) *6371)*$S$2 -> 233.8147199 | AB17: =(ACOS(COS(RADIANS(90-$D$9)) *COS(RADIANS(90-$D15)) +SIN(RADIANS(90-$D$9)) *SIN(RADIANS(90-$D15)) *COS(RADIANS($E$9-$E15))) *6371)*$S$2 -> 217.1788398 | AC17: =(ACOS(COS(RADIANS(90-$D$10)) *COS(RADIANS(90-$D15)) +SIN(RADIANS(90-$D$10)) *SIN(RADIANS(90-$D15)) *COS(RADIANS($E$10-$E15))) *6371)*$S$2 -> 303.4680958 | AD17: =(ACOS(COS(RADIANS(90-$D$11)) *COS(RADIANS(90-$D15)) +SIN(RADIANS(90-$D$11)) *SIN(RADIANS(90-$D15)) *COS(RADIANS($E$11-$E15))) *6371)*$S$2 -> 312.449456 | AE17: =(ACOS(COS(RADIANS(90-$D$12)) *COS(RADIANS(90-$D15)) +SIN(RADIANS(90-$D$12)) *SIN(RADIANS(90-$D15)) *COS(RADIANS($E$12-$E15))) *6371)*$S$2 -> 232.1089956 | AF17: =(ACOS(COS(RADIANS(90-$D$13)) *COS(RADIANS(90-$D15)) +SIN(RADIANS(90-$D$13)) *SIN(RADIANS(90-$D15)) *COS(RADIANS($E$13-$E15))) *6371)*$S$2 -> 178.1212702 | AG17: =(ACOS(COS(RADIANS(90-$D$14)) *COS(RADIANS(90-$D15)) +SIN(RADIANS(90-$D$14)) *SIN(RADIANS(90-$D15)) *COS(RADIANS($E$14-$E15))) *6371)*$S$2 -> 74.71238607 | AH17: 0 | AI17: 98.64983958 | AJ17: 434.7836712 | AK17: 389.4928949 | AL17: 487.7161105 | AM17: 99.4563679 | AR17: Q | AS17: Domazlicka 909, 339 01 Klatovy, Czech Republic
A18: Podhori 80, 400 10 Usti nad Labem, Czech Republic | B18: R | C18: R | D18: 50.6997147 | E18: 13.9909361 | F18: 50.6997147, 13.9909361 | J18: AR | K18: A | L18: 1 | M18: R | N18: 18 | O18: FALSE | P18: AR | Q18: 123.5374657 | R18: 16 | S18: P | T18: 231.4185902 | U18: 176.9661568 | V18: 193.5833257 | W18: 285.0761817 | X18: 354.8430113 | Y18: 46.90909408 | Z18: 459.5814766 | AA18: 161.3385851 | AB18: 204.6652103 | AC18: 225.8434265 | AD18: 259.7098373 | AE18: 181.1052772 | AF18: 109.2343477 | AG18: 170.850734 | AH18: 98.64983958 | AI18: 0 | AJ18: 357.7714204 | AK18: 354.8536726 | AL18: 424.0744886 | AM18: 143.9188869 | AR18: R | AS18: Podhori 80, 400 10 Usti nad Labem, Czech Republic
A19: Chebska 713/16A, 353 01 Marianske Lazne, Czech Republic | B19: S | C19: S | D19: 49.9655332 | E19: 12.6975899 | F19: 49.9655332, 12.6975899 | J19: AS | K19: A | L19: 1 | M19: S | N19: 19 | O19: FALSE | P19: AS | Q19: 223.9239428 | R19: 17 | S19: Q | T19: 204.1333201 | U19: 271.7130974 | V19: 169.3954293 | W19: 259.1865494 | X19: 54.53751221 | Y19: 314.9342277 | Z19: 134.6276757 | AA19: 201.0063806 | AB19: 285.7280291 | AC19: 132.2631206 | AD19: 156.5812965 | AE19: 215.6242086 | AF19: 256.7764748 | AG19: 507.4050847 | AH19: 434.7836712 | AI19: 357.7714204 | AJ19: 0 | AK19: 204.5340901 | AL19: 101.6874239 | AM19: 392.5263603 | AR19: S | AS19: Chebska 713/16A, 353 01 Marianske Lazne, Czech Republic
A20: Priessnitzova 299/12, 790 03 Jesenik, Czech Republic | B20: T | C20: T | D20: 50.2401616 | E20: 17.1847494 | F20: 50.2401616, 17.1847494 | J20: AT | K20: A | L20: 1 | M20: T | N20: 20 | O20: FALSE | P20: AT | Q20: 203.9547528 | R20: 18 | S20: R | T20: 123.5374657 | U20: 188.32998 | V20: 249.0209393 | W20: 98.26606561 | X20: 151.1225665 | Y20: 330.7942664 | Z20: 179.9720726 | AA20: 216.08158 | AB20: 175.9523988 | AC20: 200.5181926 | AD20: 109.5333433 | AE20: 175.2946751 | AF20: 250.6475663 | AG20: 447.2319479 | AH20: 389.4928949 | AI20: 354.8536726 | AJ20: 204.5340901 | AK20: 0 | AL20: 163.3851396 | AM20: 308.1900042 | AR20: T | AS20: Priessnitzova 299/12, 790 03 Jesenik, Czech Republic
J21: BA | K21: B | L21: 2 | M21: A | N21: 1 | O21: FALSE | P21: BA | Q21: 76.31199586 | R21: 19 | S21: S | T21: 223.9239428 | U21: 299.9906736 | V21: 251.9290079 | W21: 248.6087006 | X21: 71.42420385 | Y21: 385.9930794 | Z21: 36.5260442 | AA21: 262.7912214 | AB21: 303.1184262 | AC21: 204.7018988 | AD21: 177.829907 | AE21: 256.0223214 | AF21: 316.0706762 | AG21: 556.0692911 | AH21: 487.7161105 | AI21: 424.0744886 | AJ21: 101.6874239 | AK21: 163.3851396 | AL21: 0.0001262639463 | AM21: 427.5098105
J22: BB | K22: B | L22: 2 | M22: B | N22: 2 | O22: TRUE | Q22: 0 | R22: 20 | S22: T | T22: 203.9547528 | U22: 127.6485057 | V22: 264.2769963 | W22: 214.8432737 | X22: 369.2362499 | Y22: 169.4635399 | Z22: 458.3803759 | AA22: 202.307298 | AB22: 132.2788522 | AC22: 270.1033702 | AD22: 249.8985855 | AE22: 177.1455661 | AF22: 155.1958665 | AG22: 140.3675386 | AH22: 99.4563679 | AI22: 143.9188869 | AJ22: 392.5263603 | AK22: 308.1900042 | AL22: 427.5098105 | AM22: 0
J23: BC | K23: B | L23: 2 | M23: C | N23: 3 | O23: FALSE | P23: BC | Q23: 176.3470096
A24: A | B24: 1 | D24: Mnichov | J24: BD | K24: B | L24: 2 | M24: D | N24: 4 | O24: FALSE | P24: BD | Q24: 108.3116987
A25: B | B25: 2 | D25: Stuttgart | J25: BE | K25: B | L25: 2 | M25: E | N25: 5 | O25: FALSE | P25: BE | Q25: 243.5361904
A26: C | B26: 3 | D26: Weil am Rhein | J26: BF | K26: B | L26: 2 | M26: F | N26: 6 | O26: FALSE | P26: BF | Q26: 166.8596564
A27: D | B27: 4 | D27: Saarbrucken | J27: BG | K27: B | L27: 2 | M27: G | N27: 7 | O27: FALSE | P27: BG | Q27: 330.7355033
A28: E | B28: 5 | D28: Wiesbaden | J28: BH | K28: B | L28: 2 | M28: H | N28: 8 | O28: FALSE | P28: BH | Q28: 109.3530111
A29: F | B29: 6 | D29: Koln | J29: BI | K29: B | L29: 2 | M29: I | N29: 9 | O29: FALSE | P29: BI | Q29: 33.01272521
A30: G | B30: 7 | D30: Dortmund | J30: BJ | K30: B | L30: 2 | M30: J | N30: 10 | O30: FALSE | P30: BJ | Q30: 162.5945564
A31: H | B31: 8 | D31: Bielefeld | J31: BK | K31: B | L31: 2 | M31: K | N31: 11 | O31: FALSE | P31: BK | Q31: 122.7947053
A32: I | B32: 9 | D32: Bremen | J32: BL | K32: B | L32: 2 | M32: L | N32: 12 | O32: FALSE | P32: BL | Q32: 60.55884044
A33: J | B33: 10 | D33: Kassel | J33: BM | K33: B | L33: 2 | M33: M | N33: 13 | O33: FALSE | P33: BM | Q33: 96.72037017
A34: K | B34: 11 | D34: Hannover | J34: BN | K34: B | L34: 2 | M34: N | N34: 14 | O34: FALSE | P34: BN | Q34: 261.6592615
A35: L | B35: 12 | D35: Hamburg | J35: BO | K35: B | L35: 2 | M35: O | N35: 15 | O35: FALSE | P35: BO | Q35: 201.2152649
A36: M | B36: 13 | D36: Prenzlau | J36: BP | K36: B | L36: 2 | M36: P | N36: 16 | O36: FALSE | P36: BP | Q36: 176.9661568
A37: N | B37: 14 | D37: Berlin | J37: BQ | K37: B | L37: 2 | M37: Q | N37: 17 | O37: FALSE | P37: BQ | Q37: 271.7130974
A38: O | B38: 15 | D38: Frankfurt | J38: BR | K38: B | L38: 2 | M38: R | N38: 18 | O38: FALSE | P38: BR | Q38: 188.32998
A39: P | B39: 16 | D39: Lipsko | J39: BS | K39: B | L39: 2 | M39: S | N39: 19 | O39: FALSE | P39: BS | Q39: 299.9906736
A40: Q | B40: 17 | D40: Drazdany | J40: BT | K40: B | L40: 2 | M40: T | N40: 20 | O40: FALSE | P40: BT | Q40: 127.6485057
A41: R | B41: 18 | D41: Chotebuz | J41: CA | K41: C | L41: 3 | M41: A | N41: 1 | O41: FALSE | P41: CA | Q41: 154.4747041
A42: S | B42: 19 | D42: Norimberk | J42: CB | K42: C | L42: 3 | M42: B | N42: 2 | O42: FALSE | P42: CB | Q42: 176.3470096
A43: T | B43: 20 | D43: Bonn | J43: CC | K43: C | L43: 3 | M43: C | N43: 3 | O43: TRUE | Q43: 0
J44: CD | K44: C | L44: 3 | M44: D | N44: 4 | O44: FALSE | P44: CD | Q44: 235.232501
J45: CE | K45: C | L45: 3 | M45: E | N45: 5 | O45: FALSE | P45: CE | Q45: 180.605628
J46: CF | K46: C | L46: 3 | M46: F | N46: 6 | O46: FALSE | P46: CF | Q46: 148.3464688
J47: CG | K47: C | L47: 3 | M47: G | N47: 7 | O47: FALSE | P47: CG | Q47: 288.4449695
J48: CH | K48: C | L48: 3 | M48: H | N48: 8 | O48: FALSE | P48: CH | Q48: 67.36362373
J49: CI | K49: C | L49: 3 | M49: I | N49: 9 | O49: FALSE | P49: CI | Q49: 205.4287593
J50: CJ | K50: C | L50: 3 | M50: J | N50: 10 | O50: FALSE | P50: CJ | Q50: 51.39694135
J51: CK | K51: C | L51: 3 | M51: K | N51: 11 | O51: FALSE | P51: CK | Q51: 140.8067375
J52: CL | K52: C | L52: 3 | M52: L | N52: 12 | O52: FALSE | P52: CL | Q52: 120.0741826
J53: CM | K53: C | L53: 3 | M53: M | N53: 13 | O53: FALSE | P53: CM | Q53: 109.6372167
J54: CN | K54: C | L54: 3 | M54: N | N54: 14 | O54: FALSE | P54: CN | Q54: 355.266674
J55: CO | K55: C | L55: 3 | M55: O | N55: 15 | O55: FALSE | P55: CO | Q55: 280.6435707
J56: CP | K56: C | L56: 3 | M56: P | N56: 16 | O56: FALSE | P56: CP | Q56: 193.5833257
J57: CQ | K57: C | L57: 3 | M57: Q | N57: 17 | O57: FALSE | P57: CQ | Q57: 169.3954293
J58: CR | K58: C | L58: 3 | M58: R | N58: 18 | O58: FALSE | P58: CR | Q58: 249.0209393
J59: CS | K59: C | L59: 3 | M59: S | N59: 19 | O59: FALSE | P59: CS | Q59: 251.9290079
J60: CT | K60: C | L60: 3 | M60: T | N60: 20 | O60: FALSE | P60: CT | Q60: 264.2769963
J61: DA | K61: D | L61: 4 | M61: A | N61: 1 | O61: FALSE | P61: DA | Q61: 80.76051157
J62: DB | K62: D | L62: 4 | M62: B | N62: 2 | O62: FALSE | P62: DB | Q62: 108.3116987
J63: DC | K63: D | L63: 4 | M63: C | N63: 3 | O63: FALSE | P63: DC | Q63: 235.232501
J64: DD | K64: D | L64: 4 | M64: D | N64: 4 | O64: TRUE | Q64: 0
J65: =IF(ROW()-ROW($J$1)+1>COUNTA(B:B)*COUNTA(C:C),"",INDEX(B:B,INT((ROW()-ROW($J$1))/COUNTA(C:C)+1))&INDEX(C:C,MOD(ROW()-ROW($J$1),COUNTA(C:C))+1)) -> DE | K65: D | L65: 4 | M65: E | N65: 5 | O65: FALSE | P65: DE | Q65: 213.9546234
J66: DF | K66: =LEFT(J66,1) -> D | L66: =VLOOKUP(K66,$A$24:$B$37,2,FALSE) -> 4 | M66: =RIGHT(J66,1) -> F | N66: =VLOOKUP(M66,$A$24:$B$51,2,FALSE) -> 6 | O66: =K66=M66 -> FALSE | P66: =IF(O66=TRUE,"",J66) -> DF | Q66: =INDEX($T$3:$AM$22,L66,N66) -> 271.2763107
J67: DG | K67: D | L67: 4 | M67: G | N67: 7 | O67: FALSE | P67: DG | Q67: 271.3932051
J68: DH | K68: D | L68: 4 | M68: H | N68: 8 | O68: FALSE | P68: DH | Q68: 180.4704989
J69: DI | K69: D | L69: 4 | M69: I | N69: 9 | O69: FALSE | P69: DI | Q69: 85.78646498
J70: DJ | K70: D | L70: 4 | M70: J | N70: 10 | O70: FALSE | P70: DJ | Q70: 198.9353665
J71: DK | K71: D | L71: 4 | M71: K | N71: 11 | O71: FALSE | P71: DK | Q71: 110.2722778
J72: DL | K72: D | L72: 4 | M72: L | N72: 12 | O72: FALSE | P72: DL | Q72: 125.3858363
J73: DM | K73: D | L73: 4 | M73: M | N73: 13 | O73: FALSE | P73: DM | Q73: 194.2729725
J74: DN | K74: D | L74: 4 | M74: N | N74: 14 | O74: FALSE | P74: DN | Q74: 355.1192247
J75: DO | K75: D | L75: 4 | M75: O | N75: 15 | O75: FALSE | P75: DO | Q75: 302.9014993
J76: DP | K76: D | L76: 4 | M76: P | N76: 16 | O76: FALSE | P76: DP | Q76: 285.0761817
J77: DQ | K77: D | L77: 4 | M77: Q | N77: 17 | O77: FALSE | P77: DQ | Q77: 259.1865494
J78: DR | K78: D | L78: 4 | M78: R | N78: 18 | O78: FALSE | P78: DR | Q78: 98.26606561
J79: DS | K79: D | L79: 4 | M79: S | N79: 19 | O79: FALSE | P79: DS | Q79: 248.6087006
J80: DT | K80: D | L80: 4 | M80: T | N80: 20 | O80: FALSE | P80: DT | Q80: 214.8432737
J81: EA | K81: E | L81: 5 | M81: A | N81: 1 | O81: FALSE | P81: EA | Q81: 170.1589346
J82: EB | K82: E | L82: 5 | M82: B | N82: 2 | O82: FALSE | P82: EB | Q82: 243.5361904
J83: EC | K83: E | L83: 5 | M83: C | N83: 3 | O83: FALSE | P83: EC | Q83: 180.605628
J84: ED | K84: E | L84: 5 | M84: D | N84: 4 | O84: FALSE | P84: ED | Q84: 213.9546234
J85: EE | K85: E | L85: 5 | M85: E | N85: 5 | O85: TRUE | Q85: 0
J86: EF | K86: E | L86: 5 | M86: F | N86: 6 | O86: FALSE | P86: EF | Q86: 315.6733298
J87: EG | K87: E | L87: 5 | M87: G | N87: 7 | O87: FALSE | P87: EG | Q87: 107.9454888
J88: EH | K88: E | L88: 5 | M88: H | N88: 8 | O88: FALSE | P88: EH | Q88: 193.5944465
J89: EI | K89: E | L89: 5 | M89: I | N89: 9 | O89: FALSE | P89: EI | Q89: 252.2510175
J90: EJ | K90: E | L90: 5 | M90: J | N90: 10 | O90: FALSE | P90: EJ | Q90: 133.3855245
J91: EK | K91: E | L91: 5 | M91: K | N91: 11 | O91: FALSE | P91: EK | Q91: 121.6091497
J92: EL | K92: E | L92: 5 | M92: L | N92: 12 | O92: FALSE | P92: EL | Q92: 193.4884322
J93: EM | K93: E | L93: 5 | M93: M | N93: 13 | O93: FALSE | P93: EM | Q93: 248.0029757
J94: EN | K94: E | L94: 5 | M94: N | N94: 14 | O94: FALSE | P94: EN | Q94: 492.7621842
J95: EO | K95: E | L95: 5 | M95: O | N95: 15 | O95: FALSE | P95: EO | Q95: 422.6165467
J96: EP | K96: E | L96: 5 | M96: P | N96: 16 | O96: FALSE | P96: EP | Q96: 354.8430113
J97: EQ | K97: E | L97: 5 | M97: Q | N97: 17 | O97: FALSE | P97: EQ | Q97: 54.53751221
J98: ER | K98: E | L98: 5 | M98: R | N98: 18 | O98: FALSE | P98: ER | Q98: 151.1225665
J99: ES | K99: E | L99: 5 | M99: S | N99: 19 | O99: FALSE | P99: ES | Q99: 71.42420385
J100: ET | K100: E | L100: 5 | M100: T | N100: 20 | O100: FALSE | P100: ET | Q100: 369.2362499
J101: FA | K101: F | L101: 6 | M101: A | N101: 1 | O101: FALSE | P101: FA | Q101: 207.9632463
J102: FB | K102: F | L102: 6 | M102: B | N102: 2 | O102: FALSE | P102: FB | Q102: 166.8596564
J103: FC | K103: F | L103: 6 | M103: C | N103: 3 | O103: FALSE | P103: FC | Q103: 148.3464688
J104: FD | K104: F | L104: 6 | M104: D | N104: 4 | O104: FALSE | P104: FD | Q104: 271.2763107
J105: FE | K105: F | L105: 6 | M105: E | N105: 5 | O105: FALSE | P105: FE | Q105: 315.6733298
J106: FF | K106: F | L106: 6 | M106: F | N106: 6 | O106: TRUE | Q106: 0
J107: FG | K107: F | L107: 6 | M107: G | N107: 7 | O107: FALSE | P107: FG | Q107: 421.9860721
J108: FH | K108: F | L108: 6 | M108: H | N108: 8 | O108: FALSE | P108: FH | Q108: 124.4436954
J109: FI | K109: F | L109: 6 | M109: I | N109: 9 | O109: FALSE | P109: FI | Q109: 198.1289408
J110: FJ | K110: F | L110: 6 | M110: J | N110: 10 | O110: FALSE | P110: FJ | Q110: 184.1327869
J111: FK | K111: F | L111: 6 | M111: K | N111: 11 | O111: FALSE | P111: FK | Q111: 229.3350071
J112: FL | K112: F | L112: 6 | M112: L | N112: 12 | O112: FALSE | P112: FL | Q112: 155.597308
J113: FM | K113: F | L113: 6 | M113: M | N113: 13 | O113: FALSE | P113: FM | Q113: 80.17742916
J114: FN | K114: F | L114: 6 | M114: N | N114: 14 | O114: FALSE | P114: FN | Q114: 216.89666
J115: FO | K115: F | L115: 6 | M115: O | N115: 15 | O115: FALSE | P115: FO | Q115: 143.4506253
J116: FP | K116: F | L116: 6 | M116: P | N116: 16 | O116: FALSE | P116: FP | Q116: 46.90909408
J117: FQ | K117: F | L117: 6 | M117: Q | N117: 17 | O117: FALSE | P117: FQ | Q117: 314.9342277
J118: FR | K118: F | L118: 6 | M118: R | N118: 18 | O118: FALSE | P118: FR | Q118: 330.7942664
J119: FS | K119: F | L119: 6 | M119: S | N119: 19 | O119: FALSE | P119: FS | Q119: 385.9930794
J120: FT | K120: F | L120: 6 | M120: T | N120: 20 | O120: FALSE | P120: FT | Q120: 169.4635399
J121: GA | K121: G | L121: 7 | M121: A | N121: 1 | O121: FALSE | P121: GA | Q121: 254.4256901
J122: GB | K122: G | L122: 7 | M122: B | N122: 2 | O122: FALSE | P122: GB | Q122: 330.7355033
J123: GC | K123: G | L123: 7 | M123: C | N123: 3 | O123: FALSE | P123: GC | Q123: 288.4449695
J124: GD | K124: G | L124: 7 | M124: D | N124: 4 | O124: FALSE | P124: GD | Q124: 271.3932051
J125: GE | K125: G | L125: 7 | M125: E | N125: 5 | O125: FALSE | P125: GE | Q125: 107.9454888
J126: GF | K126: G | L126: 7 | M126: F | N126: 6 | O126: FALSE | P126: GF | Q126: 421.9860721
J127: GG | K127: G | L127: 7 | M127: G | N127: 7 | O127: TRUE | Q127: 0
J128: GH | K128: G | L128: 7 | M128: H | N128: 8 | O128: FALSE | P128: GH | Q128: 298.4419504
J129: =IF(ROW()-ROW($J$1)+1>COUNTA(B:B)*COUNTA(C:C),"",INDEX(B:B,INT((ROW()-ROW($J$1))/COUNTA(C:C)+1))&INDEX(C:C,MOD(ROW()-ROW($J$1),COUNTA(C:C))+1)) -> GI | K129: G | L129: 7 | M129: I | N129: 9 | O129: FALSE | P129: GI | Q129: 331.642135
J130: GJ | K130: =LEFT(J130,1) -> G | L130: =VLOOKUP(K130,$A$24:$B$37,2,FALSE) -> 7 | M130: =RIGHT(J130,1) -> J | N130: =VLOOKUP(M130,$A$24:$B$51,2,FALSE) -> 10 | O130: =K130=M130 -> FALSE | P130: =IF(O130=TRUE,"",J130) -> GJ | Q130: =INDEX($T$3:$AM$22,L130,N130) -> 241.1640818
J131: GK | K131: G | L131: 7 | M131: K | N131: 11 | O131: FALSE | P131: GK | Q131: 209.8649438
J132: GL | K132: G | L132: 7 | M132: L | N132: 12 | O132: FALSE | P132: GL | Q132: 289.3209144
J133: GM | K133: G | L133: 7 | M133: M | N133: 13 | O133: FALSE | P133: GM | Q133: 351.2142074
J134: GN | K134: G | L134: 7 | M134: N | N134: 14 | O134: FALSE | P134: GN | Q134: 588.8569011
J135: GO | K135: G | L135: 7 | M135: O | N135: 15 | O135: FALSE | P135: GO | Q135: 521.3815123
J136: GP | K136: G | L136: 7 | M136: P | N136: 16 | O136: FALSE | P136: GP | Q136: 459.5814766
J137: GQ | K137: G | L137: 7 | M137: Q | N137: 17 | O137: FALSE | P137: GQ | Q137: 134.6276757
J138: GR | K138: G | L138: 7 | M138: R | N138: 18 | O138: FALSE | P138: GR | Q138: 179.9720726
J139: GS | K139: G | L139: 7 | M139: S | N139: 19 | O139: FALSE | P139: GS | Q139: 36.5260442
J140: GT | K140: G | L140: 7 | M140: T | N140: 20 | O140: FALSE | P140: GT | Q140: 458.3803759
J141: HA | K141: H | L141: 8 | M141: A | N141: 1 | O141: FALSE | P141: HA | Q141: 102.1490851
J142: HB | K142: H | L142: 8 | M142: B | N142: 2 | O142: FALSE | P142: HB | Q142: 109.3530111
J143: HC | K143: H | L143: 8 | M143: C | N143: 3 | O143: FALSE | P143: HC | Q143: 67.36362373
J144: HD | K144: H | L144: 8 | M144: D | N144: 4 | O144: FALSE | P144: HD | Q144: 180.4704989
J145: HE | K145: H | L145: 8 | M145: E | N145: 5 | O145: FALSE | P145: HE | Q145: 193.5944465
J146: HF | K146: H | L146: 8 | M146: F | N146: 6 | O146: FALSE | P146: HF | Q146: 124.4436954
J147: HG | K147: H | L147: 8 | M147: G | N147: 7 | O147: FALSE | P147: HG | Q147: 298.4419504
J148: HH | K148: H | L148: 8 | M148: H | N148: 8 | O148: TRUE | Q148: 0
J149: HI | K149: H | L149: 8 | M149: I | N149: 9 | O149: FALSE | P149: HI | Q149: 139.4125924
J150: HJ | K150: H | L150: 8 | M150: J | N150: 10 | O150: FALSE | P150: HJ | Q150: 70.15215642
J151: HK | K151: H | L151: 8 | M151: K | N151: 11 | O151: FALSE | P151: HK | Q151: 108.6251591
J152: HL | K152: H | L152: 8 | M152: L | N152: 12 | O152: FALSE | P152: HL | Q152: 56.81786411
J153: HM | K153: H | L153: 8 | M153: M | N153: 13 | O153: FALSE | P153: HM | Q153: 55.78132187
J154: HN | K154: H | L154: 8 | M154: N | N154: 14 | O154: FALSE | P154: HN | Q154: 306.8402749
J155: HO | K155: H | L155: 8 | M155: O | N155: 15 | O155: FALSE | P155: HO | Q155: 233.8147199
J156: HP | K156: H | L156: 8 | M156: P | N156: 16 | O156: FALSE | P156: HP | Q156: 161.3385851
J157: HQ | K157: H | L157: 8 | M157: Q | N157: 17 | O157: FALSE | P157: HQ | Q157: 201.0063806
J158: HR | K158: H | L158: 8 | M158: R | N158: 18 | O158: FALSE | P158: HR | Q158: 216.08158
J159: HS | K159: H | L159: 8 | M159: S | N159: 19 | O159: FALSE | P159: HS | Q159: 262.7912214
J160: HT | K160: H | L160: 8 | M160: T | N160: 20 | O160: FALSE | P160: HT | Q160: 202.307298
J161: IA | K161: I | L161: 9 | M161: A | N161: 1 | O161: FALSE | P161: IA | Q161: 82.26265275
J162: IB | K162: I | L162: 9 | M162: B | N162: 2 | O162: FALSE | P162: IB | Q162: 33.01272521
J163: IC | K163: I | L163: 9 | M163: C | N163: 3 | O163: FALSE | P163: IC | Q163: 205.4287593
J164: ID | K164: I | L164: 9 | M164: D | N164: 4 | O164: FALSE | P164: ID | Q164: 85.78646498
J165: IE | K165: I | L165: 9 | M165: E | N165: 5 | O165: FALSE | P165: IE | Q165: 252.2510175
J166: IF | K166: I | L166: 9 | M166: F | N166: 6 | O166: FALSE | P166: IF | Q166: 198.1289408
J167: IG | K167: I | L167: 9 | M167: G | N167: 7 | O167: FALSE | P167: IG | Q167: 331.642135
J168: IH | K168: I | L168: 9 | M168: H | N168: 8 | O168: FALSE | P168: IH | Q168: 139.4125924
J169: II | K169: I | L169: 9 | M169: I | N169: 9 | O169: TRUE | Q169: 0
J170: IJ | K170: I | L170: 9 | M170: J | N170: 10 | O170: FALSE | P170: IJ | Q170: 186.4904946
J171: IK | K171: I | L171: 9 | M171: K | N171: 11 | O171: FALSE | P171: IK | Q171: 130.8675694
J172: IL | K172: I | L172: 9 | M172: L | N172: 12 | O172: FALSE | P172: IL | Q172: 86.09635986
J173: IM | K173: I | L173: 9 | M173: M | N173: 13 | O173: FALSE | P173: IM | Q173: 129.7025552
J174: IN | K174: I | L174: 9 | M174: N | N174: 14 | O174: FALSE | P174: IN | Q174: 271.4852303
J175: IO | K175: I | L175: 9 | M175: O | N175: 15 | O175: FALSE | P175: IO | Q175: 217.1788398
J176: IP | K176: I | L176: 9 | M176: P | N176: 16 | O176: FALSE | P176: IP | Q176: 204.6652103
J177: IQ | K177: I | L177: 9 | M177: Q | N177: 17 | O177: FALSE | P177: IQ | Q177: 285.7280291
J178: IR | K178: I | L178: 9 | M178: R | N178: 18 | O178: FALSE | P178: IR | Q178: 175.9523988
J179: IS | K179: I | L179: 9 | M179: S | N179: 19 | O179: FALSE | P179: IS | Q179: 303.1184262
J180: IT | K180: I | L180: 9 | M180: T | N180: 20 | O180: FALSE | P180: IT | Q180: 132.2788522
J181: JA | K181: J | L181: 10 | M181: A | N181: 1 | O181: FALSE | P181: JA | Q181: 120.2350342
J182: JB | K182: J | L182: 10 | M182: B | N182: 2 | O182: FALSE | P182: JB | Q182: 162.5945564
J183: JC | K183: J | L183: 10 | M183: C | N183: 3 | O183: FALSE | P183: JC | Q183: 51.39694135
J184: JD | K184: J | L184: 10 | M184: D | N184: 4 | O184: FALSE | P184: JD | Q184: 198.9353665
J185: JE | K185: J | L185: 10 | M185: E | N185: 5 | O185: FALSE | P185: JE | Q185: 133.3855245
J186: JF | K186: J | L186: 10 | M186: F | N186: 6 | O186: FALSE | P186: JF | Q186: 184.1327869
J187: JG | K187: J | L187: 10 | M187: G | N187: 7 | O187: FALSE | P187: JG | Q187: 241.1640818
J188: JH | K188: J | L188: 10 | M188: H | N188: 8 | O188: FALSE | P188: JH | Q188: 70.15215642
J189: JI | K189: J | L189: 10 | M189: I | N189: 9 | O189: FALSE | P189: JI | Q189: 186.4904946
J190: JJ | K190: J | L190: 10 | M190: J | N190: 10 | O190: TRUE | Q190: 0
J191: JK | K191: J | L191: 10 | M191: K | N191: 11 | O191: FALSE | P191: JK | Q191: 95.34449413
J192: JL | K192: J | L192: 10 | M192: L | N192: 12 | O192: FALSE | P192: JL | Q192: 102.0471123
J193: =IF(ROW()-ROW($J$1)+1>COUNTA(B:B)*COUNTA(C:C),"",INDEX(B:B,INT((ROW()-ROW($J$1))/COUNTA(C:C)+1))&INDEX(C:C,MOD(ROW()-ROW($J$1),COUNTA(C:C))+1)) -> JM | K193: J | L193: 10 | M193: M | N193: 13 | O193: FALSE | P193: JM | Q193: 125.402118
J194: JN | K194: =LEFT(J194,1) -> J | L194: =VLOOKUP(K194,$A$24:$B$37,2,FALSE) -> 10 | M194: =RIGHT(J194,1) -> N | N194: =VLOOKUP(M194,$A$24:$B$51,2,FALSE) -> 14 | O194: =K194=M194 -> FALSE | P194: =IF(O194=TRUE,"",J194) -> JN | Q194: =INDEX($T$3:$AM$22,L194,N194) -> 376.8229598
J195: JO | K195: J | L195: 10 | M195: O | N195: 15 | O195: FALSE | P195: JO | Q195: 303.4680958
J196: JP | K196: J | L196: 10 | M196: P | N196: 16 | O196: FALSE | P196: JP | Q196: 225.8434265
J197: JQ | K197: J | L197: 10 | M197: Q | N197: 17 | O197: FALSE | P197: JQ | Q197: 132.2631206
J198: JR | K198: J | L198: 10 | M198: R | N198: 18 | O198: FALSE | P198: JR | Q198: 200.5181926
J199: JS | K199: J | L199: 10 | M199: S | N199: 19 | O199: FALSE | P199: JS | Q199: 204.7018988
J200: JT | K200: J | L200: 10 | M200: T | N200: 20 | O200: FALSE | P200: JT | Q200: 270.1033702
... 2162 more rows

Sheet CR_GPS
A1: Sadova 2122, Nymburk, Czech Republic | B1: A | C1: A | D1: 50.1905764 | E1: 15.030892 | F1: 50.1905764, 15.0308920 | J1: =IF(ROW()-ROW($J$1)+1>COUNTA(B:B)*COUNTA(C:C),"",INDEX(B:B,INT((ROW()-ROW($J$1))/COUNTA(C:C)+1))&INDEX(C:C,MOD(ROW()-ROW($J$1),COUNTA(C:C))+1)) -> AA | K1: =LEFT(J1,1) -> A | L1: =VLOOKUP(K1,$A$24:$B$37,2,FALSE) -> 1 | M1: =RIGHT(J1,1) -> A | N1: =VLOOKUP(M1,$A$24:$B$51,2,FALSE) -> 1 | O1: =K1=M1 -> TRUE | P1: =IF(O1=TRUE,"",J1) ->  | Q1: =INDEX($T$3:$AM$22,L1,N1) -> FALSE | R1: Tolerance | S1: =R2*S2 -> 0 | T1: 1 | U1: 2 | V1: 3 | W1: 4 | X1: 5 | Y1: 6 | Z1: 7 | AA1: 8 | AB1: 9 | AC1: 10 | AD1: 11 | AE1: 12 | AF1: 13 | AG1: 14 | AR1: =B1 -> A | AS1: =A1 -> Sadova 2122, Nymburk, Czech Republic
A2: Komenskeho 16, Hradec Kralove, Czech Republic | B2: B | C2: B | D2: 50.2087825 | E2: 15.8365125 | F2: 50.2087825, 15.8365125 | J2: AB | K2: =LEFT(J2,1) -> A | L2: =VLOOKUP(K2,$A$24:$B$37,2,FALSE) -> 1 | M2: =RIGHT(J2,1) -> B | N2: =VLOOKUP(M2,$A$24:$B$51,2,FALSE) -> 2 | O2: =K2=M2 -> FALSE | P2: =IF(O2=TRUE,"",J2) -> AB | Q2: =INDEX($T$3:$AM$22,L2,N2) -> FALSE | R2: 0 | S2: 0.013 | T2: A | U2: B | V2: C | W2: D | X2: E | Y2: F | Z2: G | AA2: H | AB2: I | AC2: J | AD2: K | AE2: L | AF2: M | AG2: N | AH2: O | AI2: P | AJ2: Q | AK2: R | AL2: S | AM2: T | AR2: =B2 -> B | AS2: =A2 -> Komenskeho 16, Hradec Kralove, Czech Republic
A3: Janderova 20, Jindrichuv Hradec, Czech Republic | B3: C | C3: C | D3: 49.1462367 | E3: 15.0001153 | F3: 49.1462367, 15.0001153 | J3: AC | K3: A | L3: 1 | M3: C | N3: 3 | O3: FALSE | P3: AC | Q3: TRUE | R3: 1 | S3: A | T3: =IF($S3=T$2,FALSE,(VLOOKUP($S3,$C$1:$E$20,3,FALSE)+$S$1)>VLOOKUP(T$2,$C$1:$E$20,3,FALSE)) -> FALSE | U3: =IF($S3=U$2,FALSE,(VLOOKUP($S3,$C$1:$E$20,3,FALSE)+$S$1)>VLOOKUP(U$2,$C$1:$E$20,3,FALSE)) -> FALSE | V3: TRUE | W3: FALSE | X3: TRUE | Y3: FALSE | Z3: TRUE | AA3: FALSE | AB3: FALSE | AC3: TRUE | AD3: TRUE | AE3: FALSE | AF3: FALSE | AG3: FALSE | AH3: FALSE | AI3: FALSE | AJ3: TRUE | AK3: TRUE | AL3: TRUE | AM3: FALSE | AR3: =B3 -> C | AS3: Janderova 20, Jindrichuv Hradec, Czech Republic
A4: Prumyslova 499, 463 12 Liberec, Czech Republic | B4: D | C4: D | D4: 50.736641 | E4: 15.038794 | F4: =GetCoordinates(A4) -> 50.7366410, 15.0387940 | J4: AD | K4: A | L4: 1 | M4: D | N4: 4 | O4: FALSE | P4: AD | Q4: FALSE | R4: 2 | S4: B | T4: =IF($S4=T$2,FALSE,(VLOOKUP($S4,$C$1:$E$20,3,FALSE)+$S$1)>VLOOKUP(T$2,$C$1:$E$20,3,FALSE)) -> TRUE | U4: FALSE | V4: TRUE | W4: TRUE | X4: TRUE | Y4: FALSE | Z4: TRUE | AA4: TRUE | AB4: TRUE | AC4: TRUE | AD4: TRUE | AE4: TRUE | AF4: FALSE | AG4: FALSE | AH4: FALSE | AI4: FALSE | AJ4: TRUE | AK4: TRUE | AL4: TRUE | AM4: FALSE | AR4: D | AS4: Prumyslova 499, 463 12 Liberec, Czech Republic
A5: Karlovarska 22, Plzen, Czech Republic | B5: E | C5: E | D5: 49.7572577 | E5: 13.3735381 | F5: 49.7572577, 13.3735381 | J5: AE | K5: A | L5: 1 | M5: E | N5: 5 | O5: FALSE | P5: AE | Q5: TRUE | R5: 3 | S5: C | T5: FALSE | U5: FALSE | V5: FALSE | W5: FALSE | X5: TRUE | Y5: FALSE | Z5: TRUE | AA5: FALSE | AB5: FALSE | AC5: TRUE | AD5: TRUE | AE5: FALSE | AF5: FALSE | AG5: FALSE | AH5: FALSE | AI5: FALSE | AJ5: TRUE | AK5: TRUE | AL5: TRUE | AM5: FALSE | AR5: E | AS5: Karlovarska 22, Plzen, Czech Republic
A6: Prazska 44, Brno, Czech Republic | B6: F | C6: F | D6: 49.1744849 | E6: 16.5334434 | F6: 49.1744849, 16.5334434 | J6: AF | K6: A | L6: 1 | M6: F | N6: 6 | O6: FALSE | P6: AF | Q6: FALSE | R6: 4 | S6: D | T6: TRUE | U6: FALSE | V6: TRUE | W6: FALSE | X6: TRUE | Y6: FALSE | Z6: TRUE | AA6: FALSE | AB6: FALSE | AC6: TRUE | AD6: TRUE | AE6: FALSE | AF6: FALSE | AG6: FALSE | AH6: FALSE | AI6: FALSE | AJ6: TRUE | AK6: TRUE | AL6: TRUE | AM6: FALSE | AR6: F | AS6: Prazska 44, Brno, Czech Republic
A7: Americka 42, 350 02 Cheb, Czech Republic | B7: G | C7: G | D7: 50.0749381 | E7: 12.3529616 | F7: 49.8399219, 18.2875134 | J7: AG | K7: A | L7: 1 | M7: G | N7: 7 | O7: FALSE | P7: AG | Q7: TRUE | R7: 5 | S7: E | T7: FALSE | U7: FALSE | V7: FALSE | W7: FALSE | X7: FALSE | Y7: FALSE | Z7: TRUE | AA7: FALSE | AB7: FALSE | AC7: FALSE | AD7: FALSE | AE7: FALSE | AF7: FALSE | AG7: FALSE | AH7: FALSE | AI7: FALSE | AJ7: TRUE | AK7: FALSE | AL7: TRUE | AM7: FALSE | AR7: G | AS7: Americka 42, 350 02 Cheb, Czech Republic
A8: Jihlavska 12, Humpolec, Czech republic | B8: H | C8: H | D8: 49.5344617 | E8: 15.3657743 | F8: 49.5344617, 15.3657743 | J8: AH | K8: A | L8: 1 | M8: H | N8: 8 | O8: FALSE | P8: AH | Q8: FALSE | R8: 6 | S8: F | T8: TRUE | U8: TRUE | V8: TRUE | W8: TRUE | X8: TRUE | Y8: FALSE | Z8: TRUE | AA8: TRUE | AB8: TRUE | AC8: TRUE | AD8: TRUE | AE8: TRUE | AF8: TRUE | AG8: FALSE | AH8: FALSE | AI8: FALSE | AJ8: TRUE | AK8: TRUE | AL8: TRUE | AM8: FALSE | AR8: H | AS8: Jihlavska 12, Humpolec, Czech republic
A9: Komenskeho 11, Dvur Kralove nad Labem, Czech Republic | B9: I | C9: I | D9: 50.4316195 | E9: 15.8158819 | F9: 50.4316195, 15.8158819 | J9: AI | K9: A | L9: 1 | M9: I | N9: 9 | O9: FALSE | P9: AI | Q9: FALSE | R9: 7 | S9: G | T9: FALSE | U9: FALSE | V9: FALSE | W9: FALSE | X9: FALSE | Y9: FALSE | Z9: FALSE | AA9: FALSE | AB9: FALSE | AC9: FALSE | AD9: FALSE | AE9: FALSE | AF9: FALSE | AG9: FALSE | AH9: FALSE | AI9: FALSE | AJ9: FALSE | AK9: FALSE | AL9: FALSE | AM9: FALSE | AR9: I | AS9: Komenskeho 11, Dvur Kralove nad Labem, Czech Republic
A10: Prazska 14, Tabor, Czech Republic | B10: J | C10: J | D10: 49.4136402 | E10: 14.6598363 | F10: 49.4136402, 14.6598363 | J10: AJ | K10: A | L10: 1 | M10: J | N10: 10 | O10: FALSE | P10: AJ | Q10: TRUE | R10: 8 | S10: H | T10: TRUE | U10: FALSE | V10: TRUE | W10: TRUE | X10: TRUE | Y10: FALSE | Z10: TRUE | AA10: FALSE | AB10: FALSE | AC10: TRUE | AD10: TRUE | AE10: FALSE | AF10: FALSE | AG10: FALSE | AH10: FALSE | AI10: FALSE | AJ10: TRUE | AK10: TRUE | AL10: TRUE | AM10: FALSE | AR10: J | AS10: Prazska 14, Tabor, Czech Republic
A11: Kutnohorska 14, Praha, Czech Republic | B11: K | C11: K | D11: 50.0553289 | E11: 14.5635059 | F11: 50.0553289, 14.5635059 | J11: AK | K11: A | L11: 1 | M11: K | N11: 11 | O11: FALSE | P11: AK | Q11: TRUE | R11: 9 | S11: I | T11: TRUE | U11: FALSE | V11: TRUE | W11: TRUE | X11: TRUE | Y11: FALSE | Z11: TRUE | AA11: TRUE | AB11: FALSE | AC11: TRUE | AD11: TRUE | AE11: TRUE | AF11: FALSE | AG11: FALSE | AH11: FALSE | AI11: FALSE | AJ11: TRUE | AK11: TRUE | AL11: TRUE | AM11: FALSE | AR11: K | AS11: Kutnohorska 14, Praha, Czech Republic
A12: Prazska 14, Kutna Hora, Czech Republic | B12: L | C12: L | D12: 49.9184149 | E12: 15.3867248 | F12: 49.9184149, 15.3867248 | J12: AL | K12: A | L12: 1 | M12: L | N12: 12 | O12: FALSE | P12: AL | Q12: FALSE | R12: 10 | S12: J | T12: FALSE | U12: FALSE | V12: FALSE | W12: FALSE | X12: TRUE | Y12: FALSE | Z12: TRUE | AA12: FALSE | AB12: FALSE | AC12: FALSE | AD12: TRUE | AE12: FALSE | AF12: FALSE | AG12: FALSE | AH12: FALSE | AI12: FALSE | AJ12: TRUE | AK12: TRUE | AL12: TRUE | AM12: FALSE | AR12: L | AS12: Prazska 14, Kutna Hora, Czech Republic
A13: Brnenska 4, Nove Mesto na Morave, Czech Republic | B13: M | C13: M | D13: 49.5585869 | E13: 15.9459131 | F13: 49.5585869, 15.9459131 | J13: AM | K13: A | L13: 1 | M13: M | N13: 13 | O13: FALSE | P13: AM | Q13: FALSE | R13: 11 | S13: K | T13: FALSE | U13: FALSE | V13: FALSE | W13: FALSE | X13: TRUE | Y13: FALSE | Z13: TRUE | AA13: FALSE | AB13: FALSE | AC13: FALSE | AD13: FALSE | AE13: FALSE | AF13: FALSE | AG13: FALSE | AH13: FALSE | AI13: FALSE | AJ13: TRUE | AK13: TRUE | AL13: TRUE | AM13: FALSE | AR13: M | AS13: Brnenska 4, Nove Mesto na Morave, Czech Republic
A14: Ostravska 11, Karvinna, Czech Republic | B14: N | C14: N | D14: 49.8542788 | E14: 18.535164 | F14: 49.8542788, 18.5351640 | J14: AN | K14: A | L14: 1 | M14: N | N14: 14 | O14: FALSE | P14: AN | Q14: FALSE | R14: 12 | S14: L | T14: TRUE | U14: FALSE | V14: TRUE | W14: TRUE | X14: TRUE | Y14: FALSE | Z14: TRUE | AA14: TRUE | AB14: FALSE | AC14: TRUE | AD14: TRUE | AE14: FALSE | AF14: FALSE | AG14: FALSE | AH14: FALSE | AI14: FALSE | AJ14: TRUE | AK14: TRUE | AL14: TRUE | AM14: FALSE | AR14: N | AS14: Ostravska 11, Karvinna, Czech Republic
A15: Oderska 19, 742 36 Jakubcovice nad Odrou, Czech Republic | B15: O | C15: O | D15: 49.6934464 | E15: 17.7935959 | F15: 49.6934464, 17.7935959 | J15: AO | K15: A | L15: 1 | M15: O | N15: 15 | O15: FALSE | P15: AO | Q15: FALSE | R15: 13 | S15: M | T15: TRUE | U15: TRUE | V15: TRUE | W15: TRUE | X15: TRUE | Y15: FALSE | Z15: TRUE | AA15: TRUE | AB15: TRUE | AC15: TRUE | AD15: TRUE | AE15: TRUE | AF15: FALSE | AG15: FALSE | AH15: FALSE | AI15: FALSE | AJ15: TRUE | AK15: TRUE | AL15: TRUE | AM15: FALSE | AR15: O | AS15: Oderska 19, 742 36 Jakubcovice nad Odrou, Czech Republic
A16: Cukrovarska 4, 682 01 Vyskov, Czech Republic | B16: P | C16: P | D16: 49.2748267 | E16: 16.9941755 | F16: 49.2748267, 16.9941755 | J16: AP | K16: A | L16: 1 | M16: P | N16: 16 | O16: FALSE | P16: AP | Q16: FALSE | R16: 14 | S16: N | T16: TRUE | U16: TRUE | V16: TRUE | W16: TRUE | X16: TRUE | Y16: TRUE | Z16: TRUE | AA16: TRUE | AB16: TRUE | AC16: =IF($S16=AC$2,FALSE,(VLOOKUP($S16,$C$1:$E$20,3,FALSE)+$S$1)>VLOOKUP(AC$2,$C$1:$E$20,3,FALSE)) -> TRUE | AD16: TRUE | AE16: TRUE | AF16: TRUE | AG16: FALSE | AH16: TRUE | AI16: TRUE | AJ16: TRUE | AK16: TRUE | AL16: TRUE | AM16: TRUE | AR16: P | AS16: Cukrovarska 4, 682 01 Vyskov, Czech Republic
A17: Domazlicka 909, 339 01 Klatovy, Czech Republic | B17: Q | C17: Q | D17: 49.3928975 | E17: 13.2858263 | F17: 49.3928975, 13.2858263 | J17: AQ | K17: A | L17: 1 | M17: Q | N17: 17 | O17: FALSE | P17: AQ | Q17: TRUE | R17: 15 | S17: O | T17: TRUE | U17: TRUE | V17: TRUE | W17: TRUE | X17: TRUE | Y17: TRUE | Z17: TRUE | AA17: TRUE | AB17: TRUE | AC17: TRUE | AD17: TRUE | AE17: TRUE | AF17: TRUE | AG17: FALSE | AH17: FALSE | AI17: TRUE | AJ17: TRUE | AK17: TRUE | AL17: TRUE | AM17: TRUE | AR17: Q | AS17: Domazlicka 909, 339 01 Klatovy, Czech Republic
A18: Podhori 80, 400 10 Usti nad Labem, Czech Republic | B18: R | C18: R | D18: 50.6997147 | E18: 13.9909361 | F18: 50.6997147, 13.9909361 | J18: AR | K18: A | L18: 1 | M18: R | N18: 18 | O18: FALSE | P18: AR | Q18: TRUE | R18: 16 | S18: P | T18: TRUE | U18: TRUE | V18: TRUE | W18: TRUE | X18: TRUE | Y18: TRUE | Z18: TRUE | AA18: TRUE | AB18: TRUE | AC18: TRUE | AD18: TRUE | AE18: TRUE | AF18: TRUE | AG18: FALSE | AH18: FALSE | AI18: FALSE | AJ18: TRUE | AK18: TRUE | AL18: TRUE | AM18: FALSE | AR18: R | AS18: Podhori 80, 400 10 Usti nad Labem, Czech Republic
A19: Chebska 713/16A, 353 01 Marianske Lazne, Czech Republic | B19: S | C19: S | D19: 49.9655332 | E19: 12.6975899 | F19: 49.9655332, 12.6975899 | J19: AS | K19: A | L19: 1 | M19: S | N19: 19 | O19: FALSE | P19: AS | Q19: TRUE | R19: 17 | S19: Q | T19: FALSE | U19: FALSE | V19: FALSE | W19: FALSE | X19: FALSE | Y19: FALSE | Z19: TRUE | AA19: FALSE | AB19: FALSE | AC19: FALSE | AD19: FALSE | AE19: FALSE | AF19: FALSE | AG19: FALSE | AH19: FALSE | AI19: FALSE | AJ19: FALSE | AK19: FALSE | AL19: TRUE | AM19: FALSE | AR19: S | AS19: Chebska 713/16A, 353 01 Marianske Lazne, Czech Republic
A20: Priessnitzova 299/12, 790 03 Jesenik, Czech Republic | B20: T | C20: T | D20: 50.2401616 | E20: 17.1847494 | F20: 50.2401616, 17.1847494 | J20: AT | K20: A | L20: 1 | M20: T | N20: 20 | O20: FALSE | P20: AT | Q20: FALSE | R20: 18 | S20: R | T20: FALSE | U20: FALSE | V20: FALSE | W20: FALSE | X20: TRUE | Y20: FALSE | Z20: TRUE | AA20: FALSE | AB20: FALSE | AC20: FALSE | AD20: FALSE | AE20: FALSE | AF20: FALSE | AG20: FALSE | AH20: FALSE | AI20: FALSE | AJ20: TRUE | AK20: FALSE | AL20: TRUE | AM20: FALSE | AR20: T | AS20: Priessnitzova 299/12, 790 03 Jesenik, Czech Republic
J21: BA | K21: B | L21: 2 | M21: A | N21: 1 | O21: FALSE | P21: BA | Q21: TRUE | R21: 19 | S21: S | T21: FALSE | U21: FALSE | V21: FALSE | W21: FALSE | X21: FALSE | Y21: FALSE | Z21: TRUE | AA21: FALSE | AB21: FALSE | AC21: FALSE | AD21: FALSE | AE21: FALSE | AF21: FALSE | AG21: FALSE | AH21: FALSE | AI21: FALSE | AJ21: FALSE | AK21: FALSE | AL21: FALSE | AM21: FALSE
J22: BB | K22: B | L22: 2 | M22: B | N22: 2 | O22: TRUE | Q22: FALSE | R22: 20 | S22: T | T22: TRUE | U22: TRUE | V22: TRUE | W22: TRUE | X22: TRUE | Y22: TRUE | Z22: TRUE | AA22: TRUE | AB22: TRUE | AC22: TRUE | AD22: TRUE | AE22: TRUE | AF22: TRUE | AG22: FALSE | AH22: FALSE | AI22: TRUE | AJ22: TRUE | AK22: TRUE | AL22: TRUE | AM22: FALSE
J23: BC | K23: B | L23: 2 | M23: C | N23: 3 | O23: FALSE | P23: BC | Q23: TRUE
A24: A | B24: 1 | D24: Mnichov | J24: BD | K24: B | L24: 2 | M24: D | N24: 4 | O24: FALSE | P24: BD | Q24: TRUE
A25: B | B25: 2 | D25: Stuttgart | J25: BE | K25: B | L25: 2 | M25: E | N25: 5 | O25: FALSE | P25: BE | Q25: TRUE
A26: C | B26: 3 | D26: Weil am Rhein | J26: BF | K26: B | L26: 2 | M26: F | N26: 6 | O26: FALSE | P26: BF | Q26: FALSE
A27: D | B27: 4 | D27: Saarbrucken | J27: BG | K27: B | L27: 2 | M27: G | N27: 7 | O27: FALSE | P27: BG | Q27: TRUE
A28: E | B28: 5 | D28: Wiesbaden | J28: BH | K28: B | L28: 2 | M28: H | N28: 8 | O28: FALSE | P28: BH | Q28: TRUE
A29: F | B29: 6 | D29: Koln | J29: BI | K29: B | L29: 2 | M29: I | N29: 9 | O29: FALSE | P29: BI | Q29: TRUE
A30: G | B30: 7 | D30: Dortmund | J30: BJ | K30: B | L30: 2 | M30: J | N30: 10 | O30: FALSE | P30: BJ | Q30: TRUE
A31: H | B31: 8 | D31: Bielefeld | J31: BK | K31: B | L31: 2 | M31: K | N31: 11 | O31: FALSE | P31: BK | Q31: TRUE
A32: I | B32: 9 | D32: Bremen | J32: BL | K32: B | L32: 2 | M32: L | N32: 12 | O32: FALSE | P32: BL | Q32: TRUE
A33: J | B33: 10 | D33: Kassel | J33: BM | K33: B | L33: 2 | M33: M | N33: 13 | O33: FALSE | P33: BM | Q33: FALSE
A34: K | B34: 11 | D34: Hannover | J34: BN | K34: B | L34: 2 | M34: N | N34: 14 | O34: FALSE | P34: BN | Q34: FALSE
A35: L | B35: 12 | D35: Hamburg | J35: BO | K35: B | L35: 2 | M35: O | N35: 15 | O35: FALSE | P35: BO | Q35: FALSE
A36: M | B36: 13 | D36: Prenzlau | J36: BP | K36: B | L36: 2 | M36: P | N36: 16 | O36: FALSE | P36: BP | Q36: FALSE
A37: N | B37: 14 | D37: Berlin | J37: BQ | K37: B | L37: 2 | M37: Q | N37: 17 | O37: FALSE | P37: BQ | Q37: TRUE
A38: O | B38: 15 | D38: Frankfurt | J38: BR | K38: B | L38: 2 | M38: R | N38: 18 | O38: FALSE | P38: BR | Q38: TRUE
A39: P | B39: 16 | D39: Lipsko | J39: BS | K39: B | L39: 2 | M39: S | N39: 19 | O39: FALSE | P39: BS | Q39: TRUE
A40: Q | B40: 17 | D40: Drazdany | J40: BT | K40: B | L40: 2 | M40: T | N40: 20 | O40: FALSE | P40: BT | Q40: FALSE
A41: R | B41: 18 | D41: Chotebuz | J41: CA | K41: C | L41: 3 | M41: A | N41: 1 | O41: FALSE | P41: CA | Q41: FALSE
A42: S | B42: 19 | D42: Norimberk | J42: CB | K42: C | L42: 3 | M42: B | N42: 2 | O42: FALSE | P42: CB | Q42: FALSE
A43: T | B43: 20 | D43: Bonn | J43: CC | K43: C | L43: 3 | M43: C | N43: 3 | O43: TRUE | Q43: FALSE
J44: CD | K44: C | L44: 3 | M44: D | N44: 4 | O44: FALSE | P44: CD | Q44: FALSE
J45: CE | K45: C | L45: 3 | M45: E | N45: 5 | O45: FALSE | P45: CE | Q45: TRUE
J46: CF | K46: C | L46: 3 | M46: F | N46: 6 | O46: FALSE | P46: CF | Q46: FALSE
J47: CG | K47: C | L47: 3 | M47: G | N47: 7 | O47: FALSE | P47: CG | Q47: TRUE
J48: CH | K48: C | L48: 3 | M48: H | N48: 8 | O48: FALSE | P48: CH | Q48: FALSE
J49: CI | K49: C | L49: 3 | M49: I | N49: 9 | O49: FALSE | P49: CI | Q49: FALSE
J50: CJ | K50: C | L50: 3 | M50: J | N50: 10 | O50: FALSE | P50: CJ | Q50: TRUE
J51: CK | K51: C | L51: 3 | M51: K | N51: 11 | O51: FALSE | P51: CK | Q51: TRUE
J52: CL | K52: C | L52: 3 | M52: L | N52: 12 | O52: FALSE | P52: CL | Q52: FALSE
J53: CM | K53: C | L53: 3 | M53: M | N53: 13 | O53: FALSE | P53: CM | Q53: FALSE
J54: CN | K54: C | L54: 3 | M54: N | N54: 14 | O54: FALSE | P54: CN | Q54: FALSE
J55: CO | K55: C | L55: 3 | M55: O | N55: 15 | O55: FALSE | P55: CO | Q55: FALSE
J56: CP | K56: C | L56: 3 | M56: P | N56: 16 | O56: FALSE | P56: CP | Q56: FALSE
J57: CQ | K57: C | L57: 3 | M57: Q | N57: 17 | O57: FALSE | P57: CQ | Q57: TRUE
J58: CR | K58: C | L58: 3 | M58: R | N58: 18 | O58: FALSE | P58: CR | Q58: TRUE
J59: CS | K59: C | L59: 3 | M59: S | N59: 19 | O59: FALSE | P59: CS | Q59: TRUE
J60: CT | K60: C | L60: 3 | M60: T | N60: 20 | O60: FALSE | P60: CT | Q60: FALSE
J61: DA | K61: D | L61: 4 | M61: A | N61: 1 | O61: FALSE | P61: DA | Q61: TRUE
J62: DB | K62: D | L62: 4 | M62: B | N62: 2 | O62: FALSE | P62: DB | Q62: FALSE
J63: DC | K63: D | L63: 4 | M63: C | N63: 3 | O63: FALSE | P63: DC | Q63: TRUE
J64: DD | K64: D | L64: 4 | M64: D | N64: 4 | O64: TRUE | Q64: FALSE
J65: =IF(ROW()-ROW($J$1)+1>COUNTA(B:B)*COUNTA(C:C),"",INDEX(B:B,INT((ROW()-ROW($J$1))/COUNTA(C:C)+1))&INDEX(C:C,MOD(ROW()-ROW($J$1),COUNTA(C:C))+1)) -> DE | K65: D | L65: 4 | M65: E | N65: 5 | O65: FALSE | P65: DE | Q65: TRUE
J66: DF | K66: =LEFT(J66,1) -> D | L66: =VLOOKUP(K66,$A$24:$B$37,2,FALSE) -> 4 | M66: =RIGHT(J66,1) -> F | N66: =VLOOKUP(M66,$A$24:$B$51,2,FALSE) -> 6 | O66: =K66=M66 -> FALSE | P66: =IF(O66=TRUE,"",J66) -> DF | Q66: =INDEX($T$3:$AM$22,L66,N66) -> FALSE
J67: DG | K67: D | L67: 4 | M67: G | N67: 7 | O67: FALSE | P67: DG | Q67: TRUE
J68: DH | K68: D | L68: 4 | M68: H | N68: 8 | O68: FALSE | P68: DH | Q68: FALSE
J69: DI | K69: D | L69: 4 | M69: I | N69: 9 | O69: FALSE | P69: DI | Q69: FALSE
J70: DJ | K70: D | L70: 4 | M70: J | N70: 10 | O70: FALSE | P70: DJ | Q70: TRUE
J71: DK | K71: D | L71: 4 | M71: K | N71: 11 | O71: FALSE | P71: DK | Q71: TRUE
J72: DL | K72: D | L72: 4 | M72: L | N72: 12 | O72: FALSE | P72: DL | Q72: FALSE
J73: DM | K73: D | L73: 4 | M73: M | N73: 13 | O73: FALSE | P73: DM | Q73: FALSE
J74: DN | K74: D | L74: 4 | M74: N | N74: 14 | O74: FALSE | P74: DN | Q74: FALSE
J75: DO | K75: D | L75: 4 | M75: O | N75: 15 | O75: FALSE | P75: DO | Q75: FALSE
J76: DP | K76: D | L76: 4 | M76: P | N76: 16 | O76: FALSE | P76: DP | Q76: FALSE
J77: DQ | K77: D | L77: 4 | M77: Q | N77: 17 | O77: FALSE | P77: DQ | Q77: TRUE
J78: DR | K78: D | L78: 4 | M78: R | N78: 18 | O78: FALSE | P78: DR | Q78: TRUE
J79: DS | K79: D | L79: 4 | M79: S | N79: 19 | O79: FALSE | P79: DS | Q79: TRUE
J80: DT | K80: D | L80: 4 | M80: T | N80: 20 | O80: FALSE | P80: DT | Q80: FALSE
J81: EA | K81: E | L81: 5 | M81: A | N81: 1 | O81: FALSE | P81: EA | Q81: FALSE
J82: EB | K82: E | L82: 5 | M82: B | N82: 2 | O82: FALSE | P82: EB | Q82: FALSE
J83: EC | K83: E | L83: 5 | M83: C | N83: 3 | O83: FALSE | P83: EC | Q83: FALSE
J84: ED | K84: E | L84: 5 | M84: D | N84: 4 | O84: FALSE | P84: ED | Q84: FALSE
J85: EE | K85: E | L85: 5 | M85: E | N85: 5 | O85: TRUE | Q85: FALSE
J86: EF | K86: E | L86: 5 | M86: F | N86: 6 | O86: FALSE | P86: EF | Q86: FALSE
J87: EG | K87: E | L87: 5 | M87: G | N87: 7 | O87: FALSE | P87: EG | Q87: TRUE
J88: EH | K88: E | L88: 5 | M88: H | N88: 8 | O88: FALSE | P88: EH | Q88: FALSE
J89: EI | K89: E | L89: 5 | M89: I | N89: 9 | O89: FALSE | P89: EI | Q89: FALSE
J90: EJ | K90: E | L90: 5 | M90: J | N90: 10 | O90: FALSE | P90: EJ | Q90: FALSE
J91: EK | K91: E | L91: 5 | M91: K | N91: 11 | O91: FALSE | P91: EK | Q91: FALSE
J92: EL | K92: E | L92: 5 | M92: L | N92: 12 | O92: FALSE | P92: EL | Q92: FALSE
J93: EM | K93: E | L93: 5 | M93: M | N93: 13 | O93: FALSE | P93: EM | Q93: FALSE
J94: EN | K94: E | L94: 5 | M94: N | N94: 14 | O94: FALSE | P94: EN | Q94: FALSE
J95: EO | K95: E | L95: 5 | M95: O | N95: 15 | O95: FALSE | P95: EO | Q95: FALSE
J96: EP | K96: E | L96: 5 | M96: P | N96: 16 | O96: FALSE | P96: EP | Q96: FALSE
J97: EQ | K97: E | L97: 5 | M97: Q | N97: 17 | O97: FALSE | P97: EQ | Q97: TRUE
J98: ER | K98: E | L98: 5 | M98: R | N98: 18 | O98: FALSE | P98: ER | Q98: FALSE
J99: ES | K99: E | L99: 5 | M99: S | N99: 19 | O99: FALSE | P99: ES | Q99: TRUE
J100: ET | K100: E | L100: 5 | M100: T | N100: 20 | O100: FALSE | P100: ET | Q100: FALSE
J101: FA | K101: F | L101: 6 | M101: A | N101: 1 | O101: FALSE | P101: FA | Q101: TRUE
J102: FB | K102: F | L102: 6 | M102: B | N102: 2 | O102: FALSE | P102: FB | Q102: TRUE
J103: FC | K103: F | L103: 6 | M103: C | N103: 3 | O103: FALSE | P103: FC | Q103: TRUE
J104: FD | K104: F | L104: 6 | M104: D | N104: 4 | O104: FALSE | P104: FD | Q104: TRUE
J105: FE | K105: F | L105: 6 | M105: E | N105: 5 | O105: FALSE | P105: FE | Q105: TRUE
J106: FF | K106: F | L106: 6 | M106: F | N106: 6 | O106: TRUE | Q106: FALSE
J107: FG | K107: F | L107: 6 | M107: G | N107: 7 | O107: FALSE | P107: FG | Q107: TRUE
J108: FH | K108: F | L108: 6 | M108: H | N108: 8 | O108: FALSE | P108: FH | Q108: TRUE
J109: FI | K109: F | L109: 6 | M109: I | N109: 9 | O109: FALSE | P109: FI | Q109: TRUE
J110: FJ | K110: F | L110: 6 | M110: J | N110: 10 | O110: FALSE | P110: FJ | Q110: TRUE
J111: FK | K111: F | L111: 6 | M111: K | N111: 11 | O111: FALSE | P111: FK | Q111: TRUE
J112: FL | K112: F | L112: 6 | M112: L | N112: 12 | O112: FALSE | P112: FL | Q112: TRUE
J113: FM | K113: F | L113: 6 | M113: M | N113: 13 | O113: FALSE | P113: FM | Q113: TRUE
J114: FN | K114: F | L114: 6 | M114: N | N114: 14 | O114: FALSE | P114: FN | Q114: FALSE
J115: FO | K115: F | L115: 6 | M115: O | N115: 15 | O115: FALSE | P115: FO | Q115: FALSE
J116: FP | K116: F | L116: 6 | M116: P | N116: 16 | O116: FALSE | P116: FP | Q116: FALSE
J117: FQ | K117: F | L117: 6 | M117: Q | N117: 17 | O117: FALSE | P117: FQ | Q117: TRUE
J118: FR | K118: F | L118: 6 | M118: R | N118: 18 | O118: FALSE | P118: FR | Q118: TRUE
J119: FS | K119: F | L119: 6 | M119: S | N119: 19 | O119: FALSE | P119: FS | Q119: TRUE
J120: FT | K120: F | L120: 6 | M120: T | N120: 20 | O120: FALSE | P120: FT | Q120: FALSE
J121: GA | K121: G | L121: 7 | M121: A | N121: 1 | O121: FALSE | P121: GA | Q121: FALSE
J122: GB | K122: G | L122: 7 | M122: B | N122: 2 | O122: FALSE | P122: GB | Q122: FALSE
J123: GC | K123: G | L123: 7 | M123: C | N123: 3 | O123: FALSE | P123: GC | Q123: FALSE
J124: GD | K124: G | L124: 7 | M124: D | N124: 4 | O124: FALSE | P124: GD | Q124: FALSE
J125: GE | K125: G | L125: 7 | M125: E | N125: 5 | O125: FALSE | P125: GE | Q125: FALSE
J126: GF | K126: G | L126: 7 | M126: F | N126: 6 | O126: FALSE | P126: GF | Q126: FALSE
J127: GG | K127: G | L127: 7 | M127: G | N127: 7 | O127: TRUE | Q127: FALSE
J128: GH | K128: G | L128: 7 | M128: H | N128: 8 | O128: FALSE | P128: GH | Q128: FALSE
J129: =IF(ROW()-ROW($J$1)+1>COUNTA(B:B)*COUNTA(C:C),"",INDEX(B:B,INT((ROW()-ROW($J$1))/COUNTA(C:C)+1))&INDEX(C:C,MOD(ROW()-ROW($J$1),COUNTA(C:C))+1)) -> GI | K129: G | L129: 7 | M129: I | N129: 9 | O129: FALSE | P129: GI | Q129: FALSE
J130: GJ | K130: =LEFT(J130,1) -> G | L130: =VLOOKUP(K130,$A$24:$B$37,2,FALSE) -> 7 | M130: =RIGHT(J130,1) -> J | N130: =VLOOKUP(M130,$A$24:$B$51,2,FALSE) -> 10 | O130: =K130=M130 -> FALSE | P130: =IF(O130=TRUE,"",J130) -> GJ | Q130: =INDEX($T$3:$AM$22,L130,N130) -> FALSE
J131: GK | K131: G | L131: 7 | M131: K | N131: 11 | O131: FALSE | P131: GK | Q131: FALSE
J132: GL | K132: G | L132: 7 | M132: L | N132: 12 | O132: FALSE | P132: GL | Q132: FALSE
J133: GM | K133: G | L133: 7 | M133: M | N133: 13 | O133: FALSE | P133: GM | Q133: FALSE
J134: GN | K134: G | L134: 7 | M134: N | N134: 14 | O134: FALSE | P134: GN | Q134: FALSE
J135: GO | K135: G | L135: 7 | M135: O | N135: 15 | O135: FALSE | P135: GO | Q135: FALSE
J136: GP | K136: G | L136: 7 | M136: P | N136: 16 | O136: FALSE | P136: GP | Q136: FALSE
J137: GQ | K137: G | L137: 7 | M137: Q | N137: 17 | O137: FALSE | P137: GQ | Q137: FALSE
J138: GR | K138: G | L138: 7 | M138: R | N138: 18 | O138: FALSE | P138: GR | Q138: FALSE
J139: GS | K139: G | L139: 7 | M139: S | N139: 19 | O139: FALSE | P139: GS | Q139: FALSE
J140: GT | K140: G | L140: 7 | M140: T | N140: 20 | O140: FALSE | P140: GT | Q140: FALSE
J141: HA | K141: H | L141: 8 | M141: A | N141: 1 | O141: FALSE | P141: HA | Q141: TRUE
J142: HB | K142: H | L142: 8 | M142: B | N142: 2 | O142: FALSE | P142: HB | Q142: FALSE
J143: HC | K143: H | L143: 8 | M143: C | N143: 3 | O143: FALSE | P143: HC | Q143: TRUE
J144: HD | K144: H | L144: 8 | M144: D | N144: 4 | O144: FALSE | P144: HD | Q144: TRUE
J145: HE | K145: H | L145: 8 | M145: E | N145: 5 | O145: FALSE | P145: HE | Q145: TRUE
J146: HF | K146: H | L146: 8 | M146: F | N146: 6 | O146: FALSE | P146: HF | Q146: FALSE
J147: HG | K147: H | L147: 8 | M147: G | N147: 7 | O147: FALSE | P147: HG | Q147: TRUE
J148: HH | K148: H | L148: 8 | M148: H | N148: 8 | O148: TRUE | Q148: FALSE
J149: HI | K149: H | L149: 8 | M149: I | N149: 9 | O149: FALSE | P149: HI | Q149: FALSE
J150: HJ | K150: H | L150: 8 | M150: J | N150: 10 | O150: FALSE | P150: HJ | Q150: TRUE
J151: HK | K151: H | L151: 8 | M151: K | N151: 11 | O151: FALSE | P151: HK | Q151: TRUE
J152: HL | K152: H | L152: 8 | M152: L | N152: 12 | O152: FALSE | P152: HL | Q152: FALSE
J153: HM | K153: H | L153: 8 | M153: M | N153: 13 | O153: FALSE | P153: HM | Q153: FALSE
J154: HN | K154: H | L154: 8 | M154: N | N154: 14 | O154: FALSE | P154: HN | Q154: FALSE
J155: HO | K155: H | L155: 8 | M155: O | N155: 15 | O155: FALSE | P155: HO | Q155: FALSE
J156: HP | K156: H | L156: 8 | M156: P | N156: 16 | O156: FALSE | P156: HP | Q156: FALSE
J157: HQ | K157: H | L157: 8 | M157: Q | N157: 17 | O157: FALSE | P157: HQ | Q157: TRUE
J158: HR | K158: H | L158: 8 | M158: R | N158: 18 | O158: FALSE | P158: HR | Q158: TRUE
J159: HS | K159: H | L159: 8 | M159: S | N159: 19 | O159: FALSE | P159: HS | Q159: TRUE
J160: HT | K160: H | L160: 8 | M160: T | N160: 20 | O160: FALSE | P160: HT | Q160: FALSE
J161: IA | K161: I | L161: 9 | M161: A | N161: 1 | O161: FALSE | P161: IA | Q161: TRUE
J162: IB | K162: I | L162: 9 | M162: B | N162: 2 | O162: FALSE | P162: IB | Q162: FALSE
J163: IC | K163: I | L163: 9 | M163: C | N163: 3 | O163: FALSE | P163: IC | Q163: TRUE
J164: ID | K164: I | L164: 9 | M164: D | N164: 4 | O164: FALSE | P164: ID | Q164: TRUE
J165: IE | K165: I | L165: 9 | M165: E | N165: 5 | O165: FALSE | P165: IE | Q165: TRUE
J166: IF | K166: I | L166: 9 | M166: F | N166: 6 | O166: FALSE | P166: IF | Q166: FALSE
J167: IG | K167: I | L167: 9 | M167: G | N167: 7 | O167: FALSE | P167: IG | Q167: TRUE
J168: IH | K168: I | L168: 9 | M168: H | N168: 8 | O168: FALSE | P168: IH | Q168: TRUE
J169: II | K169: I | L169: 9 | M169: I | N169: 9 | O169: TRUE | Q169: FALSE
J170: IJ | K170: I | L170: 9 | M170: J | N170: 10 | O170: FALSE | P170: IJ | Q170: TRUE
J171: IK | K171: I | L171: 9 | M171: K | N171: 11 | O171: FALSE | P171: IK | Q171: TRUE
J172: IL | K172: I | L172: 9 | M172: L | N172: 12 | O172: FALSE | P172: IL | Q172: TRUE
J173: IM | K173: I | L173: 9 | M173: M | N173: 13 | O173: FALSE | P173: IM | Q173: FALSE
J174: IN | K174: I | L174: 9 | M174: N | N174: 14 | O174: FALSE | P174: IN | Q174: FALSE
J175: IO | K175: I | L175: 9 | M175: O | N175: 15 | O175: FALSE | P175: IO | Q175: FALSE
J176: IP | K176: I | L176: 9 | M176: P | N176: 16 | O176: FALSE | P176: IP | Q176: FALSE
J177: IQ | K177: I | L177: 9 | M177: Q | N177: 17 | O177: FALSE | P177: IQ | Q177: TRUE
J178: IR | K178: I | L178: 9 | M178: R | N178: 18 | O178: FALSE | P178: IR | Q178: TRUE
J179: IS | K179: I | L179: 9 | M179: S | N179: 19 | O179: FALSE | P179: IS | Q179: TRUE
J180: IT | K180: I | L180: 9 | M180: T | N180: 20 | O180: FALSE | P180: IT | Q180: FALSE
J181: JA | K181: J | L181: 10 | M181: A | N181: 1 | O181: FALSE | P181: JA | Q181: FALSE
J182: JB | K182: J | L182: 10 | M182: B | N182: 2 | O182: FALSE | P182: JB | Q182: FALSE
J183: JC | K183: J | L183: 10 | M183: C | N183: 3 | O183: FALSE | P183: JC | Q183: FALSE
J184: JD | K184: J | L184: 10 | M184: D | N184: 4 | O184: FALSE | P184: JD | Q184: FALSE
J185: JE | K185: J | L185: 10 | M185: E | N185: 5 | O185: FALSE | P185: JE | Q185: TRUE
J186: JF | K186: J | L186: 10 | M186: F | N186: 6 | O186: FALSE | P186: JF | Q186: FALSE
J187: JG | K187: J | L187: 10 | M187: G | N187: 7 | O187: FALSE | P187: JG | Q187: TRUE
J188: JH | K188: J | L188: 10 | M188: H | N188: 8 | O188: FALSE | P188: JH | Q188: FALSE
J189: JI | K189: J | L189: 10 | M189: I | N189: 9 | O189: FALSE | P189: JI | Q189: FALSE
J190: JJ | K190: J | L190: 10 | M190: J | N190: 10 | O190: TRUE | Q190: FALSE
J191: JK | K191: J | L191: 10 | M191: K | N191: 11 | O191: FALSE | P191: JK | Q191: TRUE
J192: JL | K192: J | L192: 10 | M192: L | N192: 12 | O192: FALSE | P192: JL | Q192: FALSE
J193: =IF(ROW()-ROW($J$1)+1>COUNTA(B:B)*COUNTA(C:C),"",INDEX(B:B,INT((ROW()-ROW($J$1))/COUNTA(C:C)+1))&INDEX(C:C,MOD(ROW()-ROW($J$1),COUNTA(C:C))+1)) -> JM | K193: J | L193: 10 | M193: M | N193: 13 | O193: FALSE | P193: JM | Q193: FALSE
J194: JN | K194: =LEFT(J194,1) -> J | L194: =VLOOKUP(K194,$A$24:$B$37,2,FALSE) -> 10 | M194: =RIGHT(J194,1) -> N | N194: =VLOOKUP(M194,$A$24:$B$51,2,FALSE) -> 14 | O194: =K194=M194 -> FALSE | P194: =IF(O194=TRUE,"",J194) -> JN | Q194: =INDEX($T$3:$AM$22,L194,N194) -> FALSE
J195: JO | K195: J | L195: 10 | M195: O | N195: 15 | O195: FALSE | P195: JO | Q195: FALSE
J196: JP | K196: J | L196: 10 | M196: P | N196: 16 | O196: FALSE | P196: JP | Q196: FALSE
J197: JQ | K197: J | L197: 10 | M197: Q | N197: 17 | O197: FALSE | P197: JQ | Q197: TRUE
J198: JR | K198: J | L198: 10 | M198: R | N198: 18 | O198: FALSE | P198: JR | Q198: TRUE
J199: JS | K199: J | L199: 10 | M199: S | N199: 19 | O199: FALSE | P199: JS | Q199: TRUE
J200: JT | K200: J | L200: 10 | M200: T | N200: 20 | O200: FALSE | P200: JT | Q200: FALSE
... 2162 more rows

Sheet CZ-DE
A1: Sadova 2122, Nymburk, Czech Republic | B1: A | C1: A | D1: 50.1905764 | E1: 15.030892 | F1: 50.1905764, 15.0308920 | L1: 1 | M1: 2 | N1: 3 | O1: 4 | P1: 5 | Q1: 6 | R1: 7 | S1: 8 | T1: 9 | U1: 10 | V1: 11 | W1: 12 | X1: 13 | Y1: 14 | AJ1: =B1 -> A | AK1: =A1 -> Sadova 2122, Nymburk, Czech Republic
A2: Komenskeho 16, Hradec Kralove, Czech Republic | B2: B | C2: B | D2: 50.2087825 | E2: 15.8365125 | F2: 50.2087825, 15.8365125 | K2: 1.33 | L2: A | M2: B | N2: C | O2: D | P2: E | Q2: F | R2: G | S2: H | T2: I | U2: J | V2: K | W2: L | X2: M | Y2: N | Z2: O | AA2: P | AB2: Q | AC2: R | AD2: S | AE2: T | AJ2: =B2 -> B | AK2: =A2 -> Komenskeho 16, Hradec Kralove, Czech Republic
A3: Janderova 20, Jindrichuv Hradec, Czech Republic | B3: C | C3: C | D3: 49.1462367 | E3: 15.0001153 | F3: 49.1462367, 15.0001153 | I3: CZ | J3: 1 | K3: A | L3: =(ACOS(COS(RADIANS(90-$D$25)) *COS(RADIANS(90-$D1)) +SIN(RADIANS(90-$D$25)) *SIN(RADIANS(90-$D1)) *COS(RADIANS($E$25-$E1))) *6371)*$K$2 -> 442.6683614 | M3: =(ACOS(COS(RADIANS(90-$D$26)) *COS(RADIANS(90-$D1)) +SIN(RADIANS(90-$D$26)) *SIN(RADIANS(90-$D1)) *COS(RADIANS($E$26-$E1))) *6371)*$K$2 -> 603.2073781 | N3: =(ACOS(COS(RADIANS(90-$D$27)) *COS(RADIANS(90-$D1)) +SIN(RADIANS(90-$D$27)) *SIN(RADIANS(90-$D1)) *COS(RADIANS($E$27-$E1))) *6371)*$K$2 -> 815.6139634 | O3: =(ACOS(COS(RADIANS(90-$D$28)) *COS(RADIANS(90-$D1)) +SIN(RADIANS(90-$D$28)) *SIN(RADIANS(90-$D1)) *COS(RADIANS($E$28-$E1))) *6371)*$K$2 -> 779.5890576 | P3: =(ACOS(COS(RADIANS(90-$D$29)) *COS(RADIANS(90-$D1)) +SIN(RADIANS(90-$D$29)) *SIN(RADIANS(90-$D1)) *COS(RADIANS($E$29-$E1))) *6371)*$K$2 -> 640.7800577 | Q3: =(ACOS(COS(RADIANS(90-$D$30)) *COS(RADIANS(90-$D1)) +SIN(RADIANS(90-$D$30)) *SIN(RADIANS(90-$D1)) *COS(RADIANS($E$30-$E1))) *6371)*$K$2 -> 768.3048208 | R3: =(ACOS(COS(RADIANS(90-$D$31)) *COS(RADIANS(90-$D1)) +SIN(RADIANS(90-$D$31)) *SIN(RADIANS(90-$D1)) *COS(RADIANS($E$31-$E1))) *6371)*$K$2 -> 730.9790417 | S3: =(ACOS(COS(RADIANS(90-$D$32)) *COS(RADIANS(90-$D1)) +SIN(RADIANS(90-$D$32)) *SIN(RADIANS(90-$D1)) *COS(RADIANS($E$32-$E1))) *6371)*$K$2 -> 648.375816 | T3: =(ACOS(COS(RADIANS(90-$D$33)) *COS(RADIANS(90-$D1)) +SIN(RADIANS(90-$D$33)) *SIN(RADIANS(90-$D1)) *COS(RADIANS($E$33-$E1))) *6371)*$K$2 -> 697.90312 | U3: =(ACOS(COS(RADIANS(90-$D$34)) *COS(RADIANS(90-$D1)) +SIN(RADIANS(90-$D$34)) *SIN(RADIANS(90-$D1)) *COS(RADIANS($E$34-$E1))) *6371)*$K$2 -> 536.4393313 | V3: =(ACOS(COS(RADIANS(90-$D$35)) *COS(RADIANS(90-$D1)) +SIN(RADIANS(90-$D$35)) *SIN(RADIANS(90-$D1)) *COS(RADIANS($E$35-$E1))) *6371)*$K$2 -> 578.4359254 | W3: =(ACOS(COS(RADIANS(90-$D$36)) *COS(RADIANS(90-$D1)) +SIN(RADIANS(90-$D$36)) *SIN(RADIANS(90-$D1)) *COS(RADIANS($E$36-$E1))) *6371)*$K$2 -> 674.1398672 | X3: =(ACOS(COS(RADIANS(90-$D$37)) *COS(RADIANS(90-$D1)) +SIN(RADIANS(90-$D$37)) *SIN(RADIANS(90-$D1)) *COS(RADIANS($E$37-$E1))) *6371)*$K$2 -> 518.311739 | Y3: =(ACOS(COS(RADIANS(90-$D$38)) *COS(RADIANS(90-$D1)) +SIN(RADIANS(90-$D$38)) *SIN(RADIANS(90-$D1)) *COS(RADIANS($E$38-$E1))) *6371)*$K$2 -> 381.4826013 | Z3: =(ACOS(COS(RADIANS(90-$D$39)) *COS(RADIANS(90-$D1)) +SIN(RADIANS(90-$D$39)) *SIN(RADIANS(90-$D1)) *COS(RADIANS($E$39-$E1))) *6371)*$K$2 -> 610.9338777 | AA3: =(ACOS(COS(RADIANS(90-$D$40)) *COS(RADIANS(90-$D1)) +SIN(RADIANS(90-$D$40)) *SIN(RADIANS(90-$D1)) *COS(RADIANS($E$40-$E1))) *6371)*$K$2 -> 312.9668388 | AB3: =(ACOS(COS(RADIANS(90-$D$41)) *COS(RADIANS(90-$D1)) +SIN(RADIANS(90-$D$41)) *SIN(RADIANS(90-$D1)) *COS(RADIANS($E$41-$E1))) *6371)*$K$2 -> 178.018091 | AC3: =(ACOS(COS(RADIANS(90-$D$42)) *COS(RADIANS(90-$D1)) +SIN(RADIANS(90-$D$42)) *SIN(RADIANS(90-$D1)) *COS(RADIANS($E$42-$E1))) *6371)*$K$2 -> 242.4307838 | AD3: =(ACOS(COS(RADIANS(90-$D$43)) *COS(RADIANS(90-$D1)) +SIN(RADIANS(90-$D$43)) *SIN(RADIANS(90-$D1)) *COS(RADIANS($E$43-$E1))) *6371)*$K$2 -> 396.6734054 | AE3: =(ACOS(COS(RADIANS(90-$D$44)) *COS(RADIANS(90-$D1)) +SIN(RADIANS(90-$D$44)) *SIN(RADIANS(90-$D1)) *COS(RADIANS($E$44-$E1))) *6371)*$K$2 -> 750.8599704 | AJ3: =B3 -> C | AK3: Janderova 20, Jindrichuv Hradec, Czech Republic
A4: Prumyslova 499, 463 12 Liberec, Czech Republic | B4: D | C4: D | D4: 50.736641 | E4: 15.038794 | F4: 50.0876674, 14.4033415 | J4: 2 | K4: B | L4: 503.7961442 | M4: =(ACOS(COS(RADIANS(90-$D$26)) *COS(RADIANS(90-$D2)) +SIN(RADIANS(90-$D$26)) *SIN(RADIANS(90-$D2)) *COS(RADIANS($E$26-$E2))) *6371)*$K$2 -> 676.566476 | N4: =(ACOS(COS(RADIANS(90-$D$27)) *COS(RADIANS(90-$D2)) +SIN(RADIANS(90-$D$27)) *SIN(RADIANS(90-$D2)) *COS(RADIANS($E$27-$E2))) *6371)*$K$2 -> 886.4460305 | O4: =(ACOS(COS(RADIANS(90-$D$28)) *COS(RADIANS(90-$D2)) +SIN(RADIANS(90-$D$28)) *SIN(RADIANS(90-$D2)) *COS(RADIANS($E$28-$E2))) *6371)*$K$2 -> 855.5866204 | P4: =(ACOS(COS(RADIANS(90-$D$29)) *COS(RADIANS(90-$D2)) +SIN(RADIANS(90-$D$29)) *SIN(RADIANS(90-$D2)) *COS(RADIANS($E$29-$E2))) *6371)*$K$2 -> 717.0358146 | Q4: =(ACOS(COS(RADIANS(90-$D$30)) *COS(RADIANS(90-$D2)) +SIN(RADIANS(90-$D$30)) *SIN(RADIANS(90-$D2)) *COS(RADIANS($E$30-$E2))) *6371)*$K$2 -> 842.7406687 | R4: =(ACOS(COS(RADIANS(90-$D$31)) *COS(RADIANS(90-$D2)) +SIN(RADIANS(90-$D$31)) *SIN(RADIANS(90-$D2)) *COS(RADIANS($E$31-$E2))) *6371)*$K$2 -> 802.6159682 | S4: =(ACOS(COS(RADIANS(90-$D$32)) *COS(RADIANS(90-$D2)) +SIN(RADIANS(90-$D$32)) *SIN(RADIANS(90-$D2)) *COS(RADIANS($E$32-$E2))) *6371)*$K$2 -> 716.6647103 | T4: =(ACOS(COS(RADIANS(90-$D$33)) *COS(RADIANS(90-$D2)) +SIN(RADIANS(90-$D$33)) *SIN(RADIANS(90-$D2)) *COS(RADIANS($E$33-$E2))) *6371)*$K$2 -> 756.4782012 | U4: =(ACOS(COS(RADIANS(90-$D$34)) *COS(RADIANS(90-$D2)) +SIN(RADIANS(90-$D$34)) *SIN(RADIANS(90-$D2)) *COS(RADIANS($E$34-$E2))) *6371)*$K$2 -> 607.8583075 | V4: =(ACOS(COS(RADIANS(90-$D$35)) *COS(RADIANS(90-$D2)) +SIN(RADIANS(90-$D$35)) *SIN(RADIANS(90-$D2)) *COS(RADIANS($E$35-$E2))) *6371)*$K$2 -> 640.7033283 | W4: =(ACOS(COS(RADIANS(90-$D$36)) *COS(RADIANS(90-$D2)) +SIN(RADIANS(90-$D$36)) *SIN(RADIANS(90-$D2)) *COS(RADIANS($E$36-$E2))) *6371)*$K$2 -> 723.9502819 | X4: =(ACOS(COS(RADIANS(90-$D$37)) *COS(RADIANS(90-$D2)) +SIN(RADIANS(90-$D$37)) *SIN(RADIANS(90-$D2)) *COS(RADIANS($E$37-$E2))) *6371)*$K$2 -> 543.1238654 | Y4: =(ACOS(COS(RADIANS(90-$D$38)) *COS(RADIANS(90-$D2)) +SIN(RADIANS(90-$D$38)) *SIN(RADIANS(90-$D2)) *COS(RADIANS($E$38-$E2))) *6371)*$K$2 -> 415.558154 | Z4: =(ACOS(COS(RADIANS(90-$D$39)) *COS(RADIANS(90-$D2)) +SIN(RADIANS(90-$D$39)) *SIN(RADIANS(90-$D2)) *COS(RADIANS($E$39-$E2))) *6371)*$K$2 -> 687.1562751 | AA4: =(ACOS(COS(RADIANS(90-$D$40)) *COS(RADIANS(90-$D2)) +SIN(RADIANS(90-$D$40)) *SIN(RADIANS(90-$D2)) *COS(RADIANS($E$40-$E2))) *6371)*$K$2 -> 375.57843 | AB4: =(ACOS(COS(RADIANS(90-$D$41)) *COS(RADIANS(90-$D2)) +SIN(RADIANS(90-$D$41)) *SIN(RADIANS(90-$D2)) *COS(RADIANS($E$41-$E2))) *6371)*$K$2 -> 235.5720156 | AC4: =(ACOS(COS(RADIANS(90-$D$42)) *COS(RADIANS(90-$D2)) +SIN(RADIANS(90-$D$42)) *SIN(RADIANS(90-$D2)) *COS(RADIANS($E$42-$E2))) *6371)*$K$2 -> 269.9116744 | AD4: =(ACOS(COS(RADIANS(90-$D$43)) *COS(RADIANS(90-$D2)) +SIN(RADIANS(90-$D$43)) *SIN(RADIANS(90-$D2)) *COS(RADIANS($E$43-$E2))) *6371)*$K$2 -> 471.2564866 | AE4: =(ACOS(COS(RADIANS(90-$D$44)) *COS(RADIANS(90-$D2)) +SIN(RADIANS(90-$D$44)) *SIN(RADIANS(90-$D2)) *COS(RADIANS($E$44-$E2))) *6371)*$K$2 -> 825.7786101 | AJ4: D | AK4: Prumyslova 499, 463 12 Liberec, Czech Republic
A5: Karlovarska 22, Plzen, Czech Republic | B5: E | C5: E | D5: 49.7572577 | E5: 13.3735381 | F5: 49.7572577, 13.3735381 | J5: 3 | K5: C | L5: 355.5528985 | M5: =(ACOS(COS(RADIANS(90-$D$26)) *COS(RADIANS(90-$D3)) +SIN(RADIANS(90-$D$26)) *SIN(RADIANS(90-$D3)) *COS(RADIANS($E$26-$E3))) *6371)*$K$2 -> 568.1035554 | N5: 759.9742401 | O5: 770.9405874 | P5: 656.1893456 | Q5: 809.2753781 | R5: 791.7727338 | S5: 726.2256876 | T5: 802.9946354 | U5: 603.6672304 | V5: 677.0358907 | W5: 796.0091152 | X5: 666.626039 | Y5: 525.6045418 | Z5: 628.8428324 | AA5: 421.426986 | AB5: 307.4533998 | AC5: 393.0793737 | AD5: 381.8832692 | AE5: 787.4983047 | AJ5: E | AK5: Karlovarska 22, Plzen, Czech Republic
A6: Prazska 44, Brno, Czech Republic | B6: F | C6: F | D6: 49.1744849 | E6: 16.5334434 | F6: 49.1744849, 16.5334434 | J6: 4 | K6: D | L6: 500.7668032 | M6: =(ACOS(COS(RADIANS(90-$D$26)) *COS(RADIANS(90-$D4)) +SIN(RADIANS(90-$D$26)) *SIN(RADIANS(90-$D4)) *COS(RADIANS($E$26-$E4))) *6371)*$K$2 -> 635.1373116 | N6: 853.703803 | O6: 795.2706424 | P6: 646.5794694 | Q6: 757.7680811 | R6: 709.7543065 | S6: 618.4251837 | T6: 650.1435416 | U6: 515.5976948 | V6: 536.7184279 | W6: 615.6667566 | X6: 442.1519199 | Y6: 309.7051024 | Z6: 616.1157754 | AA6: 273.6441566 | AB6: 132.7811829 | AC6: 166.1554096 | AD6: 426.3018222 | AE6: 743.006542 | AJ6: F | AK6: Prazska 44, Brno, Czech Republic
A7: Americka 42, 350 02 Cheb, Czech Republic | B7: G | C7: G | D7: 50.0749381 | E7: 12.3529616 | F7: 49.8399219, 18.2875134 | J7: 5 | K7: E | L7: 289.4404195 | M7: =(ACOS(COS(RADIANS(90-$D$26)) *COS(RADIANS(90-$D5)) +SIN(RADIANS(90-$D$26)) *SIN(RADIANS(90-$D5)) *COS(RADIANS($E$26-$E5))) *6371)*$K$2 -> 433.2224861 | N7: 645.8939428 | O7: 615.592569 | P7: 486.4423515 | Q7: =(ACOS(COS(RADIANS(90-$D$30)) *COS(RADIANS(90-$D5)) +SIN(RADIANS(90-$D$30)) *SIN(RADIANS(90-$D5)) *COS(RADIANS($E$30-$E5))) *6371)*$K$2 -> 631.4252364 | R7: 611.2139327 | S7: 546.9853119 | T7: 633.0571844 | U7: 423.4246578 | V7: 505.1197155 | W7: 638.7324187 | X7: 556.9946367 | Y7: 411.2804984 | Z7: 457.7678853 | AA7: 264.9413707 | AB7: 194.0905347 | AC7: 310.9908299 | AD7: 228.0452201 | AE7: 610.6685978 | AJ7: G | AK7: Americka 42, 350 02 Cheb, Czech Republic
A8: Jihlavska 12, Humpolec, Czech republic | B8: H | C8: H | D8: 49.5344617 | E8: 15.3657743 | F8: 49.5344617, 15.3657743 | J8: 6 | K8: F | L8: 496.6947868 | M8: =(ACOS(COS(RADIANS(90-$D$26)) *COS(RADIANS(90-$D6)) +SIN(RADIANS(90-$D$26)) *SIN(RADIANS(90-$D6)) *COS(RADIANS($E$26-$E6))) *6371)*$K$2 -> 716.3485994 | N8: 905.3683974 | O8: 918.6553108 | P8: 799.9767822 | Q8: =(ACOS(COS(RADIANS(90-$D$30)) *COS(RADIANS(90-$D6)) +SIN(RADIANS(90-$D$30)) *SIN(RADIANS(90-$D6)) *COS(RADIANS($E$30-$E6))) *6371)*$K$2 -> 946.7260906 | R8: 921.3000911 | S8: 846.7380905 | T8: 904.9296039 | U8: 729.0658644 | V8: 783.7939797 | W8: 881.782264 | X8: 709.9735244 | Y8: 580.8753401 | Z8: 771.9380505 | AA8: 519.2701503 | AB8: 385.9770456 | AC8: 436.0489293 | AD8: 528.8309574 | AE8: 926.2783249 | AJ8: H | AK8: Jihlavska 12, Humpolec, Czech republic
A9: Komenskeho 11, Dvur Kralove nad Labem, Czech Republic | B9: I | C9: I | D9: 50.4316195 | E9: 15.8158819 | F9: 50.4316195, 15.8158819 | J9: 7 | K9: G | L9: 293.1718308 | M9: 366.3695908 | N9: 588.2277777 | O9: 526.5725599 | P9: 386.8649648 | Q9: 524.790882 | R9: 503.327972 | S9: 441.6558899 | T9: 537.7324615 | U9: 316.7325773 | V9: 408.8333223 | W9: 555.5637283 | X9: 516.8070997 | Y9: 375.0160464 | Z9: 357.291775 | AA9: 198.0187659 | AB9: 192.5026311 | AC9: 311.4404233 | AD9: 158.9969263 | AE9: 504.7647195 | AJ9: I | AK9: Komenskeho 11, Dvur Kralove nad Labem, Czech Republic
A10: Prazska 14, Tabor, Czech Republic | B10: J | C10: J | D10: 49.4136402 | E10: 14.6598363 | F10: 49.4136402, 14.6598363 | J10: 8 | K10: H | L10: 412.484579 | M10: 610.1084413 | N10: 809.8580543 | O10: 804.5797369 | P10: 679.8513199 | Q10: 823.1898097 | R10: 796.8564398 | S10: 723.0499856 | T10: 786.2530622 | U10: 604.73632 | V10: 663.2896703 | W10: 769.6061464 | X10: 620.4484706 | Y10: 483.2616478 | Z10: 651.3046705 | AA10: 400.6954515 | AB10: 273.8069959 | AC10: 344.4737692 | AD10: 414.1948458 | AE10: 803.1613034 | AJ10: J | AK10: Prazska 14, Tabor, Czech Republic
A11: Kutnohorska 14, Praha, Czech Republic | B11: K | C11: K | D11: 50.0553289 | E11: 14.5635059 | F11: 50.0553289, 14.5635059 | J11: 9 | K11: I | L11: 522.2426072 | M11: 684.9767274 | N11: =(ACOS(COS(RADIANS(90-$D$27)) *COS(RADIANS(90-$D9)) +SIN(RADIANS(90-$D$27)) *SIN(RADIANS(90-$D9)) *COS(RADIANS($E$27-$E9))) *6371)*$K$2 -> 897.8687581 | O11: 858.1202828 | P11: 715.6378611 | Q11: 835.4733158 | R11: 791.4580572 | S11: 702.4079735 | T11: 735.8550716 | U11: 596.8297613 | V11: 622.3738786 | W11: 699.5302662 | X11: 512.4754452 | Y11: 387.2180193 | Z11: 685.4811741 | AA11: 358.6420059 | AB11: 217.7235485 | AC11: 241.0299714 | AD11: 477.8334862 | AE11: 819.4844154 | AJ11: K | AK11: Kutnohorska 14, Praha, Czech Republic
A12: Prazska 14, Kutna Hora, Czech Republic | B12: L | C12: L | D12: 49.9184149 | E12: 15.3867248 | F12: 49.9184149, 15.3867248 | J12: 10 | K12: J | L12: =(ACOS(COS(RADIANS(90-$D$25)) *COS(RADIANS(90-$D10)) +SIN(RADIANS(90-$D$25)) *SIN(RADIANS(90-$D10)) *COS(RADIANS($E$25-$E10))) *6371)*$K$2 -> 344.8751179 | M12: 540.2667248 | N12: 739.8281828 | O12: 736.7422969 | P12: 615.8441114 | Q12: 764.5610522 | R12: 743.9965469 | S12: 676.3954365 | T12: 751.6422406 | U12: 554.6486338 | V12: 625.8071709 | W12: 744.9424397 | X12: 621.0021553 | Y12: 478.6474717 | Z12: 587.8385439 | AA12: 370.127349 | AB12: 258.5958299 | AC12: 349.8501054 | AD12: 346.3098007 | AE12: 743.4836431 | AJ12: L | AK12: Prazska 14, Kutna Hora, Czech Republic
A13: Brnenska 4, Nove Mesto na Morave, Czech Republic | B13: M | C13: M | D13: 49.5585869 | E13: 15.9459131 | F13: 49.5585869, 15.9459131 | J13: 11 | K13: K | L13: 396.6676947 | M13: 554.773268 | N13: 767.0012741 | O13: 733.05642 | P13: 596.7294278 | Q13: 729.0717228 | R13: 696.1738354 | S13: 618.0759288 | T13: 677.687526 | U13: 502.472253 | V13: 555.1290437 | W13: 661.9226096 | X13: 526.2405878 | Y13: 384.8020416 | Z13: 567.1341601 | AA13: 292.0738536 | AB13: 168.0215766 | AC13: 254.5135985 | AD13: 348.6525688 | AE13: 710.7149643 | AJ13: M | AK13: Brnenska 4, Nove Mesto na Morave, Czech Republic
A14: Ostravska 11, Karvinna, Czech Republic | B14: N | C14: N | D14: 49.8542788 | E14: 18.535164 | F14: 49.8542788, 18.5351640 | J14: 12 | K14: L | L14: 444.1187432 | M14: 623.8507337 | N14: 830.7607772 | O14: 808.9364883 | P14: 675.8528329 | Q14: 809.9053465 | R14: 776.4861337 | S14: 696.6379041 | T14: 749.6575689 | U14: 582.472208 | V14: =(ACOS(COS(RADIANS(90-$D$35)) *COS(RADIANS(90-$D12)) +SIN(RADIANS(90-$D$35)) *SIN(RADIANS(90-$D12)) *COS(RADIANS($E$35-$E12))) *6371)*$K$2 -> 629.3996677 | W14: 726.6890736 | X14: 567.1276479 | Y14: 432.1694378 | Z14: 646.4696442 | AA14: 364.2721137 | AB14: 230.4883648 | AC14: 290.9325306 | AD14: 421.1732934 | AE14: 791.4534647 | AJ14: N | AK14: Ostravska 11, Karvinna, Czech Republic
A15: Oderska 19, 742 36 Jakubcovice nad Odrou, Czech Republic | B15: O | C15: O | D15: 49.6934464 | E15: 17.7935959 | F15: 49.6934464, 17.7935959 | J15: 13 | K15: M | L15: 463.7423042 | M15: 665.6521632 | N15: 864.1239544 | O15: 860.2631181 | P15: 734.4437388 | Q15: 875.3792133 | R15: 846.1532078 | S15: 769.0855201 | T15: 824.8958662 | U15: 652.9634178 | V15: 704.153735 | W15: 801.8513374 | X15: 635.6748264 | Y15: 503.7698788 | Z15: 705.7120432 | AA15: 439.3369824 | AB15: 305.846904 | AC15: 360.2302454 | AD15: 469.9204163 | AE15: 855.8601239 | AJ15: O | AK15: Oderska 19, 742 36 Jakubcovice nad Odrou, Czech Republic
A16: Cukrovarska 4, 682 01 Vyskov, Czech Republic | B16: P | C16: P | D16: 49.2748267 | E16: 16.9941755 | F16: 49.2748267, 16.9941755 | J16: 14 | K16: N | L16: 710.1381687 | M16: 916.9352029 | N16: 1114.714259 | O16: 1108.238797 | P16: 975.6853088 | Q16: 1104.399707 | R16: 1062.815498 | S16: 973.4831669 | T16: 998.6363736 | U16: 868.1165202 | V16: 889.8520389 | W16: 950.793147 | X16: 725.7012147 | Y16: 625.3002585 | Z16: 946.1473583 | AA16: 628.6375721 | AB16: 487.888405 | AC16: 483.9424677 | AD16: 718.9019859 | AE16: 1087.341664 | AJ16: P | AK16: Cukrovarska 4, 682 01 Vyskov, Czech Republic
A17: Domazlicka 909, 339 01 Klatovy, Czech Republic | B17: Q | C17: Q | D17: 49.3928975 | E17: 13.2858263 | F17: 49.3928975, 13.2858263 | J17: 15 | K17: O | L17: 635.4257887 | M17: 843.7327182 | N17: 1040.314752 | O17: 1037.292552 | P17: 907.6108326 | Q17: 1040.927215 | R17: 1003.435814 | S17: 917.7936406 | T17: 952.4300276 | U17: 808.7244465 | V17: 839.5500285 | W17: 911.7678273 | X17: 701.9808464 | Y17: 591.0964951 | Z17: 878.3581604 | AA17: 575.4615306 | AB17: 434.6804998 | AC17: 446.153089 | AD17: 647.3118748 | AE17: 1022.983742 | AJ17: Q | AK17: Domazlicka 909, 339 01 Klatovy, Czech Republic
A18: Podhori 80, 400 10 Usti nad Labem, Czech Republic | B18: R | C18: R | D18: 50.6997147 | E18: 13.9909361 | F18: 50.6997147, 13.9909361 | J18: 16 | K18: P | L18: 543.5629041 | M18: 761.614062 | N18: 951.9351651 | O18: 962.1817596 | P18: 840.748572 | Q18: 984.1466509 | R18: 955.359986 | S18: 877.4890486 | T18: 928.8016699 | U18: 762.0449009 | V18: 809.8544563 | W18: 900.2261869 | X18: 715.7632375 | Y18: 591.8221355 | Z18: 812.364123 | AA18: 544.3519483 | AB18: 407.5264047 | AC18: 445.6915754 | AD18: 571.9195078 | AE18: 964.3461816 | AJ18: R | AK18: Podhori 80, 400 10 Usti nad Labem, Czech Republic
A19: Chebska 713/16A, 353 01 Marianske Lazne, Czech Republic | B19: S | C19: S | D19: 49.9655332 | E19: 12.6975899 | F19: 49.9655332, 12.6975899 | J19: 17 | K19: Q | L19: 241.6098738 | M19: 409.9160718 | N19: 615.1865882 | O19: 604.5157136 | P19: 486.801751 | Q19: 642.3446381 | R19: 631.0858044 | S19: 575.1035593 | T19: 671.3597836 | U19: 449.0637942 | V19: 542.6265879 | W19: 683.4461298 | X19: 610.803365 | Y19: 465.1421861 | Z19: 459.549415 | AA19: 312.9910087 | AB19: 248.6275911 | AC19: 365.1272709 | AD19: 214.1506083 | AE19: 619.8176556 | AJ19: S | AK19: Chebska 713/16A, 353 01 Marianske Lazne, Czech Republic
A20: Priessnitzova 299/12, 790 03 Jesenik, Czech Republic | B20: T | C20: T | D20: 50.2401616 | E20: 17.1847494 | F20: 50.2401616, 17.1847494 | J20: 18 | K20: R | L20: 438.2368967 | M20: 546.3167717 | N20: 767.6497902 | O20: 698.9674921 | P20: 548.6515459 | Q20: 660.544859 | R20: 615.5852142 | S20: 528.3347449 | T20: 574.4200172 | U20: 420.909139 | V20: 455.0913322 | W20: 553.5655103 | X20: 422.6039003 | Y20: 278.806422 | Z20: 518.1515769 | AA20: 189.5092838 | AB20: 58.53642214 | AC20: 161.5016474 | AD20: 338.3346794 | AE20: 645.3211251 | AJ20: T | AK20: Priessnitzova 299/12, 790 03 Jesenik, Czech Republic
J21: 19 | K21: S | L21: 286.9362352 | M21: 386.5326234 | N21: 605.7949304 | O21: 555.6659342 | P21: 419.9037557 | Q21: 560.7378104 | R21: 539.8446411 | S21: 477.27123 | T21: 569.7124414 | U21: 352.8220377 | V21: 441.0311466 | W21: 583.108334 | X21: 528.7348795 | Y21: 384.7466282 | Z21: 390.6612547 | AA21: 217.3837463 | AB21: 186.6415656 | AC21: 307.5504259 | AD21: 177.6993799 | AE21: 540.4114292
J22: 20 | K22: T | L22: =(ACOS(COS(RADIANS(90-$D$25)) *COS(RADIANS(90-$D20)) +SIN(RADIANS(90-$D$25)) *SIN(RADIANS(90-$D20)) *COS(RADIANS($E$25-$E20))) *6371)*$K$2 -> 614.5874572 | M22: =(ACOS(COS(RADIANS(90-$D$26)) *COS(RADIANS(90-$D20)) +SIN(RADIANS(90-$D$26)) *SIN(RADIANS(90-$D20)) *COS(RADIANS($E$26-$E20))) *6371)*$K$2 -> 800.9312727 | N22: 1007.32407 | O22: 982.9537586 | P22: 844.5388237 | Q22: 967.5261364 | R22: 923.5356872 | S22: 833.2665173 | T22: 859.595989 | U22: 728.9785092 | V22: =(ACOS(COS(RADIANS(90-$D$35)) *COS(RADIANS(90-$D20)) +SIN(RADIANS(90-$D$35)) *SIN(RADIANS(90-$D20)) *COS(RADIANS($E$35-$E20))) *6371)*$K$2 -> 749.7275681 | W22: 815.1577282 | X22: 602.538345 | Y22: 492.6725158 | Z22: 814.6030371 | AA22: 488.2800477 | AB22: 347.5766927 | AC22: 348.5569375 | AD22: 597.2814683 | AE22: 951.2650292
L23: DE
A25: Industriestrasse 25, 83607 Holzkirchen | B25: A | C25: A | D25: 48.139875 | E25: 11.6951791 | F25: 48.1398750, 11.6951791 | N25: M | O25: J | P25: K
A26: Messepiazza, 70629 Stuttgart | B26: B | C26: B | D26: 48.693439 | E26: 9.1935003 | F26: 48.6934390, 9.1935003 | N26: J | O26: K | P26: M
A27: Charles-Eames-Strasse 2, 79576 Weil am Rhein | B27: C | C27: C | D27: 47.6014074 | E27: 7.6179802 | F27: 47.6014074, 7.6179802
A28: Am Felsbrunnen, 66119 Saarbrucken | B28: D | C28: D | D28: 49.1973321 | E28: 7.0234011 | F28: 49.1973321, 7.0234011
A29: Rheinstrasse 2, 55116 Mainz | B29: E | C29: E | D29: 49.9941603 | E29: 8.281838 | F29: 49.9941603, 8.2818380
A30: Neuer Weyerstrasserweg 120, 50969 Koln | B30: F | C30: F | D30: 50.90439 | E30: 6.92845 | F30: 50.9043900, 6.9284500
A31: Feineisenstrasse 4, 44339 Dortmund | B31: G | C31: G | D31: 51.54786 | E31: 7.49568 | F31: 51.5478600, 7.4956800
A32: Gottfried Schenker Strasse 1, 33758 Schloss Holte-Stukenbrock | B32: H | C32: H | D32: 51.916249 | E32: 8.6159279 | F32: 51.9162490, 8.6159279
A33: Von-Thunen-Strasse 14, 28307 Bremen | B33: I | C33: I | D33: 53.04182 | E33: 8.9695 | F33: 53.0418200, 8.9695000
A34: Geschaftsstelle Kassel, Schwarze Breite 2, 34260 Kaufungen | B34: J | C34: J | D34: 51.2866381 | E34: 9.5655084 | F34: 51.2866381, 9.5655084
A35: Karlsruher Strasse 10, 30519 Hannover | B35: K | C35: K | D35: 52.3266755 | E35: 9.7924844 | F35: 52.3266755, 9.7924844
A36: Heidenkampsweg 79, 20097 Hamburg | B36: L | C36: L | D36: 53.54674 | E36: 10.03 | F36: 53.5467400, 10.0300000
A37: Margeritenstrasse 40, 17033 Neubrandenburg | B37: M | C37: M | D37: 53.5230291 | E37: 13.2721851 | F37: 53.5230291, 13.2721851
A38: Schwanenfeldstrasse 11, 13627 Berlin | B38: N | C38: N | D38: 52.53804 | E38: 13.31762 | F38: 52.5380400, 13.3176200
A39: Edmund-Rumpler-Strasse 3, 60549 Frankfurt am Main | B39: O | C39: O | D39: 50.0563372 | E39: 8.5889965 | F39: 50.0563372, 8.5889965
A40: Poststrasse 23, 04158 Leipzig | B40: P | C40: P | D40: 51.4134473 | E40: 12.2976523 | F40: 51.4134473, 12.2976523
A41: Potthoffstrasse 5, 01159 Dresden | B41: Q | C41: Q | D41: 51.05242 | E41: 13.70626 | F41: 51.0524200, 13.7062600
A42: Beuchstrasse 25, 03044 Cottbus | B42: R | C42: R | D42: 51.7702759 | E42: 14.3352167 | F42: 51.7702759, 14.3352167
A43: Bremer Strasse 90, 90451 Nurnberg | B43: S | C43: S | D43: 49.3977885 | E43: 11.0608549 | F43: 49.3977885, 11.0608549
A44: Am Hauptbahnhof 1, 53111 Bonn | B44: T | C44: T | D44: 50.7322897 | E44: 7.0969954 | F44: 50.7322897, 7.0969954
A46: A | B46: 1 | D46: Mnichov
A47: B | B47: 2 | D47: Stuttgart
A48: C | B48: 3 | D48: Weil am Rhein
A49: D | B49: 4 | D49: Saarbrucken
A50: E | B50: 5 | D50: Wiesbaden
A51: F | B51: 6 | D51: Koln
A52: G | B52: 7 | D52: Dortmund
A53: H | B53: 8 | D53: Bielefeld
A54: I | B54: 9 | D54: Bremen
A55: J | B55: 10 | D55: Kassel
A56: K | B56: 11 | D56: Hannover
A57: L | B57: 12 | D57: Hamburg
A58: M | B58: 13 | D58: Prenzlau
A59: N | B59: 14 | D59: Berlin
A60: O | B60: 15 | D60: Frankfurt
A61: P | B61: 16 | D61: Lipsko
A62: Q | B62: 17 | D62: Drazdany
A63: R | B63: 18 | D63: Chotebuz
A64: S | B64: 19 | D64: Norimberk
A65: T | B65: 20 | D65: Bonn

Sheet DE
A1: Industriestrasse 25, 83607 Holzkirchen | B1: A | C1: A | D1: 48.139875 | E1: 11.6951791 | F1: 48.1398750, 11.6951791 | J1: =IF(ROW()-ROW($J$1)+1>COUNTA(B:B)*COUNTA(C:C),"",INDEX(B:B,INT((ROW()-ROW($J$1))/COUNTA(C:C)+1))&INDEX(C:C,MOD(ROW()-ROW($J$1),COUNTA(C:C))+1)) -> AA | K1: =LEFT(J1,1) -> A | L1: =VLOOKUP(K1,$A$24:$B$37,2,FALSE) -> 1 | M1: =RIGHT(J1,1) -> A | N1: =VLOOKUP(M1,$A$24:$B$51,2,FALSE) -> 1 | O1: =K1=M1 -> TRUE | P1: =IF(O1=TRUE,"",J1) ->  | Q1: =INDEX($T$3:$AM$22,L1,N1) -> 0 | T1: 1 | U1: 2 | V1: 3 | W1: 4 | X1: 5 | Y1: 6 | Z1: 7 | AA1: 8 | AB1: 9 | AC1: 10 | AD1: 11 | AE1: 12 | AF1: 13 | AG1: 14 | AR1: =B1 -> A | AS1: =A1 -> Industriestrasse 25, 83607 Holzkirchen
A2: Messepiazza, 70629 Stuttgart | B2: B | C2: B | D2: 48.693439 | E2: 9.1935003 | F2: 48.6934390, 9.1935003 | J2: AB | K2: =LEFT(J2,1) -> A | L2: =VLOOKUP(K2,$A$24:$B$37,2,FALSE) -> 1 | M2: =RIGHT(J2,1) -> B | N2: =VLOOKUP(M2,$A$24:$B$51,2,FALSE) -> 2 | O2: =K2=M2 -> FALSE | P2: =IF(O2=TRUE,"",J2) -> AB | Q2: =INDEX($T$3:$AM$22,L2,N2) -> 258.8259327 | S2: 1.33 | T2: A | U2: B | V2: C | W2: D | X2: E | Y2: F | Z2: G | AA2: H | AB2: I | AC2: J | AD2: K | AE2: L | AF2: M | AG2: N | AH2: O | AI2: P | AJ2: Q | AK2: R | AL2: S | AM2: T | AR2: =B2 -> B | AS2: =A2 -> Messepiazza, 70629 Stuttgart
A3: Charles-Eames-Strasse 2, 79576 Weil am Rhein | B3: C | C3: C | D3: 47.6014074 | E3: 7.6179802 | F3: 47.6014074, 7.6179802 | J3: AC | K3: A | L3: 1 | M3: C | N3: 3 | O3: FALSE | P3: AC | Q3: 412.190643 | R3: 1 | S3: A | T3: =(ACOS(COS(RADIANS(90-$D$1)) *COS(RADIANS(90-$D1)) +SIN(RADIANS(90-$D$1)) *SIN(RADIANS(90-$D1)) *COS(RADIANS($E$1-$E1))) *6371)*$S$2 -> 0 | U3: =(ACOS(COS(RADIANS(90-$D$2)) *COS(RADIANS(90-$D1)) +SIN(RADIANS(90-$D$2)) *SIN(RADIANS(90-$D1)) *COS(RADIANS($E$2-$E1))) *6371)*$S$2 -> 258.8259327 | V3: =(ACOS(COS(RADIANS(90-$D$3)) *COS(RADIANS(90-$D1)) +SIN(RADIANS(90-$D$3)) *SIN(RADIANS(90-$D1)) *COS(RADIANS($E$3-$E1))) *6371)*$S$2 -> 412.190643 | W3: =(ACOS(COS(RADIANS(90-$D$4)) *COS(RADIANS(90-$D1)) +SIN(RADIANS(90-$D$4)) *SIN(RADIANS(90-$D1)) *COS(RADIANS($E$4-$E1))) *6371)*$S$2 -> 482.2419832 | X3: =(ACOS(COS(RADIANS(90-$D$5)) *COS(RADIANS(90-$D1)) +SIN(RADIANS(90-$D$5)) *SIN(RADIANS(90-$D1)) *COS(RADIANS($E$5-$E1))) *6371)*$S$2 -> 429.5555791 | Y3: =(ACOS(COS(RADIANS(90-$D$6)) *COS(RADIANS(90-$D1)) +SIN(RADIANS(90-$D$6)) *SIN(RADIANS(90-$D1)) *COS(RADIANS($E$6-$E1))) *6371)*$S$2 -> 613.4248218 | Z3: =(ACOS(COS(RADIANS(90-$D$7)) *COS(RADIANS(90-$D1)) +SIN(RADIANS(90-$D$7)) *SIN(RADIANS(90-$D1)) *COS(RADIANS($E$7-$E1))) *6371)*$S$2 -> 643.5341484 | AA3: =(ACOS(COS(RADIANS(90-$D$8)) *COS(RADIANS(90-$D1)) +SIN(RADIANS(90-$D$8)) *SIN(RADIANS(90-$D1)) *COS(RADIANS($E$8-$E1))) *6371)*$S$2 -> 630.3284654 | AB3: =(ACOS(COS(RADIANS(90-$D$9)) *COS(RADIANS(90-$D1)) +SIN(RADIANS(90-$D$9)) *SIN(RADIANS(90-$D1)) *COS(RADIANS($E$9-$E1))) *6371)*$S$2 -> 768.6413977 | AC3: =(ACOS(COS(RADIANS(90-$D$10)) *COS(RADIANS(90-$D1)) +SIN(RADIANS(90-$D$10)) *SIN(RADIANS(90-$D1)) *COS(RADIANS($E$10-$E1))) *6371)*$S$2 -> 507.9270279 | AD3: =(ACOS(COS(RADIANS(90-$D$11)) *COS(RADIANS(90-$D1)) +SIN(RADIANS(90-$D$11)) *SIN(RADIANS(90-$D1)) *COS(RADIANS($E$11-$E1))) *6371)*$S$2 -> 644.7529776 | AE3: =(ACOS(COS(RADIANS(90-$D$12)) *COS(RADIANS(90-$D1)) +SIN(RADIANS(90-$D$12)) *SIN(RADIANS(90-$D1)) *COS(RADIANS($E$12-$E1))) *6371)*$S$2 -> 814.5354006 | AF3: =(ACOS(COS(RADIANS(90-$D$13)) *COS(RADIANS(90-$D1)) +SIN(RADIANS(90-$D$13)) *SIN(RADIANS(90-$D1)) *COS(RADIANS($E$13-$E1))) *6371)*$S$2 -> 809.5687983 | AG3: =(ACOS(COS(RADIANS(90-$D$14)) *COS(RADIANS(90-$D1)) +SIN(RADIANS(90-$D$14)) *SIN(RADIANS(90-$D1)) *COS(RADIANS($E$14-$E1))) *6371)*$S$2 -> 668.1792304 | AH3: =(ACOS(COS(RADIANS(90-$D$15)) *COS(RADIANS(90-$D1)) +SIN(RADIANS(90-$D$15)) *SIN(RADIANS(90-$D1)) *COS(RADIANS($E$15-$E1))) *6371)*$S$2 -> 413.2109767 | AI3: =(ACOS(COS(RADIANS(90-$D$16)) *COS(RADIANS(90-$D1)) +SIN(RADIANS(90-$D$16)) *SIN(RADIANS(90-$D1)) *COS(RADIANS($E$16-$E1))) *6371)*$S$2 -> 487.5284735 | AJ3: =(ACOS(COS(RADIANS(90-$D$17)) *COS(RADIANS(90-$D1)) +SIN(RADIANS(90-$D$17)) *SIN(RADIANS(90-$D1)) *COS(RADIANS($E$17-$E1))) *6371)*$S$2 -> 471.8597082 | AK3: =(ACOS(COS(RADIANS(90-$D$18)) *COS(RADIANS(90-$D1)) +SIN(RADIANS(90-$D$18)) *SIN(RADIANS(90-$D1)) *COS(RADIANS($E$18-$E1))) *6371)*$S$2 -> 592.6574048 | AL3: =(ACOS(COS(RADIANS(90-$D$19)) *COS(RADIANS(90-$D1)) +SIN(RADIANS(90-$D$19)) *SIN(RADIANS(90-$D1)) *COS(RADIANS($E$19-$E1))) *6371)*$S$2 -> 196.0357628 | AM3: =(ACOS(COS(RADIANS(90-$D$20)) *COS(RADIANS(90-$D1)) +SIN(RADIANS(90-$D$20)) *SIN(RADIANS(90-$D1)) *COS(RADIANS($E$20-$E1))) *6371)*$S$2 -> 585.0744574 | AR3: =B3 -> C | AS3: Charles-Eames-Strasse 2, 79576 Weil am Rhein
A4: Am Felsbrunnen, 66119 Saarbrucken | B4: D | C4: D | D4: 49.1973321 | E4: 7.0234011 | F4: 49.1973321, 7.0234011 | J4: AD | K4: A | L4: 1 | M4: D | N4: 4 | O4: FALSE | P4: AD | Q4: 482.2419832 | R4: 2 | S4: B | T4: 258.8259327 | U4: 0 | V4: 224.1575634 | W4: 223.5579926 | X4: 211.4655618 | Y4: 391.9563261 | Z4: 451.7626315 | AA4: 479.7267609 | AB4: 643.4176768 | AC4: 385.132498 | AD4: 540.2563192 | AE4: 721.9251755 | AF4: 808.1197519 | AG4: 687.5335468 | AH4: =(ACOS(COS(RADIANS(90-$D$15)) *COS(RADIANS(90-$D2)) +SIN(RADIANS(90-$D$15)) *SIN(RADIANS(90-$D2)) *COS(RADIANS($E$15-$E2))) *6371)*$S$2 -> 209.7928749 | AI4: =(ACOS(COS(RADIANS(90-$D$16)) *COS(RADIANS(90-$D2)) +SIN(RADIANS(90-$D$16)) *SIN(RADIANS(90-$D2)) *COS(RADIANS($E$16-$E2))) *6371)*$S$2 -> 498.594104 | AJ4: =(ACOS(COS(RADIANS(90-$D$17)) *COS(RADIANS(90-$D2)) +SIN(RADIANS(90-$D$17)) *SIN(RADIANS(90-$D2)) *COS(RADIANS($E$17-$E2))) *6371)*$S$2 -> 553.6436765 | AK4: =(ACOS(COS(RADIANS(90-$D$18)) *COS(RADIANS(90-$D2)) +SIN(RADIANS(90-$D$18)) *SIN(RADIANS(90-$D2)) *COS(RADIANS($E$18-$E2))) *6371)*$S$2 -> 665.7764374 | AL4: =(ACOS(COS(RADIANS(90-$D$19)) *COS(RADIANS(90-$D2)) +SIN(RADIANS(90-$D$19)) *SIN(RADIANS(90-$D2)) *COS(RADIANS($E$19-$E2))) *6371)*$S$2 -> 208.8355037 | AM4: =(ACOS(COS(RADIANS(90-$D$20)) *COS(RADIANS(90-$D2)) +SIN(RADIANS(90-$D$20)) *SIN(RADIANS(90-$D2)) *COS(RADIANS($E$20-$E2))) *6371)*$S$2 -> 362.0583248 | AR4: D | AS4: Am Felsbrunnen, 66119 Saarbrucken
A5: Rheinstrasse 2, 55116 Mainz | B5: E | C5: E | D5: 49.9941603 | E5: 8.281838 | F5: 49.9941603, 8.2818380 | J5: AE | K5: A | L5: 1 | M5: E | N5: 5 | O5: FALSE | P5: AE | Q5: 429.5555791 | R5: 3 | S5: C | T5: 412.190643 | U5: 224.1575634 | V5: 0 | W5: 243.1311507 | X5: 359.7193182 | Y5: 492.9833117 | Z5: 583.75552 | AA5: 645.1844768 | AB5: 814.5958443 | AC5: 576.2264098 | AD5: 728.7025604 | AE5: 907.8256797 | AF5: 1023.515191 | AG5: 908.0878139 | AH5: 375.1546041 | AI5: 720.6503805 | AJ5: 777.2533527 | AK5: 889.9286677 | AL5: 429.3513 | AM5: 465.7530414 | AR5: E | AS5: Rheinstrasse 2, 55116 Mainz
A6: Neuer Weyerstrasserweg 120, 50969 Koln | B6: F | C6: F | D6: 50.90439 | E6: 6.92845 | F6: 50.9043900, 6.9284500 | J6: AF | K6: A | L6: 1 | M6: F | N6: 6 | O6: FALSE | P6: AF | Q6: 613.4248218 | R6: 4 | S6: D | T6: 482.2419832 | U6: 223.5579926 | V6: 243.1311507 | W6: 0 | X6: 168.6335258 | Y6: 252.6164203 | Z6: 350.45833 | AA6: 429.0080994 | AB6: 596.5102812 | AC6: 391.4624097 | AD6: 530.2652866 | AE6: 700.4078568 | AF6: 860.8875123 | AG6: 767.1125294 | AH6: 196.5438296 | AI6: 596.0979713 | AJ6: 690.144786 | AK6: 785.7424278 | AL6: 390.4643387 | AM6: 227.1116339 | AR6: F | AS6: Neuer Weyerstrasserweg 120, 50969 Koln
A7: Feineisenstrasse 4, 44339 Dortmund | B7: G | C7: G | D7: 51.54786 | E7: 7.49568 | F7: 51.5478600, 7.4956800 | J7: AG | K7: A | L7: 1 | M7: G | N7: 7 | O7: FALSE | P7: AG | Q7: 643.5341484 | R7: 5 | S7: E | T7: 429.5555791 | U7: 211.4655618 | V7: 359.7193182 | W7: 168.6335258 | X7: 0 | Y7: 185.3688011 | Z7: 241.2493998 | AA7: 285.9541879 | AB7: 455.1311301 | AC7: 225.8915025 | AD7: 372.3005983 | AE7: 549.1620106 | AF7: 693.2354451 | AG7: 598.6581011 | AH7: 30.59792091 | AI7: 430.6478994 | AJ7: 533.3454871 | AK7: 622.6482982 | AL7: 280.0721399 | AM7: 156.2360098 | AR7: G | AS7: Feineisenstrasse 4, 44339 Dortmund
A8: Gottfried Schenker Strasse 1, 33758 Schloss Holte-Stukenbrock | B8: H | C8: H | D8: 51.916249 | E8: 8.6159279 | F8: 51.9162490, 8.6159279 | J8: AH | K8: A | L8: 1 | M8: H | N8: 8 | O8: FALSE | P8: AH | Q8: 630.3284654 | R8: 6 | S8: F | T8: 613.4248218 | U8: 391.9563261 | V8: 492.9833117 | W8: 252.6164203 | X8: 185.3688011 | Y8: 0 | Z8: 108.6992701 | AA8: 215.9131054 | AB8: 366.7042549 | AC8: 251.3486327 | AD8: 336.7262654 | AE8: 481.2000461 | AF8: 692.7159571 | AG8: 632.9682546 | AH8: 200.3668566 | AI8: 503.5365539 | AJ8: 631.2589889 | AK8: 695.8779804 | AL8: 450.4507609 | AM8: 29.92968091 | AR8: H | AS8: Gottfried Schenker Strasse 1, 33758 Schloss Holte-Stukenbrock
A9: Von-Thunen-Strasse 14, 28307 Bremen | B9: I | C9: I | D9: 53.04182 | E9: 8.9695 | F9: 53.0418200, 8.9695000 | J9: AI | K9: A | L9: 1 | M9: I | N9: 9 | O9: FALSE | P9: AI | Q9: 768.6413977 | R9: 7 | S9: G | T9: 643.5341484 | U9: 451.7626315 | V9: 583.75552 | W9: 350.45833 | X9: 241.2493998 | Y9: 108.6992701 | Z9: 0 | AA9: 116.1725856 | AB9: 258.0278699 | AC9: 194.7634047 | AD9: 238.9846249 | AE9: 373.2235006 | AF9: 595.8518032 | AG9: 549.2762568 | AH9: 243.0937759 | AI9: 442.6394272 | AJ9: 578.7452548 | AK9: 628.0999838 | AL9: 462.1881269 | AM9: 126.159146 | AR9: I | AS9: Von-Thunen-Strasse 14, 28307 Bremen
A10: Geschaftsstelle Kassel, Schwarze Breite 2, 34260 Kaufungen | B10: J | C10: J | D10: 51.2866381 | E10: 9.5655084 | F10: 51.2866381, 9.5655084 | J10: AJ | K10: A | L10: 1 | M10: J | N10: 10 | O10: FALSE | P10: AJ | Q10: 507.9270279 | R10: 8 | S10: H | T10: 630.3284654 | U10: 479.7267609 | V10: 645.1844768 | W10: 429.0080994 | X10: 285.9541879 | Y10: 215.9131054 | Z10: 116.1725856 | AA10: 0 | AB10: 169.4783608 | AC10: 127.5849652 | AD10: 122.8707356 | AE10: 272.349568 | AF10: 479.9052258 | AG10: 435.6407082 | AH10: 275.0723869 | AI10: 345.7721352 | AJ10: 485.7728268 | AK10: 522.8718076 | AL10: 437.2817063 | AM10: 224.4082054 | AR10: J | AS10: Geschaftsstelle Kassel, Schwarze Breite 2, 34260 Kaufungen
A11: Karlsruher Strasse 10, 30519 Hannover | B11: K | C11: K | D11: 52.3266755 | E11: 9.7924844 | F11: 52.3266755, 9.7924844 | J11: AK | K11: A | L11: 1 | M11: K | N11: 11 | O11: FALSE | P11: AK | Q11: 644.7529776 | R11: 9 | S11: I | T11: 768.6413977 | U11: 643.4176768 | V11: 814.5958443 | W11: 596.5102812 | X11: 455.1311301 | Y11: 366.7042549 | Z11: 258.0278699 | AA11: 169.4783608 | AB11: 0 | AC11: 265.1410388 | AD11: 128.953086 | AE11: 119.8456717 | AF11: 386.9733278 | AG11: 395.878522 | AH11: 442.9035117 | AI11: 385.7896452 | AJ11: 521.5315931 | AK11: 519.1840287 | AL11: 572.6081643 | AM11: 381.9014327 | AR11: K | AS11: Karlsruher Strasse 10, 30519 Hannover
A12: Heidenkampsweg 79, 20097 Hamburg | B12: L | C12: L | D12: 53.54674 | E12: 10.03 | F12: 53.5467400, 10.0300000 | J12: AL | K12: A | L12: 1 | M12: L | N12: 12 | O12: FALSE | P12: AL | Q12: 814.5354006 | R12: 10 | S12: J | T12: 507.9270279 | U12: 385.132498 | V12: 576.2264098 | W12: 391.4624097 | X12: 225.8915025 | Y12: 251.3486327 | Z12: 194.7634047 | AA12: 127.5849652 | AB12: 265.1410388 | AC12: 0 | AD12: 155.2041734 | AE12: 336.8583509 | AF12: 470.2355788 | AG12: 389.0560227 | AH12: 203.6670001 | AI12: 253.0377707 | AJ12: 385.4760044 | AK12: 444.5469837 | AL12: 312.9536397 | AM12: 243.8740262 | AR12: L | AS12: Heidenkampsweg 79, 20097 Hamburg
A13: Margeritenstrasse 40, 17033 Neubrandenburg | B13: M | C13: M | D13: 53.5230291 | E13: 13.2721851 | F13: 53.5230291, 13.2721851 | J13: AM | K13: A | L13: 1 | M13: M | N13: 13 | O13: FALSE | P13: AM | Q13: 809.5687983 | R13: 11 | S13: K | T13: 644.7529776 | U13: 540.2563192 | V13: 728.7025604 | W13: 530.2652866 | X13: 372.3005983 | Y13: 336.7262654 | Z13: 238.9846249 | AA13: 122.8707356 | AB13: 128.953086 | AC13: 155.2041734 | AD13: 0 | AE13: 181.6718442 | AF13: 357.0868203 | AG13: 319.3543458 | AH13: 353.7891548 | AI13: 265.6277368 | AJ13: 405.2147074 | AK13: 421.2052221 | AL13: 449.021544 | AM13: 342.1546106 | AR13: M | AS13: Margeritenstrasse 40, 17033 Neubrandenburg
A14: Schwanenfeldstrasse 11, 13627 Berlin | B14: N | C14: N | D14: 52.53804 | E14: 13.31762 | F14: 52.5380400, 13.3176200 | J14: AN | K14: A | L14: 1 | M14: N | N14: 14 | O14: FALSE | P14: AN | Q14: 668.1792304 | R14: 12 | S14: L | T14: 814.5354006 | U14: 721.9251755 | V14: 907.8256797 | W14: 700.4078568 | X14: 549.1620106 | Y14: 481.2000461 | Z14: 373.2235006 | AA14: 272.349568 | AB14: 119.8456717 | AC14: 336.8583509 | AD14: 181.6718442 | AE14: 0 | AF14: 284.9704488 | AG14: 328.137138 | AH14: 532.7197136 | AI14: 375.791019 | AJ14: 496.4749193 | AK14: 466.9600873 | AL14: 620.8719031 | AM14: 493.9850793 | AR14: N | AS14: Schwanenfeldstrasse 11, 13627 Berlin
A15: Edmund-Rumpler-Strasse 3, 60549 Frankfurt am Main | B15: O | C15: O | D15: 50.0563372 | E15: 8.5889965 | F15: 50.0563372, 8.5889965 | J15: AO | K15: A | L15: 1 | M15: O | N15: 15 | O15: FALSE | P15: AO | Q15: 413.2109767 | R15: 13 | S15: M | T15: 809.5687983 | U15: 808.1197519 | V15: 1023.515191 | W15: 860.8875123 | X15: 693.2354451 | Y15: 692.7159571 | Z15: 595.8518032 | AA15: 479.9052258 | AB15: 386.9733278 | AC15: 470.2355788 | AD15: 357.0868203 | AE15: 284.9704488 | AF15: 0 | AG15: 145.7253309 | AH15: 667.8224331 | AI15: 324.0952194 | AJ15: 367.4786165 | AK15: 276.1977975 | AL15: 643.1235381 | AM15: 695.7731867 | AR15: O | AS15: Edmund-Rumpler-Strasse 3, 60549 Frankfurt am Main
A16: Poststrasse 23, 04158 Leipzig | B16: P | C16: P | D16: 51.4134473 | E16: 12.2976523 | F16: 51.4134473, 12.2976523 | J16: AP | K16: A | L16: 1 | M16: P | N16: 16 | O16: FALSE | P16: AP | Q16: 487.5284735 | R16: 14 | S16: N | T16: 668.1792304 | U16: 687.5335468 | V16: 908.0878139 | W16: 767.1125294 | X16: 598.6581011 | Y16: 632.9682546 | Z16: 549.2762568 | AA16: 435.6407082 | AB16: 395.878522 | AC16: 389.0560227 | AD16: 319.3543458 | AE16: 328.137138 | AF16: 145.7253309 | AG16: 0 | AH16: 570.6734722 | AI16: 190.506505 | AJ16: 222.5633717 | AK16: 146.3442501 | AL16: 509.6935328 | AM16: 630.0742568 | AR16: P | AS16: Poststrasse 23, 04158 Leipzig
A17: Potthoffstrasse 5, 01159 Dresden | B17: Q | C17: Q | D17: 51.05242 | E17: 13.70626 | F17: 51.0524200, 13.7062600 | J17: AQ | K17: A | L17: 1 | M17: Q | N17: 17 | O17: FALSE | P17: AQ | Q17: 471.8597082 | R17: 15 | S17: O | T17: =(ACOS(COS(RADIANS(90-$D$1)) *COS(RADIANS(90-$D15)) +SIN(RADIANS(90-$D$1)) *SIN(RADIANS(90-$D15)) *COS(RADIANS($E$1-$E15))) *6371)*$S$2 -> 413.2109767 | U17: =(ACOS(COS(RADIANS(90-$D$2)) *COS(RADIANS(90-$D15)) +SIN(RADIANS(90-$D$2)) *SIN(RADIANS(90-$D15)) *COS(RADIANS($E$2-$E15))) *6371)*$S$2 -> 209.7928749 | V17: =(ACOS(COS(RADIANS(90-$D$3)) *COS(RADIANS(90-$D15)) +SIN(RADIANS(90-$D$3)) *SIN(RADIANS(90-$D15)) *COS(RADIANS($E$3-$E15))) *6371)*$S$2 -> 375.1546041 | W17: =(ACOS(COS(RADIANS(90-$D$4)) *COS(RADIANS(90-$D15)) +SIN(RADIANS(90-$D$4)) *SIN(RADIANS(90-$D15)) *COS(RADIANS($E$4-$E15))) *6371)*$S$2 -> 196.5438296 | X17: =(ACOS(COS(RADIANS(90-$D$5)) *COS(RADIANS(90-$D15)) +SIN(RADIANS(90-$D$5)) *SIN(RADIANS(90-$D15)) *COS(RADIANS($E$5-$E15))) *6371)*$S$2 -> 30.59792091 | Y17: =(ACOS(COS(RADIANS(90-$D$6)) *COS(RADIANS(90-$D15)) +SIN(RADIANS(90-$D$6)) *SIN(RADIANS(90-$D15)) *COS(RADIANS($E$6-$E15))) *6371)*$S$2 -> 200.3668566 | Z17: =(ACOS(COS(RADIANS(90-$D$7)) *COS(RADIANS(90-$D15)) +SIN(RADIANS(90-$D$7)) *SIN(RADIANS(90-$D15)) *COS(RADIANS($E$7-$E15))) *6371)*$S$2 -> 243.0937759 | AA17: =(ACOS(COS(RADIANS(90-$D$8)) *COS(RADIANS(90-$D15)) +SIN(RADIANS(90-$D$8)) *SIN(RADIANS(90-$D15)) *COS(RADIANS($E$8-$E15))) *6371)*$S$2 -> 275.0723869 | AB17: =(ACOS(COS(RADIANS(90-$D$9)) *COS(RADIANS(90-$D15)) +SIN(RADIANS(90-$D$9)) *SIN(RADIANS(90-$D15)) *COS(RADIANS($E$9-$E15))) *6371)*$S$2 -> 442.9035117 | AC17: =(ACOS(COS(RADIANS(90-$D$10)) *COS(RADIANS(90-$D15)) +SIN(RADIANS(90-$D$10)) *SIN(RADIANS(90-$D15)) *COS(RADIANS($E$10-$E15))) *6371)*$S$2 -> 203.6670001 | AD17: =(ACOS(COS(RADIANS(90-$D$11)) *COS(RADIANS(90-$D15)) +SIN(RADIANS(90-$D$11)) *SIN(RADIANS(90-$D15)) *COS(RADIANS($E$11-$E15))) *6371)*$S$2 -> 353.7891548 | AE17: =(ACOS(COS(RADIANS(90-$D$12)) *COS(RADIANS(90-$D15)) +SIN(RADIANS(90-$D$12)) *SIN(RADIANS(90-$D15)) *COS(RADIANS($E$12-$E15))) *6371)*$S$2 -> 532.7197136 | AF17: =(ACOS(COS(RADIANS(90-$D$13)) *COS(RADIANS(90-$D15)) +SIN(RADIANS(90-$D$13)) *SIN(RADIANS(90-$D15)) *COS(RADIANS($E$13-$E15))) *6371)*$S$2 -> 667.8224331 | AG17: =(ACOS(COS(RADIANS(90-$D$14)) *COS(RADIANS(90-$D15)) +SIN(RADIANS(90-$D$14)) *SIN(RADIANS(90-$D15)) *COS(RADIANS($E$14-$E15))) *6371)*$S$2 -> 570.6734722 | AH17: 0 | AI17: 400.9062624 | AJ17: 502.7592097 | AK17: 592.5066742 | AL17: 255.5763143 | AM17: 172.5629901 | AR17: Q | AS17: Potthoffstrasse 5, 01159 Dresden
A18: Beuchstrasse 25, 03044 Cottbus | B18: R | C18: R | D18: 51.7702759 | E18: 14.3352167 | F18: 51.7702759, 14.3352167 | J18: AR | K18: A | L18: 1 | M18: R | N18: 18 | O18: FALSE | P18: AR | Q18: 592.6574048 | R18: 16 | S18: P | T18: 487.5284735 | U18: 498.594104 | V18: 720.6503805 | W18: 596.0979713 | X18: 430.6478994 | Y18: 503.5365539 | Z18: 442.6394272 | AA18: 345.7721352 | AB18: 385.7896452 | AC18: 253.0377707 | AD18: 265.6277368 | AE18: 375.791019 | AF18: 324.0952194 | AG18: 190.506505 | AH18: 400.9062624 | AI18: 0 | AJ18: 140.9408712 | AK18: 194.494495 | AL18: 320.0663715 | AM18: 493.536739 | AR18: R | AS18: Beuchstrasse 25, 03044 Cottbus
A19: Bremer Strasse 90, 90451 Nurnberg | B19: S | C19: S | D19: 49.3977885 | E19: 11.0608549 | F19: 49.3977885, 11.0608549 | J19: AS | K19: A | L19: 1 | M19: S | N19: 19 | O19: FALSE | P19: AS | Q19: 196.0357628 | R19: 17 | S19: Q | T19: 471.8597082 | U19: 553.6436765 | V19: 777.2533527 | W19: 690.144786 | X19: 533.3454871 | Y19: 631.2589889 | Z19: 578.7452548 | AA19: 485.7728268 | AB19: 521.5315931 | AC19: 385.4760044 | AD19: 405.2147074 | AE19: 496.4749193 | AF19: 367.4786165 | AG19: 222.5633717 | AH19: 502.7592097 | AI19: 140.9408712 | AJ19: 0 | AK19: 120.9803432 | AL19: 349.9967374 | AM19: 618.1537861 | AR19: S | AS19: Bremer Strasse 90, 90451 Nurnberg
A20: Am Hauptbahnhof 1, 53111 Bonn | B20: T | C20: T | D20: 50.7322897 | E20: 7.0969954 | F20: 50.7322897, 7.0969954 | J20: AT | K20: A | L20: 1 | M20: T | N20: 20 | O20: FALSE | P20: AT | Q20: 585.0744574 | R20: 18 | S20: R | T20: 592.6574048 | U20: 665.7764374 | V20: 889.9286677 | W20: 785.7424278 | X20: 622.6482982 | Y20: 695.8779804 | Z20: 628.0999838 | AA20: 522.8718076 | AB20: 519.1840287 | AC20: 444.5469837 | AD20: 421.2052221 | AE20: 466.9600873 | AF20: 276.1977975 | AG20: 146.3442501 | AH20: 592.5066742 | AI20: 194.494495 | AJ20: 120.9803432 | AK20: 0 | AL20: 466.4271092 | AM20: 687.0498407 | AR20: T | AS20: Am Hauptbahnhof 1, 53111 Bonn
J21: BA | K21: B | L21: 2 | M21: A | N21: 1 | O21: FALSE | P21: BA | Q21: 258.8259327 | R21: 19 | S21: S | T21: 196.0357628 | U21: 208.8355037 | V21: 429.3513 | W21: 390.4643387 | X21: 280.0721399 | Y21: 450.4507609 | Z21: 462.1881269 | AA21: 437.2817063 | AB21: 572.6081643 | AC21: 312.9536397 | AD21: 449.021544 | AE21: 620.8719031 | AF21: 643.1235381 | AG21: 509.6935328 | AH21: 255.5763143 | AI21: 320.0663715 | AJ21: 349.9967374 | AK21: 466.4271092 | AL21: 0 | AM21: 424.835235
J22: BB | K22: B | L22: 2 | M22: B | N22: 2 | O22: TRUE | Q22: 0 | R22: 20 | S22: T | T22: 585.0744574 | U22: 362.0583248 | V22: 465.7530414 | W22: 227.1116339 | X22: 156.2360098 | Y22: 29.92968091 | Z22: 126.159146 | AA22: 224.4082054 | AB22: 381.9014327 | AC22: 243.8740262 | AD22: 342.1546106 | AE22: 493.9850793 | AF22: 695.7731867 | AG22: 630.0742568 | AH22: 172.5629901 | AI22: 493.536739 | AJ22: 618.1537861 | AK22: 687.0498407 | AL22: 424.835235 | AM22: 0
J23: BC | K23: B | L23: 2 | M23: C | N23: 3 | O23: FALSE | P23: BC | Q23: 224.1575634
A24: A | B24: 1 | J24: BD | K24: B | L24: 2 | M24: D | N24: 4 | O24: FALSE | P24: BD | Q24: 223.5579926
A25: B | B25: 2 | J25: BE | K25: B | L25: 2 | M25: E | N25: 5 | O25: FALSE | P25: BE | Q25: 211.4655618
A26: C | B26: 3 | J26: BF | K26: B | L26: 2 | M26: F | N26: 6 | O26: FALSE | P26: BF | Q26: 391.9563261
A27: D | B27: 4 | J27: BG | K27: B | L27: 2 | M27: G | N27: 7 | O27: FALSE | P27: BG | Q27: 451.7626315
A28: E | B28: 5 | J28: BH | K28: B | L28: 2 | M28: H | N28: 8 | O28: FALSE | P28: BH | Q28: 479.7267609
A29: F | B29: 6 | J29: BI | K29: B | L29: 2 | M29: I | N29: 9 | O29: FALSE | P29: BI | Q29: 643.4176768
A30: G | B30: 7 | J30: BJ | K30: B | L30: 2 | M30: J | N30: 10 | O30: FALSE | P30: BJ | Q30: 385.132498
A31: H | B31: 8 | J31: BK | K31: B | L31: 2 | M31: K | N31: 11 | O31: FALSE | P31: BK | Q31: 540.2563192
A32: I | B32: 9 | J32: BL | K32: B | L32: 2 | M32: L | N32: 12 | O32: FALSE | P32: BL | Q32: 721.9251755
A33: J | B33: 10 | J33: BM | K33: B | L33: 2 | M33: M | N33: 13 | O33: FALSE | P33: BM | Q33: 808.1197519
A34: K | B34: 11 | J34: BN | K34: B | L34: 2 | M34: N | N34: 14 | O34: FALSE | P34: BN | Q34: 687.5335468
A35: L | B35: 12 | J35: BO | K35: B | L35: 2 | M35: O | N35: 15 | O35: FALSE | P35: BO | Q35: 209.7928749
A36: M | B36: 13 | J36: BP | K36: B | L36: 2 | M36: P | N36: 16 | O36: FALSE | P36: BP | Q36: 498.594104
A37: N | B37: 14 | J37: BQ | K37: B | L37: 2 | M37: Q | N37: 17 | O37: FALSE | P37: BQ | Q37: 553.6436765
A38: O | B38: 15 | J38: BR | K38: B | L38: 2 | M38: R | N38: 18 | O38: FALSE | P38: BR | Q38: 665.7764374
A39: P | B39: 16 | J39: BS | K39: B | L39: 2 | M39: S | N39: 19 | O39: FALSE | P39: BS | Q39: 208.8355037
A40: Q | B40: 17 | J40: BT | K40: B | L40: 2 | M40: T | N40: 20 | O40: FALSE | P40: BT | Q40: 362.0583248
A41: R | B41: 18 | J41: CA | K41: C | L41: 3 | M41: A | N41: 1 | O41: FALSE | P41: CA | Q41: 412.190643
A42: S | B42: 19 | J42: CB | K42: C | L42: 3 | M42: B | N42: 2 | O42: FALSE | P42: CB | Q42: 224.1575634
A43: T | B43: 20 | J43: CC | K43: C | L43: 3 | M43: C | N43: 3 | O43: TRUE | Q43: 0
J44: CD | K44: C | L44: 3 | M44: D | N44: 4 | O44: FALSE | P44: CD | Q44: 243.1311507
J45: CE | K45: C | L45: 3 | M45: E | N45: 5 | O45: FALSE | P45: CE | Q45: 359.7193182
J46: CF | K46: C | L46: 3 | M46: F | N46: 6 | O46: FALSE | P46: CF | Q46: 492.9833117
J47: CG | K47: C | L47: 3 | M47: G | N47: 7 | O47: FALSE | P47: CG | Q47: 583.75552
J48: CH | K48: C | L48: 3 | M48: H | N48: 8 | O48: FALSE | P48: CH | Q48: 645.1844768
J49: CI | K49: C | L49: 3 | M49: I | N49: 9 | O49: FALSE | P49: CI | Q49: 814.5958443
J50: CJ | K50: C | L50: 3 | M50: J | N50: 10 | O50: FALSE | P50: CJ | Q50: 576.2264098
J51: CK | K51: C | L51: 3 | M51: K | N51: 11 | O51: FALSE | P51: CK | Q51: 728.7025604
J52: CL | K52: C | L52: 3 | M52: L | N52: 12 | O52: FALSE | P52: CL | Q52: 907.8256797
J53: CM | K53: C | L53: 3 | M53: M | N53: 13 | O53: FALSE | P53: CM | Q53: 1023.515191
J54: CN | K54: C | L54: 3 | M54: N | N54: 14 | O54: FALSE | P54: CN | Q54: 908.0878139
J55: CO | K55: C | L55: 3 | M55: O | N55: 15 | O55: FALSE | P55: CO | Q55: 375.1546041
J56: CP | K56: C | L56: 3 | M56: P | N56: 16 | O56: FALSE | P56: CP | Q56: 720.6503805
J57: CQ | K57: C | L57: 3 | M57: Q | N57: 17 | O57: FALSE | P57: CQ | Q57: 777.2533527
J58: CR | K58: C | L58: 3 | M58: R | N58: 18 | O58: FALSE | P58: CR | Q58: 889.9286677
J59: CS | K59: C | L59: 3 | M59: S | N59: 19 | O59: FALSE | P59: CS | Q59: 429.3513
J60: CT | K60: C | L60: 3 | M60: T | N60: 20 | O60: FALSE | P60: CT | Q60: 465.7530414
J61: DA | K61: D | L61: 4 | M61: A | N61: 1 | O61: FALSE | P61: DA | Q61: 482.2419832
J62: DB | K62: D | L62: 4 | M62: B | N62: 2 | O62: FALSE | P62: DB | Q62: 223.5579926
J63: DC | K63: D | L63: 4 | M63: C | N63: 3 | O63: FALSE | P63: DC | Q63: 243.1311507
J64: DD | K64: D | L64: 4 | M64: D | N64: 4 | O64: TRUE | Q64: 0
J65: =IF(ROW()-ROW($J$1)+1>COUNTA(B:B)*COUNTA(C:C),"",INDEX(B:B,INT((ROW()-ROW($J$1))/COUNTA(C:C)+1))&INDEX(C:C,MOD(ROW()-ROW($J$1),COUNTA(C:C))+1)) -> DE | K65: D | L65: 4 | M65: E | N65: 5 | O65: FALSE | P65: DE | Q65: 168.6335258
J66: DF | K66: =LEFT(J66,1) -> D | L66: =VLOOKUP(K66,$A$24:$B$37,2,FALSE) -> 4 | M66: =RIGHT(J66,1) -> F | N66: =VLOOKUP(M66,$A$24:$B$51,2,FALSE) -> 6 | O66: =K66=M66 -> FALSE | P66: =IF(O66=TRUE,"",J66) -> DF | Q66: =INDEX($T$3:$AM$22,L66,N66) -> 252.6164203
J67: DG | K67: D | L67: 4 | M67: G | N67: 7 | O67: FALSE | P67: DG | Q67: 350.45833
J68: DH | K68: D | L68: 4 | M68: H | N68: 8 | O68: FALSE | P68: DH | Q68: 429.0080994
J69: DI | K69: D | L69: 4 | M69: I | N69: 9 | O69: FALSE | P69: DI | Q69: 596.5102812
J70: DJ | K70: D | L70: 4 | M70: J | N70: 10 | O70: FALSE | P70: DJ | Q70: 391.4624097
J71: DK | K71: D | L71: 4 | M71: K | N71: 11 | O71: FALSE | P71: DK | Q71: 530.2652866
J72: DL | K72: D | L72: 4 | M72: L | N72: 12 | O72: FALSE | P72: DL | Q72: 700.4078568
J73: DM | K73: D | L73: 4 | M73: M | N73: 13 | O73: FALSE | P73: DM | Q73: 860.8875123
J74: DN | K74: D | L74: 4 | M74: N | N74: 14 | O74: FALSE | P74: DN | Q74: 767.1125294
J75: DO | K75: D | L75: 4 | M75: O | N75: 15 | O75: FALSE | P75: DO | Q75: 196.5438296
J76: DP | K76: D | L76: 4 | M76: P | N76: 16 | O76: FALSE | P76: DP | Q76: 596.0979713
J77: DQ | K77: D | L77: 4 | M77: Q | N77: 17 | O77: FALSE | P77: DQ | Q77: 690.144786
J78: DR | K78: D | L78: 4 | M78: R | N78: 18 | O78: FALSE | P78: DR | Q78: 785.7424278
J79: DS | K79: D | L79: 4 | M79: S | N79: 19 | O79: FALSE | P79: DS | Q79: 390.4643387
J80: DT | K80: D | L80: 4 | M80: T | N80: 20 | O80: FALSE | P80: DT | Q80: 227.1116339
J81: EA | K81: E | L81: 5 | M81: A | N81: 1 | O81: FALSE | P81: EA | Q81: 429.5555791
J82: EB | K82: E | L82: 5 | M82: B | N82: 2 | O82: FALSE | P82: EB | Q82: 211.4655618
J83: EC | K83: E | L83: 5 | M83: C | N83: 3 | O83: FALSE | P83: EC | Q83: 359.7193182
J84: ED | K84: E | L84: 5 | M84: D | N84: 4 | O84: FALSE | P84: ED | Q84: 168.6335258
J85: EE | K85: E | L85: 5 | M85: E | N85: 5 | O85: TRUE | Q85: 0
J86: EF | K86: E | L86: 5 | M86: F | N86: 6 | O86: FALSE | P86: EF | Q86: 185.3688011
J87: EG | K87: E | L87: 5 | M87: G | N87: 7 | O87: FALSE | P87: EG | Q87: 241.2493998
J88: EH | K88: E | L88: 5 | M88: H | N88: 8 | O88: FALSE | P88: EH | Q88: 285.9541879
J89: EI | K89: E | L89: 5 | M89: I | N89: 9 | O89: FALSE | P89: EI | Q89: 455.1311301
J90: EJ | K90: E | L90: 5 | M90: J | N90: 10 | O90: FALSE | P90: EJ | Q90: 225.8915025
J91: EK | K91: E | L91: 5 | M91: K | N91: 11 | O91: FALSE | P91: EK | Q91: 372.3005983
J92: EL | K92: E | L92: 5 | M92: L | N92: 12 | O92: FALSE | P92: EL | Q92: 549.1620106
J93: EM | K93: E | L93: 5 | M93: M | N93: 13 | O93: FALSE | P93: EM | Q93: 693.2354451
J94: EN | K94: E | L94: 5 | M94: N | N94: 14 | O94: FALSE | P94: EN | Q94: 598.6581011
J95: EO | K95: E | L95: 5 | M95: O | N95: 15 | O95: FALSE | P95: EO | Q95: 30.59792091
J96: EP | K96: E | L96: 5 | M96: P | N96: 16 | O96: FALSE | P96: EP | Q96: 430.6478994
J97: EQ | K97: E | L97: 5 | M97: Q | N97: 17 | O97: FALSE | P97: EQ | Q97: 533.3454871
J98: ER | K98: E | L98: 5 | M98: R | N98: 18 | O98: FALSE | P98: ER | Q98: 622.6482982
J99: ES | K99: E | L99: 5 | M99: S | N99: 19 | O99: FALSE | P99: ES | Q99: 280.0721399
J100: ET | K100: E | L100: 5 | M100: T | N100: 20 | O100: FALSE | P100: ET | Q100: 156.2360098
J101: FA | K101: F | L101: 6 | M101: A | N101: 1 | O101: FALSE | P101: FA | Q101: 613.4248218
J102: FB | K102: F | L102: 6 | M102: B | N102: 2 | O102: FALSE | P102: FB | Q102: 391.9563261
J103: FC | K103: F | L103: 6 | M103: C | N103: 3 | O103: FALSE | P103: FC | Q103: 492.9833117
J104: FD | K104: F | L104: 6 | M104: D | N104: 4 | O104: FALSE | P104: FD | Q104: 252.6164203
J105: FE | K105: F | L105: 6 | M105: E | N105: 5 | O105: FALSE | P105: FE | Q105: 185.3688011
J106: FF | K106: F | L106: 6 | M106: F | N106: 6 | O106: TRUE | Q106: 0
J107: FG | K107: F | L107: 6 | M107: G | N107: 7 | O107: FALSE | P107: FG | Q107: 108.6992701
J108: FH | K108: F | L108: 6 | M108: H | N108: 8 | O108: FALSE | P108: FH | Q108: 215.9131054
J109: FI | K109: F | L109: 6 | M109: I | N109: 9 | O109: FALSE | P109: FI | Q109: 366.7042549
J110: FJ | K110: F | L110: 6 | M110: J | N110: 10 | O110: FALSE | P110: FJ | Q110: 251.3486327
J111: FK | K111: F | L111: 6 | M111: K | N111: 11 | O111: FALSE | P111: FK | Q111: 336.7262654
J112: FL | K112: F | L112: 6 | M112: L | N112: 12 | O112: FALSE | P112: FL | Q112: 481.2000461
J113: FM | K113: F | L113: 6 | M113: M | N113: 13 | O113: FALSE | P113: FM | Q113: 692.7159571
J114: FN | K114: F | L114: 6 | M114: N | N114: 14 | O114: FALSE | P114: FN | Q114: 632.9682546
J115: FO | K115: F | L115: 6 | M115: O | N115: 15 | O115: FALSE | P115: FO | Q115: 200.3668566
J116: FP | K116: F | L116: 6 | M116: P | N116: 16 | O116: FALSE | P116: FP | Q116: 503.5365539
J117: FQ | K117: F | L117: 6 | M117: Q | N117: 17 | O117: FALSE | P117: FQ | Q117: 631.2589889
J118: FR | K118: F | L118: 6 | M118: R | N118: 18 | O118: FALSE | P118: FR | Q118: 695.8779804
J119: FS | K119: F | L119: 6 | M119: S | N119: 19 | O119: FALSE | P119: FS | Q119: 450.4507609
J120: FT | K120: F | L120: 6 | M120: T | N120: 20 | O120: FALSE | P120: FT | Q120: 29.92968091
J121: GA | K121: G | L121: 7 | M121: A | N121: 1 | O121: FALSE | P121: GA | Q121: 643.5341484
J122: GB | K122: G | L122: 7 | M122: B | N122: 2 | O122: FALSE | P122: GB | Q122: 451.7626315
J123: GC | K123: G | L123: 7 | M123: C | N123: 3 | O123: FALSE | P123: GC | Q123: 583.75552
J124: GD | K124: G | L124: 7 | M124: D | N124: 4 | O124: FALSE | P124: GD | Q124: 350.45833
J125: GE | K125: G | L125: 7 | M125: E | N125: 5 | O125: FALSE | P125: GE | Q125: 241.2493998
J126: GF | K126: G | L126: 7 | M126: F | N126: 6 | O126: FALSE | P126: GF | Q126: 108.6992701
J127: GG | K127: G | L127: 7 | M127: G | N127: 7 | O127: TRUE | Q127: 0
J128: GH | K128: G | L128: 7 | M128: H | N128: 8 | O128: FALSE | P128: GH | Q128: 116.1725856
J129: =IF(ROW()-ROW($J$1)+1>COUNTA(B:B)*COUNTA(C:C),"",INDEX(B:B,INT((ROW()-ROW($J$1))/COUNTA(C:C)+1))&INDEX(C:C,MOD(ROW()-ROW($J$1),COUNTA(C:C))+1)) -> GI | K129: G | L129: 7 | M129: I | N129: 9 | O129: FALSE | P129: GI | Q129: 258.0278699
J130: GJ | K130: =LEFT(J130,1) -> G | L130: =VLOOKUP(K130,$A$24:$B$37,2,FALSE) -> 7 | M130: =RIGHT(J130,1) -> J | N130: =VLOOKUP(M130,$A$24:$B$51,2,FALSE) -> 10 | O130: =K130=M130 -> FALSE | P130: =IF(O130=TRUE,"",J130) -> GJ | Q130: =INDEX($T$3:$AM$22,L130,N130) -> 194.7634047
J131: GK | K131: G | L131: 7 | M131: K | N131: 11 | O131: FALSE | P131: GK | Q131: 238.9846249
J132: GL | K132: G | L132: 7 | M132: L | N132: 12 | O132: FALSE | P132: GL | Q132: 373.2235006
J133: GM | K133: G | L133: 7 | M133: M | N133: 13 | O133: FALSE | P133: GM | Q133: 595.8518032
J134: GN | K134: G | L134: 7 | M134: N | N134: 14 | O134: FALSE | P134: GN | Q134: 549.2762568
J135: GO | K135: G | L135: 7 | M135: O | N135: 15 | O135: FALSE | P135: GO | Q135: 243.0937759
J136: GP | K136: G | L136: 7 | M136: P | N136: 16 | O136: FALSE | P136: GP | Q136: 442.6394272
J137: GQ | K137: G | L137: 7 | M137: Q | N137: 17 | O137: FALSE | P137: GQ | Q137: 578.7452548
J138: GR | K138: G | L138: 7 | M138: R | N138: 18 | O138: FALSE | P138: GR | Q138: 628.0999838
J139: GS | K139: G | L139: 7 | M139: S | N139: 19 | O139: FALSE | P139: GS | Q139: 462.1881269
J140: GT | K140: G | L140: 7 | M140: T | N140: 20 | O140: FALSE | P140: GT | Q140: 126.159146
J141: HA | K141: H | L141: 8 | M141: A | N141: 1 | O141: FALSE | P141: HA | Q141: 630.3284654
J142: HB | K142: H | L142: 8 | M142: B | N142: 2 | O142: FALSE | P142: HB | Q142: 479.7267609
J143: HC | K143: H | L143: 8 | M143: C | N143: 3 | O143: FALSE | P143: HC | Q143: 645.1844768
J144: HD | K144: H | L144: 8 | M144: D | N144: 4 | O144: FALSE | P144: HD | Q144: 429.0080994
J145: HE | K145: H | L145: 8 | M145: E | N145: 5 | O145: FALSE | P145: HE | Q145: 285.9541879
J146: HF | K146: H | L146: 8 | M146: F | N146: 6 | O146: FALSE | P146: HF | Q146: 215.9131054
J147: HG | K147: H | L147: 8 | M147: G | N147: 7 | O147: FALSE | P147: HG | Q147: 116.1725856
J148: HH | K148: H | L148: 8 | M148: H | N148: 8 | O148: TRUE | Q148: 0
J149: HI | K149: H | L149: 8 | M149: I | N149: 9 | O149: FALSE | P149: HI | Q149: 169.4783608
J150: HJ | K150: H | L150: 8 | M150: J | N150: 10 | O150: FALSE | P150: HJ | Q150: 127.5849652
J151: HK | K151: H | L151: 8 | M151: K | N151: 11 | O151: FALSE | P151: HK | Q151: 122.8707356
J152: HL | K152: H | L152: 8 | M152: L | N152: 12 | O152: FALSE | P152: HL | Q152: 272.349568
J153: HM | K153: H | L153: 8 | M153: M | N153: 13 | O153: FALSE | P153: HM | Q153: 479.9052258
J154: HN | K154: H | L154: 8 | M154: N | N154: 14 | O154: FALSE | P154: HN | Q154: 435.6407082
J155: HO | K155: H | L155: 8 | M155: O | N155: 15 | O155: FALSE | P155: HO | Q155: 275.0723869
J156: HP | K156: H | L156: 8 | M156: P | N156: 16 | O156: FALSE | P156: HP | Q156: 345.7721352
J157: HQ | K157: H | L157: 8 | M157: Q | N157: 17 | O157: FALSE | P157: HQ | Q157: 485.7728268
J158: HR | K158: H | L158: 8 | M158: R | N158: 18 | O158: FALSE | P158: HR | Q158: 522.8718076
J159: HS | K159: H | L159: 8 | M159: S | N159: 19 | O159: FALSE | P159: HS | Q159: 437.2817063
J160: HT | K160: H | L160: 8 | M160: T | N160: 20 | O160: FALSE | P160: HT | Q160: 224.4082054
J161: IA | K161: I | L161: 9 | M161: A | N161: 1 | O161: FALSE | P161: IA | Q161: 768.6413977
J162: IB | K162: I | L162: 9 | M162: B | N162: 2 | O162: FALSE | P162: IB | Q162: 643.4176768
J163: IC | K163: I | L163: 9 | M163: C | N163: 3 | O163: FALSE | P163: IC | Q163: 814.5958443
J164: ID | K164: I | L164: 9 | M164: D | N164: 4 | O164: FALSE | P164: ID | Q164: 596.5102812
J165: IE | K165: I | L165: 9 | M165: E | N165: 5 | O165: FALSE | P165: IE | Q165: 455.1311301
J166: IF | K166: I | L166: 9 | M166: F | N166: 6 | O166: FALSE | P166: IF | Q166: 366.7042549
J167: IG | K167: I | L167: 9 | M167: G | N167: 7 | O167: FALSE | P167: IG | Q167: 258.0278699
J168: IH | K168: I | L168: 9 | M168: H | N168: 8 | O168: FALSE | P168: IH | Q168: 169.4783608
J169: II | K169: I | L169: 9 | M169: I | N169: 9 | O169: TRUE | Q169: 0
J170: IJ | K170: I | L170: 9 | M170: J | N170: 10 | O170: FALSE | P170: IJ | Q170: 265.1410388
J171: IK | K171: I | L171: 9 | M171: K | N171: 11 | O171: FALSE | P171: IK | Q171: 128.953086
J172: IL | K172: I | L172: 9 | M172: L | N172: 12 | O172: FALSE | P172: IL | Q172: 119.8456717
J173: IM | K173: I | L173: 9 | M173: M | N173: 13 | O173: FALSE | P173: IM | Q173: 386.9733278
J174: IN | K174: I | L174: 9 | M174: N | N174: 14 | O174: FALSE | P174: IN | Q174: 395.878522
J175: IO | K175: I | L175: 9 | M175: O | N175: 15 | O175: FALSE | P175: IO | Q175: 442.9035117
J176: IP | K176: I | L176: 9 | M176: P | N176: 16 | O176: FALSE | P176: IP | Q176: 385.7896452
J177: IQ | K177: I | L177: 9 | M177: Q | N177: 17 | O177: FALSE | P177: IQ | Q177: 521.5315931
J178: IR | K178: I | L178: 9 | M178: R | N178: 18 | O178: FALSE | P178: IR | Q178: 519.1840287
J179: IS | K179: I | L179: 9 | M179: S | N179: 19 | O179: FALSE | P179: IS | Q179: 572.6081643
J180: IT | K180: I | L180: 9 | M180: T | N180: 20 | O180: FALSE | P180: IT | Q180: 381.9014327
J181: JA | K181: J | L181: 10 | M181: A | N181: 1 | O181: FALSE | P181: JA | Q181: 507.9270279
J182: JB | K182: J | L182: 10 | M182: B | N182: 2 | O182: FALSE | P182: JB | Q182: 385.132498
J183: JC | K183: J | L183: 10 | M183: C | N183: 3 | O183: FALSE | P183: JC | Q183: 576.2264098
J184: JD | K184: J | L184: 10 | M184: D | N184: 4 | O184: FALSE | P184: JD | Q184: 391.4624097
J185: JE | K185: J | L185: 10 | M185: E | N185: 5 | O185: FALSE | P185: JE | Q185: 225.8915025
J186: JF | K186: J | L186: 10 | M186: F | N186: 6 | O186: FALSE | P186: JF | Q186: 251.3486327
J187: JG | K187: J | L187: 10 | M187: G | N187: 7 | O187: FALSE | P187: JG | Q187: 194.7634047
J188: JH | K188: J | L188: 10 | M188: H | N188: 8 | O188: FALSE | P188: JH | Q188: 127.5849652
J189: JI | K189: J | L189: 10 | M189: I | N189: 9 | O189: FALSE | P189: JI | Q189: 265.1410388
J190: JJ | K190: J | L190: 10 | M190: J | N190: 10 | O190: TRUE | Q190: 0
J191: JK | K191: J | L191: 10 | M191: K | N191: 11 | O191: FALSE | P191: JK | Q191: 155.2041734
J192: JL | K192: J | L192: 10 | M192: L | N192: 12 | O192: FALSE | P192: JL | Q192: 336.8583509
J193: =IF(ROW()-ROW($J$1)+1>COUNTA(B:B)*COUNTA(C:C),"",INDEX(B:B,INT((ROW()-ROW($J$1))/COUNTA(C:C)+1))&INDEX(C:C,MOD(ROW()-ROW($J$1),COUNTA(C:C))+1)) -> JM | K193: J | L193: 10 | M193: M | N193: 13 | O193: FALSE | P193: JM | Q193: 470.2355788
J194: JN | K194: =LEFT(J194,1) -> J | L194: =VLOOKUP(K194,$A$24:$B$37,2,FALSE) -> 10 | M194: =RIGHT(J194,1) -> N | N194: =VLOOKUP(M194,$A$24:$B$51,2,FALSE) -> 14 | O194: =K194=M194 -> FALSE | P194: =IF(O194=TRUE,"",J194) -> JN | Q194: =INDEX($T$3:$AM$22,L194,N194) -> 389.0560227
J195: JO | K195: J | L195: 10 | M195: O | N195: 15 | O195: FALSE | P195: JO | Q195: 203.6670001
J196: JP | K196: J | L196: 10 | M196: P | N196: 16 | O196: FALSE | P196: JP | Q196: 253.0377707
J197: JQ | K197: J | L197: 10 | M197: Q | N197: 17 | O197: FALSE | P197: JQ | Q197: 385.4760044
J198: JR | K198: J | L198: 10 | M198: R | N198: 18 | O198: FALSE | P198: JR | Q198: 444.5469837
J199: JS | K199: J | L199: 10 | M199: S | N199: 19 | O199: FALSE | P199: JS | Q199: 312.9536397
J200: JT | K200: J | L200: 10 | M200: T | N200: 20 | O200: FALSE | P200: JT | Q200: 243.8740262
... 2162 more rows

Sheet ZADANI
K1: =SUM(K3:K22) -> 252450.7224 | L1: =SUM(L3:L22) -> 265730.9178 | M1: =SUM(M3:M22) -> 13280.1954
B2: # | C2: Czech Republic | D2: Česká republika | E2: Czech Republic | F2: Germany | G2: Německo | H2: Germany | I2: UKG | J2: Distance | K2: Cost | L2: Income | M2: Profit | O2: CZ | P2: DE
A3: 1 | B3: =MISTA!J27 -> A | C3: =MISTA!K27 -> Sadová 2122, 288 02 Nymburk | D3: =TRIM(RIGHT(SUBSTITUTE(C3,",",REPT(" ",LEN(C3))),LEN(C3))) -> 288 02 Nymburk | E3: =RIGHT(TRIM(RIGHT(SUBSTITUTE(C3,",",REPT(" ",LEN(C3))),LEN(C3))),LEN(D3)-7) -> Nymburk | F3: =MISTA!L27 -> Industriestrasse 25, 83607 Holzkirchen | G3: =TRIM(RIGHT(SUBSTITUTE(F3,",",REPT(" ",LEN(F3))),LEN(F3))) -> 83607 Holzkirchen | H3: =RIGHT(TRIM(RIGHT(SUBSTITUTE(F3,",",REPT(" ",LEN(F3))),LEN(F3))),LEN(G3)-6) -> Holzkirchen | I3: =C_UKG!D2 -> 8265 | J3: =VLOOKUP(B3,'CZ-DE'!$K$3:$AE$22,VLOOKUP($B3,CR!$M$1:$N$20,2,FALSE)+1,FALSE) -> 442.6683614 | K3: =IF(I3<CENY!$D$2,CENY!$E$2*J3,IF(I3<CENY!$D$3,CENY!$E$3*J3,IF(I3<CENY!$D$4,CENY!$E$4*J3,IF(I3<CENY!$D$5,CENY!$E$5*J3,IF(I3<CENY!$D$6,CENY!$E$6*J3,FALSE))))) -> 9738.703951 | L3: =I3*CENY!$G$3+(J3*10) -> 11451.93361 | M3: =L3-K3 -> 1713.229663 | O3: =LEFT(TRIM(RIGHT(C3,LEN(C3)-FIND(",",C3))),6) -> 288 02 | P3: =LEFT(TRIM(RIGHT(F3,LEN(F3)-FIND(",",F3))),6) -> 83607
A4: 2 | B4: =MISTA!J28 -> B | C4: =MISTA!K28 -> Komenského 16, 500 03 Hradec Králové | D4: =TRIM(RIGHT(SUBSTITUTE(C4,",",REPT(" ",LEN(C4))),LEN(C4))) -> 500 03 Hradec Králové | E4: =RIGHT(TRIM(RIGHT(SUBSTITUTE(C4,",",REPT(" ",LEN(C4))),LEN(C4))),LEN(D4)-7) -> Hradec Králové | F4: =MISTA!L28 -> Messepiazza, 70629 Stuttgart | G4: =TRIM(RIGHT(SUBSTITUTE(F4,",",REPT(" ",LEN(F4))),LEN(F4))) -> 70629 Stuttgart | H4: =RIGHT(TRIM(RIGHT(SUBSTITUTE(F4,",",REPT(" ",LEN(F4))),LEN(F4))),LEN(G4)-6) -> Stuttgart | I4: =C_UKG!D3 -> 14593 | J4: =VLOOKUP(B4,'CZ-DE'!$K$3:$AE$22,VLOOKUP($B4,CR!$M$1:$N$20,2,FALSE)+1,FALSE) -> 676.566476 | K4: =IF(I4<CENY!$D$2,CENY!$E$2*J4,IF(I4<CENY!$D$3,CENY!$E$3*J4,IF(I4<CENY!$D$4,CENY!$E$4*J4,IF(I4<CENY!$D$5,CENY!$E$5*J4,IF(I4<CENY!$D$6,CENY!$E$6*J4,FALSE))))) -> 17590.72838 | L4: =I4*CENY!$G$3+(J4*10) -> 19169.71476 | M4: =L4-K4 -> 1578.986384 | O4: =LEFT(TRIM(RIGHT(C4,LEN(C4)-FIND(",",C4))),6) -> 500 03 | P4: =LEFT(TRIM(RIGHT(F4,LEN(F4)-FIND(",",F4))),6) -> 70629
A5: 3 | B5: =MISTA!J29 -> C | C5: =MISTA!K29 -> Janderova 160, 377 01 Jindřichův Hradec | D5: 377 01 Jindřichův Hradec | E5: Jindřichův Hradec | F5: =MISTA!L29 -> Charles-Eames-Strasse 2, 79576 Weil am Rhein | G5: 79576 Weil am Rhein | H5: Weil am Rhein | I5: =C_UKG!D4 -> 3388 | J5: =VLOOKUP(B5,'CZ-DE'!$K$3:$AE$22,VLOOKUP($B5,CR!$M$1:$N$20,2,FALSE)+1,FALSE) -> 759.9742401 | K5: =IF(I5<CENY!$D$2,CENY!$E$2*J5,IF(I5<CENY!$D$3,CENY!$E$3*J5,IF(I5<CENY!$D$4,CENY!$E$4*J5,IF(I5<CENY!$D$5,CENY!$E$5*J5,IF(I5<CENY!$D$6,CENY!$E$6*J5,FALSE))))) -> 11399.6136 | L5: =I5*CENY!$G$3+(J5*10) -> 10479.5424 | M5: -920.0712003 | O5: 377 01 | P5: 79576
A6: 4 | B6: =MISTA!J30 -> D | C6: =MISTA!K30 -> Průmyslová 499, 463 12 Liberec | D6: 463 12 Liberec | E6: Liberec | F6: =MISTA!L30 -> Am Felsbrunnen, 66119 Saarbrucken | G6: 66119 Saarbrucken | H6: Saarbrucken | I6: =C_UKG!D5 -> 10862 | J6: =VLOOKUP(B6,'CZ-DE'!$K$3:$AE$22,VLOOKUP($B6,CR!$M$1:$N$20,2,FALSE)+1,FALSE) -> 795.2706424 | K6: =IF(I6<CENY!$D$2,CENY!$E$2*J6,IF(I6<CENY!$D$3,CENY!$E$3*J6,IF(I6<CENY!$D$4,CENY!$E$4*J6,IF(I6<CENY!$D$5,CENY!$E$5*J6,IF(I6<CENY!$D$6,CENY!$E$6*J6,FALSE))))) -> 17495.95413 | L6: =I6*CENY!$G$3+(J6*10) -> 17185.40642 | M6: -310.5477089 | O6: 463 12 | P6: 66119
A7: 5 | B7: =MISTA!J31 -> E | C7: =MISTA!K31 -> Karlovarská 485/22, 301 00 Plzeň 1-Sever | D7: 301 00 Plzeň 1-Sever | E7: Plzeň 1-Sever | F7: =MISTA!L31 -> Rheinstrasse 2, 55116 Mainz | G7: 55116 Mainz | H7: Mainz | I7: =C_UKG!D6 -> 6824 | J7: =VLOOKUP(B7,'CZ-DE'!$K$3:$AE$22,VLOOKUP($B7,CR!$M$1:$N$20,2,FALSE)+1,FALSE) -> 486.4423515 | K7: =IF(I7<CENY!$D$2,CENY!$E$2*J7,IF(I7<CENY!$D$3,CENY!$E$3*J7,IF(I7<CENY!$D$4,CENY!$E$4*J7,IF(I7<CENY!$D$5,CENY!$E$5*J7,IF(I7<CENY!$D$6,CENY!$E$6*J7,FALSE))))) -> 10701.73173 | L7: =I7*CENY!$G$3+(J7*10) -> 10664.82352 | M7: -36.90821849 | O7: 301 00 | P7: 55116
A8: 6 | B8: =MISTA!J32 -> F | C8: =MISTA!K32 -> Pražská 44, 642 00 Brno-Bosonohy | D8: 642 00 Brno-Bosonohy | E8: Brno-Bosonohy | F8: =MISTA!L32 -> Neuer Weyerstrasserweg 120, 50969 Koln | G8: 50969 Koln | H8: Koln | I8: =C_UKG!D7 -> 2874 | J8: =VLOOKUP(B8,'CZ-DE'!$K$3:$AE$22,VLOOKUP($B8,CR!$M$1:$N$20,2,FALSE)+1,FALSE) -> 946.7260906 | K8: =IF(I8<CENY!$D$2,CENY!$E$2*J8,IF(I8<CENY!$D$3,CENY!$E$3*J8,IF(I8<CENY!$D$4,CENY!$E$4*J8,IF(I8<CENY!$D$5,CENY!$E$5*J8,IF(I8<CENY!$D$6,CENY!$E$6*J8,FALSE))))) -> 14200.89136 | L8: =I8*CENY!$G$3+(J8*10) -> 11910.16091 | M8: -2290.730453 | O8: 642 00 | P8: 50969
A9: 7 | B9: =MISTA!J33 -> G | C9: =MISTA!K33 -> Americká 42, 350 02 Cheb | D9: 350 02 Cheb | E9: Cheb | F9: =MISTA!L33 -> Feineisenstrasse 4, 44339 Dortmund | G9: 44339 Dortmund | H9: Dortmund | I9: =C_UKG!D8 -> 9266 | J9: =VLOOKUP(B9,'CZ-DE'!$K$3:$AE$22,VLOOKUP($B9,CR!$M$1:$N$20,2,FALSE)+1,FALSE) -> 503.327972 | K9: =IF(I9<CENY!$D$2,CENY!$E$2*J9,IF(I9<CENY!$D$3,CENY!$E$3*J9,IF(I9<CENY!$D$4,CENY!$E$4*J9,IF(I9<CENY!$D$5,CENY!$E$5*J9,IF(I9<CENY!$D$6,CENY!$E$6*J9,FALSE))))) -> 11073.21538 | L9: =I9*CENY!$G$3+(J9*10) -> 12909.37972 | M9: 1836.164336 | O9: 350 02 | P9: 44339
A10: 8 | B10: =MISTA!J34 -> H | C10: =MISTA!K34 -> Jihlavská 375, 396 01 Humpolec | D10: 396 01 Humpolec | E10: Humpolec | F10: =MISTA!L34 -> Gottfried Schenker Strasse 1, 33758 Schloss Holte-Stukenbrock | G10: 33758 Schloss Holte-Stukenbrock | H10: Schloss Holte-Stukenbrock | I10: =C_UKG!D9 -> 3614 | J10: =VLOOKUP(B10,'CZ-DE'!$K$3:$AE$22,VLOOKUP($B10,CR!$M$1:$N$20,2,FALSE)+1,FALSE) -> 723.0499856 | K10: =IF(I10<CENY!$D$2,CENY!$E$2*J10,IF(I10<CENY!$D$3,CENY!$E$3*J10,IF(I10<CENY!$D$4,CENY!$E$4*J10,IF(I10<CENY!$D$5,CENY!$E$5*J10,IF(I10<CENY!$D$6,CENY!$E$6*J10,FALSE))))) -> 13014.89974 | L10: =I10*CENY!$G$3+(J10*10) -> 10302.39986 | M10: -2712.499885 | O10: 396 01 | P10: 33758
A11: 9 | B11: =MISTA!J35 -> I | C11: =MISTA!K35 -> Komenského 31, 544 01 Dvůr Králové nad Labem | D11: 544 01 Dvůr Králové nad Labem | E11: Dvůr Králové nad Labem | F11: =MISTA!L35 -> Von-Thunen-Strasse 14, 28307 Bremen | G11: 28307 Bremen | H11: Bremen | I11: =C_UKG!D10 -> 15135 | J11: =VLOOKUP(B11,'CZ-DE'!$K$3:$AE$22,VLOOKUP($B11,CR!$M$1:$N$20,2,FALSE)+1,FALSE) -> 735.8550716 | K11: =IF(I11<CENY!$D$2,CENY!$E$2*J11,IF(I11<CENY!$D$3,CENY!$E$3*J11,IF(I11<CENY!$D$4,CENY!$E$4*J11,IF(I11<CENY!$D$5,CENY!$E$5*J11,IF(I11<CENY!$D$6,CENY!$E$6*J11,FALSE))))) -> 19132.23186 | L11: =I11*CENY!$G$3+(J11*10) -> 20223.30072 | M11: 1091.068854 | O11: 544 01 | P11: 28307
A12: 10 | B12: =MISTA!J36 -> J | C12: =MISTA!K36 -> Pražská 156/14, 390 01 Tábor | D12: 390 01 Tábor | E12: Tábor | F12: =MISTA!L36 -> Schwarze Breite 2, 34260 Kaufungen | G12: 34260 Kaufungen | H12: Kaufungen | I12: =C_UKG!D11 -> 10908 | J12: =VLOOKUP(B12,'CZ-DE'!$K$3:$AE$22,VLOOKUP($B12,CR!$M$1:$N$20,2,FALSE)+1,FALSE) -> 554.6486338 | K12: =IF(I12<CENY!$D$2,CENY!$E$2*J12,IF(I12<CENY!$D$3,CENY!$E$3*J12,IF(I12<CENY!$D$4,CENY!$E$4*J12,IF(I12<CENY!$D$5,CENY!$E$5*J12,IF(I12<CENY!$D$6,CENY!$E$6*J12,FALSE))))) -> 12202.26994 | L12: =I12*CENY!$G$3+(J12*10) -> 14818.28634 | M12: 2616.016395 | O12: 390 01 | P12: 34260
A13: 11 | B13: =MISTA!J37 -> K | C13: =MISTA!K37 -> Kutnohorská 14/65, 109 00 Praha-Dolní Měcholupy | D13: 109 00 Praha-Dolní Měcholupy | E13: Praha-Dolní Měcholupy | F13: =MISTA!L37 -> Karlsruher Strasse 10, 30519 Hannover | G13: 30519 Hannover | H13: Hannover | I13: =C_UKG!D12 -> 6306 | J13: =VLOOKUP(B13,'CZ-DE'!$K$3:$AE$22,VLOOKUP($B13,CR!$M$1:$N$20,2,FALSE)+1,FALSE) -> 555.1290437 | K13: =IF(I13<CENY!$D$2,CENY!$E$2*J13,IF(I13<CENY!$D$3,CENY!$E$3*J13,IF(I13<CENY!$D$4,CENY!$E$4*J13,IF(I13<CENY!$D$5,CENY!$E$5*J13,IF(I13<CENY!$D$6,CENY!$E$6*J13,FALSE))))) -> 9992.322786 | L13: =I13*CENY!$G$3+(J13*10) -> 10911.39044 | M13: 919.0676508 | O13: 109 00 | P13: 30519
A14: 12 | B14: =MISTA!J38 -> L | C14: =MISTA!K38 -> Masarykova 197/1, 284 01 Kutná Hora | D14: 284 01 Kutná Hora | E14: Kutná Hora | F14: =MISTA!L38 -> Heidenkampsweg 79, 20097 Hamburg | G14: 20097 Hamburg | H14: Hamburg | I14: =C_UKG!D13 -> 7975 | J14: =VLOOKUP(B14,'CZ-DE'!$K$3:$AE$22,VLOOKUP($B14,CR!$M$1:$N$20,2,FALSE)+1,FALSE) -> 726.6890736 | K14: =IF(I14<CENY!$D$2,CENY!$E$2*J14,IF(I14<CENY!$D$3,CENY!$E$3*J14,IF(I14<CENY!$D$4,CENY!$E$4*J14,IF(I14<CENY!$D$5,CENY!$E$5*J14,IF(I14<CENY!$D$6,CENY!$E$6*J14,FALSE))))) -> 15987.15962 | L14: =I14*CENY!$G$3+(J14*10) -> 14045.64074 | M14: -1941.518883 | O14: 284 01 | P14: 20097
A15: 13 | B15: =MISTA!J39 -> M | C15: =MISTA!K39 -> Brněnská 257, 592 31 Nové Město na Moravě | D15: 592 31 Nové Město na Moravě | E15: Nové Město na Moravě | F15: =MISTA!L39 -> Margeritenstrasse 40, 17033 Neubrandenburg | G15: 17033 Neubrandenburg | H15: Neubrandenburg | I15: =C_UKG!D14 -> 6485 | J15: =VLOOKUP(B15,'CZ-DE'!$K$3:$AE$22,VLOOKUP($B15,CR!$M$1:$N$20,2,FALSE)+1,FALSE) -> 635.6748264 | K15: =IF(I15<CENY!$D$2,CENY!$E$2*J15,IF(I15<CENY!$D$3,CENY!$E$3*J15,IF(I15<CENY!$D$4,CENY!$E$4*J15,IF(I15<CENY!$D$5,CENY!$E$5*J15,IF(I15<CENY!$D$6,CENY!$E$6*J15,FALSE))))) -> 11442.14688 | L15: =I15*CENY!$G$3+(J15*10) -> 11868.99826 | M15: 426.8513887 | O15: 592 31 | P15: 17033
A16: 14 | B16: =MISTA!J40 -> N | C16: =MISTA!K40 -> Ostravská 774/11, 733 01 Karviná | D16: 733 01 Karviná | E16: Karviná | F16: =MISTA!L40 -> Schwanenfeldstrasse 11, 13627 Berlin | G16: 13627 Berlin | H16: Berlin | I16: =C_UKG!D15 -> 12433 | J16: =VLOOKUP(B16,'CZ-DE'!$K$3:$AE$22,VLOOKUP($B16,CR!$M$1:$N$20,2,FALSE)+1,FALSE) -> 625.3002585 | K16: =IF(I16<CENY!$D$2,CENY!$E$2*J16,IF(I16<CENY!$D$3,CENY!$E$3*J16,IF(I16<CENY!$D$4,CENY!$E$4*J16,IF(I16<CENY!$D$5,CENY!$E$5*J16,IF(I16<CENY!$D$6,CENY!$E$6*J16,FALSE))))) -> 16257.80672 | L16: =I16*CENY!$G$3+(J16*10) -> 16821.05258 | M16: 563.2458643 | O16: 733 01 | P16: 13627
A17: 15 | B17: =MISTA!J41 -> O | C17: =MISTA!K41 -> Oderská 19, 742 36 Jakubčovice nad Odrou | D17: 742 36 Jakubčovice nad Odrou | E17: Jakubčovice nad Odrou | F17: =MISTA!L41 -> Edmund-Rumpler-Strasse 3, 60549 Frankfurt am Main | G17: 60549 Frankfurt am Main | H17: Frankfurt am Main | I17: =C_UKG!D16 -> 3925 | J17: =VLOOKUP(B17,'CZ-DE'!$K$3:$AE$22,VLOOKUP($B17,CR!$M$1:$N$20,2,FALSE)+1,FALSE) -> 878.3581604 | K17: =IF(I17<CENY!$D$2,CENY!$E$2*J17,IF(I17<CENY!$D$3,CENY!$E$3*J17,IF(I17<CENY!$D$4,CENY!$E$4*J17,IF(I17<CENY!$D$5,CENY!$E$5*J17,IF(I17<CENY!$D$6,CENY!$E$6*J17,FALSE))))) -> 15810.44689 | L17: =I17*CENY!$G$3+(J17*10) -> 12119.8316 | M17: -3690.615283 | O17: 742 36 | P17: 60549
A18: 16 | B18: =MISTA!J42 -> P | C18: =MISTA!K42 -> Cukrovarská 492/4, 682 01 Vyškov | D18: 682 01 Vyškov | E18: Vyškov | F18: =MISTA!L42 -> Poststrasse 23, 04158 Leipzig | G18: 04158 Leipzig | H18: Leipzig | I18: =C_UKG!D17 -> 8733 | J18: =VLOOKUP(B18,'CZ-DE'!$K$3:$AE$22,VLOOKUP($B18,CR!$M$1:$N$20,2,FALSE)+1,FALSE) -> 544.3519483 | K18: =IF(I18<CENY!$D$2,CENY!$E$2*J18,IF(I18<CENY!$D$3,CENY!$E$3*J18,IF(I18<CENY!$D$4,CENY!$E$4*J18,IF(I18<CENY!$D$5,CENY!$E$5*J18,IF(I18<CENY!$D$6,CENY!$E$6*J18,FALSE))))) -> 11975.74286 | L18: =I18*CENY!$G$3+(J18*10) -> 12866.56948 | M18: 890.8266203 | O18: 682 01 | P18: 04158
A19: 17 | B19: =MISTA!J43 -> Q | C19: =MISTA!K43 -> Domažlická 909, 339 01 Klatovy | D19: 339 01 Klatovy | E19: Klatovy | F19: =MISTA!L43 -> Potthoffstrasse 5, 01159 Dresden | G19: 01159 Dresden | H19: Dresden | I19: =C_UKG!D18 -> 12466 | J19: =VLOOKUP(B19,'CZ-DE'!$K$3:$AE$22,VLOOKUP($B19,CR!$M$1:$N$20,2,FALSE)+1,FALSE) -> 248.6275911 | K19: =IF(I19<CENY!$D$2,CENY!$E$2*J19,IF(I19<CENY!$D$3,CENY!$E$3*J19,IF(I19<CENY!$D$4,CENY!$E$4*J19,IF(I19<CENY!$D$5,CENY!$E$5*J19,IF(I19<CENY!$D$6,CENY!$E$6*J19,FALSE))))) -> 6464.317369 | L19: =I19*CENY!$G$3+(J19*10) -> 13082.37591 | M19: 6618.058542 | O19: 339 01 | P19: 01159
A20: 18 | B20: =MISTA!J44 -> R | C20: =MISTA!K44 -> Podhoří 380/80, 400 10 Ústí nad Labem | D20: 400 10 Ústí nad Labem | E20: Ústí nad Labem | F20: =MISTA!L44 -> Beuchstrasse 25, 03044 Cottbus | G20: 03044 Cottbus | H20: Cottbus | I20: =C_UKG!D19 -> 3223 | J20: =VLOOKUP(B20,'CZ-DE'!$K$3:$AE$22,VLOOKUP($B20,CR!$M$1:$N$20,2,FALSE)+1,FALSE) -> 161.5016474 | K20: =IF(I20<CENY!$D$2,CENY!$E$2*J20,IF(I20<CENY!$D$3,CENY!$E$3*J20,IF(I20<CENY!$D$4,CENY!$E$4*J20,IF(I20<CENY!$D$5,CENY!$E$5*J20,IF(I20<CENY!$D$6,CENY!$E$6*J20,FALSE))))) -> 2422.52471 | L20: =I20*CENY!$G$3+(J20*10) -> 4354.566474 | M20: 1932.041763 | O20: 400 10 | P20: 03044
A21: 19 | B21: =MISTA!J45 -> S | C21: =MISTA!K45 -> Chebská 713/16A, 353 01 Mariánské Lázně | D21: 353 01 Mariánské Lázně | E21: Mariánské Lázně | F21: =MISTA!L45 -> Bremer Strasse 90, 90451 Nurnberg | G21: 90451 Nurnberg | H21: Nurnberg | I21: =C_UKG!D20 -> 12440 | J21: =VLOOKUP(B21,'CZ-DE'!$K$3:$AE$22,VLOOKUP($B21,CR!$M$1:$N$20,2,FALSE)+1,FALSE) -> 177.6993799 | K21: =IF(I21<CENY!$D$2,CENY!$E$2*J21,IF(I21<CENY!$D$3,CENY!$E$3*J21,IF(I21<CENY!$D$4,CENY!$E$4*J21,IF(I21<CENY!$D$5,CENY!$E$5*J21,IF(I21<CENY!$D$6,CENY!$E$6*J21,FALSE))))) -> 4620.183877 | L21: =I21*CENY!$G$3+(J21*10) -> 12350.9938 | M21: 7730.809922 | O21: 353 01 | P21: 90451
A22: 20 | B22: =MISTA!J46 -> T | C22: =MISTA!K46 -> Priessnitzova 299/12, 790 01 Jeseník | D22: 790 01 Jeseník | E22: Jeseník | F22: =MISTA!L46 -> Am Hauptbahnhof 1, 53111 Bonn | G22: 53111 Bonn | H22: Bonn | I22: =C_UKG!D21 -> 10214 | J22: =VLOOKUP(B22,'CZ-DE'!$K$3:$AE$22,VLOOKUP($B22,CR!$M$1:$N$20,2,FALSE)+1,FALSE) -> 951.2650292 | K22: =IF(I22<CENY!$D$2,CENY!$E$2*J22,IF(I22<CENY!$D$3,CENY!$E$3*J22,IF(I22<CENY!$D$4,CENY!$E$4*J22,IF(I22<CENY!$D$5,CENY!$E$5*J22,IF(I22<CENY!$D$6,CENY!$E$6*J22,FALSE))))) -> 20927.83064 | L22: =I22*CENY!$G$3+(J22*10) -> 18194.55029 | M22: -2733.280351 | O22: 790 01 | P22: 53111
I23: =SUM(I3:I22) -> 169929 | J23: =SUM(J3:J22) -> 12129.12678 | K23: 252450.7224 | L23: 265730.9178 | M23: 13280.1954

Sheet GENEROVANI_KOMBINACE_3_ZASILEK
C3: POSSIBLE WAYS FROM ALL DESTINATIONS
C4: 1 | D4: 2 | E4: 3 | F4: 4 | G4: 5 | H4: 6 | I4: 7 | J4: 8 | K4: 9 | L4: 10 | M4: 11 | N4: 12 | O4: 13 | P4: 14 | Q4: 15 | R4: 16 | S4: 17 | T4: 18 | U4: 19 | V4: 20
A5: 1 | B5: =TRANSPOSE(#REF!) -> 
A8: 2
A11: 3
A14: 4
A17: 5
A20: 6
A23: 7
A26: 8
A29: 9
A32: 10
A35: 11
A38: 12
A41: 13
A44: 14
A47: 15
A50: 16
A53: 17
A56: 18
A59: 19
A62: 20
C66: DISTANCES
C67: 1 | D67: 2 | E67: 3 | F67: 4 | G67: 5 | H67: 6 | I67: 7 | J67: 8 | K67: 9 | L67: 10 | M67: 11 | N67: 12 | O67: 13 | P67: 14 | Q67: 15 | R67: 16 | S67: 17 | T67: 18 | U67: 19 | V67: 20
A68: 1 | B68: =TRANSPOSE(#REF!) -> 
A71: 2
A74: 3
A77: 4
A80: 5
A83: 6
A86: 7
A89: 8
A92: 9
A95: 10
A98: 11
A101: 12
A104: 13
A107: 14
A110: 15
A113: 16
A116: 17
A119: 18
A122: 19
A125: 20
C129: 2 SHIPMENTS WEIGHT COMBINATIONS
B130: UKG | C130: 1 | D130: 2 | E130: 3 | F130: 4 | G130: 5 | H130: 6 | I130: 7 | J130: 8 | K130: 9 | L130: 10 | M130: 11 | N130: 12 | O130: 13 | P130: 14 | Q130: 15 | R130: 16 | S130: 17 | T130: 18 | U130: 19 | V130: 20
A131: 1 | B131: A | C131: =IFERROR(IF((VLOOKUP(C5,C_UKG!$B$2:$D$21,3,FALSE)+VLOOKUP($B131,C_UKG!$B$2:$D$21,3,FALSE))<24000,VLOOKUP(C5,C_UKG!$B$2:$D$21,3,FALSE)+VLOOKUP($B131,C_UKG!$B$2:$D$21,3,FALSE),"--"),"--") -> -- | D131: =IFERROR(IF((VLOOKUP(D5,C_UKG!$B$2:$D$21,3,FALSE)+VLOOKUP($B131,C_UKG!$B$2:$D$21,3,FALSE))<24000,VLOOKUP(D5,C_UKG!$B$2:$D$21,3,FALSE)+VLOOKUP($B131,C_UKG!$B$2:$D$21,3,FALSE),"--"),"--") -> -- | E131: =IFERROR(IF((VLOOKUP(E5,C_UKG!$B$2:$D$21,3,FALSE)+VLOOKUP($B131,C_UKG!$B$2:$D$21,3,FALSE))<24000,VLOOKUP(E5,C_UKG!$B$2:$D$21,3,FALSE)+VLOOKUP($B131,C_UKG!$B$2:$D$21,3,FALSE),"--"),"--") -> -- | F131: =IFERROR(IF((VLOOKUP(F5,C_UKG!$B$2:$D$21,3,FALSE)+VLOOKUP($B131,C_UKG!$B$2:$D$21,3,FALSE))<24000,VLOOKUP(F5,C_UKG!$B$2:$D$21,3,FALSE)+VLOOKUP($B131,C_UKG!$B$2:$D$21,3,FALSE),"--"),"--") -> -- | G131: =IFERROR(IF((VLOOKUP(G5,C_UKG!$B$2:$D$21,3,FALSE)+VLOOKUP($B131,C_UKG!$B$2:$D$21,3,FALSE))<24000,VLOOKUP(G5,C_UKG!$B$2:$D$21,3,FALSE)+VLOOKUP($B131,C_UKG!$B$2:$D$21,3,FALSE),"--"),"--") -> -- | H131: =IFERROR(IF((VLOOKUP(H5,C_UKG!$B$2:$D$21,3,FALSE)+VLOOKUP($B131,C_UKG!$B$2:$D$21,3,FALSE))<24000,VLOOKUP(H5,C_UKG!$B$2:$D$21,3,FALSE)+VLOOKUP($B131,C_UKG!$B$2:$D$21,3,FALSE),"--"),"--") -> -- | I131: =IFERROR(IF((VLOOKUP(I5,C_UKG!$B$2:$D$21,3,FALSE)+VLOOKUP($B131,C_UKG!$B$2:$D$21,3,FALSE))<24000,VLOOKUP(I5,C_UKG!$B$2:$D$21,3,FALSE)+VLOOKUP($B131,C_UKG!$B$2:$D$21,3,FALSE),"--"),"--") -> -- | J131: =IFERROR(IF((VLOOKUP(J5,C_UKG!$B$2:$D$21,3,FALSE)+VLOOKUP($B131,C_UKG!$B$2:$D$21,3,FALSE))<24000,VLOOKUP(J5,C_UKG!$B$2:$D$21,3,FALSE)+VLOOKUP($B131,C_UKG!$B$2:$D$21,3,FALSE),"--"),"--") -> -- | K131: =IFERROR(IF((VLOOKUP(K5,C_UKG!$B$2:$D$21,3,FALSE)+VLOOKUP($B131,C_UKG!$B$2:$D$21,3,FALSE))<24000,VLOOKUP(K5,C_UKG!$B$2:$D$21,3,FALSE)+VLOOKUP($B131,C_UKG!$B$2:$D$21,3,FALSE),"--"),"--") -> -- | L131: =IFERROR(IF((VLOOKUP(L5,C_UKG!$B$2:$D$21,3,FALSE)+VLOOKUP($B131,C_UKG!$B$2:$D$21,3,FALSE))<24000,VLOOKUP(L5,C_UKG!$B$2:$D$21,3,FALSE)+VLOOKUP($B131,C_UKG!$B$2:$D$21,3,FALSE),"--"),"--") -> -- | M131: =IFERROR(IF((VLOOKUP(M5,C_UKG!$B$2:$D$21,3,FALSE)+VLOOKUP($B131,C_UKG!$B$2:$D$21,3,FALSE))<24000,VLOOKUP(M5,C_UKG!$B$2:$D$21,3,FALSE)+VLOOKUP($B131,C_UKG!$B$2:$D$21,3,FALSE),"--"),"--") -> -- | N131: =IFERROR(IF((VLOOKUP(N5,C_UKG!$B$2:$D$21,3,FALSE)+VLOOKUP($B131,C_UKG!$B$2:$D$21,3,FALSE))<24000,VLOOKUP(N5,C_UKG!$B$2:$D$21,3,FALSE)+VLOOKUP($B131,C_UKG!$B$2:$D$21,3,FALSE),"--"),"--") -> -- | O131: =IFERROR(IF((VLOOKUP(O5,C_UKG!$B$2:$D$21,3,FALSE)+VLOOKUP($B131,C_UKG!$B$2:$D$21,3,FALSE))<24000,VLOOKUP(O5,C_UKG!$B$2:$D$21,3,FALSE)+VLOOKUP($B131,C_UKG!$B$2:$D$21,3,FALSE),"--"),"--") -> -- | P131: =IFERROR(IF((VLOOKUP(P5,C_UKG!$B$2:$D$21,3,FALSE)+VLOOKUP($B131,C_UKG!$B$2:$D$21,3,FALSE))<24000,VLOOKUP(P5,C_UKG!$B$2:$D$21,3,FALSE)+VLOOKUP($B131,C_UKG!$B$2:$D$21,3,FALSE),"--"),"--") -> -- | Q131: =IFERROR(IF((VLOOKUP(Q5,C_UKG!$B$2:$D$21,3,FALSE)+VLOOKUP($B131,C_UKG!$B$2:$D$21,3,FALSE))<24000,VLOOKUP(Q5,C_UKG!$B$2:$D$21,3,FALSE)+VLOOKUP($B131,C_UKG!$B$2:$D$21,3,FALSE),"--"),"--") -> -- | R131: =IFERROR(IF((VLOOKUP(R5,C_UKG!$B$2:$D$21,3,FALSE)+VLOOKUP($B131,C_UKG!$B$2:$D$21,3,FALSE))<24000,VLOOKUP(R5,C_UKG!$B$2:$D$21,3,FALSE)+VLOOKUP($B131,C_UKG!$B$2:$D$21,3,FALSE),"--"),"--") -> -- | S131: =IFERROR(IF((VLOOKUP(S5,C_UKG!$B$2:$D$21,3,FALSE)+VLOOKUP($B131,C_UKG!$B$2:$D$21,3,FALSE))<24000,VLOOKUP(S5,C_UKG!$B$2:$D$21,3,FALSE)+VLOOKUP($B131,C_UKG!$B$2:$D$21,3,FALSE),"--"),"--") -> -- | T131: =IFERROR(IF((VLOOKUP(T5,C_UKG!$B$2:$D$21,3,FALSE)+VLOOKUP($B131,C_UKG!$B$2:$D$21,3,FALSE))<24000,VLOOKUP(T5,C_UKG!$B$2:$D$21,3,FALSE)+VLOOKUP($B131,C_UKG!$B$2:$D$21,3,FALSE),"--"),"--") -> -- | U131: =IFERROR(IF((VLOOKUP(U5,C_UKG!$B$2:$D$21,3,FALSE)+VLOOKUP($B131,C_UKG!$B$2:$D$21,3,FALSE))<24000,VLOOKUP(U5,C_UKG!$B$2:$D$21,3,FALSE)+VLOOKUP($B131,C_UKG!$B$2:$D$21,3,FALSE),"--"),"--") -> -- | V131: =IFERROR(IF((VLOOKUP(V5,C_UKG!$B$2:$D$21,3,FALSE)+VLOOKUP($B131,C_UKG!$B$2:$D$21,3,FALSE))<24000,VLOOKUP(V5,C_UKG!$B$2:$D$21,3,FALSE)+VLOOKUP($B131,C_UKG!$B$2:$D$21,3,FALSE),"--"),"--") -> -- | W131: =W5 -> 
A132: 2 | C132: =IFERROR(IF((VLOOKUP(C6,C_UKG!$B$2:$D$21,3,FALSE)+VLOOKUP($B132,C_UKG!$B$2:$D$21,3,FALSE))<24000,VLOOKUP(C6,C_UKG!$B$2:$D$21,3,FALSE)+VLOOKUP($B132,C_UKG!$B$2:$D$21,3,FALSE),"--"),"--") -> -- | D132: =IFERROR(IF((VLOOKUP(D6,C_UKG!$B$2:$D$21,3,FALSE)+VLOOKUP($B132,C_UKG!$B$2:$D$21,3,FALSE))<24000,VLOOKUP(D6,C_UKG!$B$2:$D$21,3,FALSE)+VLOOKUP($B132,C_UKG!$B$2:$D$21,3,FALSE),"--"),"--") -> -- | E132: =IFERROR(IF((VLOOKUP(E6,C_UKG!$B$2:$D$21,3,FALSE)+VLOOKUP($B132,C_UKG!$B$2:$D$21,3,FALSE))<24000,VLOOKUP(E6,C_UKG!$B$2:$D$21,3,FALSE)+VLOOKUP($B132,C_UKG!$B$2:$D$21,3,FALSE),"--"),"--") -> -- | F132: =IFERROR(IF((VLOOKUP(F6,C_UKG!$B$2:$D$21,3,FALSE)+VLOOKUP($B132,C_UKG!$B$2:$D$21,3,FALSE))<24000,VLOOKUP(F6,C_UKG!$B$2:$D$21,3,FALSE)+VLOOKUP($B132,C_UKG!$B$2:$D$21,3,FALSE),"--"),"--") -> -- | G132: =IFERROR(IF((VLOOKUP(G6,C_UKG!$B$2:$D$21,3,FALSE)+VLOOKUP($B132,C_UKG!$B$2:$D$21,3,FALSE))<24000,VLOOKUP(G6,C_UKG!$B$2:$D$21,3,FALSE)+VLOOKUP($B132,C_UKG!$B$2:$D$21,3,FALSE),"--"),"--") -> -- | H132: =IFERROR(IF((VLOOKUP(H6,C_UKG!$B$2:$D$21,3,FALSE)+VLOOKUP($B132,C_UKG!$B$2:$D$21,3,FALSE))<24000,VLOOKUP(H6,C_UKG!$B$2:$D$21,3,FALSE)+VLOOKUP($B132,C_UKG!$B$2:$D$21,3,FALSE),"--"),"--") -> -- | I132: =IFERROR(IF((VLOOKUP(I6,C_UKG!$B$2:$D$21,3,FALSE)+VLOOKUP($B132,C_UKG!$B$2:$D$21,3,FALSE))<24000,VLOOKUP(I6,C_UKG!$B$2:$D$21,3,FALSE)+VLOOKUP($B132,C_UKG!$B$2:$D$21,3,FALSE),"--"),"--") -> -- | J132: =IFERROR(IF((VLOOKUP(J6,C_UKG!$B$2:$D$21,3,FALSE)+VLOOKUP($B132,C_UKG!$B$2:$D$21,3,FALSE))<24000,VLOOKUP(J6,C_UKG!$B$2:$D$21,3,FALSE)+VLOOKUP($B132,C_UKG!$B$2:$D$21,3,FALSE),"--"),"--") -> -- | K132: =IFERROR(IF((VLOOKUP(K6,C_UKG!$B$2:$D$21,3,FALSE)+VLOOKUP($B132,C_UKG!$B$2:$D$21,3,FALSE))<24000,VLOOKUP(K6,C_UKG!$B$2:$D$21,3,FALSE)+VLOOKUP($B132,C_UKG!$B$2:$D$21,3,FALSE),"--"),"--") -> -- | L132: =IFERROR(IF((VLOOKUP(L6,C_UKG!$B$2:$D$21,3,FALSE)+VLOOKUP($B132,C_UKG!$B$2:$D$21,3,FALSE))<24000,VLOOKUP(L6,C_UKG!$B$2:$D$21,3,FALSE)+VLOOKUP($B132,C_UKG!$B$2:$D$21,3,FALSE),"--"),"--") -> -- | M132: =IFERROR(IF((VLOOKUP(M6,C_UKG!$B$2:$D$21,3,FALSE)+VLOOKUP($B132,C_UKG!$B$2:$D$21,3,FALSE))<24000,VLOOKUP(M6,C_UKG!$B$2:$D$21,3,FALSE)+VLOOKUP($B132,C_UKG!$B$2:$D$21,3,FALSE),"--"),"--") -> -- | N132: =IFERROR(IF((VLOOKUP(N6,C_UKG!$B$2:$D$21,3,FALSE)+VLOOKUP($B132,C_UKG!$B$2:$D$21,3,FALSE))<24000,VLOOKUP(N6,C_UKG!$B$2:$D$21,3,FALSE)+VLOOKUP($B132,C_UKG!$B$2:$D$21,3,FALSE),"--"),"--") -> -- | O132: =IFERROR(IF((VLOOKUP(O6,C_UKG!$B$2:$D$21,3,FALSE)+VLOOKUP($B132,C_UKG!$B$2:$D$21,3,FALSE))<24000,VLOOKUP(O6,C_UKG!$B$2:$D$21,3,FALSE)+VLOOKUP($B132,C_UKG!$B$2:$D$21,3,FALSE),"--"),"--") -> -- | P132: =IFERROR(IF((VLOOKUP(P6,C_UKG!$B$2:$D$21,3,FALSE)+VLOOKUP($B132,C_UKG!$B$2:$D$21,3,FALSE))<24000,VLOOKUP(P6,C_UKG!$B$2:$D$21,3,FALSE)+VLOOKUP($B132,C_UKG!$B$2:$D$21,3,FALSE),"--"),"--") -> -- | Q132: =IFERROR(IF((VLOOKUP(Q6,C_UKG!$B$2:$D$21,3,FALSE)+VLOOKUP($B132,C_UKG!$B$2:$D$21,3,FALSE))<24000,VLOOKUP(Q6,C_UKG!$B$2:$D$21,3,FALSE)+VLOOKUP($B132,C_UKG!$B$2:$D$21,3,FALSE),"--"),"--") -> -- | R132: =IFERROR(IF((VLOOKUP(R6,C_UKG!$B$2:$D$21,3,FALSE)+VLOOKUP($B132,C_UKG!$B$2:$D$21,3,FALSE))<24000,VLOOKUP(R6,C_UKG!$B$2:$D$21,3,FALSE)+VLOOKUP($B132,C_UKG!$B$2:$D$21,3,FALSE),"--"),"--") -> -- | S132: =IFERROR(IF((VLOOKUP(S6,C_UKG!$B$2:$D$21,3,FALSE)+VLOOKUP($B132,C_UKG!$B$2:$D$21,3,FALSE))<24000,VLOOKUP(S6,C_UKG!$B$2:$D$21,3,FALSE)+VLOOKUP($B132,C_UKG!$B$2:$D$21,3,FALSE),"--"),"--") -> -- | T132: =IFERROR(IF((VLOOKUP(T6,C_UKG!$B$2:$D$21,3,FALSE)+VLOOKUP($B132,C_UKG!$B$2:$D$21,3,FALSE))<24000,VLOOKUP(T6,C_UKG!$B$2:$D$21,3,FALSE)+VLOOKUP($B132,C_UKG!$B$2:$D$21,3,FALSE),"--"),"--") -> -- | U132: =IFERROR(IF((VLOOKUP(U6,C_UKG!$B$2:$D$21,3,FALSE)+VLOOKUP($B132,C_UKG!$B$2:$D$21,3,FALSE))<24000,VLOOKUP(U6,C_UKG!$B$2:$D$21,3,FALSE)+VLOOKUP($B132,C_UKG!$B$2:$D$21,3,FALSE),"--"),"--") -> -- | V132: =IFERROR(IF((VLOOKUP(V6,C_UKG!$B$2:$D$21,3,FALSE)+VLOOKUP($B132,C_UKG!$B$2:$D$21,3,FALSE))<24000,VLOOKUP(V6,C_UKG!$B$2:$D$21,3,FALSE)+VLOOKUP($B132,C_UKG!$B$2:$D$21,3,FALSE),"--"),"--") -> --
A133: 3 | C133: =IFERROR(IF((VLOOKUP(C7,C_UKG!$B$2:$D$21,3,FALSE)+VLOOKUP($B133,C_UKG!$B$2:$D$21,3,FALSE))<24000,VLOOKUP(C7,C_UKG!$B$2:$D$21,3,FALSE)+VLOOKUP($B133,C_UKG!$B$2:$D$21,3,FALSE),"--"),"--") -> -- | D133: =IFERROR(IF((VLOOKUP(D7,C_UKG!$B$2:$D$21,3,FALSE)+VLOOKUP($B133,C_UKG!$B$2:$D$21,3,FALSE))<24000,VLOOKUP(D7,C_UKG!$B$2:$D$21,3,FALSE)+VLOOKUP($B133,C_UKG!$B$2:$D$21,3,FALSE),"--"),"--") -> -- | E133: =IFERROR(IF((VLOOKUP(E7,C_UKG!$B$2:$D$21,3,FALSE)+VLOOKUP($B133,C_UKG!$B$2:$D$21,3,FALSE))<24000,VLOOKUP(E7,C_UKG!$B$2:$D$21,3,FALSE)+VLOOKUP($B133,C_UKG!$B$2:$D$21,3,FALSE),"--"),"--") -> -- | F133: =IFERROR(IF((VLOOKUP(F7,C_UKG!$B$2:$D$21,3,FALSE)+VLOOKUP($B133,C_UKG!$B$2:$D$21,3,FALSE))<24000,VLOOKUP(F7,C_UKG!$B$2:$D$21,3,FALSE)+VLOOKUP($B133,C_UKG!$B$2:$D$21,3,FALSE),"--"),"--") -> -- | G133: =IFERROR(IF((VLOOKUP(G7,C_UKG!$B$2:$D$21,3,FALSE)+VLOOKUP($B133,C_UKG!$B$2:$D$21,3,FALSE))<24000,VLOOKUP(G7,C_UKG!$B$2:$D$21,3,FALSE)+VLOOKUP($B133,C_UKG!$B$2:$D$21,3,FALSE),"--"),"--") -> -- | H133: =IFERROR(IF((VLOOKUP(H7,C_UKG!$B$2:$D$21,3,FALSE)+VLOOKUP($B133,C_UKG!$B$2:$D$21,3,FALSE))<24000,VLOOKUP(H7,C_UKG!$B$2:$D$21,3,FALSE)+VLOOKUP($B133,C_UKG!$B$2:$D$21,3,FALSE),"--"),"--") -> -- | I133: =IFERROR(IF((VLOOKUP(I7,C_UKG!$B$2:$D$21,3,FALSE)+VLOOKUP($B133,C_UKG!$B$2:$D$21,3,FALSE))<24000,VLOOKUP(I7,C_UKG!$B$2:$D$21,3,FALSE)+VLOOKUP($B133,C_UKG!$B$2:$D$21,3,FALSE),"--"),"--") -> -- | J133: =IFERROR(IF((VLOOKUP(J7,C_UKG!$B$2:$D$21,3,FALSE)+VLOOKUP($B133,C_UKG!$B$2:$D$21,3,FALSE))<24000,VLOOKUP(J7,C_UKG!$B$2:$D$21,3,FALSE)+VLOOKUP($B133,C_UKG!$B$2:$D$21,3,FALSE),"--"),"--") -> -- | K133: =IFERROR(IF((VLOOKUP(K7,C_UKG!$B$2:$D$21,3,FALSE)+VLOOKUP($B133,C_UKG!$B$2:$D$21,3,FALSE))<24000,VLOOKUP(K7,C_UKG!$B$2:$D$21,3,FALSE)+VLOOKUP($B133,C_UKG!$B$2:$D$21,3,FALSE),"--"),"--") -> -- | L133: =IFERROR(IF((VLOOKUP(L7,C_UKG!$B$2:$D$21,3,FALSE)+VLOOKUP($B133,C_UKG!$B$2:$D$21,3,FALSE))<24000,VLOOKUP(L7,C_UKG!$B$2:$D$21,3,FALSE)+VLOOKUP($B133,C_UKG!$B$2:$D$21,3,FALSE),"--"),"--") -> -- | M133: =IFERROR(IF((VLOOKUP(M7,C_UKG!$B$2:$D$21,3,FALSE)+VLOOKUP($B133,C_UKG!$B$2:$D$21,3,FALSE))<24000,VLOOKUP(M7,C_UKG!$B$2:$D$21,3,FALSE)+VLOOKUP($B133,C_UKG!$B$2:$D$21,3,FALSE),"--"),"--") -> -- | N133: =IFERROR(IF((VLOOKUP(N7,C_UKG!$B$2:$D$21,3,FALSE)+VLOOKUP($B133,C_UKG!$B$2:$D$21,3,FALSE))<24000,VLOOKUP(N7,C_UKG!$B$2:$D$21,3,FALSE)+VLOOKUP($B133,C_UKG!$B$2:$D$21,3,FALSE),"--"),"--") -> -- | O133: =IFERROR(IF((VLOOKUP(O7,C_UKG!$B$2:$D$21,3,FALSE)+VLOOKUP($B133,C_UKG!$B$2:$D$21,3,FALSE))<24000,VLOOKUP(O7,C_UKG!$B$2:$D$21,3,FALSE)+VLOOKUP($B133,C_UKG!$B$2:$D$21,3,FALSE),"--"),"--") -> -- | P133: =IFERROR(IF((VLOOKUP(P7,C_UKG!$B$2:$D$21,3,FALSE)+VLOOKUP($B133,C_UKG!$B$2:$D$21,3,FALSE))<24000,VLOOKUP(P7,C_UKG!$B$2:$D$21,3,FALSE)+VLOOKUP($B133,C_UKG!$B$2:$D$21,3,FALSE),"--"),"--") -> -- | Q133: =IFERROR(IF((VLOOKUP(Q7,C_UKG!$B$2:$D$21,3,FALSE)+VLOOKUP($B133,C_UKG!$B$2:$D$21,3,FALSE))<24000,VLOOKUP(Q7,C_UKG!$B$2:$D$21,3,FALSE)+VLOOKUP($B133,C_UKG!$B$2:$D$21,3,FALSE),"--"),"--") -> -- | R133: =IFERROR(IF((VLOOKUP(R7,C_UKG!$B$2:$D$21,3,FALSE)+VLOOKUP($B133,C_UKG!$B$2:$D$21,3,FALSE))<24000,VLOOKUP(R7,C_UKG!$B$2:$D$21,3,FALSE)+VLOOKUP($B133,C_UKG!$B$2:$D$21,3,FALSE),"--"),"--") -> -- | S133: =IFERROR(IF((VLOOKUP(S7,C_UKG!$B$2:$D$21,3,FALSE)+VLOOKUP($B133,C_UKG!$B$2:$D$21,3,FALSE))<24000,VLOOKUP(S7,C_UKG!$B$2:$D$21,3,FALSE)+VLOOKUP($B133,C_UKG!$B$2:$D$21,3,FALSE),"--"),"--") -> -- | T133: =IFERROR(IF((VLOOKUP(T7,C_UKG!$B$2:$D$21,3,FALSE)+VLOOKUP($B133,C_UKG!$B$2:$D$21,3,FALSE))<24000,VLOOKUP(T7,C_UKG!$B$2:$D$21,3,FALSE)+VLOOKUP($B133,C_UKG!$B$2:$D$21,3,FALSE),"--"),"--") -> -- | U133: =IFERROR(IF((VLOOKUP(U7,C_UKG!$B$2:$D$21,3,FALSE)+VLOOKUP($B133,C_UKG!$B$2:$D$21,3,FALSE))<24000,VLOOKUP(U7,C_UKG!$B$2:$D$21,3,FALSE)+VLOOKUP($B133,C_UKG!$B$2:$D$21,3,FALSE),"--"),"--") -> -- | V133: =IFERROR(IF((VLOOKUP(V7,C_UKG!$B$2:$D$21,3,FALSE)+VLOOKUP($B133,C_UKG!$B$2:$D$21,3,FALSE))<24000,VLOOKUP(V7,C_UKG!$B$2:$D$21,3,FALSE)+VLOOKUP($B133,C_UKG!$B$2:$D$21,3,FALSE),"--"),"--") -> --
A134: 4 | B134: B | C134: =IFERROR(IF((VLOOKUP(C8,C_UKG!$B$2:$D$21,3,FALSE)+VLOOKUP($B134,C_UKG!$B$2:$D$21,3,FALSE))<24000,VLOOKUP(C8,C_UKG!$B$2:$D$21,3,FALSE)+VLOOKUP($B134,C_UKG!$B$2:$D$21,3,FALSE),"--"),"--") -> -- | D134: =IFERROR(IF((VLOOKUP(D8,C_UKG!$B$2:$D$21,3,FALSE)+VLOOKUP($B134,C_UKG!$B$2:$D$21,3,FALSE))<24000,VLOOKUP(D8,C_UKG!$B$2:$D$21,3,FALSE)+VLOOKUP($B134,C_UKG!$B$2:$D$21,3,FALSE),"--"),"--") -> -- | E134: =IFERROR(IF((VLOOKUP(E8,C_UKG!$B$2:$D$21,3,FALSE)+VLOOKUP($B134,C_UKG!$B$2:$D$21,3,FALSE))<24000,VLOOKUP(E8,C_UKG!$B$2:$D$21,3,FALSE)+VLOOKUP($B134,C_UKG!$B$2:$D$21,3,FALSE),"--"),"--") -> -- | F134: =IFERROR(IF((VLOOKUP(F8,C_UKG!$B$2:$D$21,3,FALSE)+VLOOKUP($B134,C_UKG!$B$2:$D$21,3,FALSE))<24000,VLOOKUP(F8,C_UKG!$B$2:$D$21,3,FALSE)+VLOOKUP($B134,C_UKG!$B$2:$D$21,3,FALSE),"--"),"--") -> -- | G134: =IFERROR(IF((VLOOKUP(G8,C_UKG!$B$2:$D$21,3,FALSE)+VLOOKUP($B134,C_UKG!$B$2:$D$21,3,FALSE))<24000,VLOOKUP(G8,C_UKG!$B$2:$D$21,3,FALSE)+VLOOKUP($B134,C_UKG!$B$2:$D$21,3,FALSE),"--"),"--") -> -- | H134: =IFERROR(IF((VLOOKUP(H8,C_UKG!$B$2:$D$21,3,FALSE)+VLOOKUP($B134,C_UKG!$B$2:$D$21,3,FALSE))<24000,VLOOKUP(H8,C_UKG!$B$2:$D$21,3,FALSE)+VLOOKUP($B134,C_UKG!$B$2:$D$21,3,FALSE),"--"),"--") -> -- | I134: =IFERROR(IF((VLOOKUP(I8,C_UKG!$B$2:$D$21,3,FALSE)+VLOOKUP($B134,C_UKG!$B$2:$D$21,3,FALSE))<24000,VLOOKUP(I8,C_UKG!$B$2:$D$21,3,FALSE)+VLOOKUP($B134,C_UKG!$B$2:$D$21,3,FALSE),"--"),"--") -> -- | J134: =IFERROR(IF((VLOOKUP(J8,C_UKG!$B$2:$D$21,3,FALSE)+VLOOKUP($B134,C_UKG!$B$2:$D$21,3,FALSE))<24000,VLOOKUP(J8,C_UKG!$B$2:$D$21,3,FALSE)+VLOOKUP($B134,C_UKG!$B$2:$D$21,3,FALSE),"--"),"--") -> -- | K134: =IFERROR(IF((VLOOKUP(K8,C_UKG!$B$2:$D$21,3,FALSE)+VLOOKUP($B134,C_UKG!$B$2:$D$21,3,FALSE))<24000,VLOOKUP(K8,C_UKG!$B$2:$D$21,3,FALSE)+VLOOKUP($B134,C_UKG!$B$2:$D$21,3,FALSE),"--"),"--") -> -- | L134: =IFERROR(IF((VLOOKUP(L8,C_UKG!$B$2:$D$21,3,FALSE)+VLOOKUP($B134,C_UKG!$B$2:$D$21,3,FALSE))<24000,VLOOKUP(L8,C_UKG!$B$2:$D$21,3,FALSE)+VLOOKUP($B134,C_UKG!$B$2:$D$21,3,FALSE),"--"),"--") -> -- | M134: =IFERROR(IF((VLOOKUP(M8,C_UKG!$B$2:$D$21,3,FALSE)+VLOOKUP($B134,C_UKG!$B$2:$D$21,3,FALSE))<24000,VLOOKUP(M8,C_UKG!$B$2:$D$21,3,FALSE)+VLOOKUP($B134,C_UKG!$B$2:$D$21,3,FALSE),"--"),"--") -> -- | N134: =IFERROR(IF((VLOOKUP(N8,C_UKG!$B$2:$D$21,3,FALSE)+VLOOKUP($B134,C_UKG!$B$2:$D$21,3,FALSE))<24000,VLOOKUP(N8,C_UKG!$B$2:$D$21,3,FALSE)+VLOOKUP($B134,C_UKG!$B$2:$D$21,3,FALSE),"--"),"--") -> -- | O134: =IFERROR(IF((VLOOKUP(O8,C_UKG!$B$2:$D$21,3,FALSE)+VLOOKUP($B134,C_UKG!$B$2:$D$21,3,FALSE))<24000,VLOOKUP(O8,C_UKG!$B$2:$D$21,3,FALSE)+VLOOKUP($B134,C_UKG!$B$2:$D$21,3,FALSE),"--"),"--") -> -- | P134: =IFERROR(IF((VLOOKUP(P8,C_UKG!$B$2:$D$21,3,FALSE)+VLOOKUP($B134,C_UKG!$B$2:$D$21,3,FALSE))<24000,VLOOKUP(P8,C_UKG!$B$2:$D$21,3,FALSE)+VLOOKUP($B134,C_UKG!$B$2:$D$21,3,FALSE),"--"),"--") -> -- | Q134: =IFERROR(IF((VLOOKUP(Q8,C_UKG!$B$2:$D$21,3,FALSE)+VLOOKUP($B134,C_UKG!$B$2:$D$21,3,FALSE))<24000,VLOOKUP(Q8,C_UKG!$B$2:$D$21,3,FALSE)+VLOOKUP($B134,C_UKG!$B$2:$D$21,3,FALSE),"--"),"--") -> -- | R134: =IFERROR(IF((VLOOKUP(R8,C_UKG!$B$2:$D$21,3,FALSE)+VLOOKUP($B134,C_UKG!$B$2:$D$21,3,FALSE))<24000,VLOOKUP(R8,C_UKG!$B$2:$D$21,3,FALSE)+VLOOKUP($B134,C_UKG!$B$2:$D$21,3,FALSE),"--"),"--") -> -- | S134: =IFERROR(IF((VLOOKUP(S8,C_UKG!$B$2:$D$21,3,FALSE)+VLOOKUP($B134,C_UKG!$B$2:$D$21,3,FALSE))<24000,VLOOKUP(S8,C_UKG!$B$2:$D$21,3,FALSE)+VLOOKUP($B134,C_UKG!$B$2:$D$21,3,FALSE),"--"),"--") -> -- | T134: =IFERROR(IF((VLOOKUP(T8,C_UKG!$B$2:$D$21,3,FALSE)+VLOOKUP($B134,C_UKG!$B$2:$D$21,3,FALSE))<24000,VLOOKUP(T8,C_UKG!$B$2:$D$21,3,FALSE)+VLOOKUP($B134,C_UKG!$B$2:$D$21,3,FALSE),"--"),"--") -> -- | U134: =IFERROR(IF((VLOOKUP(U8,C_UKG!$B$2:$D$21,3,FALSE)+VLOOKUP($B134,C_UKG!$B$2:$D$21,3,FALSE))<24000,VLOOKUP(U8,C_UKG!$B$2:$D$21,3,FALSE)+VLOOKUP($B134,C_UKG!$B$2:$D$21,3,FALSE),"--"),"--") -> -- | V134: =IFERROR(IF((VLOOKUP(V8,C_UKG!$B$2:$D$21,3,FALSE)+VLOOKUP($B134,C_UKG!$B$2:$D$21,3,FALSE))<24000,VLOOKUP(V8,C_UKG!$B$2:$D$21,3,FALSE)+VLOOKUP($B134,C_UKG!$B$2:$D$21,3,FALSE),"--"),"--") -> --
A135: 5 | C135: =IFERROR(IF((VLOOKUP(C9,C_UKG!$B$2:$D$21,3,FALSE)+VLOOKUP($B135,C_UKG!$B$2:$D$21,3,FALSE))<24000,VLOOKUP(C9,C_UKG!$B$2:$D$21,3,FALSE)+VLOOKUP($B135,C_UKG!$B$2:$D$21,3,FALSE),"--"),"--") -> -- | D135: =IFERROR(IF((VLOOKUP(D9,C_UKG!$B$2:$D$21,3,FALSE)+VLOOKUP($B135,C_UKG!$B$2:$D$21,3,FALSE))<24000,VLOOKUP(D9,C_UKG!$B$2:$D$21,3,FALSE)+VLOOKUP($B135,C_UKG!$B$2:$D$21,3,FALSE),"--"),"--") -> -- | E135: =IFERROR(IF((VLOOKUP(E9,C_UKG!$B$2:$D$21,3,FALSE)+VLOOKUP($B135,C_UKG!$B$2:$D$21,3,FALSE))<24000,VLOOKUP(E9,C_UKG!$B$2:$D$21,3,FALSE)+VLOOKUP($B135,C_UKG!$B$2:$D$21,3,FALSE),"--"),"--") -> -- | F135: =IFERROR(IF((VLOOKUP(F9,C_UKG!$B$2:$D$21,3,FALSE)+VLOOKUP($B135,C_UKG!$B$2:$D$21,3,FALSE))<24000,VLOOKUP(F9,C_UKG!$B$2:$D$21,3,FALSE)+VLOOKUP($B135,C_UKG!$B$2:$D$21,3,FALSE),"--"),"--") -> -- | G135: =IFERROR(IF((VLOOKUP(G9,C_UKG!$B$2:$D$21,3,FALSE)+VLOOKUP($B135,C_UKG!$B$2:$D$21,3,FALSE))<24000,VLOOKUP(G9,C_UKG!$B$2:$D$21,3,FALSE)+VLOOKUP($B135,C_UKG!$B$2:$D$21,3,FALSE),"--"),"--") -> -- | H135: =IFERROR(IF((VLOOKUP(H9,C_UKG!$B$2:$D$21,3,FALSE)+VLOOKUP($B135,C_UKG!$B$2:$D$21,3,FALSE))<24000,VLOOKUP(H9,C_UKG!$B$2:$D$21,3,FALSE)+VLOOKUP($B135,C_UKG!$B$2:$D$21,3,FALSE),"--"),"--") -> -- | I135: =IFERROR(IF((VLOOKUP(I9,C_UKG!$B$2:$D$21,3,FALSE)+VLOOKUP($B135,C_UKG!$B$2:$D$21,3,FALSE))<24000,VLOOKUP(I9,C_UKG!$B$2:$D$21,3,FALSE)+VLOOKUP($B135,C_UKG!$B$2:$D$21,3,FALSE),"--"),"--") -> -- | J135: =IFERROR(IF((VLOOKUP(J9,C_UKG!$B$2:$D$21,3,FALSE)+VLOOKUP($B135,C_UKG!$B$2:$D$21,3,FALSE))<24000,VLOOKUP(J9,C_UKG!$B$2:$D$21,3,FALSE)+VLOOKUP($B135,C_UKG!$B$2:$D$21,3,FALSE),"--"),"--") -> -- | K135: =IFERROR(IF((VLOOKUP(K9,C_UKG!$B$2:$D$21,3,FALSE)+VLOOKUP($B135,C_UKG!$B$2:$D$21,3,FALSE))<24000,VLOOKUP(K9,C_UKG!$B$2:$D$21,3,FALSE)+VLOOKUP($B135,C_UKG!$B$2:$D$21,3,FALSE),"--"),"--") -> -- | L135: =IFERROR(IF((VLOOKUP(L9,C_UKG!$B$2:$D$21,3,FALSE)+VLOOKUP($B135,C_UKG!$B$2:$D$21,3,FALSE))<24000,VLOOKUP(L9,C_UKG!$B$2:$D$21,3,FALSE)+VLOOKUP($B135,C_UKG!$B$2:$D$21,3,FALSE),"--"),"--") -> -- | M135: =IFERROR(IF((VLOOKUP(M9,C_UKG!$B$2:$D$21,3,FALSE)+VLOOKUP($B135,C_UKG!$B$2:$D$21,3,FALSE))<24000,VLOOKUP(M9,C_UKG!$B$2:$D$21,3,FALSE)+VLOOKUP($B135,C_UKG!$B$2:$D$21,3,FALSE),"--"),"--") -> -- | N135: =IFERROR(IF((VLOOKUP(N9,C_UKG!$B$2:$D$21,3,FALSE)+VLOOKUP($B135,C_UKG!$B$2:$D$21,3,FALSE))<24000,VLOOKUP(N9,C_UKG!$B$2:$D$21,3,FALSE)+VLOOKUP($B135,C_UKG!$B$2:$D$21,3,FALSE),"--"),"--") -> -- | O135: =IFERROR(IF((VLOOKUP(O9,C_UKG!$B$2:$D$21,3,FALSE)+VLOOKUP($B135,C_UKG!$B$2:$D$21,3,FALSE))<24000,VLOOKUP(O9,C_UKG!$B$2:$D$21,3,FALSE)+VLOOKUP($B135,C_UKG!$B$2:$D$21,3,FALSE),"--"),"--") -> -- | P135: =IFERROR(IF((VLOOKUP(P9,C_UKG!$B$2:$D$21,3,FALSE)+VLOOKUP($B135,C_UKG!$B$2:$D$21,3,FALSE))<24000,VLOOKUP(P9,C_UKG!$B$2:$D$21,3,FALSE)+VLOOKUP($B135,C_UKG!$B$2:$D$21,3,FALSE),"--"),"--") -> -- | Q135: =IFERROR(IF((VLOOKUP(Q9,C_UKG!$B$2:$D$21,3,FALSE)+VLOOKUP($B135,C_UKG!$B$2:$D$21,3,FALSE))<24000,VLOOKUP(Q9,C_UKG!$B$2:$D$21,3,FALSE)+VLOOKUP($B135,C_UKG!$B$2:$D$21,3,FALSE),"--"),"--") -> -- | R135: =IFERROR(IF((VLOOKUP(R9,C_UKG!$B$2:$D$21,3,FALSE)+VLOOKUP($B135,C_UKG!$B$2:$D$21,3,FALSE))<24000,VLOOKUP(R9,C_UKG!$B$2:$D$21,3,FALSE)+VLOOKUP($B135,C_UKG!$B$2:$D$21,3,FALSE),"--"),"--") -> -- | S135: =IFERROR(IF((VLOOKUP(S9,C_UKG!$B$2:$D$21,3,FALSE)+VLOOKUP($B135,C_UKG!$B$2:$D$21,3,FALSE))<24000,VLOOKUP(S9,C_UKG!$B$2:$D$21,3,FALSE)+VLOOKUP($B135,C_UKG!$B$2:$D$21,3,FALSE),"--"),"--") -> -- | T135: =IFERROR(IF((VLOOKUP(T9,C_UKG!$B$2:$D$21,3,FALSE)+VLOOKUP($B135,C_UKG!$B$2:$D$21,3,FALSE))<24000,VLOOKUP(T9,C_UKG!$B$2:$D$21,3,FALSE)+VLOOKUP($B135,C_UKG!$B$2:$D$21,3,FALSE),"--"),"--") -> -- | U135: =IFERROR(IF((VLOOKUP(U9,C_UKG!$B$2:$D$21,3,FALSE)+VLOOKUP($B135,C_UKG!$B$2:$D$21,3,FALSE))<24000,VLOOKUP(U9,C_UKG!$B$2:$D$21,3,FALSE)+VLOOKUP($B135,C_UKG!$B$2:$D$21,3,FALSE),"--"),"--") -> -- | V135: =IFERROR(IF((VLOOKUP(V9,C_UKG!$B$2:$D$21,3,FALSE)+VLOOKUP($B135,C_UKG!$B$2:$D$21,3,FALSE))<24000,VLOOKUP(V9,C_UKG!$B$2:$D$21,3,FALSE)+VLOOKUP($B135,C_UKG!$B$2:$D$21,3,FALSE),"--"),"--") -> --
A136: 6 | C136: =IFERROR(IF((VLOOKUP(C10,C_UKG!$B$2:$D$21,3,FALSE)+VLOOKUP($B136,C_UKG!$B$2:$D$21,3,FALSE))<24000,VLOOKUP(C10,C_UKG!$B$2:$D$21,3,FALSE)+VLOOKUP($B136,C_UKG!$B$2:$D$21,3,FALSE),"--"),"--") -> -- | D136: =IFERROR(IF((VLOOKUP(D10,C_UKG!$B$2:$D$21,3,FALSE)+VLOOKUP($B136,C_UKG!$B$2:$D$21,3,FALSE))<24000,VLOOKUP(D10,C_UKG!$B$2:$D$21,3,FALSE)+VLOOKUP($B136,C_UKG!$B$2:$D$21,3,FALSE),"--"),"--") -> -- | E136: =IFERROR(IF((VLOOKUP(E10,C_UKG!$B$2:$D$21,3,FALSE)+VLOOKUP($B136,C_UKG!$B$2:$D$21,3,FALSE))<24000,VLOOKUP(E10,C_UKG!$B$2:$D$21,3,FALSE)+VLOOKUP($B136,C_UKG!$B$2:$D$21,3,FALSE),"--"),"--") -> -- | F136: =IFERROR(IF((VLOOKUP(F10,C_UKG!$B$2:$D$21,3,FALSE)+VLOOKUP($B136,C_UKG!$B$2:$D$21,3,FALSE))<24000,VLOOKUP(F10,C_UKG!$B$2:$D$21,3,FALSE)+VLOOKUP($B136,C_UKG!$B$2:$D$21,3,FALSE),"--"),"--") -> -- | G136: =IFERROR(IF((VLOOKUP(G10,C_UKG!$B$2:$D$21,3,FALSE)+VLOOKUP($B136,C_UKG!$B$2:$D$21,3,FALSE))<24000,VLOOKUP(G10,C_UKG!$B$2:$D$21,3,FALSE)+VLOOKUP($B136,C_UKG!$B$2:$D$21,3,FALSE),"--"),"--") -> -- | H136: =IFERROR(IF((VLOOKUP(H10,C_UKG!$B$2:$D$21,3,FALSE)+VLOOKUP($B136,C_UKG!$B$2:$D$21,3,FALSE))<24000,VLOOKUP(H10,C_UKG!$B$2:$D$21,3,FALSE)+VLOOKUP($B136,C_UKG!$B$2:$D$21,3,FALSE),"--"),"--") -> -- | I136: =IFERROR(IF((VLOOKUP(I10,C_UKG!$B$2:$D$21,3,FALSE)+VLOOKUP($B136,C_UKG!$B$2:$D$21,3,FALSE))<24000,VLOOKUP(I10,C_UKG!$B$2:$D$21,3,FALSE)+VLOOKUP($B136,C_UKG!$B$2:$D$21,3,FALSE),"--"),"--") -> -- | J136: =IFERROR(IF((VLOOKUP(J10,C_UKG!$B$2:$D$21,3,FALSE)+VLOOKUP($B136,C_UKG!$B$2:$D$21,3,FALSE))<24000,VLOOKUP(J10,C_UKG!$B$2:$D$21,3,FALSE)+VLOOKUP($B136,C_UKG!$B$2:$D$21,3,FALSE),"--"),"--") -> -- | K136: =IFERROR(IF((VLOOKUP(K10,C_UKG!$B$2:$D$21,3,FALSE)+VLOOKUP($B136,C_UKG!$B$2:$D$21,3,FALSE))<24000,VLOOKUP(K10,C_UKG!$B$2:$D$21,3,FALSE)+VLOOKUP($B136,C_UKG!$B$2:$D$21,3,FALSE),"--"),"--") -> -- | L136: =IFERROR(IF((VLOOKUP(L10,C_UKG!$B$2:$D$21,3,FALSE)+VLOOKUP($B136,C_UKG!$B$2:$D$21,3,FALSE))<24000,VLOOKUP(L10,C_UKG!$B$2:$D$21,3,FALSE)+VLOOKUP($B136,C_UKG!$B$2:$D$21,3,FALSE),"--"),"--") -> -- | M136: =IFERROR(IF((VLOOKUP(M10,C_UKG!$B$2:$D$21,3,FALSE)+VLOOKUP($B136,C_UKG!$B$2:$D$21,3,FALSE))<24000,VLOOKUP(M10,C_UKG!$B$2:$D$21,3,FALSE)+VLOOKUP($B136,C_UKG!$B$2:$D$21,3,FALSE),"--"),"--") -> -- | N136: =IFERROR(IF((VLOOKUP(N10,C_UKG!$B$2:$D$21,3,FALSE)+VLOOKUP($B136,C_UKG!$B$2:$D$21,3,FALSE))<24000,VLOOKUP(N10,C_UKG!$B$2:$D$21,3,FALSE)+VLOOKUP($B136,C_UKG!$B$2:$D$21,3,FALSE),"--"),"--") -> -- | O136: =IFERROR(IF((VLOOKUP(O10,C_UKG!$B$2:$D$21,3,FALSE)+VLOOKUP($B136,C_UKG!$B$2:$D$21,3,FALSE))<24000,VLOOKUP(O10,C_UKG!$B$2:$D$21,3,FALSE)+VLOOKUP($B136,C_UKG!$B$2:$D$21,3,FALSE),"--"),"--") -> -- | P136: =IFERROR(IF((VLOOKUP(P10,C_UKG!$B$2:$D$21,3,FALSE)+VLOOKUP($B136,C_UKG!$B$2:$D$21,3,FALSE))<24000,VLOOKUP(P10,C_UKG!$B$2:$D$21,3,FALSE)+VLOOKUP($B136,C_UKG!$B$2:$D$21,3,FALSE),"--"),"--") -> -- | Q136: =IFERROR(IF((VLOOKUP(Q10,C_UKG!$B$2:$D$21,3,FALSE)+VLOOKUP($B136,C_UKG!$B$2:$D$21,3,FALSE))<24000,VLOOKUP(Q10,C_UKG!$B$2:$D$21,3,FALSE)+VLOOKUP($B136,C_UKG!$B$2:$D$21,3,FALSE),"--"),"--") -> -- | R136: =IFERROR(IF((VLOOKUP(R10,C_UKG!$B$2:$D$21,3,FALSE)+VLOOKUP($B136,C_UKG!$B$2:$D$21,3,FALSE))<24000,VLOOKUP(R10,C_UKG!$B$2:$D$21,3,FALSE)+VLOOKUP($B136,C_UKG!$B$2:$D$21,3,FALSE),"--"),"--") -> -- | S136: =IFERROR(IF((VLOOKUP(S10,C_UKG!$B$2:$D$21,3,FALSE)+VLOOKUP($B136,C_UKG!$B$2:$D$21,3,FALSE))<24000,VLOOKUP(S10,C_UKG!$B$2:$D$21,3,FALSE)+VLOOKUP($B136,C_UKG!$B$2:$D$21,3,FALSE),"--"),"--") -> -- | T136: =IFERROR(IF((VLOOKUP(T10,C_UKG!$B$2:$D$21,3,FALSE)+VLOOKUP($B136,C_UKG!$B$2:$D$21,3,FALSE))<24000,VLOOKUP(T10,C_UKG!$B$2:$D$21,3,FALSE)+VLOOKUP($B136,C_UKG!$B$2:$D$21,3,FALSE),"--"),"--") -> -- | U136: =IFERROR(IF((VLOOKUP(U10,C_UKG!$B$2:$D$21,3,FALSE)+VLOOKUP($B136,C_UKG!$B$2:$D$21,3,FALSE))<24000,VLOOKUP(U10,C_UKG!$B$2:$D$21,3,FALSE)+VLOOKUP($B136,C_UKG!$B$2:$D$21,3,FALSE),"--"),"--") -> -- | V136: =IFERROR(IF((VLOOKUP(V10,C_UKG!$B$2:$D$21,3,FALSE)+VLOOKUP($B136,C_UKG!$B$2:$D$21,3,FALSE))<24000,VLOOKUP(V10,C_UKG!$B$2:$D$21,3,FALSE)+VLOOKUP($B136,C_UKG!$B$2:$D$21,3,FALSE),"--"),"--") -> --
A137: 7 | B137: C | C137: =IFERROR(IF((VLOOKUP(C11,C_UKG!$B$2:$D$21,3,FALSE)+VLOOKUP($B137,C_UKG!$B$2:$D$21,3,FALSE))<24000,VLOOKUP(C11,C_UKG!$B$2:$D$21,3,FALSE)+VLOOKUP($B137,C_UKG!$B$2:$D$21,3,FALSE),"--"),"--") -> -- | D137: =IFERROR(IF((VLOOKUP(D11,C_UKG!$B$2:$D$21,3,FALSE)+VLOOKUP($B137,C_UKG!$B$2:$D$21,3,FALSE))<24000,VLOOKUP(D11,C_UKG!$B$2:$D$21,3,FALSE)+VLOOKUP($B137,C_UKG!$B$2:$D$21,3,FALSE),"--"),"--") -> -- | E137: =IFERROR(IF((VLOOKUP(E11,C_UKG!$B$2:$D$21,3,FALSE)+VLOOKUP($B137,C_UKG!$B$2:$D$21,3,FALSE))<24000,VLOOKUP(E11,C_UKG!$B$2:$D$21,3,FALSE)+VLOOKUP($B137,C_UKG!$B$2:$D$21,3,FALSE),"--"),"--") -> -- | F137: =IFERROR(IF((VLOOKUP(F11,C_UKG!$B$2:$D$21,3,FALSE)+VLOOKUP($B137,C_UKG!$B$2:$D$21,3,FALSE))<24000,VLOOKUP(F11,C_UKG!$B$2:$D$21,3,FALSE)+VLOOKUP($B137,C_UKG!$B$2:$D$21,3,FALSE),"--"),"--") -> -- | G137: =IFERROR(IF((VLOOKUP(G11,C_UKG!$B$2:$D$21,3,FALSE)+VLOOKUP($B137,C_UKG!$B$2:$D$21,3,FALSE))<24000,VLOOKUP(G11,C_UKG!$B$2:$D$21,3,FALSE)+VLOOKUP($B137,C_UKG!$B$2:$D$21,3,FALSE),"--"),"--") -> -- | H137: =IFERROR(IF((VLOOKUP(H11,C_UKG!$B$2:$D$21,3,FALSE)+VLOOKUP($B137,C_UKG!$B$2:$D$21,3,FALSE))<24000,VLOOKUP(H11,C_UKG!$B$2:$D$21,3,FALSE)+VLOOKUP($B137,C_UKG!$B$2:$D$21,3,FALSE),"--"),"--") -> -- | I137: =IFERROR(IF((VLOOKUP(I11,C_UKG!$B$2:$D$21,3,FALSE)+VLOOKUP($B137,C_UKG!$B$2:$D$21,3,FALSE))<24000,VLOOKUP(I11,C_UKG!$B$2:$D$21,3,FALSE)+VLOOKUP($B137,C_UKG!$B$2:$D$21,3,FALSE),"--"),"--") -> -- | J137: =IFERROR(IF((VLOOKUP(J11,C_UKG!$B$2:$D$21,3,FALSE)+VLOOKUP($B137,C_UKG!$B$2:$D$21,3,FALSE))<24000,VLOOKUP(J11,C_UKG!$B$2:$D$21,3,FALSE)+VLOOKUP($B137,C_UKG!$B$2:$D$21,3,FALSE),"--"),"--") -> -- | K137: =IFERROR(IF((VLOOKUP(K11,C_UKG!$B$2:$D$21,3,FALSE)+VLOOKUP($B137,C_UKG!$B$2:$D$21,3,FALSE))<24000,VLOOKUP(K11,C_UKG!$B$2:$D$21,3,FALSE)+VLOOKUP($B137,C_UKG!$B$2:$D$21,3,FALSE),"--"),"--") -> -- | L137: =IFERROR(IF((VLOOKUP(L11,C_UKG!$B$2:$D$21,3,FALSE)+VLOOKUP($B137,C_UKG!$B$2:$D$21,3,FALSE))<24000,VLOOKUP(L11,C_UKG!$B$2:$D$21,3,FALSE)+VLOOKUP($B137,C_UKG!$B$2:$D$21,3,FALSE),"--"),"--") -> -- | M137: =IFERROR(IF((VLOOKUP(M11,C_UKG!$B$2:$D$21,3,FALSE)+VLOOKUP($B137,C_UKG!$B$2:$D$21,3,FALSE))<24000,VLOOKUP(M11,C_UKG!$B$2:$D$21,3,FALSE)+VLOOKUP($B137,C_UKG!$B$2:$D$21,3,FALSE),"--"),"--") -> -- | N137: =IFERROR(IF((VLOOKUP(N11,C_UKG!$B$2:$D$21,3,FALSE)+VLOOKUP($B137,C_UKG!$B$2:$D$21,3,FALSE))<24000,VLOOKUP(N11,C_UKG!$B$2:$D$21,3,FALSE)+VLOOKUP($B137,C_UKG!$B$2:$D$21,3,FALSE),"--"),"--") -> -- | O137: =IFERROR(IF((VLOOKUP(O11,C_UKG!$B$2:$D$21,3,FALSE)+VLOOKUP($B137,C_UKG!$B$2:$D$21,3,FALSE))<24000,VLOOKUP(O11,C_UKG!$B$2:$D$21,3,FALSE)+VLOOKUP($B137,C_UKG!$B$2:$D$21,3,FALSE),"--"),"--") -> -- | P137: =IFERROR(IF((VLOOKUP(P11,C_UKG!$B$2:$D$21,3,FALSE)+VLOOKUP($B137,C_UKG!$B$2:$D$21,3,FALSE))<24000,VLOOKUP(P11,C_UKG!$B$2:$D$21,3,FALSE)+VLOOKUP($B137,C_UKG!$B$2:$D$21,3,FALSE),"--"),"--") -> -- | Q137: =IFERROR(IF((VLOOKUP(Q11,C_UKG!$B$2:$D$21,3,FALSE)+VLOOKUP($B137,C_UKG!$B$2:$D$21,3,FALSE))<24000,VLOOKUP(Q11,C_UKG!$B$2:$D$21,3,FALSE)+VLOOKUP($B137,C_UKG!$B$2:$D$21,3,FALSE),"--"),"--") -> -- | R137: =IFERROR(IF((VLOOKUP(R11,C_UKG!$B$2:$D$21,3,FALSE)+VLOOKUP($B137,C_UKG!$B$2:$D$21,3,FALSE))<24000,VLOOKUP(R11,C_UKG!$B$2:$D$21,3,FALSE)+VLOOKUP($B137,C_UKG!$B$2:$D$21,3,FALSE),"--"),"--") -> -- | S137: =IFERROR(IF((VLOOKUP(S11,C_UKG!$B$2:$D$21,3,FALSE)+VLOOKUP($B137,C_UKG!$B$2:$D$21,3,FALSE))<24000,VLOOKUP(S11,C_UKG!$B$2:$D$21,3,FALSE)+VLOOKUP($B137,C_UKG!$B$2:$D$21,3,FALSE),"--"),"--") -> -- | T137: =IFERROR(IF((VLOOKUP(T11,C_UKG!$B$2:$D$21,3,FALSE)+VLOOKUP($B137,C_UKG!$B$2:$D$21,3,FALSE))<24000,VLOOKUP(T11,C_UKG!$B$2:$D$21,3,FALSE)+VLOOKUP($B137,C_UKG!$B$2:$D$21,3,FALSE),"--"),"--") -> -- | U137: =IFERROR(IF((VLOOKUP(U11,C_UKG!$B$2:$D$21,3,FALSE)+VLOOKUP($B137,C_UKG!$B$2:$D$21,3,FALSE))<24000,VLOOKUP(U11,C_UKG!$B$2:$D$21,3,FALSE)+VLOOKUP($B137,C_UKG!$B$2:$D$21,3,FALSE),"--"),"--") -> -- | V137: =IFERROR(IF((VLOOKUP(V11,C_UKG!$B$2:$D$21,3,FALSE)+VLOOKUP($B137,C_UKG!$B$2:$D$21,3,FALSE))<24000,VLOOKUP(V11,C_UKG!$B$2:$D$21,3,FALSE)+VLOOKUP($B137,C_UKG!$B$2:$D$21,3,FALSE),"--"),"--") -> --
A138: 8 | C138: =IFERROR(IF((VLOOKUP(C12,C_UKG!$B$2:$D$21,3,FALSE)+VLOOKUP($B138,C_UKG!$B$2:$D$21,3,FALSE))<24000,VLOOKUP(C12,C_UKG!$B$2:$D$21,3,FALSE)+VLOOKUP($B138,C_UKG!$B$2:$D$21,3,FALSE),"--"),"--") -> -- | D138: =IFERROR(IF((VLOOKUP(D12,C_UKG!$B$2:$D$21,3,FALSE)+VLOOKUP($B138,C_UKG!$B$2:$D$21,3,FALSE))<24000,VLOOKUP(D12,C_UKG!$B$2:$D$21,3,FALSE)+VLOOKUP($B138,C_UKG!$B$2:$D$21,3,FALSE),"--"),"--") -> -- | E138: =IFERROR(IF((VLOOKUP(E12,C_UKG!$B$2:$D$21,3,FALSE)+VLOOKUP($B138,C_UKG!$B$2:$D$21,3,FALSE))<24000,VLOOKUP(E12,C_UKG!$B$2:$D$21,3,FALSE)+VLOOKUP($B138,C_UKG!$B$2:$D$21,3,FALSE),"--"),"--") -> -- | F138: =IFERROR(IF((VLOOKUP(F12,C_UKG!$B$2:$D$21,3,FALSE)+VLOOKUP($B138,C_UKG!$B$2:$D$21,3,FALSE))<24000,VLOOKUP(F12,C_UKG!$B$2:$D$21,3,FALSE)+VLOOKUP($B138,C_UKG!$B$2:$D$21,3,FALSE),"--"),"--") -> -- | G138: =IFERROR(IF((VLOOKUP(G12,C_UKG!$B$2:$D$21,3,FALSE)+VLOOKUP($B138,C_UKG!$B$2:$D$21,3,FALSE))<24000,VLOOKUP(G12,C_UKG!$B$2:$D$21,3,FALSE)+VLOOKUP($B138,C_UKG!$B$2:$D$21,3,FALSE),"--"),"--") -> -- | H138: =IFERROR(IF((VLOOKUP(H12,C_UKG!$B$2:$D$21,3,FALSE)+VLOOKUP($B138,C_UKG!$B$2:$D$21,3,FALSE))<24000,VLOOKUP(H12,C_UKG!$B$2:$D$21,3,FALSE)+VLOOKUP($B138,C_UKG!$B$2:$D$21,3,FALSE),"--"),"--") -> -- | I138: =IFERROR(IF((VLOOKUP(I12,C_UKG!$B$2:$D$21,3,FALSE)+VLOOKUP($B138,C_UKG!$B$2:$D$21,3,FALSE))<24000,VLOOKUP(I12,C_UKG!$B$2:$D$21,3,FALSE)+VLOOKUP($B138,C_UKG!$B$2:$D$21,3,FALSE),"--"),"--") -> -- | J138: =IFERROR(IF((VLOOKUP(J12,C_UKG!$B$2:$D$21,3,FALSE)+VLOOKUP($B138,C_UKG!$B$2:$D$21,3,FALSE))<24000,VLOOKUP(J12,C_UKG!$B$2:$D$21,3,FALSE)+VLOOKUP($B138,C_UKG!$B$2:$D$21,3,FALSE),"--"),"--") -> -- | K138: =IFERROR(IF((VLOOKUP(K12,C_UKG!$B$2:$D$21,3,FALSE)+VLOOKUP($B138,C_UKG!$B$2:$D$21,3,FALSE))<24000,VLOOKUP(K12,C_UKG!$B$2:$D$21,3,FALSE)+VLOOKUP($B138,C_UKG!$B$2:$D$21,3,FALSE),"--"),"--") -> -- | L138: =IFERROR(IF((VLOOKUP(L12,C_UKG!$B$2:$D$21,3,FALSE)+VLOOKUP($B138,C_UKG!$B$2:$D$21,3,FALSE))<24000,VLOOKUP(L12,C_UKG!$B$2:$D$21,3,FALSE)+VLOOKUP($B138,C_UKG!$B$2:$D$21,3,FALSE),"--"),"--") -> -- | M138: =IFERROR(IF((VLOOKUP(M12,C_UKG!$B$2:$D$21,3,FALSE)+VLOOKUP($B138,C_UKG!$B$2:$D$21,3,FALSE))<24000,VLOOKUP(M12,C_UKG!$B$2:$D$21,3,FALSE)+VLOOKUP($B138,C_UKG!$B$2:$D$21,3,FALSE),"--"),"--") -> -- | N138: =IFERROR(IF((VLOOKUP(N12,C_UKG!$B$2:$D$21,3,FALSE)+VLOOKUP($B138,C_UKG!$B$2:$D$21,3,FALSE))<24000,VLOOKUP(N12,C_UKG!$B$2:$D$21,3,FALSE)+VLOOKUP($B138,C_UKG!$B$2:$D$21,3,FALSE),"--"),"--") -> -- | O138: =IFERROR(IF((VLOOKUP(O12,C_UKG!$B$2:$D$21,3,FALSE)+VLOOKUP($B138,C_UKG!$B$2:$D$21,3,FALSE))<24000,VLOOKUP(O12,C_UKG!$B$2:$D$21,3,FALSE)+VLOOKUP($B138,C_UKG!$B$2:$D$21,3,FALSE),"--"),"--") -> -- | P138: =IFERROR(IF((VLOOKUP(P12,C_UKG!$B$2:$D$21,3,FALSE)+VLOOKUP($B138,C_UKG!$B$2:$D$21,3,FALSE))<24000,VLOOKUP(P12,C_UKG!$B$2:$D$21,3,FALSE)+VLOOKUP($B138,C_UKG!$B$2:$D$21,3,FALSE),"--"),"--") -> -- | Q138: =IFERROR(IF((VLOOKUP(Q12,C_UKG!$B$2:$D$21,3,FALSE)+VLOOKUP($B138,C_UKG!$B$2:$D$21,3,FALSE))<24000,VLOOKUP(Q12,C_UKG!$B$2:$D$21,3,FALSE)+VLOOKUP($B138,C_UKG!$B$2:$D$21,3,FALSE),"--"),"--") -> -- | R138: =IFERROR(IF((VLOOKUP(R12,C_UKG!$B$2:$D$21,3,FALSE)+VLOOKUP($B138,C_UKG!$B$2:$D$21,3,FALSE))<24000,VLOOKUP(R12,C_UKG!$B$2:$D$21,3,FALSE)+VLOOKUP($B138,C_UKG!$B$2:$D$21,3,FALSE),"--"),"--") -> -- | S138: =IFERROR(IF((VLOOKUP(S12,C_UKG!$B$2:$D$21,3,FALSE)+VLOOKUP($B138,C_UKG!$B$2:$D$21,3,FALSE))<24000,VLOOKUP(S12,C_UKG!$B$2:$D$21,3,FALSE)+VLOOKUP($B138,C_UKG!$B$2:$D$21,3,FALSE),"--"),"--") -> -- | T138: =IFERROR(IF((VLOOKUP(T12,C_UKG!$B$2:$D$21,3,FALSE)+VLOOKUP($B138,C_UKG!$B$2:$D$21,3,FALSE))<24000,VLOOKUP(T12,C_UKG!$B$2:$D$21,3,FALSE)+VLOOKUP($B138,C_UKG!$B$2:$D$21,3,FALSE),"--"),"--") -> -- | U138: =IFERROR(IF((VLOOKUP(U12,C_UKG!$B$2:$D$21,3,FALSE)+VLOOKUP($B138,C_UKG!$B$2:$D$21,3,FALSE))<24000,VLOOKUP(U12,C_UKG!$B$2:$D$21,3,FALSE)+VLOOKUP($B138,C_UKG!$B$2:$D$21,3,FALSE),"--"),"--") -> -- | V138: =IFERROR(IF((VLOOKUP(V12,C_UKG!$B$2:$D$21,3,FALSE)+VLOOKUP($B138,C_UKG!$B$2:$D$21,3,FALSE))<24000,VLOOKUP(V12,C_UKG!$B$2:$D$21,3,FALSE)+VLOOKUP($B138,C_UKG!$B$2:$D$21,3,FALSE),"--"),"--") -> --
A139: 9 | C139: =IFERROR(IF((VLOOKUP(C13,C_UKG!$B$2:$D$21,3,FALSE)+VLOOKUP($B139,C_UKG!$B$2:$D$21,3,FALSE))<24000,VLOOKUP(C13,C_UKG!$B$2:$D$21,3,FALSE)+VLOOKUP($B139,C_UKG!$B$2:$D$21,3,FALSE),"--"),"--") -> -- | D139: =IFERROR(IF((VLOOKUP(D13,C_UKG!$B$2:$D$21,3,FALSE)+VLOOKUP($B139,C_UKG!$B$2:$D$21,3,FALSE))<24000,VLOOKUP(D13,C_UKG!$B$2:$D$21,3,FALSE)+VLOOKUP($B139,C_UKG!$B$2:$D$21,3,FALSE),"--"),"--") -> -- | E139: =IFERROR(IF((VLOOKUP(E13,C_UKG!$B$2:$D$21,3,FALSE)+VLOOKUP($B139,C_UKG!$B$2:$D$21,3,FALSE))<24000,VLOOKUP(E13,C_UKG!$B$2:$D$21,3,FALSE)+VLOOKUP($B139,C_UKG!$B$2:$D$21,3,FALSE),"--"),"--") -> -- | F139: =IFERROR(IF((VLOOKUP(F13,C_UKG!$B$2:$D$21,3,FALSE)+VLOOKUP($B139,C_UKG!$B$2:$D$21,3,FALSE))<24000,VLOOKUP(F13,C_UKG!$B$2:$D$21,3,FALSE)+VLOOKUP($B139,C_UKG!$B$2:$D$21,3,FALSE),"--"),"--") -> -- | G139: =IFERROR(IF((VLOOKUP(G13,C_UKG!$B$2:$D$21,3,FALSE)+VLOOKUP($B139,C_UKG!$B$2:$D$21,3,FALSE))<24000,VLOOKUP(G13,C_UKG!$B$2:$D$21,3,FALSE)+VLOOKUP($B139,C_UKG!$B$2:$D$21,3,FALSE),"--"),"--") -> -- | H139: =IFERROR(IF((VLOOKUP(H13,C_UKG!$B$2:$D$21,3,FALSE)+VLOOKUP($B139,C_UKG!$B$2:$D$21,3,FALSE))<24000,VLOOKUP(H13,C_UKG!$B$2:$D$21,3,FALSE)+VLOOKUP($B139,C_UKG!$B$2:$D$21,3,FALSE),"--"),"--") -> -- | I139: =IFERROR(IF((VLOOKUP(I13,C_UKG!$B$2:$D$21,3,FALSE)+VLOOKUP($B139,C_UKG!$B$2:$D$21,3,FALSE))<24000,VLOOKUP(I13,C_UKG!$B$2:$D$21,3,FALSE)+VLOOKUP($B139,C_UKG!$B$2:$D$21,3,FALSE),"--"),"--") -> -- | J139: =IFERROR(IF((VLOOKUP(J13,C_UKG!$B$2:$D$21,3,FALSE)+VLOOKUP($B139,C_UKG!$B$2:$D$21,3,FALSE))<24000,VLOOKUP(J13,C_UKG!$B$2:$D$21,3,FALSE)+VLOOKUP($B139,C_UKG!$B$2:$D$21,3,FALSE),"--"),"--") -> -- | K139: =IFERROR(IF((VLOOKUP(K13,C_UKG!$B$2:$D$21,3,FALSE)+VLOOKUP($B139,C_UKG!$B$2:$D$21,3,FALSE))<24000,VLOOKUP(K13,C_UKG!$B$2:$D$21,3,FALSE)+VLOOKUP($B139,C_UKG!$B$2:$D$21,3,FALSE),"--"),"--") -> -- | L139: =IFERROR(IF((VLOOKUP(L13,C_UKG!$B$2:$D$21,3,FALSE)+VLOOKUP($B139,C_UKG!$B$2:$D$21,3,FALSE))<24000,VLOOKUP(L13,C_UKG!$B$2:$D$21,3,FALSE)+VLOOKUP($B139,C_UKG!$B$2:$D$21,3,FALSE),"--"),"--") -> -- | M139: =IFERROR(IF((VLOOKUP(M13,C_UKG!$B$2:$D$21,3,FALSE)+VLOOKUP($B139,C_UKG!$B$2:$D$21,3,FALSE))<24000,VLOOKUP(M13,C_UKG!$B$2:$D$21,3,FALSE)+VLOOKUP($B139,C_UKG!$B$2:$D$21,3,FALSE),"--"),"--") -> -- | N139: =IFERROR(IF((VLOOKUP(N13,C_UKG!$B$2:$D$21,3,FALSE)+VLOOKUP($B139,C_UKG!$B$2:$D$21,3,FALSE))<24000,VLOOKUP(N13,C_UKG!$B$2:$D$21,3,FALSE)+VLOOKUP($B139,C_UKG!$B$2:$D$21,3,FALSE),"--"),"--") -> -- | O139: =IFERROR(IF((VLOOKUP(O13,C_UKG!$B$2:$D$21,3,FALSE)+VLOOKUP($B139,C_UKG!$B$2:$D$21,3,FALSE))<24000,VLOOKUP(O13,C_UKG!$B$2:$D$21,3,FALSE)+VLOOKUP($B139,C_UKG!$B$2:$D$21,3,FALSE),"--"),"--") -> -- | P139: =IFERROR(IF((VLOOKUP(P13,C_UKG!$B$2:$D$21,3,FALSE)+VLOOKUP($B139,C_UKG!$B$2:$D$21,3,FALSE))<24000,VLOOKUP(P13,C_UKG!$B$2:$D$21,3,FALSE)+VLOOKUP($B139,C_UKG!$B$2:$D$21,3,FALSE),"--"),"--") -> -- | Q139: =IFERROR(IF((VLOOKUP(Q13,C_UKG!$B$2:$D$21,3,FALSE)+VLOOKUP($B139,C_UKG!$B$2:$D$21,3,FALSE))<24000,VLOOKUP(Q13,C_UKG!$B$2:$D$21,3,FALSE)+VLOOKUP($B139,C_UKG!$B$2:$D$21,3,FALSE),"--"),"--") -> -- | R139: =IFERROR(IF((VLOOKUP(R13,C_UKG!$B$2:$D$21,3,FALSE)+VLOOKUP($B139,C_UKG!$B$2:$D$21,3,FALSE))<24000,VLOOKUP(R13,C_UKG!$B$2:$D$21,3,FALSE)+VLOOKUP($B139,C_UKG!$B$2:$D$21,3,FALSE),"--"),"--") -> -- | S139: =IFERROR(IF((VLOOKUP(S13,C_UKG!$B$2:$D$21,3,FALSE)+VLOOKUP($B139,C_UKG!$B$2:$D$21,3,FALSE))<24000,VLOOKUP(S13,C_UKG!$B$2:$D$21,3,FALSE)+VLOOKUP($B139,C_UKG!$B$2:$D$21,3,FALSE),"--"),"--") -> -- | T139: =IFERROR(IF((VLOOKUP(T13,C_UKG!$B$2:$D$21,3,FALSE)+VLOOKUP($B139,C_UKG!$B$2:$D$21,3,FALSE))<24000,VLOOKUP(T13,C_UKG!$B$2:$D$21,3,FALSE)+VLOOKUP($B139,C_UKG!$B$2:$D$21,3,FALSE),"--"),"--") -> -- | U139: =IFERROR(IF((VLOOKUP(U13,C_UKG!$B$2:$D$21,3,FALSE)+VLOOKUP($B139,C_UKG!$B$2:$D$21,3,FALSE))<24000,VLOOKUP(U13,C_UKG!$B$2:$D$21,3,FALSE)+VLOOKUP($B139,C_UKG!$B$2:$D$21,3,FALSE),"--"),"--") -> -- | V139: =IFERROR(IF((VLOOKUP(V13,C_UKG!$B$2:$D$21,3,FALSE)+VLOOKUP($B139,C_UKG!$B$2:$D$21,3,FALSE))<24000,VLOOKUP(V13,C_UKG!$B$2:$D$21,3,FALSE)+VLOOKUP($B139,C_UKG!$B$2:$D$21,3,FALSE),"--"),"--") -> --
A140: 10 | B140: D | C140: =IFERROR(IF((VLOOKUP(C14,C_UKG!$B$2:$D$21,3,FALSE)+VLOOKUP($B140,C_UKG!$B$2:$D$21,3,FALSE))<24000,VLOOKUP(C14,C_UKG!$B$2:$D$21,3,FALSE)+VLOOKUP($B140,C_UKG!$B$2:$D$21,3,FALSE),"--"),"--") -> -- | D140: =IFERROR(IF((VLOOKUP(D14,C_UKG!$B$2:$D$21,3,FALSE)+VLOOKUP($B140,C_UKG!$B$2:$D$21,3,FALSE))<24000,VLOOKUP(D14,C_UKG!$B$2:$D$21,3,FALSE)+VLOOKUP($B140,C_UKG!$B$2:$D$21,3,FALSE),"--"),"--") -> -- | E140: =IFERROR(IF((VLOOKUP(E14,C_UKG!$B$2:$D$21,3,FALSE)+VLOOKUP($B140,C_UKG!$B$2:$D$21,3,FALSE))<24000,VLOOKUP(E14,C_UKG!$B$2:$D$21,3,FALSE)+VLOOKUP($B140,C_UKG!$B$2:$D$21,3,FALSE),"--"),"--") -> -- | F140: =IFERROR(IF((VLOOKUP(F14,C_UKG!$B$2:$D$21,3,FALSE)+VLOOKUP($B140,C_UKG!$B$2:$D$21,3,FALSE))<24000,VLOOKUP(F14,C_UKG!$B$2:$D$21,3,FALSE)+VLOOKUP($B140,C_UKG!$B$2:$D$21,3,FALSE),"--"),"--") -> -- | G140: =IFERROR(IF((VLOOKUP(G14,C_UKG!$B$2:$D$21,3,FALSE)+VLOOKUP($B140,C_UKG!$B$2:$D$21,3,FALSE))<24000,VLOOKUP(G14,C_UKG!$B$2:$D$21,3,FALSE)+VLOOKUP($B140,C_UKG!$B$2:$D$21,3,FALSE),"--"),"--") -> -- | H140: =IFERROR(IF((VLOOKUP(H14,C_UKG!$B$2:$D$21,3,FALSE)+VLOOKUP($B140,C_UKG!$B$2:$D$21,3,FALSE))<24000,VLOOKUP(H14,C_UKG!$B$2:$D$21,3,FALSE)+VLOOKUP($B140,C_UKG!$B$2:$D$21,3,FALSE),"--"),"--") -> -- | I140: =IFERROR(IF((VLOOKUP(I14,C_UKG!$B$2:$D$21,3,FALSE)+VLOOKUP($B140,C_UKG!$B$2:$D$21,3,FALSE))<24000,VLOOKUP(I14,C_UKG!$B$2:$D$21,3,FALSE)+VLOOKUP($B140,C_UKG!$B$2:$D$21,3,FALSE),"--"),"--") -> -- | J140: =IFERROR(IF((VLOOKUP(J14,C_UKG!$B$2:$D$21,3,FALSE)+VLOOKUP($B140,C_UKG!$B$2:$D$21,3,FALSE))<24000,VLOOKUP(J14,C_UKG!$B$2:$D$21,3,FALSE)+VLOOKUP($B140,C_UKG!$B$2:$D$21,3,FALSE),"--"),"--") -> -- | K140: =IFERROR(IF((VLOOKUP(K14,C_UKG!$B$2:$D$21,3,FALSE)+VLOOKUP($B140,C_UKG!$B$2:$D$21,3,FALSE))<24000,VLOOKUP(K14,C_UKG!$B$2:$D$21,3,FALSE)+VLOOKUP($B140,C_UKG!$B$2:$D$21,3,FALSE),"--"),"--") -> -- | L140: =IFERROR(IF((VLOOKUP(L14,C_UKG!$B$2:$D$21,3,FALSE)+VLOOKUP($B140,C_UKG!$B$2:$D$21,3,FALSE))<24000,VLOOKUP(L14,C_UKG!$B$2:$D$21,3,FALSE)+VLOOKUP($B140,C_UKG!$B$2:$D$21,3,FALSE),"--"),"--") -> -- | M140: =IFERROR(IF((VLOOKUP(M14,C_UKG!$B$2:$D$21,3,FALSE)+VLOOKUP($B140,C_UKG!$B$2:$D$21,3,FALSE))<24000,VLOOKUP(M14,C_UKG!$B$2:$D$21,3,FALSE)+VLOOKUP($B140,C_UKG!$B$2:$D$21,3,FALSE),"--"),"--") -> -- | N140: =IFERROR(IF((VLOOKUP(N14,C_UKG!$B$2:$D$21,3,FALSE)+VLOOKUP($B140,C_UKG!$B$2:$D$21,3,FALSE))<24000,VLOOKUP(N14,C_UKG!$B$2:$D$21,3,FALSE)+VLOOKUP($B140,C_UKG!$B$2:$D$21,3,FALSE),"--"),"--") -> -- | O140: =IFERROR(IF((VLOOKUP(O14,C_UKG!$B$2:$D$21,3,FALSE)+VLOOKUP($B140,C_UKG!$B$2:$D$21,3,FALSE))<24000,VLOOKUP(O14,C_UKG!$B$2:$D$21,3,FALSE)+VLOOKUP($B140,C_UKG!$B$2:$D$21,3,FALSE),"--"),"--") -> -- | P140: =IFERROR(IF((VLOOKUP(P14,C_UKG!$B$2:$D$21,3,FALSE)+VLOOKUP($B140,C_UKG!$B$2:$D$21,3,FALSE))<24000,VLOOKUP(P14,C_UKG!$B$2:$D$21,3,FALSE)+VLOOKUP($B140,C_UKG!$B$2:$D$21,3,FALSE),"--"),"--") -> -- | Q140: =IFERROR(IF((VLOOKUP(Q14,C_UKG!$B$2:$D$21,3,FALSE)+VLOOKUP($B140,C_UKG!$B$2:$D$21,3,FALSE))<24000,VLOOKUP(Q14,C_UKG!$B$2:$D$21,3,FALSE)+VLOOKUP($B140,C_UKG!$B$2:$D$21,3,FALSE),"--"),"--") -> -- | R140: =IFERROR(IF((VLOOKUP(R14,C_UKG!$B$2:$D$21,3,FALSE)+VLOOKUP($B140,C_UKG!$B$2:$D$21,3,FALSE))<24000,VLOOKUP(R14,C_UKG!$B$2:$D$21,3,FALSE)+VLOOKUP($B140,C_UKG!$B$2:$D$21,3,FALSE),"--"),"--") -> -- | S140: =IFERROR(IF((VLOOKUP(S14,C_UKG!$B$2:$D$21,3,FALSE)+VLOOKUP($B140,C_UKG!$B$2:$D$21,3,FALSE))<24000,VLOOKUP(S14,C_UKG!$B$2:$D$21,3,FALSE)+VLOOKUP($B140,C_UKG!$B$2:$D$21,3,FALSE),"--"),"--") -> -- | T140: =IFERROR(IF((VLOOKUP(T14,C_UKG!$B$2:$D$21,3,FALSE)+VLOOKUP($B140,C_UKG!$B$2:$D$21,3,FALSE))<24000,VLOOKUP(T14,C_UKG!$B$2:$D$21,3,FALSE)+VLOOKUP($B140,C_UKG!$B$2:$D$21,3,FALSE),"--"),"--") -> -- | U140: =IFERROR(IF((VLOOKUP(U14,C_UKG!$B$2:$D$21,3,FALSE)+VLOOKUP($B140,C_UKG!$B$2:$D$21,3,FALSE))<24000,VLOOKUP(U14,C_UKG!$B$2:$D$21,3,FALSE)+VLOOKUP($B140,C_UKG!$B$2:$D$21,3,FALSE),"--"),"--") -> -- | V140: =IFERROR(IF((VLOOKUP(V14,C_UKG!$B$2:$D$21,3,FALSE)+VLOOKUP($B140,C_UKG!$B$2:$D$21,3,FALSE))<24000,VLOOKUP(V14,C_UKG!$B$2:$D$21,3,FALSE)+VLOOKUP($B140,C_UKG!$B$2:$D$21,3,FALSE),"--"),"--") -> --
A141: 11 | C141: =IFERROR(IF((VLOOKUP(C15,C_UKG!$B$2:$D$21,3,FALSE)+VLOOKUP($B141,C_UKG!$B$2:$D$21,3,FALSE))<24000,VLOOKUP(C15,C_UKG!$B$2:$D$21,3,FALSE)+VLOOKUP($B141,C_UKG!$B$2:$D$21,3,FALSE),"--"),"--") -> -- | D141: =IFERROR(IF((VLOOKUP(D15,C_UKG!$B$2:$D$21,3,FALSE)+VLOOKUP($B141,C_UKG!$B$2:$D$21,3,FALSE))<24000,VLOOKUP(D15,C_UKG!$B$2:$D$21,3,FALSE)+VLOOKUP($B141,C_UKG!$B$2:$D$21,3,FALSE),"--"),"--") -> -- | E141: =IFERROR(IF((VLOOKUP(E15,C_UKG!$B$2:$D$21,3,FALSE)+VLOOKUP($B141,C_UKG!$B$2:$D$21,3,FALSE))<24000,VLOOKUP(E15,C_UKG!$B$2:$D$21,3,FALSE)+VLOOKUP($B141,C_UKG!$B$2:$D$21,3,FALSE),"--"),"--") -> -- | F141: =IFERROR(IF((VLOOKUP(F15,C_UKG!$B$2:$D$21,3,FALSE)+VLOOKUP($B141,C_UKG!$B$2:$D$21,3,FALSE))<24000,VLOOKUP(F15,C_UKG!$B$2:$D$21,3,FALSE)+VLOOKUP($B141,C_UKG!$B$2:$D$21,3,FALSE),"--"),"--") -> -- | G141: =IFERROR(IF((VLOOKUP(G15,C_UKG!$B$2:$D$21,3,FALSE)+VLOOKUP($B141,C_UKG!$B$2:$D$21,3,FALSE))<24000,VLOOKUP(G15,C_UKG!$B$2:$D$21,3,FALSE)+VLOOKUP($B141,C_UKG!$B$2:$D$21,3,FALSE),"--"),"--") -> -- | H141: =IFERROR(IF((VLOOKUP(H15,C_UKG!$B$2:$D$21,3,FALSE)+VLOOKUP($B141,C_UKG!$B$2:$D$21,3,FALSE))<24000,VLOOKUP(H15,C_UKG!$B$2:$D$21,3,FALSE)+VLOOKUP($B141,C_UKG!$B$2:$D$21,3,FALSE),"--"),"--") -> -- | I141: =IFERROR(IF((VLOOKUP(I15,C_UKG!$B$2:$D$21,3,FALSE)+VLOOKUP($B141,C_UKG!$B$2:$D$21,3,FALSE))<24000,VLOOKUP(I15,C_UKG!$B$2:$D$21,3,FALSE)+VLOOKUP($B141,C_UKG!$B$2:$D$21,3,FALSE),"--"),"--") -> -- | J141: =IFERROR(IF((VLOOKUP(J15,C_UKG!$B$2:$D$21,3,FALSE)+VLOOKUP($B141,C_UKG!$B$2:$D$21,3,FALSE))<24000,VLOOKUP(J15,C_UKG!$B$2:$D$21,3,FALSE)+VLOOKUP($B141,C_UKG!$B$2:$D$21,3,FALSE),"--"),"--") -> -- | K141: =IFERROR(IF((VLOOKUP(K15,C_UKG!$B$2:$D$21,3,FALSE)+VLOOKUP($B141,C_UKG!$B$2:$D$21,3,FALSE))<24000,VLOOKUP(K15,C_UKG!$B$2:$D$21,3,FALSE)+VLOOKUP($B141,C_UKG!$B$2:$D$21,3,FALSE),"--"),"--") -> -- | L141: =IFERROR(IF((VLOOKUP(L15,C_UKG!$B$2:$D$21,3,FALSE)+VLOOKUP($B141,C_UKG!$B$2:$D$21,3,FALSE))<24000,VLOOKUP(L15,C_UKG!$B$2:$D$21,3,FALSE)+VLOOKUP($B141,C_UKG!$B$2:$D$21,3,FALSE),"--"),"--") -> -- | M141: =IFERROR(IF((VLOOKUP(M15,C_UKG!$B$2:$D$21,3,FALSE)+VLOOKUP($B141,C_UKG!$B$2:$D$21,3,FALSE))<24000,VLOOKUP(M15,C_UKG!$B$2:$D$21,3,FALSE)+VLOOKUP($B141,C_UKG!$B$2:$D$21,3,FALSE),"--"),"--") -> -- | N141: =IFERROR(IF((VLOOKUP(N15,C_UKG!$B$2:$D$21,3,FALSE)+VLOOKUP($B141,C_UKG!$B$2:$D$21,3,FALSE))<24000,VLOOKUP(N15,C_UKG!$B$2:$D$21,3,FALSE)+VLOOKUP($B141,C_UKG!$B$2:$D$21,3,FALSE),"--"),"--") -> -- | O141: =IFERROR(IF((VLOOKUP(O15,C_UKG!$B$2:$D$21,3,FALSE)+VLOOKUP($B141,C_UKG!$B$2:$D$21,3,FALSE))<24000,VLOOKUP(O15,C_UKG!$B$2:$D$21,3,FALSE)+VLOOKUP($B141,C_UKG!$B$2:$D$21,3,FALSE),"--"),"--") -> -- | P141: =IFERROR(IF((VLOOKUP(P15,C_UKG!$B$2:$D$21,3,FALSE)+VLOOKUP($B141,C_UKG!$B$2:$D$21,3,FALSE))<24000,VLOOKUP(P15,C_UKG!$B$2:$D$21,3,FALSE)+VLOOKUP($B141,C_UKG!$B$2:$D$21,3,FALSE),"--"),"--") -> -- | Q141: =IFERROR(IF((VLOOKUP(Q15,C_UKG!$B$2:$D$21,3,FALSE)+VLOOKUP($B141,C_UKG!$B$2:$D$21,3,FALSE))<24000,VLOOKUP(Q15,C_UKG!$B$2:$D$21,3,FALSE)+VLOOKUP($B141,C_UKG!$B$2:$D$21,3,FALSE),"--"),"--") -> -- | R141: =IFERROR(IF((VLOOKUP(R15,C_UKG!$B$2:$D$21,3,FALSE)+VLOOKUP($B141,C_UKG!$B$2:$D$21,3,FALSE))<24000,VLOOKUP(R15,C_UKG!$B$2:$D$21,3,FALSE)+VLOOKUP($B141,C_UKG!$B$2:$D$21,3,FALSE),"--"),"--") -> -- | S141: =IFERROR(IF((VLOOKUP(S15,C_UKG!$B$2:$D$21,3,FALSE)+VLOOKUP($B141,C_UKG!$B$2:$D$21,3,FALSE))<24000,VLOOKUP(S15,C_UKG!$B$2:$D$21,3,FALSE)+VLOOKUP($B141,C_UKG!$B$2:$D$21,3,FALSE),"--"),"--") -> -- | T141: =IFERROR(IF((VLOOKUP(T15,C_UKG!$B$2:$D$21,3,FALSE)+VLOOKUP($B141,C_UKG!$B$2:$D$21,3,FALSE))<24000,VLOOKUP(T15,C_UKG!$B$2:$D$21,3,FALSE)+VLOOKUP($B141,C_UKG!$B$2:$D$21,3,FALSE),"--"),"--") -> -- | U141: =IFERROR(IF((VLOOKUP(U15,C_UKG!$B$2:$D$21,3,FALSE)+VLOOKUP($B141,C_UKG!$B$2:$D$21,3,FALSE))<24000,VLOOKUP(U15,C_UKG!$B$2:$D$21,3,FALSE)+VLOOKUP($B141,C_UKG!$B$2:$D$21,3,FALSE),"--"),"--") -> -- | V141: =IFERROR(IF((VLOOKUP(V15,C_UKG!$B$2:$D$21,3,FALSE)+VLOOKUP($B141,C_UKG!$B$2:$D$21,3,FALSE))<24000,VLOOKUP(V15,C_UKG!$B$2:$D$21,3,FALSE)+VLOOKUP($B141,C_UKG!$B$2:$D$21,3,FALSE),"--"),"--") -> --
A142: 12 | C142: =IFERROR(IF((VLOOKUP(C16,C_UKG!$B$2:$D$21,3,FALSE)+VLOOKUP($B142,C_UKG!$B$2:$D$21,3,FALSE))<24000,VLOOKUP(C16,C_UKG!$B$2:$D$21,3,FALSE)+VLOOKUP($B142,C_UKG!$B$2:$D$21,3,FALSE),"--"),"--") -> -- | D142: =IFERROR(IF((VLOOKUP(D16,C_UKG!$B$2:$D$21,3,FALSE)+VLOOKUP($B142,C_UKG!$B$2:$D$21,3,FALSE))<24000,VLOOKUP(D16,C_UKG!$B$2:$D$21,3,FALSE)+VLOOKUP($B142,C_UKG!$B$2:$D$21,3,FALSE),"--"),"--") -> -- | E142: =IFERROR(IF((VLOOKUP(E16,C_UKG!$B$2:$D$21,3,FALSE)+VLOOKUP($B142,C_UKG!$B$2:$D$21,3,FALSE))<24000,VLOOKUP(E16,C_UKG!$B$2:$D$21,3,FALSE)+VLOOKUP($B142,C_UKG!$B$2:$D$21,3,FALSE),"--"),"--") -> -- | F142: =IFERROR(IF((VLOOKUP(F16,C_UKG!$B$2:$D$21,3,FALSE)+VLOOKUP($B142,C_UKG!$B$2:$D$21,3,FALSE))<24000,VLOOKUP(F16,C_UKG!$B$2:$D$21,3,FALSE)+VLOOKUP($B142,C_UKG!$B$2:$D$21,3,FALSE),"--"),"--") -> -- | G142: =IFERROR(IF((VLOOKUP(G16,C_UKG!$B$2:$D$21,3,FALSE)+VLOOKUP($B142,C_UKG!$B$2:$D$21,3,FALSE))<24000,VLOOKUP(G16,C_UKG!$B$2:$D$21,3,FALSE)+VLOOKUP($B142,C_UKG!$B$2:$D$21,3,FALSE),"--"),"--") -> -- | H142: =IFERROR(IF((VLOOKUP(H16,C_UKG!$B$2:$D$21,3,FALSE)+VLOOKUP($B142,C_UKG!$B$2:$D$21,3,FALSE))<24000,VLOOKUP(H16,C_UKG!$B$2:$D$21,3,FALSE)+VLOOKUP($B142,C_UKG!$B$2:$D$21,3,FALSE),"--"),"--") -> -- | I142: =IFERROR(IF((VLOOKUP(I16,C_UKG!$B$2:$D$21,3,FALSE)+VLOOKUP($B142,C_UKG!$B$2:$D$21,3,FALSE))<24000,VLOOKUP(I16,C_UKG!$B$2:$D$21,3,FALSE)+VLOOKUP($B142,C_UKG!$B$2:$D$21,3,FALSE),"--"),"--") -> -- | J142: =IFERROR(IF((VLOOKUP(J16,C_UKG!$B$2:$D$21,3,FALSE)+VLOOKUP($B142,C_UKG!$B$2:$D$21,3,FALSE))<24000,VLOOKUP(J16,C_UKG!$B$2:$D$21,3,FALSE)+VLOOKUP($B142,C_UKG!$B$2:$D$21,3,FALSE),"--"),"--") -> -- | K142: =IFERROR(IF((VLOOKUP(K16,C_UKG!$B$2:$D$21,3,FALSE)+VLOOKUP($B142,C_UKG!$B$2:$D$21,3,FALSE))<24000,VLOOKUP(K16,C_UKG!$B$2:$D$21,3,FALSE)+VLOOKUP($B142,C_UKG!$B$2:$D$21,3,FALSE),"--"),"--") -> -- | L142: =IFERROR(IF((VLOOKUP(L16,C_UKG!$B$2:$D$21,3,FALSE)+VLOOKUP($B142,C_UKG!$B$2:$D$21,3,FALSE))<24000,VLOOKUP(L16,C_UKG!$B$2:$D$21,3,FALSE)+VLOOKUP($B142,C_UKG!$B$2:$D$21,3,FALSE),"--"),"--") -> -- | M142: =IFERROR(IF((VLOOKUP(M16,C_UKG!$B$2:$D$21,3,FALSE)+VLOOKUP($B142,C_UKG!$B$2:$D$21,3,FALSE))<24000,VLOOKUP(M16,C_UKG!$B$2:$D$21,3,FALSE)+VLOOKUP($B142,C_UKG!$B$2:$D$21,3,FALSE),"--"),"--") -> -- | N142: =IFERROR(IF((VLOOKUP(N16,C_UKG!$B$2:$D$21,3,FALSE)+VLOOKUP($B142,C_UKG!$B$2:$D$21,3,FALSE))<24000,VLOOKUP(N16,C_UKG!$B$2:$D$21,3,FALSE)+VLOOKUP($B142,C_UKG!$B$2:$D$21,3,FALSE),"--"),"--") -> -- | O142: =IFERROR(IF((VLOOKUP(O16,C_UKG!$B$2:$D$21,3,FALSE)+VLOOKUP($B142,C_UKG!$B$2:$D$21,3,FALSE))<24000,VLOOKUP(O16,C_UKG!$B$2:$D$21,3,FALSE)+VLOOKUP($B142,C_UKG!$B$2:$D$21,3,FALSE),"--"),"--") -> -- | P142: =IFERROR(IF((VLOOKUP(P16,C_UKG!$B$2:$D$21,3,FALSE)+VLOOKUP($B142,C_UKG!$B$2:$D$21,3,FALSE))<24000,VLOOKUP(P16,C_UKG!$B$2:$D$21,3,FALSE)+VLOOKUP($B142,C_UKG!$B$2:$D$21,3,FALSE),"--"),"--") -> -- | Q142: =IFERROR(IF((VLOOKUP(Q16,C_UKG!$B$2:$D$21,3,FALSE)+VLOOKUP($B142,C_UKG!$B$2:$D$21,3,FALSE))<24000,VLOOKUP(Q16,C_UKG!$B$2:$D$21,3,FALSE)+VLOOKUP($B142,C_UKG!$B$2:$D$21,3,FALSE),"--"),"--") -> -- | R142: =IFERROR(IF((VLOOKUP(R16,C_UKG!$B$2:$D$21,3,FALSE)+VLOOKUP($B142,C_UKG!$B$2:$D$21,3,FALSE))<24000,VLOOKUP(R16,C_UKG!$B$2:$D$21,3,FALSE)+VLOOKUP($B142,C_UKG!$B$2:$D$21,3,FALSE),"--"),"--") -> -- | S142: =IFERROR(IF((VLOOKUP(S16,C_UKG!$B$2:$D$21,3,FALSE)+VLOOKUP($B142,C_UKG!$B$2:$D$21,3,FALSE))<24000,VLOOKUP(S16,C_UKG!$B$2:$D$21,3,FALSE)+VLOOKUP($B142,C_UKG!$B$2:$D$21,3,FALSE),"--"),"--") -> -- | T142: =IFERROR(IF((VLOOKUP(T16,C_UKG!$B$2:$D$21,3,FALSE)+VLOOKUP($B142,C_UKG!$B$2:$D$21,3,FALSE))<24000,VLOOKUP(T16,C_UKG!$B$2:$D$21,3,FALSE)+VLOOKUP($B142,C_UKG!$B$2:$D$21,3,FALSE),"--"),"--") -> -- | U142: =IFERROR(IF((VLOOKUP(U16,C_UKG!$B$2:$D$21,3,FALSE)+VLOOKUP($B142,C_UKG!$B$2:$D$21,3,FALSE))<24000,VLOOKUP(U16,C_UKG!$B$2:$D$21,3,FALSE)+VLOOKUP($B142,C_UKG!$B$2:$D$21,3,FALSE),"--"),"--") -> -- | V142: =IFERROR(IF((VLOOKUP(V16,C_UKG!$B$2:$D$21,3,FALSE)+VLOOKUP($B142,C_UKG!$B$2:$D$21,3,FALSE))<24000,VLOOKUP(V16,C_UKG!$B$2:$D$21,3,FALSE)+VLOOKUP($B142,C_UKG!$B$2:$D$21,3,FALSE),"--"),"--") -> --
A143: 13 | B143: E | C143: =IFERROR(IF((VLOOKUP(C17,C_UKG!$B$2:$D$21,3,FALSE)+VLOOKUP($B143,C_UKG!$B$2:$D$21,3,FALSE))<24000,VLOOKUP(C17,C_UKG!$B$2:$D$21,3,FALSE)+VLOOKUP($B143,C_UKG!$B$2:$D$21,3,FALSE),"--"),"--") -> -- | D143: =IFERROR(IF((VLOOKUP(D17,C_UKG!$B$2:$D$21,3,FALSE)+VLOOKUP($B143,C_UKG!$B$2:$D$21,3,FALSE))<24000,VLOOKUP(D17,C_UKG!$B$2:$D$21,3,FALSE)+VLOOKUP($B143,C_UKG!$B$2:$D$21,3,FALSE),"--"),"--") -> -- | E143: =IFERROR(IF((VLOOKUP(E17,C_UKG!$B$2:$D$21,3,FALSE)+VLOOKUP($B143,C_UKG!$B$2:$D$21,3,FALSE))<24000,VLOOKUP(E17,C_UKG!$B$2:$D$21,3,FALSE)+VLOOKUP($B143,C_UKG!$B$2:$D$21,3,FALSE),"--"),"--") -> -- | F143: =IFERROR(IF((VLOOKUP(F17,C_UKG!$B$2:$D$21,3,FALSE)+VLOOKUP($B143,C_UKG!$B$2:$D$21,3,FALSE))<24000,VLOOKUP(F17,C_UKG!$B$2:$D$21,3,FALSE)+VLOOKUP($B143,C_UKG!$B$2:$D$21,3,FALSE),"--"),"--") -> -- | G143: =IFERROR(IF((VLOOKUP(G17,C_UKG!$B$2:$D$21,3,FALSE)+VLOOKUP($B143,C_UKG!$B$2:$D$21,3,FALSE))<24000,VLOOKUP(G17,C_UKG!$B$2:$D$21,3,FALSE)+VLOOKUP($B143,C_UKG!$B$2:$D$21,3,FALSE),"--"),"--") -> -- | H143: =IFERROR(IF((VLOOKUP(H17,C_UKG!$B$2:$D$21,3,FALSE)+VLOOKUP($B143,C_UKG!$B$2:$D$21,3,FALSE))<24000,VLOOKUP(H17,C_UKG!$B$2:$D$21,3,FALSE)+VLOOKUP($B143,C_UKG!$B$2:$D$21,3,FALSE),"--"),"--") -> -- | I143: =IFERROR(IF((VLOOKUP(I17,C_UKG!$B$2:$D$21,3,FALSE)+VLOOKUP($B143,C_UKG!$B$2:$D$21,3,FALSE))<24000,VLOOKUP(I17,C_UKG!$B$2:$D$21,3,FALSE)+VLOOKUP($B143,C_UKG!$B$2:$D$21,3,FALSE),"--"),"--") -> -- | J143: =IFERROR(IF((VLOOKUP(J17,C_UKG!$B$2:$D$21,3,FALSE)+VLOOKUP($B143,C_UKG!$B$2:$D$21,3,FALSE))<24000,VLOOKUP(J17,C_UKG!$B$2:$D$21,3,FALSE)+VLOOKUP($B143,C_UKG!$B$2:$D$21,3,FALSE),"--"),"--") -> -- | K143: =IFERROR(IF((VLOOKUP(K17,C_UKG!$B$2:$D$21,3,FALSE)+VLOOKUP($B143,C_UKG!$B$2:$D$21,3,FALSE))<24000,VLOOKUP(K17,C_UKG!$B$2:$D$21,3,FALSE)+VLOOKUP($B143,C_UKG!$B$2:$D$21,3,FALSE),"--"),"--") -> -- | L143: =IFERROR(IF((VLOOKUP(L17,C_UKG!$B$2:$D$21,3,FALSE)+VLOOKUP($B143,C_UKG!$B$2:$D$21,3,FALSE))<24000,VLOOKUP(L17,C_UKG!$B$2:$D$21,3,FALSE)+VLOOKUP($B143,C_UKG!$B$2:$D$21,3,FALSE),"--"),"--") -> -- | M143: =IFERROR(IF((VLOOKUP(M17,C_UKG!$B$2:$D$21,3,FALSE)+VLOOKUP($B143,C_UKG!$B$2:$D$21,3,FALSE))<24000,VLOOKUP(M17,C_UKG!$B$2:$D$21,3,FALSE)+VLOOKUP($B143,C_UKG!$B$2:$D$21,3,FALSE),"--"),"--") -> -- | N143: =IFERROR(IF((VLOOKUP(N17,C_UKG!$B$2:$D$21,3,FALSE)+VLOOKUP($B143,C_UKG!$B$2:$D$21,3,FALSE))<24000,VLOOKUP(N17,C_UKG!$B$2:$D$21,3,FALSE)+VLOOKUP($B143,C_UKG!$B$2:$D$21,3,FALSE),"--"),"--") -> -- | O143: =IFERROR(IF((VLOOKUP(O17,C_UKG!$B$2:$D$21,3,FALSE)+VLOOKUP($B143,C_UKG!$B$2:$D$21,3,FALSE))<24000,VLOOKUP(O17,C_UKG!$B$2:$D$21,3,FALSE)+VLOOKUP($B143,C_UKG!$B$2:$D$21,3,FALSE),"--"),"--") -> -- | P143: =IFERROR(IF((VLOOKUP(P17,C_UKG!$B$2:$D$21,3,FALSE)+VLOOKUP($B143,C_UKG!$B$2:$D$21,3,FALSE))<24000,VLOOKUP(P17,C_UKG!$B$2:$D$21,3,FALSE)+VLOOKUP($B143,C_UKG!$B$2:$D$21,3,FALSE),"--"),"--") -> -- | Q143: =IFERROR(IF((VLOOKUP(Q17,C_UKG!$B$2:$D$21,3,FALSE)+VLOOKUP($B143,C_UKG!$B$2:$D$21,3,FALSE))<24000,VLOOKUP(Q17,C_UKG!$B$2:$D$21,3,FALSE)+VLOOKUP($B143,C_UKG!$B$2:$D$21,3,FALSE),"--"),"--") -> -- | R143: =IFERROR(IF((VLOOKUP(R17,C_UKG!$B$2:$D$21,3,FALSE)+VLOOKUP($B143,C_UKG!$B$2:$D$21,3,FALSE))<24000,VLOOKUP(R17,C_UKG!$B$2:$D$21,3,FALSE)+VLOOKUP($B143,C_UKG!$B$2:$D$21,3,FALSE),"--"),"--") -> -- | S143: =IFERROR(IF((VLOOKUP(S17,C_UKG!$B$2:$D$21,3,FALSE)+VLOOKUP($B143,C_UKG!$B$2:$D$21,3,FALSE))<24000,VLOOKUP(S17,C_UKG!$B$2:$D$21,3,FALSE)+VLOOKUP($B143,C_UKG!$B$2:$D$21,3,FALSE),"--"),"--") -> -- | T143: =IFERROR(IF((VLOOKUP(T17,C_UKG!$B$2:$D$21,3,FALSE)+VLOOKUP($B143,C_UKG!$B$2:$D$21,3,FALSE))<24000,VLOOKUP(T17,C_UKG!$B$2:$D$21,3,FALSE)+VLOOKUP($B143,C_UKG!$B$2:$D$21,3,FALSE),"--"),"--") -> -- | U143: =IFERROR(IF((VLOOKUP(U17,C_UKG!$B$2:$D$21,3,FALSE)+VLOOKUP($B143,C_UKG!$B$2:$D$21,3,FALSE))<24000,VLOOKUP(U17,C_UKG!$B$2:$D$21,3,FALSE)+VLOOKUP($B143,C_UKG!$B$2:$D$21,3,FALSE),"--"),"--") -> -- | V143: =IFERROR(IF((VLOOKUP(V17,C_UKG!$B$2:$D$21,3,FALSE)+VLOOKUP($B143,C_UKG!$B$2:$D$21,3,FALSE))<24000,VLOOKUP(V17,C_UKG!$B$2:$D$21,3,FALSE)+VLOOKUP($B143,C_UKG!$B$2:$D$21,3,FALSE),"--"),"--") -> --
A144: 14 | C144: =IFERROR(IF((VLOOKUP(C18,C_UKG!$B$2:$D$21,3,FALSE)+VLOOKUP($B144,C_UKG!$B$2:$D$21,3,FALSE))<24000,VLOOKUP(C18,C_UKG!$B$2:$D$21,3,FALSE)+VLOOKUP($B144,C_UKG!$B$2:$D$21,3,FALSE),"--"),"--") -> -- | D144: =IFERROR(IF((VLOOKUP(D18,C_UKG!$B$2:$D$21,3,FALSE)+VLOOKUP($B144,C_UKG!$B$2:$D$21,3,FALSE))<24000,VLOOKUP(D18,C_UKG!$B$2:$D$21,3,FALSE)+VLOOKUP($B144,C_UKG!$B$2:$D$21,3,FALSE),"--"),"--") -> -- | E144: =IFERROR(IF((VLOOKUP(E18,C_UKG!$B$2:$D$21,3,FALSE)+VLOOKUP($B144,C_UKG!$B$2:$D$21,3,FALSE))<24000,VLOOKUP(E18,C_UKG!$B$2:$D$21,3,FALSE)+VLOOKUP($B144,C_UKG!$B$2:$D$21,3,FALSE),"--"),"--") -> -- | F144: =IFERROR(IF((VLOOKUP(F18,C_UKG!$B$2:$D$21,3,FALSE)+VLOOKUP($B144,C_UKG!$B$2:$D$21,3,FALSE))<24000,VLOOKUP(F18,C_UKG!$B$2:$D$21,3,FALSE)+VLOOKUP($B144,C_UKG!$B$2:$D$21,3,FALSE),"--"),"--") -> -- | G144: =IFERROR(IF((VLOOKUP(G18,C_UKG!$B$2:$D$21,3,FALSE)+VLOOKUP($B144,C_UKG!$B$2:$D$21,3,FALSE))<24000,VLOOKUP(G18,C_UKG!$B$2:$D$21,3,FALSE)+VLOOKUP($B144,C_UKG!$B$2:$D$21,3,FALSE),"--"),"--") -> -- | H144: =IFERROR(IF((VLOOKUP(H18,C_UKG!$B$2:$D$21,3,FALSE)+VLOOKUP($B144,C_UKG!$B$2:$D$21,3,FALSE))<24000,VLOOKUP(H18,C_UKG!$B$2:$D$21,3,FALSE)+VLOOKUP($B144,C_UKG!$B$2:$D$21,3,FALSE),"--"),"--") -> -- | I144: =IFERROR(IF((VLOOKUP(I18,C_UKG!$B$2:$D$21,3,FALSE)+VLOOKUP($B144,C_UKG!$B$2:$D$21,3,FALSE))<24000,VLOOKUP(I18,C_UKG!$B$2:$D$21,3,FALSE)+VLOOKUP($B144,C_UKG!$B$2:$D$21,3,FALSE),"--"),"--") -> -- | J144: =IFERROR(IF((VLOOKUP(J18,C_UKG!$B$2:$D$21,3,FALSE)+VLOOKUP($B144,C_UKG!$B$2:$D$21,3,FALSE))<24000,VLOOKUP(J18,C_UKG!$B$2:$D$21,3,FALSE)+VLOOKUP($B144,C_UKG!$B$2:$D$21,3,FALSE),"--"),"--") -> -- | K144: =IFERROR(IF((VLOOKUP(K18,C_UKG!$B$2:$D$21,3,FALSE)+VLOOKUP($B144,C_UKG!$B$2:$D$21,3,FALSE))<24000,VLOOKUP(K18,C_UKG!$B$2:$D$21,3,FALSE)+VLOOKUP($B144,C_UKG!$B$2:$D$21,3,FALSE),"--"),"--") -> -- | L144: =IFERROR(IF((VLOOKUP(L18,C_UKG!$B$2:$D$21,3,FALSE)+VLOOKUP($B144,C_UKG!$B$2:$D$21,3,FALSE))<24000,VLOOKUP(L18,C_UKG!$B$2:$D$21,3,FALSE)+VLOOKUP($B144,C_UKG!$B$2:$D$21,3,FALSE),"--"),"--") -> -- | M144: =IFERROR(IF((VLOOKUP(M18,C_UKG!$B$2:$D$21,3,FALSE)+VLOOKUP($B144,C_UKG!$B$2:$D$21,3,FALSE))<24000,VLOOKUP(M18,C_UKG!$B$2:$D$21,3,FALSE)+VLOOKUP($B144,C_UKG!$B$2:$D$21,3,FALSE),"--"),"--") -> -- | N144: =IFERROR(IF((VLOOKUP(N18,C_UKG!$B$2:$D$21,3,FALSE)+VLOOKUP($B144,C_UKG!$B$2:$D$21,3,FALSE))<24000,VLOOKUP(N18,C_UKG!$B$2:$D$21,3,FALSE)+VLOOKUP($B144,C_UKG!$B$2:$D$21,3,FALSE),"--"),"--") -> -- | O144: =IFERROR(IF((VLOOKUP(O18,C_UKG!$B$2:$D$21,3,FALSE)+VLOOKUP($B144,C_UKG!$B$2:$D$21,3,FALSE))<24000,VLOOKUP(O18,C_UKG!$B$2:$D$21,3,FALSE)+VLOOKUP($B144,C_UKG!$B$2:$D$21,3,FALSE),"--"),"--") -> -- | P144: =IFERROR(IF((VLOOKUP(P18,C_UKG!$B$2:$D$21,3,FALSE)+VLOOKUP($B144,C_UKG!$B$2:$D$21,3,FALSE))<24000,VLOOKUP(P18,C_UKG!$B$2:$D$21,3,FALSE)+VLOOKUP($B144,C_UKG!$B$2:$D$21,3,FALSE),"--"),"--") -> -- | Q144: =IFERROR(IF((VLOOKUP(Q18,C_UKG!$B$2:$D$21,3,FALSE)+VLOOKUP($B144,C_UKG!$B$2:$D$21,3,FALSE))<24000,VLOOKUP(Q18,C_UKG!$B$2:$D$21,3,FALSE)+VLOOKUP($B144,C_UKG!$B$2:$D$21,3,FALSE),"--"),"--") -> -- | R144: =IFERROR(IF((VLOOKUP(R18,C_UKG!$B$2:$D$21,3,FALSE)+VLOOKUP($B144,C_UKG!$B$2:$D$21,3,FALSE))<24000,VLOOKUP(R18,C_UKG!$B$2:$D$21,3,FALSE)+VLOOKUP($B144,C_UKG!$B$2:$D$21,3,FALSE),"--"),"--") -> -- | S144: =IFERROR(IF((VLOOKUP(S18,C_UKG!$B$2:$D$21,3,FALSE)+VLOOKUP($B144,C_UKG!$B$2:$D$21,3,FALSE))<24000,VLOOKUP(S18,C_UKG!$B$2:$D$21,3,FALSE)+VLOOKUP($B144,C_UKG!$B$2:$D$21,3,FALSE),"--"),"--") -> -- | T144: =IFERROR(IF((VLOOKUP(T18,C_UKG!$B$2:$D$21,3,FALSE)+VLOOKUP($B144,C_UKG!$B$2:$D$21,3,FALSE))<24000,VLOOKUP(T18,C_UKG!$B$2:$D$21,3,FALSE)+VLOOKUP($B144,C_UKG!$B$2:$D$21,3,FALSE),"--"),"--") -> -- | U144: =IFERROR(IF((VLOOKUP(U18,C_UKG!$B$2:$D$21,3,FALSE)+VLOOKUP($B144,C_UKG!$B$2:$D$21,3,FALSE))<24000,VLOOKUP(U18,C_UKG!$B$2:$D$21,3,FALSE)+VLOOKUP($B144,C_UKG!$B$2:$D$21,3,FALSE),"--"),"--") -> -- | V144: =IFERROR(IF((VLOOKUP(V18,C_UKG!$B$2:$D$21,3,FALSE)+VLOOKUP($B144,C_UKG!$B$2:$D$21,3,FALSE))<24000,VLOOKUP(V18,C_UKG!$B$2:$D$21,3,FALSE)+VLOOKUP($B144,C_UKG!$B$2:$D$21,3,FALSE),"--"),"--") -> --
A145: 15 | C145: =IFERROR(IF((VLOOKUP(C19,C_UKG!$B$2:$D$21,3,FALSE)+VLOOKUP($B145,C_UKG!$B$2:$D$21,3,FALSE))<24000,VLOOKUP(C19,C_UKG!$B$2:$D$21,3,FALSE)+VLOOKUP($B145,C_UKG!$B$2:$D$21,3,FALSE),"--"),"--") -> -- | D145: =IFERROR(IF((VLOOKUP(D19,C_UKG!$B$2:$D$21,3,FALSE)+VLOOKUP($B145,C_UKG!$B$2:$D$21,3,FALSE))<24000,VLOOKUP(D19,C_UKG!$B$2:$D$21,3,FALSE)+VLOOKUP($B145,C_UKG!$B$2:$D$21,3,FALSE),"--"),"--") -> -- | E145: =IFERROR(IF((VLOOKUP(E19,C_UKG!$B$2:$D$21,3,FALSE)+VLOOKUP($B145,C_UKG!$B$2:$D$21,3,FALSE))<24000,VLOOKUP(E19,C_UKG!$B$2:$D$21,3,FALSE)+VLOOKUP($B145,C_UKG!$B$2:$D$21,3,FALSE),"--"),"--") -> -- | F145: =IFERROR(IF((VLOOKUP(F19,C_UKG!$B$2:$D$21,3,FALSE)+VLOOKUP($B145,C_UKG!$B$2:$D$21,3,FALSE))<24000,VLOOKUP(F19,C_UKG!$B$2:$D$21,3,FALSE)+VLOOKUP($B145,C_UKG!$B$2:$D$21,3,FALSE),"--"),"--") -> -- | G145: =IFERROR(IF((VLOOKUP(G19,C_UKG!$B$2:$D$21,3,FALSE)+VLOOKUP($B145,C_UKG!$B$2:$D$21,3,FALSE))<24000,VLOOKUP(G19,C_UKG!$B$2:$D$21,3,FALSE)+VLOOKUP($B145,C_UKG!$B$2:$D$21,3,FALSE),"--"),"--") -> -- | H145: =IFERROR(IF((VLOOKUP(H19,C_UKG!$B$2:$D$21,3,FALSE)+VLOOKUP($B145,C_UKG!$B$2:$D$21,3,FALSE))<24000,VLOOKUP(H19,C_UKG!$B$2:$D$21,3,FALSE)+VLOOKUP($B145,C_UKG!$B$2:$D$21,3,FALSE),"--"),"--") -> -- | I145: =IFERROR(IF((VLOOKUP(I19,C_UKG!$B$2:$D$21,3,FALSE)+VLOOKUP($B145,C_UKG!$B$2:$D$21,3,FALSE))<24000,VLOOKUP(I19,C_UKG!$B$2:$D$21,3,FALSE)+VLOOKUP($B145,C_UKG!$B$2:$D$21,3,FALSE),"--"),"--") -> -- | J145: =IFERROR(IF((VLOOKUP(J19,C_UKG!$B$2:$D$21,3,FALSE)+VLOOKUP($B145,C_UKG!$B$2:$D$21,3,FALSE))<24000,VLOOKUP(J19,C_UKG!$B$2:$D$21,3,FALSE)+VLOOKUP($B145,C_UKG!$B$2:$D$21,3,FALSE),"--"),"--") -> -- | K145: =IFERROR(IF((VLOOKUP(K19,C_UKG!$B$2:$D$21,3,FALSE)+VLOOKUP($B145,C_UKG!$B$2:$D$21,3,FALSE))<24000,VLOOKUP(K19,C_UKG!$B$2:$D$21,3,FALSE)+VLOOKUP($B145,C_UKG!$B$2:$D$21,3,FALSE),"--"),"--") -> -- | L145: =IFERROR(IF((VLOOKUP(L19,C_UKG!$B$2:$D$21,3,FALSE)+VLOOKUP($B145,C_UKG!$B$2:$D$21,3,FALSE))<24000,VLOOKUP(L19,C_UKG!$B$2:$D$21,3,FALSE)+VLOOKUP($B145,C_UKG!$B$2:$D$21,3,FALSE),"--"),"--") -> -- | M145: =IFERROR(IF((VLOOKUP(M19,C_UKG!$B$2:$D$21,3,FALSE)+VLOOKUP($B145,C_UKG!$B$2:$D$21,3,FALSE))<24000,VLOOKUP(M19,C_UKG!$B$2:$D$21,3,FALSE)+VLOOKUP($B145,C_UKG!$B$2:$D$21,3,FALSE),"--"),"--") -> -- | N145: =IFERROR(IF((VLOOKUP(N19,C_UKG!$B$2:$D$21,3,FALSE)+VLOOKUP($B145,C_UKG!$B$2:$D$21,3,FALSE))<24000,VLOOKUP(N19,C_UKG!$B$2:$D$21,3,FALSE)+VLOOKUP($B145,C_UKG!$B$2:$D$21,3,FALSE),"--"),"--") -> -- | O145: =IFERROR(IF((VLOOKUP(O19,C_UKG!$B$2:$D$21,3,FALSE)+VLOOKUP($B145,C_UKG!$B$2:$D$21,3,FALSE))<24000,VLOOKUP(O19,C_UKG!$B$2:$D$21,3,FALSE)+VLOOKUP($B145,C_UKG!$B$2:$D$21,3,FALSE),"--"),"--") -> -- | P145: =IFERROR(IF((VLOOKUP(P19,C_UKG!$B$2:$D$21,3,FALSE)+VLOOKUP($B145,C_UKG!$B$2:$D$21,3,FALSE))<24000,VLOOKUP(P19,C_UKG!$B$2:$D$21,3,FALSE)+VLOOKUP($B145,C_UKG!$B$2:$D$21,3,FALSE),"--"),"--") -> -- | Q145: =IFERROR(IF((VLOOKUP(Q19,C_UKG!$B$2:$D$21,3,FALSE)+VLOOKUP($B145,C_UKG!$B$2:$D$21,3,FALSE))<24000,VLOOKUP(Q19,C_UKG!$B$2:$D$21,3,FALSE)+VLOOKUP($B145,C_UKG!$B$2:$D$21,3,FALSE),"--"),"--") -> -- | R145: =IFERROR(IF((VLOOKUP(R19,C_UKG!$B$2:$D$21,3,FALSE)+VLOOKUP($B145,C_UKG!$B$2:$D$21,3,FALSE))<24000,VLOOKUP(R19,C_UKG!$B$2:$D$21,3,FALSE)+VLOOKUP($B145,C_UKG!$B$2:$D$21,3,FALSE),"--"),"--") -> -- | S145: =IFERROR(IF((VLOOKUP(S19,C_UKG!$B$2:$D$21,3,FALSE)+VLOOKUP($B145,C_UKG!$B$2:$D$21,3,FALSE))<24000,VLOOKUP(S19,C_UKG!$B$2:$D$21,3,FALSE)+VLOOKUP($B145,C_UKG!$B$2:$D$21,3,FALSE),"--"),"--") -> -- | T145: =IFERROR(IF((VLOOKUP(T19,C_UKG!$B$2:$D$21,3,FALSE)+VLOOKUP($B145,C_UKG!$B$2:$D$21,3,FALSE))<24000,VLOOKUP(T19,C_UKG!$B$2:$D$21,3,FALSE)+VLOOKUP($B145,C_UKG!$B$2:$D$21,3,FALSE),"--"),"--") -> -- | U145: =IFERROR(IF((VLOOKUP(U19,C_UKG!$B$2:$D$21,3,FALSE)+VLOOKUP($B145,C_UKG!$B$2:$D$21,3,FALSE))<24000,VLOOKUP(U19,C_UKG!$B$2:$D$21,3,FALSE)+VLOOKUP($B145,C_UKG!$B$2:$D$21,3,FALSE),"--"),"--") -> -- | V145: =IFERROR(IF((VLOOKUP(V19,C_UKG!$B$2:$D$21,3,FALSE)+VLOOKUP($B145,C_UKG!$B$2:$D$21,3,FALSE))<24000,VLOOKUP(V19,C_UKG!$B$2:$D$21,3,FALSE)+VLOOKUP($B145,C_UKG!$B$2:$D$21,3,FALSE),"--"),"--") -> --
A146: 16 | B146: F | C146: =IFERROR(IF((VLOOKUP(C20,C_UKG!$B$2:$D$21,3,FALSE)+VLOOKUP($B146,C_UKG!$B$2:$D$21,3,FALSE))<24000,VLOOKUP(C20,C_UKG!$B$2:$D$21,3,FALSE)+VLOOKUP($B146,C_UKG!$B$2:$D$21,3,FALSE),"--"),"--") -> -- | D146: =IFERROR(IF((VLOOKUP(D20,C_UKG!$B$2:$D$21,3,FALSE)+VLOOKUP($B146,C_UKG!$B$2:$D$21,3,FALSE))<24000,VLOOKUP(D20,C_UKG!$B$2:$D$21,3,FALSE)+VLOOKUP($B146,C_UKG!$B$2:$D$21,3,FALSE),"--"),"--") -> -- | E146: =IFERROR(IF((VLOOKUP(E20,C_UKG!$B$2:$D$21,3,FALSE)+VLOOKUP($B146,C_UKG!$B$2:$D$21,3,FALSE))<24000,VLOOKUP(E20,C_UKG!$B$2:$D$21,3,FALSE)+VLOOKUP($B146,C_UKG!$B$2:$D$21,3,FALSE),"--"),"--") -> -- | F146: =IFERROR(IF((VLOOKUP(F20,C_UKG!$B$2:$D$21,3,FALSE)+VLOOKUP($B146,C_UKG!$B$2:$D$21,3,FALSE))<24000,VLOOKUP(F20,C_UKG!$B$2:$D$21,3,FALSE)+VLOOKUP($B146,C_UKG!$B$2:$D$21,3,FALSE),"--"),"--") -> -- | G146: =IFERROR(IF((VLOOKUP(G20,C_UKG!$B$2:$D$21,3,FALSE)+VLOOKUP($B146,C_UKG!$B$2:$D$21,3,FALSE))<24000,VLOOKUP(G20,C_UKG!$B$2:$D$21,3,FALSE)+VLOOKUP($B146,C_UKG!$B$2:$D$21,3,FALSE),"--"),"--") -> -- | H146: =IFERROR(IF((VLOOKUP(H20,C_UKG!$B$2:$D$21,3,FALSE)+VLOOKUP($B146,C_UKG!$B$2:$D$21,3,FALSE))<24000,VLOOKUP(H20,C_UKG!$B$2:$D$21,3,FALSE)+VLOOKUP($B146,C_UKG!$B$2:$D$21,3,FALSE),"--"),"--") -> -- | I146: =IFERROR(IF((VLOOKUP(I20,C_UKG!$B$2:$D$21,3,FALSE)+VLOOKUP($B146,C_UKG!$B$2:$D$21,3,FALSE))<24000,VLOOKUP(I20,C_UKG!$B$2:$D$21,3,FALSE)+VLOOKUP($B146,C_UKG!$B$2:$D$21,3,FALSE),"--"),"--") -> -- | J146: =IFERROR(IF((VLOOKUP(J20,C_UKG!$B$2:$D$21,3,FALSE)+VLOOKUP($B146,C_UKG!$B$2:$D$21,3,FALSE))<24000,VLOOKUP(J20,C_UKG!$B$2:$D$21,3,FALSE)+VLOOKUP($B146,C_UKG!$B$2:$D$21,3,FALSE),"--"),"--") -> -- | K146: =IFERROR(IF((VLOOKUP(K20,C_UKG!$B$2:$D$21,3,FALSE)+VLOOKUP($B146,C_UKG!$B$2:$D$21,3,FALSE))<24000,VLOOKUP(K20,C_UKG!$B$2:$D$21,3,FALSE)+VLOOKUP($B146,C_UKG!$B$2:$D$21,3,FALSE),"--"),"--") -> -- | L146: =IFERROR(IF((VLOOKUP(L20,C_UKG!$B$2:$D$21,3,FALSE)+VLOOKUP($B146,C_UKG!$B$2:$D$21,3,FALSE))<24000,VLOOKUP(L20,C_UKG!$B$2:$D$21,3,FALSE)+VLOOKUP($B146,C_UKG!$B$2:$D$21,3,FALSE),"--"),"--") -> -- | M146: =IFERROR(IF((VLOOKUP(M20,C_UKG!$B$2:$D$21,3,FALSE)+VLOOKUP($B146,C_UKG!$B$2:$D$21,3,FALSE))<24000,VLOOKUP(M20,C_UKG!$B$2:$D$21,3,FALSE)+VLOOKUP($B146,C_UKG!$B$2:$D$21,3,FALSE),"--"),"--") -> -- | N146: =IFERROR(IF((VLOOKUP(N20,C_UKG!$B$2:$D$21,3,FALSE)+VLOOKUP($B146,C_UKG!$B$2:$D$21,3,FALSE))<24000,VLOOKUP(N20,C_UKG!$B$2:$D$21,3,FALSE)+VLOOKUP($B146,C_UKG!$B$2:$D$21,3,FALSE),"--"),"--") -> -- | O146: =IFERROR(IF((VLOOKUP(O20,C_UKG!$B$2:$D$21,3,FALSE)+VLOOKUP($B146,C_UKG!$B$2:$D$21,3,FALSE))<24000,VLOOKUP(O20,C_UKG!$B$2:$D$21,3,FALSE)+VLOOKUP($B146,C_UKG!$B$2:$D$21,3,FALSE),"--"),"--") -> -- | P146: =IFERROR(IF((VLOOKUP(P20,C_UKG!$B$2:$D$21,3,FALSE)+VLOOKUP($B146,C_UKG!$B$2:$D$21,3,FALSE))<24000,VLOOKUP(P20,C_UKG!$B$2:$D$21,3,FALSE)+VLOOKUP($B146,C_UKG!$B$2:$D$21,3,FALSE),"--"),"--") -> -- | Q146: =IFERROR(IF((VLOOKUP(Q20,C_UKG!$B$2:$D$21,3,FALSE)+VLOOKUP($B146,C_UKG!$B$2:$D$21,3,FALSE))<24000,VLOOKUP(Q20,C_UKG!$B$2:$D$21,3,FALSE)+VLOOKUP($B146,C_UKG!$B$2:$D$21,3,FALSE),"--"),"--") -> -- | R146: =IFERROR(IF((VLOOKUP(R20,C_UKG!$B$2:$D$21,3,FALSE)+VLOOKUP($B146,C_UKG!$B$2:$D$21,3,FALSE))<24000,VLOOKUP(R20,C_UKG!$B$2:$D$21,3,FALSE)+VLOOKUP($B146,C_UKG!$B$2:$D$21,3,FALSE),"--"),"--") -> -- | S146: =IFERROR(IF((VLOOKUP(S20,C_UKG!$B$2:$D$21,3,FALSE)+VLOOKUP($B146,C_UKG!$B$2:$D$21,3,FALSE))<24000,VLOOKUP(S20,C_UKG!$B$2:$D$21,3,FALSE)+VLOOKUP($B146,C_UKG!$B$2:$D$21,3,FALSE),"--"),"--") -> -- | T146: =IFERROR(IF((VLOOKUP(T20,C_UKG!$B$2:$D$21,3,FALSE)+VLOOKUP($B146,C_UKG!$B$2:$D$21,3,FALSE))<24000,VLOOKUP(T20,C_UKG!$B$2:$D$21,3,FALSE)+VLOOKUP($B146,C_UKG!$B$2:$D$21,3,FALSE),"--"),"--") -> -- | U146: =IFERROR(IF((VLOOKUP(U20,C_UKG!$B$2:$D$21,3,FALSE)+VLOOKUP($B146,C_UKG!$B$2:$D$21,3,FALSE))<24000,VLOOKUP(U20,C_UKG!$B$2:$D$21,3,FALSE)+VLOOKUP($B146,C_UKG!$B$2:$D$21,3,FALSE),"--"),"--") -> -- | V146: =IFERROR(IF((VLOOKUP(V20,C_UKG!$B$2:$D$21,3,FALSE)+VLOOKUP($B146,C_UKG!$B$2:$D$21,3,FALSE))<24000,VLOOKUP(V20,C_UKG!$B$2:$D$21,3,FALSE)+VLOOKUP($B146,C_UKG!$B$2:$D$21,3,FALSE),"--"),"--") -> --
A147: 17 | C147: =IFERROR(IF((VLOOKUP(C21,C_UKG!$B$2:$D$21,3,FALSE)+VLOOKUP($B147,C_UKG!$B$2:$D$21,3,FALSE))<24000,VLOOKUP(C21,C_UKG!$B$2:$D$21,3,FALSE)+VLOOKUP($B147,C_UKG!$B$2:$D$21,3,FALSE),"--"),"--") -> -- | D147: =IFERROR(IF((VLOOKUP(D21,C_UKG!$B$2:$D$21,3,FALSE)+VLOOKUP($B147,C_UKG!$B$2:$D$21,3,FALSE))<24000,VLOOKUP(D21,C_UKG!$B$2:$D$21,3,FALSE)+VLOOKUP($B147,C_UKG!$B$2:$D$21,3,FALSE),"--"),"--") -> -- | E147: =IFERROR(IF((VLOOKUP(E21,C_UKG!$B$2:$D$21,3,FALSE)+VLOOKUP($B147,C_UKG!$B$2:$D$21,3,FALSE))<24000,VLOOKUP(E21,C_UKG!$B$2:$D$21,3,FALSE)+VLOOKUP($B147,C_UKG!$B$2:$D$21,3,FALSE),"--"),"--") -> -- | F147: =IFERROR(IF((VLOOKUP(F21,C_UKG!$B$2:$D$21,3,FALSE)+VLOOKUP($B147,C_UKG!$B$2:$D$21,3,FALSE))<24000,VLOOKUP(F21,C_UKG!$B$2:$D$21,3,FALSE)+VLOOKUP($B147,C_UKG!$B$2:$D$21,3,FALSE),"--"),"--") -> -- | G147: =IFERROR(IF((VLOOKUP(G21,C_UKG!$B$2:$D$21,3,FALSE)+VLOOKUP($B147,C_UKG!$B$2:$D$21,3,FALSE))<24000,VLOOKUP(G21,C_UKG!$B$2:$D$21,3,FALSE)+VLOOKUP($B147,C_UKG!$B$2:$D$21,3,FALSE),"--"),"--") -> -- | H147: =IFERROR(IF((VLOOKUP(H21,C_UKG!$B$2:$D$21,3,FALSE)+VLOOKUP($B147,C_UKG!$B$2:$D$21,3,FALSE))<24000,VLOOKUP(H21,C_UKG!$B$2:$D$21,3,FALSE)+VLOOKUP($B147,C_UKG!$B$2:$D$21,3,FALSE),"--"),"--") -> -- | I147: =IFERROR(IF((VLOOKUP(I21,C_UKG!$B$2:$D$21,3,FALSE)+VLOOKUP($B147,C_UKG!$B$2:$D$21,3,FALSE))<24000,VLOOKUP(I21,C_UKG!$B$2:$D$21,3,FALSE)+VLOOKUP($B147,C_UKG!$B$2:$D$21,3,FALSE),"--"),"--") -> -- | J147: =IFERROR(IF((VLOOKUP(J21,C_UKG!$B$2:$D$21,3,FALSE)+VLOOKUP($B147,C_UKG!$B$2:$D$21,3,FALSE))<24000,VLOOKUP(J21,C_UKG!$B$2:$D$21,3,FALSE)+VLOOKUP($B147,C_UKG!$B$2:$D$21,3,FALSE),"--"),"--") -> -- | K147: =IFERROR(IF((VLOOKUP(K21,C_UKG!$B$2:$D$21,3,FALSE)+VLOOKUP($B147,C_UKG!$B$2:$D$21,3,FALSE))<24000,VLOOKUP(K21,C_UKG!$B$2:$D$21,3,FALSE)+VLOOKUP($B147,C_UKG!$B$2:$D$21,3,FALSE),"--"),"--") -> -- | L147: =IFERROR(IF((VLOOKUP(L21,C_UKG!$B$2:$D$21,3,FALSE)+VLOOKUP($B147,C_UKG!$B$2:$D$21,3,FALSE))<24000,VLOOKUP(L21,C_UKG!$B$2:$D$21,3,FALSE)+VLOOKUP($B147,C_UKG!$B$2:$D$21,3,FALSE),"--"),"--") -> -- | M147: =IFERROR(IF((VLOOKUP(M21,C_UKG!$B$2:$D$21,3,FALSE)+VLOOKUP($B147,C_UKG!$B$2:$D$21,3,FALSE))<24000,VLOOKUP(M21,C_UKG!$B$2:$D$21,3,FALSE)+VLOOKUP($B147,C_UKG!$B$2:$D$21,3,FALSE),"--"),"--") -> -- | N147: =IFERROR(IF((VLOOKUP(N21,C_UKG!$B$2:$D$21,3,FALSE)+VLOOKUP($B147,C_UKG!$B$2:$D$21,3,FALSE))<24000,VLOOKUP(N21,C_UKG!$B$2:$D$21,3,FALSE)+VLOOKUP($B147,C_UKG!$B$2:$D$21,3,FALSE),"--"),"--") -> -- | O147: =IFERROR(IF((VLOOKUP(O21,C_UKG!$B$2:$D$21,3,FALSE)+VLOOKUP($B147,C_UKG!$B$2:$D$21,3,FALSE))<24000,VLOOKUP(O21,C_UKG!$B$2:$D$21,3,FALSE)+VLOOKUP($B147,C_UKG!$B$2:$D$21,3,FALSE),"--"),"--") -> -- | P147: =IFERROR(IF((VLOOKUP(P21,C_UKG!$B$2:$D$21,3,FALSE)+VLOOKUP($B147,C_UKG!$B$2:$D$21,3,FALSE))<24000,VLOOKUP(P21,C_UKG!$B$2:$D$21,3,FALSE)+VLOOKUP($B147,C_UKG!$B$2:$D$21,3,FALSE),"--"),"--") -> -- | Q147: =IFERROR(IF((VLOOKUP(Q21,C_UKG!$B$2:$D$21,3,FALSE)+VLOOKUP($B147,C_UKG!$B$2:$D$21,3,FALSE))<24000,VLOOKUP(Q21,C_UKG!$B$2:$D$21,3,FALSE)+VLOOKUP($B147,C_UKG!$B$2:$D$21,3,FALSE),"--"),"--") -> -- | R147: =IFERROR(IF((VLOOKUP(R21,C_UKG!$B$2:$D$21,3,FALSE)+VLOOKUP($B147,C_UKG!$B$2:$D$21,3,FALSE))<24000,VLOOKUP(R21,C_UKG!$B$2:$D$21,3,FALSE)+VLOOKUP($B147,C_UKG!$B$2:$D$21,3,FALSE),"--"),"--") -> -- | S147: =IFERROR(IF((VLOOKUP(S21,C_UKG!$B$2:$D$21,3,FALSE)+VLOOKUP($B147,C_UKG!$B$2:$D$21,3,FALSE))<24000,VLOOKUP(S21,C_UKG!$B$2:$D$21,3,FALSE)+VLOOKUP($B147,C_UKG!$B$2:$D$21,3,FALSE),"--"),"--") -> -- | T147: =IFERROR(IF((VLOOKUP(T21,C_UKG!$B$2:$D$21,3,FALSE)+VLOOKUP($B147,C_UKG!$B$2:$D$21,3,FALSE))<24000,VLOOKUP(T21,C_UKG!$B$2:$D$21,3,FALSE)+VLOOKUP($B147,C_UKG!$B$2:$D$21,3,FALSE),"--"),"--") -> -- | U147: =IFERROR(IF((VLOOKUP(U21,C_UKG!$B$2:$D$21,3,FALSE)+VLOOKUP($B147,C_UKG!$B$2:$D$21,3,FALSE))<24000,VLOOKUP(U21,C_UKG!$B$2:$D$21,3,FALSE)+VLOOKUP($B147,C_UKG!$B$2:$D$21,3,FALSE),"--"),"--") -> -- | V147: =IFERROR(IF((VLOOKUP(V21,C_UKG!$B$2:$D$21,3,FALSE)+VLOOKUP($B147,C_UKG!$B$2:$D$21,3,FALSE))<24000,VLOOKUP(V21,C_UKG!$B$2:$D$21,3,FALSE)+VLOOKUP($B147,C_UKG!$B$2:$D$21,3,FALSE),"--"),"--") -> --
A148: 18 | C148: =IFERROR(IF((VLOOKUP(C22,C_UKG!$B$2:$D$21,3,FALSE)+VLOOKUP($B148,C_UKG!$B$2:$D$21,3,FALSE))<24000,VLOOKUP(C22,C_UKG!$B$2:$D$21,3,FALSE)+VLOOKUP($B148,C_UKG!$B$2:$D$21,3,FALSE),"--"),"--") -> -- | D148: =IFERROR(IF((VLOOKUP(D22,C_UKG!$B$2:$D$21,3,FALSE)+VLOOKUP($B148,C_UKG!$B$2:$D$21,3,FALSE))<24000,VLOOKUP(D22,C_UKG!$B$2:$D$21,3,FALSE)+VLOOKUP($B148,C_UKG!$B$2:$D$21,3,FALSE),"--"),"--") -> -- | E148: =IFERROR(IF((VLOOKUP(E22,C_UKG!$B$2:$D$21,3,FALSE)+VLOOKUP($B148,C_UKG!$B$2:$D$21,3,FALSE))<24000,VLOOKUP(E22,C_UKG!$B$2:$D$21,3,FALSE)+VLOOKUP($B148,C_UKG!$B$2:$D$21,3,FALSE),"--"),"--") -> -- | F148: =IFERROR(IF((VLOOKUP(F22,C_UKG!$B$2:$D$21,3,FALSE)+VLOOKUP($B148,C_UKG!$B$2:$D$21,3,FALSE))<24000,VLOOKUP(F22,C_UKG!$B$2:$D$21,3,FALSE)+VLOOKUP($B148,C_UKG!$B$2:$D$21,3,FALSE),"--"),"--") -> -- | G148: =IFERROR(IF((VLOOKUP(G22,C_UKG!$B$2:$D$21,3,FALSE)+VLOOKUP($B148,C_UKG!$B$2:$D$21,3,FALSE))<24000,VLOOKUP(G22,C_UKG!$B$2:$D$21,3,FALSE)+VLOOKUP($B148,C_UKG!$B$2:$D$21,3,FALSE),"--"),"--") -> -- | H148: =IFERROR(IF((VLOOKUP(H22,C_UKG!$B$2:$D$21,3,FALSE)+VLOOKUP($B148,C_UKG!$B$2:$D$21,3,FALSE))<24000,VLOOKUP(H22,C_UKG!$B$2:$D$21,3,FALSE)+VLOOKUP($B148,C_UKG!$B$2:$D$21,3,FALSE),"--"),"--") -> -- | I148: =IFERROR(IF((VLOOKUP(I22,C_UKG!$B$2:$D$21,3,FALSE)+VLOOKUP($B148,C_UKG!$B$2:$D$21,3,FALSE))<24000,VLOOKUP(I22,C_UKG!$B$2:$D$21,3,FALSE)+VLOOKUP($B148,C_UKG!$B$2:$D$21,3,FALSE),"--"),"--") -> -- | J148: =IFERROR(IF((VLOOKUP(J22,C_UKG!$B$2:$D$21,3,FALSE)+VLOOKUP($B148,C_UKG!$B$2:$D$21,3,FALSE))<24000,VLOOKUP(J22,C_UKG!$B$2:$D$21,3,FALSE)+VLOOKUP($B148,C_UKG!$B$2:$D$21,3,FALSE),"--"),"--") -> -- | K148: =IFERROR(IF((VLOOKUP(K22,C_UKG!$B$2:$D$21,3,FALSE)+VLOOKUP($B148,C_UKG!$B$2:$D$21,3,FALSE))<24000,VLOOKUP(K22,C_UKG!$B$2:$D$21,3,FALSE)+VLOOKUP($B148,C_UKG!$B$2:$D$21,3,FALSE),"--"),"--") -> -- | L148: =IFERROR(IF((VLOOKUP(L22,C_UKG!$B$2:$D$21,3,FALSE)+VLOOKUP($B148,C_UKG!$B$2:$D$21,3,FALSE))<24000,VLOOKUP(L22,C_UKG!$B$2:$D$21,3,FALSE)+VLOOKUP($B148,C_UKG!$B$2:$D$21,3,FALSE),"--"),"--") -> -- | M148: =IFERROR(IF((VLOOKUP(M22,C_UKG!$B$2:$D$21,3,FALSE)+VLOOKUP($B148,C_UKG!$B$2:$D$21,3,FALSE))<24000,VLOOKUP(M22,C_UKG!$B$2:$D$21,3,FALSE)+VLOOKUP($B148,C_UKG!$B$2:$D$21,3,FALSE),"--"),"--") -> -- | N148: =IFERROR(IF((VLOOKUP(N22,C_UKG!$B$2:$D$21,3,FALSE)+VLOOKUP($B148,C_UKG!$B$2:$D$21,3,FALSE))<24000,VLOOKUP(N22,C_UKG!$B$2:$D$21,3,FALSE)+VLOOKUP($B148,C_UKG!$B$2:$D$21,3,FALSE),"--"),"--") -> -- | O148: =IFERROR(IF((VLOOKUP(O22,C_UKG!$B$2:$D$21,3,FALSE)+VLOOKUP($B148,C_UKG!$B$2:$D$21,3,FALSE))<24000,VLOOKUP(O22,C_UKG!$B$2:$D$21,3,FALSE)+VLOOKUP($B148,C_UKG!$B$2:$D$21,3,FALSE),"--"),"--") -> -- | P148: =IFERROR(IF((VLOOKUP(P22,C_UKG!$B$2:$D$21,3,FALSE)+VLOOKUP($B148,C_UKG!$B$2:$D$21,3,FALSE))<24000,VLOOKUP(P22,C_UKG!$B$2:$D$21,3,FALSE)+VLOOKUP($B148,C_UKG!$B$2:$D$21,3,FALSE),"--"),"--") -> -- | Q148: =IFERROR(IF((VLOOKUP(Q22,C_UKG!$B$2:$D$21,3,FALSE)+VLOOKUP($B148,C_UKG!$B$2:$D$21,3,FALSE))<24000,VLOOKUP(Q22,C_UKG!$B$2:$D$21,3,FALSE)+VLOOKUP($B148,C_UKG!$B$2:$D$21,3,FALSE),"--"),"--") -> -- | R148: =IFERROR(IF((VLOOKUP(R22,C_UKG!$B$2:$D$21,3,FALSE)+VLOOKUP($B148,C_UKG!$B$2:$D$21,3,FALSE))<24000,VLOOKUP(R22,C_UKG!$B$2:$D$21,3,FALSE)+VLOOKUP($B148,C_UKG!$B$2:$D$21,3,FALSE),"--"),"--") -> -- | S148: =IFERROR(IF((VLOOKUP(S22,C_UKG!$B$2:$D$21,3,FALSE)+VLOOKUP($B148,C_UKG!$B$2:$D$21,3,FALSE))<24000,VLOOKUP(S22,C_UKG!$B$2:$D$21,3,FALSE)+VLOOKUP($B148,C_UKG!$B$2:$D$21,3,FALSE),"--"),"--") -> -- | T148: =IFERROR(IF((VLOOKUP(T22,C_UKG!$B$2:$D$21,3,FALSE)+VLOOKUP($B148,C_UKG!$B$2:$D$21,3,FALSE))<24000,VLOOKUP(T22,C_UKG!$B$2:$D$21,3,FALSE)+VLOOKUP($B148,C_UKG!$B$2:$D$21,3,FALSE),"--"),"--") -> -- | U148: =IFERROR(IF((VLOOKUP(U22,C_UKG!$B$2:$D$21,3,FALSE)+VLOOKUP($B148,C_UKG!$B$2:$D$21,3,FALSE))<24000,VLOOKUP(U22,C_UKG!$B$2:$D$21,3,FALSE)+VLOOKUP($B148,C_UKG!$B$2:$D$21,3,FALSE),"--"),"--") -> -- | V148: =IFERROR(IF((VLOOKUP(V22,C_UKG!$B$2:$D$21,3,FALSE)+VLOOKUP($B148,C_UKG!$B$2:$D$21,3,FALSE))<24000,VLOOKUP(V22,C_UKG!$B$2:$D$21,3,FALSE)+VLOOKUP($B148,C_UKG!$B$2:$D$21,3,FALSE),"--"),"--") -> --
A149: 19 | B149: G | C149: =IFERROR(IF((VLOOKUP(C23,C_UKG!$B$2:$D$21,3,FALSE)+VLOOKUP($B149,C_UKG!$B$2:$D$21,3,FALSE))<24000,VLOOKUP(C23,C_UKG!$B$2:$D$21,3,FALSE)+VLOOKUP($B149,C_UKG!$B$2:$D$21,3,FALSE),"--"),"--") -> -- | D149: =IFERROR(IF((VLOOKUP(D23,C_UKG!$B$2:$D$21,3,FALSE)+VLOOKUP($B149,C_UKG!$B$2:$D$21,3,FALSE))<24000,VLOOKUP(D23,C_UKG!$B$2:$D$21,3,FALSE)+VLOOKUP($B149,C_UKG!$B$2:$D$21,3,FALSE),"--"),"--") -> -- | E149: =IFERROR(IF((VLOOKUP(E23,C_UKG!$B$2:$D$21,3,FALSE)+VLOOKUP($B149,C_UKG!$B$2:$D$21,3,FALSE))<24000,VLOOKUP(E23,C_UKG!$B$2:$D$21,3,FALSE)+VLOOKUP($B149,C_UKG!$B$2:$D$21,3,FALSE),"--"),"--") -> -- | F149: =IFERROR(IF((VLOOKUP(F23,C_UKG!$B$2:$D$21,3,FALSE)+VLOOKUP($B149,C_UKG!$B$2:$D$21,3,FALSE))<24000,VLOOKUP(F23,C_UKG!$B$2:$D$21,3,FALSE)+VLOOKUP($B149,C_UKG!$B$2:$D$21,3,FALSE),"--"),"--") -> -- | G149: =IFERROR(IF((VLOOKUP(G23,C_UKG!$B$2:$D$21,3,FALSE)+VLOOKUP($B149,C_UKG!$B$2:$D$21,3,FALSE))<24000,VLOOKUP(G23,C_UKG!$B$2:$D$21,3,FALSE)+VLOOKUP($B149,C_UKG!$B$2:$D$21,3,FALSE),"--"),"--") -> -- | H149: =IFERROR(IF((VLOOKUP(H23,C_UKG!$B$2:$D$21,3,FALSE)+VLOOKUP($B149,C_UKG!$B$2:$D$21,3,FALSE))<24000,VLOOKUP(H23,C_UKG!$B$2:$D$21,3,FALSE)+VLOOKUP($B149,C_UKG!$B$2:$D$21,3,FALSE),"--"),"--") -> -- | I149: =IFERROR(IF((VLOOKUP(I23,C_UKG!$B$2:$D$21,3,FALSE)+VLOOKUP($B149,C_UKG!$B$2:$D$21,3,FALSE))<24000,VLOOKUP(I23,C_UKG!$B$2:$D$21,3,FALSE)+VLOOKUP($B149,C_UKG!$B$2:$D$21,3,FALSE),"--"),"--") -> -- | J149: =IFERROR(IF((VLOOKUP(J23,C_UKG!$B$2:$D$21,3,FALSE)+VLOOKUP($B149,C_UKG!$B$2:$D$21,3,FALSE))<24000,VLOOKUP(J23,C_UKG!$B$2:$D$21,3,FALSE)+VLOOKUP($B149,C_UKG!$B$2:$D$21,3,FALSE),"--"),"--") -> -- | K149: =IFERROR(IF((VLOOKUP(K23,C_UKG!$B$2:$D$21,3,FALSE)+VLOOKUP($B149,C_UKG!$B$2:$D$21,3,FALSE))<24000,VLOOKUP(K23,C_UKG!$B$2:$D$21,3,FALSE)+VLOOKUP($B149,C_UKG!$B$2:$D$21,3,FALSE),"--"),"--") -> -- | L149: =IFERROR(IF((VLOOKUP(L23,C_UKG!$B$2:$D$21,3,FALSE)+VLOOKUP($B149,C_UKG!$B$2:$D$21,3,FALSE))<24000,VLOOKUP(L23,C_UKG!$B$2:$D$21,3,FALSE)+VLOOKUP($B149,C_UKG!$B$2:$D$21,3,FALSE),"--"),"--") -> -- | M149: =IFERROR(IF((VLOOKUP(M23,C_UKG!$B$2:$D$21,3,FALSE)+VLOOKUP($B149,C_UKG!$B$2:$D$21,3,FALSE))<24000,VLOOKUP(M23,C_UKG!$B$2:$D$21,3,FALSE)+VLOOKUP($B149,C_UKG!$B$2:$D$21,3,FALSE),"--"),"--") -> -- | N149: =IFERROR(IF((VLOOKUP(N23,C_UKG!$B$2:$D$21,3,FALSE)+VLOOKUP($B149,C_UKG!$B$2:$D$21,3,FALSE))<24000,VLOOKUP(N23,C_UKG!$B$2:$D$21,3,FALSE)+VLOOKUP($B149,C_UKG!$B$2:$D$21,3,FALSE),"--"),"--") -> -- | O149: =IFERROR(IF((VLOOKUP(O23,C_UKG!$B$2:$D$21,3,FALSE)+VLOOKUP($B149,C_UKG!$B$2:$D$21,3,FALSE))<24000,VLOOKUP(O23,C_UKG!$B$2:$D$21,3,FALSE)+VLOOKUP($B149,C_UKG!$B$2:$D$21,3,FALSE),"--"),"--") -> -- | P149: =IFERROR(IF((VLOOKUP(P23,C_UKG!$B$2:$D$21,3,FALSE)+VLOOKUP($B149,C_UKG!$B$2:$D$21,3,FALSE))<24000,VLOOKUP(P23,C_UKG!$B$2:$D$21,3,FALSE)+VLOOKUP($B149,C_UKG!$B$2:$D$21,3,FALSE),"--"),"--") -> -- | Q149: =IFERROR(IF((VLOOKUP(Q23,C_UKG!$B$2:$D$21,3,FALSE)+VLOOKUP($B149,C_UKG!$B$2:$D$21,3,FALSE))<24000,VLOOKUP(Q23,C_UKG!$B$2:$D$21,3,FALSE)+VLOOKUP($B149,C_UKG!$B$2:$D$21,3,FALSE),"--"),"--") -> -- | R149: =IFERROR(IF((VLOOKUP(R23,C_UKG!$B$2:$D$21,3,FALSE)+VLOOKUP($B149,C_UKG!$B$2:$D$21,3,FALSE))<24000,VLOOKUP(R23,C_UKG!$B$2:$D$21,3,FALSE)+VLOOKUP($B149,C_UKG!$B$2:$D$21,3,FALSE),"--"),"--") -> -- | S149: =IFERROR(IF((VLOOKUP(S23,C_UKG!$B$2:$D$21,3,FALSE)+VLOOKUP($B149,C_UKG!$B$2:$D$21,3,FALSE))<24000,VLOOKUP(S23,C_UKG!$B$2:$D$21,3,FALSE)+VLOOKUP($B149,C_UKG!$B$2:$D$21,3,FALSE),"--"),"--") -> -- | T149: =IFERROR(IF((VLOOKUP(T23,C_UKG!$B$2:$D$21,3,FALSE)+VLOOKUP($B149,C_UKG!$B$2:$D$21,3,FALSE))<24000,VLOOKUP(T23,C_UKG!$B$2:$D$21,3,FALSE)+VLOOKUP($B149,C_UKG!$B$2:$D$21,3,FALSE),"--"),"--") -> -- | U149: =IFERROR(IF((VLOOKUP(U23,C_UKG!$B$2:$D$21,3,FALSE)+VLOOKUP($B149,C_UKG!$B$2:$D$21,3,FALSE))<24000,VLOOKUP(U23,C_UKG!$B$2:$D$21,3,FALSE)+VLOOKUP($B149,C_UKG!$B$2:$D$21,3,FALSE),"--"),"--") -> -- | V149: =IFERROR(IF((VLOOKUP(V23,C_UKG!$B$2:$D$21,3,FALSE)+VLOOKUP($B149,C_UKG!$B$2:$D$21,3,FALSE))<24000,VLOOKUP(V23,C_UKG!$B$2:$D$21,3,FALSE)+VLOOKUP($B149,C_UKG!$B$2:$D$21,3,FALSE),"--"),"--") -> --
A150: 20 | C150: =IFERROR(IF((VLOOKUP(C24,C_UKG!$B$2:$D$21,3,FALSE)+VLOOKUP($B150,C_UKG!$B$2:$D$21,3,FALSE))<24000,VLOOKUP(C24,C_UKG!$B$2:$D$21,3,FALSE)+VLOOKUP($B150,C_UKG!$B$2:$D$21,3,FALSE),"--"),"--") -> -- | D150: =IFERROR(IF((VLOOKUP(D24,C_UKG!$B$2:$D$21,3,FALSE)+VLOOKUP($B150,C_UKG!$B$2:$D$21,3,FALSE))<24000,VLOOKUP(D24,C_UKG!$B$2:$D$21,3,FALSE)+VLOOKUP($B150,C_UKG!$B$2:$D$21,3,FALSE),"--"),"--") -> -- | E150: =IFERROR(IF((VLOOKUP(E24,C_UKG!$B$2:$D$21,3,FALSE)+VLOOKUP($B150,C_UKG!$B$2:$D$21,3,FALSE))<24000,VLOOKUP(E24,C_UKG!$B$2:$D$21,3,FALSE)+VLOOKUP($B150,C_UKG!$B$2:$D$21,3,FALSE),"--"),"--") -> -- | F150: =IFERROR(IF((VLOOKUP(F24,C_UKG!$B$2:$D$21,3,FALSE)+VLOOKUP($B150,C_UKG!$B$2:$D$21,3,FALSE))<24000,VLOOKUP(F24,C_UKG!$B$2:$D$21,3,FALSE)+VLOOKUP($B150,C_UKG!$B$2:$D$21,3,FALSE),"--"),"--") -> -- | G150: =IFERROR(IF((VLOOKUP(G24,C_UKG!$B$2:$D$21,3,FALSE)+VLOOKUP($B150,C_UKG!$B$2:$D$21,3,FALSE))<24000,VLOOKUP(G24,C_UKG!$B$2:$D$21,3,FALSE)+VLOOKUP($B150,C_UKG!$B$2:$D$21,3,FALSE),"--"),"--") -> -- | H150: =IFERROR(IF((VLOOKUP(H24,C_UKG!$B$2:$D$21,3,FALSE)+VLOOKUP($B150,C_UKG!$B$2:$D$21,3,FALSE))<24000,VLOOKUP(H24,C_UKG!$B$2:$D$21,3,FALSE)+VLOOKUP($B150,C_UKG!$B$2:$D$21,3,FALSE),"--"),"--") -> -- | I150: =IFERROR(IF((VLOOKUP(I24,C_UKG!$B$2:$D$21,3,FALSE)+VLOOKUP($B150,C_UKG!$B$2:$D$21,3,FALSE))<24000,VLOOKUP(I24,C_UKG!$B$2:$D$21,3,FALSE)+VLOOKUP($B150,C_UKG!$B$2:$D$21,3,FALSE),"--"),"--") -> -- | J150: =IFERROR(IF((VLOOKUP(J24,C_UKG!$B$2:$D$21,3,FALSE)+VLOOKUP($B150,C_UKG!$B$2:$D$21,3,FALSE))<24000,VLOOKUP(J24,C_UKG!$B$2:$D$21,3,FALSE)+VLOOKUP($B150,C_UKG!$B$2:$D$21,3,FALSE),"--"),"--") -> -- | K150: =IFERROR(IF((VLOOKUP(K24,C_UKG!$B$2:$D$21,3,FALSE)+VLOOKUP($B150,C_UKG!$B$2:$D$21,3,FALSE))<24000,VLOOKUP(K24,C_UKG!$B$2:$D$21,3,FALSE)+VLOOKUP($B150,C_UKG!$B$2:$D$21,3,FALSE),"--"),"--") -> -- | L150: =IFERROR(IF((VLOOKUP(L24,C_UKG!$B$2:$D$21,3,FALSE)+VLOOKUP($B150,C_UKG!$B$2:$D$21,3,FALSE))<24000,VLOOKUP(L24,C_UKG!$B$2:$D$21,3,FALSE)+VLOOKUP($B150,C_UKG!$B$2:$D$21,3,FALSE),"--"),"--") -> -- | M150: =IFERROR(IF((VLOOKUP(M24,C_UKG!$B$2:$D$21,3,FALSE)+VLOOKUP($B150,C_UKG!$B$2:$D$21,3,FALSE))<24000,VLOOKUP(M24,C_UKG!$B$2:$D$21,3,FALSE)+VLOOKUP($B150,C_UKG!$B$2:$D$21,3,FALSE),"--"),"--") -> -- | N150: =IFERROR(IF((VLOOKUP(N24,C_UKG!$B$2:$D$21,3,FALSE)+VLOOKUP($B150,C_UKG!$B$2:$D$21,3,FALSE))<24000,VLOOKUP(N24,C_UKG!$B$2:$D$21,3,FALSE)+VLOOKUP($B150,C_UKG!$B$2:$D$21,3,FALSE),"--"),"--") -> -- | O150: =IFERROR(IF((VLOOKUP(O24,C_UKG!$B$2:$D$21,3,FALSE)+VLOOKUP($B150,C_UKG!$B$2:$D$21,3,FALSE))<24000,VLOOKUP(O24,C_UKG!$B$2:$D$21,3,FALSE)+VLOOKUP($B150,C_UKG!$B$2:$D$21,3,FALSE),"--"),"--") -> -- | P150: =IFERROR(IF((VLOOKUP(P24,C_UKG!$B$2:$D$21,3,FALSE)+VLOOKUP($B150,C_UKG!$B$2:$D$21,3,FALSE))<24000,VLOOKUP(P24,C_UKG!$B$2:$D$21,3,FALSE)+VLOOKUP($B150,C_UKG!$B$2:$D$21,3,FALSE),"--"),"--") -> -- | Q150: =IFERROR(IF((VLOOKUP(Q24,C_UKG!$B$2:$D$21,3,FALSE)+VLOOKUP($B150,C_UKG!$B$2:$D$21,3,FALSE))<24000,VLOOKUP(Q24,C_UKG!$B$2:$D$21,3,FALSE)+VLOOKUP($B150,C_UKG!$B$2:$D$21,3,FALSE),"--"),"--") -> -- | R150: =IFERROR(IF((VLOOKUP(R24,C_UKG!$B$2:$D$21,3,FALSE)+VLOOKUP($B150,C_UKG!$B$2:$D$21,3,FALSE))<24000,VLOOKUP(R24,C_UKG!$B$2:$D$21,3,FALSE)+VLOOKUP($B150,C_UKG!$B$2:$D$21,3,FALSE),"--"),"--") -> -- | S150: =IFERROR(IF((VLOOKUP(S24,C_UKG!$B$2:$D$21,3,FALSE)+VLOOKUP($B150,C_UKG!$B$2:$D$21,3,FALSE))<24000,VLOOKUP(S24,C_UKG!$B$2:$D$21,3,FALSE)+VLOOKUP($B150,C_UKG!$B$2:$D$21,3,FALSE),"--"),"--") -> -- | T150: =IFERROR(IF((VLOOKUP(T24,C_UKG!$B$2:$D$21,3,FALSE)+VLOOKUP($B150,C_UKG!$B$2:$D$21,3,FALSE))<24000,VLOOKUP(T24,C_UKG!$B$2:$D$21,3,FALSE)+VLOOKUP($B150,C_UKG!$B$2:$D$21,3,FALSE),"--"),"--") -> -- | U150: =IFERROR(IF((VLOOKUP(U24,C_UKG!$B$2:$D$21,3,FALSE)+VLOOKUP($B150,C_UKG!$B$2:$D$21,3,FALSE))<24000,VLOOKUP(U24,C_UKG!$B$2:$D$21,3,FALSE)+VLOOKUP($B150,C_UKG!$B$2:$D$21,3,FALSE),"--"),"--") -> -- | V150: =IFERROR(IF((VLOOKUP(V24,C_UKG!$B$2:$D$21,3,FALSE)+VLOOKUP($B150,C_UKG!$B$2:$D$21,3,FALSE))<24000,VLOOKUP(V24,C_UKG!$B$2:$D$21,3,FALSE)+VLOOKUP($B150,C_UKG!$B$2:$D$21,3,FALSE),"--"),"--") -> --
A151: 21 | C151: =IFERROR(IF((VLOOKUP(C25,C_UKG!$B$2:$D$21,3,FALSE)+VLOOKUP($B151,C_UKG!$B$2:$D$21,3,FALSE))<24000,VLOOKUP(C25,C_UKG!$B$2:$D$21,3,FALSE)+VLOOKUP($B151,C_UKG!$B$2:$D$21,3,FALSE),"--"),"--") -> -- | D151: =IFERROR(IF((VLOOKUP(D25,C_UKG!$B$2:$D$21,3,FALSE)+VLOOKUP($B151,C_UKG!$B$2:$D$21,3,FALSE))<24000,VLOOKUP(D25,C_UKG!$B$2:$D$21,3,FALSE)+VLOOKUP($B151,C_UKG!$B$2:$D$21,3,FALSE),"--"),"--") -> -- | E151: =IFERROR(IF((VLOOKUP(E25,C_UKG!$B$2:$D$21,3,FALSE)+VLOOKUP($B151,C_UKG!$B$2:$D$21,3,FALSE))<24000,VLOOKUP(E25,C_UKG!$B$2:$D$21,3,FALSE)+VLOOKUP($B151,C_UKG!$B$2:$D$21,3,FALSE),"--"),"--") -> -- | F151: =IFERROR(IF((VLOOKUP(F25,C_UKG!$B$2:$D$21,3,FALSE)+VLOOKUP($B151,C_UKG!$B$2:$D$21,3,FALSE))<24000,VLOOKUP(F25,C_UKG!$B$2:$D$21,3,FALSE)+VLOOKUP($B151,C_UKG!$B$2:$D$21,3,FALSE),"--"),"--") -> -- | G151: =IFERROR(IF((VLOOKUP(G25,C_UKG!$B$2:$D$21,3,FALSE)+VLOOKUP($B151,C_UKG!$B$2:$D$21,3,FALSE))<24000,VLOOKUP(G25,C_UKG!$B$2:$D$21,3,FALSE)+VLOOKUP($B151,C_UKG!$B$2:$D$21,3,FALSE),"--"),"--") -> -- | H151: =IFERROR(IF((VLOOKUP(H25,C_UKG!$B$2:$D$21,3,FALSE)+VLOOKUP($B151,C_UKG!$B$2:$D$21,3,FALSE))<24000,VLOOKUP(H25,C_UKG!$B$2:$D$21,3,FALSE)+VLOOKUP($B151,C_UKG!$B$2:$D$21,3,FALSE),"--"),"--") -> -- | I151: =IFERROR(IF((VLOOKUP(I25,C_UKG!$B$2:$D$21,3,FALSE)+VLOOKUP($B151,C_UKG!$B$2:$D$21,3,FALSE))<24000,VLOOKUP(I25,C_UKG!$B$2:$D$21,3,FALSE)+VLOOKUP($B151,C_UKG!$B$2:$D$21,3,FALSE),"--"),"--") -> -- | J151: =IFERROR(IF((VLOOKUP(J25,C_UKG!$B$2:$D$21,3,FALSE)+VLOOKUP($B151,C_UKG!$B$2:$D$21,3,FALSE))<24000,VLOOKUP(J25,C_UKG!$B$2:$D$21,3,FALSE)+VLOOKUP($B151,C_UKG!$B$2:$D$21,3,FALSE),"--"),"--") -> -- | K151: =IFERROR(IF((VLOOKUP(K25,C_UKG!$B$2:$D$21,3,FALSE)+VLOOKUP($B151,C_UKG!$B$2:$D$21,3,FALSE))<24000,VLOOKUP(K25,C_UKG!$B$2:$D$21,3,FALSE)+VLOOKUP($B151,C_UKG!$B$2:$D$21,3,FALSE),"--"),"--") -> -- | L151: =IFERROR(IF((VLOOKUP(L25,C_UKG!$B$2:$D$21,3,FALSE)+VLOOKUP($B151,C_UKG!$B$2:$D$21,3,FALSE))<24000,VLOOKUP(L25,C_UKG!$B$2:$D$21,3,FALSE)+VLOOKUP($B151,C_UKG!$B$2:$D$21,3,FALSE),"--"),"--") -> -- | M151: =IFERROR(IF((VLOOKUP(M25,C_UKG!$B$2:$D$21,3,FALSE)+VLOOKUP($B151,C_UKG!$B$2:$D$21,3,FALSE))<24000,VLOOKUP(M25,C_UKG!$B$2:$D$21,3,FALSE)+VLOOKUP($B151,C_UKG!$B$2:$D$21,3,FALSE),"--"),"--") -> -- | N151: =IFERROR(IF((VLOOKUP(N25,C_UKG!$B$2:$D$21,3,FALSE)+VLOOKUP($B151,C_UKG!$B$2:$D$21,3,FALSE))<24000,VLOOKUP(N25,C_UKG!$B$2:$D$21,3,FALSE)+VLOOKUP($B151,C_UKG!$B$2:$D$21,3,FALSE),"--"),"--") -> -- | O151: =IFERROR(IF((VLOOKUP(O25,C_UKG!$B$2:$D$21,3,FALSE)+VLOOKUP($B151,C_UKG!$B$2:$D$21,3,FALSE))<24000,VLOOKUP(O25,C_UKG!$B$2:$D$21,3,FALSE)+VLOOKUP($B151,C_UKG!$B$2:$D$21,3,FALSE),"--"),"--") -> -- | P151: =IFERROR(IF((VLOOKUP(P25,C_UKG!$B$2:$D$21,3,FALSE)+VLOOKUP($B151,C_UKG!$B$2:$D$21,3,FALSE))<24000,VLOOKUP(P25,C_UKG!$B$2:$D$21,3,FALSE)+VLOOKUP($B151,C_UKG!$B$2:$D$21,3,FALSE),"--"),"--") -> -- | Q151: =IFERROR(IF((VLOOKUP(Q25,C_UKG!$B$2:$D$21,3,FALSE)+VLOOKUP($B151,C_UKG!$B$2:$D$21,3,FALSE))<24000,VLOOKUP(Q25,C_UKG!$B$2:$D$21,3,FALSE)+VLOOKUP($B151,C_UKG!$B$2:$D$21,3,FALSE),"--"),"--") -> -- | R151: =IFERROR(IF((VLOOKUP(R25,C_UKG!$B$2:$D$21,3,FALSE)+VLOOKUP($B151,C_UKG!$B$2:$D$21,3,FALSE))<24000,VLOOKUP(R25,C_UKG!$B$2:$D$21,3,FALSE)+VLOOKUP($B151,C_UKG!$B$2:$D$21,3,FALSE),"--"),"--") -> -- | S151: =IFERROR(IF((VLOOKUP(S25,C_UKG!$B$2:$D$21,3,FALSE)+VLOOKUP($B151,C_UKG!$B$2:$D$21,3,FALSE))<24000,VLOOKUP(S25,C_UKG!$B$2:$D$21,3,FALSE)+VLOOKUP($B151,C_UKG!$B$2:$D$21,3,FALSE),"--"),"--") -> -- | T151: =IFERROR(IF((VLOOKUP(T25,C_UKG!$B$2:$D$21,3,FALSE)+VLOOKUP($B151,C_UKG!$B$2:$D$21,3,FALSE))<24000,VLOOKUP(T25,C_UKG!$B$2:$D$21,3,FALSE)+VLOOKUP($B151,C_UKG!$B$2:$D$21,3,FALSE),"--"),"--") -> -- | U151: =IFERROR(IF((VLOOKUP(U25,C_UKG!$B$2:$D$21,3,FALSE)+VLOOKUP($B151,C_UKG!$B$2:$D$21,3,FALSE))<24000,VLOOKUP(U25,C_UKG!$B$2:$D$21,3,FALSE)+VLOOKUP($B151,C_UKG!$B$2:$D$21,3,FALSE),"--"),"--") -> -- | V151: =IFERROR(IF((VLOOKUP(V25,C_UKG!$B$2:$D$21,3,FALSE)+VLOOKUP($B151,C_UKG!$B$2:$D$21,3,FALSE))<24000,VLOOKUP(V25,C_UKG!$B$2:$D$21,3,FALSE)+VLOOKUP($B151,C_UKG!$B$2:$D$21,3,FALSE),"--"),"--") -> --
A152: 22 | B152: H | C152: =IFERROR(IF((VLOOKUP(C26,C_UKG!$B$2:$D$21,3,FALSE)+VLOOKUP($B152,C_UKG!$B$2:$D$21,3,FALSE))<24000,VLOOKUP(C26,C_UKG!$B$2:$D$21,3,FALSE)+VLOOKUP($B152,C_UKG!$B$2:$D$21,3,FALSE),"--"),"--") -> -- | D152: =IFERROR(IF((VLOOKUP(D26,C_UKG!$B$2:$D$21,3,FALSE)+VLOOKUP($B152,C_UKG!$B$2:$D$21,3,FALSE))<24000,VLOOKUP(D26,C_UKG!$B$2:$D$21,3,FALSE)+VLOOKUP($B152,C_UKG!$B$2:$D$21,3,FALSE),"--"),"--") -> -- | E152: =IFERROR(IF((VLOOKUP(E26,C_UKG!$B$2:$D$21,3,FALSE)+VLOOKUP($B152,C_UKG!$B$2:$D$21,3,FALSE))<24000,VLOOKUP(E26,C_UKG!$B$2:$D$21,3,FALSE)+VLOOKUP($B152,C_UKG!$B$2:$D$21,3,FALSE),"--"),"--") -> -- | F152: =IFERROR(IF((VLOOKUP(F26,C_UKG!$B$2:$D$21,3,FALSE)+VLOOKUP($B152,C_UKG!$B$2:$D$21,3,FALSE))<24000,VLOOKUP(F26,C_UKG!$B$2:$D$21,3,FALSE)+VLOOKUP($B152,C_UKG!$B$2:$D$21,3,FALSE),"--"),"--") -> -- | G152: =IFERROR(IF((VLOOKUP(G26,C_UKG!$B$2:$D$21,3,FALSE)+VLOOKUP($B152,C_UKG!$B$2:$D$21,3,FALSE))<24000,VLOOKUP(G26,C_UKG!$B$2:$D$21,3,FALSE)+VLOOKUP($B152,C_UKG!$B$2:$D$21,3,FALSE),"--"),"--") -> -- | H152: =IFERROR(IF((VLOOKUP(H26,C_UKG!$B$2:$D$21,3,FALSE)+VLOOKUP($B152,C_UKG!$B$2:$D$21,3,FALSE))<24000,VLOOKUP(H26,C_UKG!$B$2:$D$21,3,FALSE)+VLOOKUP($B152,C_UKG!$B$2:$D$21,3,FALSE),"--"),"--") -> -- | I152: =IFERROR(IF((VLOOKUP(I26,C_UKG!$B$2:$D$21,3,FALSE)+VLOOKUP($B152,C_UKG!$B$2:$D$21,3,FALSE))<24000,VLOOKUP(I26,C_UKG!$B$2:$D$21,3,FALSE)+VLOOKUP($B152,C_UKG!$B$2:$D$21,3,FALSE),"--"),"--") -> -- | J152: =IFERROR(IF((VLOOKUP(J26,C_UKG!$B$2:$D$21,3,FALSE)+VLOOKUP($B152,C_UKG!$B$2:$D$21,3,FALSE))<24000,VLOOKUP(J26,C_UKG!$B$2:$D$21,3,FALSE)+VLOOKUP($B152,C_UKG!$B$2:$D$21,3,FALSE),"--"),"--") -> -- | K152: =IFERROR(IF((VLOOKUP(K26,C_UKG!$B$2:$D$21,3,FALSE)+VLOOKUP($B152,C_UKG!$B$2:$D$21,3,FALSE))<24000,VLOOKUP(K26,C_UKG!$B$2:$D$21,3,FALSE)+VLOOKUP($B152,C_UKG!$B$2:$D$21,3,FALSE),"--"),"--") -> -- | L152: =IFERROR(IF((VLOOKUP(L26,C_UKG!$B$2:$D$21,3,FALSE)+VLOOKUP($B152,C_UKG!$B$2:$D$21,3,FALSE))<24000,VLOOKUP(L26,C_UKG!$B$2:$D$21,3,FALSE)+VLOOKUP($B152,C_UKG!$B$2:$D$21,3,FALSE),"--"),"--") -> -- | M152: =IFERROR(IF((VLOOKUP(M26,C_UKG!$B$2:$D$21,3,FALSE)+VLOOKUP($B152,C_UKG!$B$2:$D$21,3,FALSE))<24000,VLOOKUP(M26,C_UKG!$B$2:$D$21,3,FALSE)+VLOOKUP($B152,C_UKG!$B$2:$D$21,3,FALSE),"--"),"--") -> -- | N152: =IFERROR(IF((VLOOKUP(N26,C_UKG!$B$2:$D$21,3,FALSE)+VLOOKUP($B152,C_UKG!$B$2:$D$21,3,FALSE))<24000,VLOOKUP(N26,C_UKG!$B$2:$D$21,3,FALSE)+VLOOKUP($B152,C_UKG!$B$2:$D$21,3,FALSE),"--"),"--") -> -- | O152: =IFERROR(IF((VLOOKUP(O26,C_UKG!$B$2:$D$21,3,FALSE)+VLOOKUP($B152,C_UKG!$B$2:$D$21,3,FALSE))<24000,VLOOKUP(O26,C_UKG!$B$2:$D$21,3,FALSE)+VLOOKUP($B152,C_UKG!$B$2:$D$21,3,FALSE),"--"),"--") -> -- | P152: =IFERROR(IF((VLOOKUP(P26,C_UKG!$B$2:$D$21,3,FALSE)+VLOOKUP($B152,C_UKG!$B$2:$D$21,3,FALSE))<24000,VLOOKUP(P26,C_UKG!$B$2:$D$21,3,FALSE)+VLOOKUP($B152,C_UKG!$B$2:$D$21,3,FALSE),"--"),"--") -> -- | Q152: =IFERROR(IF((VLOOKUP(Q26,C_UKG!$B$2:$D$21,3,FALSE)+VLOOKUP($B152,C_UKG!$B$2:$D$21,3,FALSE))<24000,VLOOKUP(Q26,C_UKG!$B$2:$D$21,3,FALSE)+VLOOKUP($B152,C_UKG!$B$2:$D$21,3,FALSE),"--"),"--") -> -- | R152: =IFERROR(IF((VLOOKUP(R26,C_UKG!$B$2:$D$21,3,FALSE)+VLOOKUP($B152,C_UKG!$B$2:$D$21,3,FALSE))<24000,VLOOKUP(R26,C_UKG!$B$2:$D$21,3,FALSE)+VLOOKUP($B152,C_UKG!$B$2:$D$21,3,FALSE),"--"),"--") -> -- | S152: =IFERROR(IF((VLOOKUP(S26,C_UKG!$B$2:$D$21,3,FALSE)+VLOOKUP($B152,C_UKG!$B$2:$D$21,3,FALSE))<24000,VLOOKUP(S26,C_UKG!$B$2:$D$21,3,FALSE)+VLOOKUP($B152,C_UKG!$B$2:$D$21,3,FALSE),"--"),"--") -> -- | T152: =IFERROR(IF((VLOOKUP(T26,C_UKG!$B$2:$D$21,3,FALSE)+VLOOKUP($B152,C_UKG!$B$2:$D$21,3,FALSE))<24000,VLOOKUP(T26,C_UKG!$B$2:$D$21,3,FALSE)+VLOOKUP($B152,C_UKG!$B$2:$D$21,3,FALSE),"--"),"--") -> -- | U152: =IFERROR(IF((VLOOKUP(U26,C_UKG!$B$2:$D$21,3,FALSE)+VLOOKUP($B152,C_UKG!$B$2:$D$21,3,FALSE))<24000,VLOOKUP(U26,C_UKG!$B$2:$D$21,3,FALSE)+VLOOKUP($B152,C_UKG!$B$2:$D$21,3,FALSE),"--"),"--") -> -- | V152: =IFERROR(IF((VLOOKUP(V26,C_UKG!$B$2:$D$21,3,FALSE)+VLOOKUP($B152,C_UKG!$B$2:$D$21,3,FALSE))<24000,VLOOKUP(V26,C_UKG!$B$2:$D$21,3,FALSE)+VLOOKUP($B152,C_UKG!$B$2:$D$21,3,FALSE),"--"),"--") -> --
A153: 23 | C153: =IFERROR(IF((VLOOKUP(C27,C_UKG!$B$2:$D$21,3,FALSE)+VLOOKUP($B153,C_UKG!$B$2:$D$21,3,FALSE))<24000,VLOOKUP(C27,C_UKG!$B$2:$D$21,3,FALSE)+VLOOKUP($B153,C_UKG!$B$2:$D$21,3,FALSE),"--"),"--") -> -- | D153: =IFERROR(IF((VLOOKUP(D27,C_UKG!$B$2:$D$21,3,FALSE)+VLOOKUP($B153,C_UKG!$B$2:$D$21,3,FALSE))<24000,VLOOKUP(D27,C_UKG!$B$2:$D$21,3,FALSE)+VLOOKUP($B153,C_UKG!$B$2:$D$21,3,FALSE),"--"),"--") -> -- | E153: =IFERROR(IF((VLOOKUP(E27,C_UKG!$B$2:$D$21,3,FALSE)+VLOOKUP($B153,C_UKG!$B$2:$D$21,3,FALSE))<24000,VLOOKUP(E27,C_UKG!$B$2:$D$21,3,FALSE)+VLOOKUP($B153,C_UKG!$B$2:$D$21,3,FALSE),"--"),"--") -> -- | F153: =IFERROR(IF((VLOOKUP(F27,C_UKG!$B$2:$D$21,3,FALSE)+VLOOKUP($B153,C_UKG!$B$2:$D$21,3,FALSE))<24000,VLOOKUP(F27,C_UKG!$B$2:$D$21,3,FALSE)+VLOOKUP($B153,C_UKG!$B$2:$D$21,3,FALSE),"--"),"--") -> -- | G153: =IFERROR(IF((VLOOKUP(G27,C_UKG!$B$2:$D$21,3,FALSE)+VLOOKUP($B153,C_UKG!$B$2:$D$21,3,FALSE))<24000,VLOOKUP(G27,C_UKG!$B$2:$D$21,3,FALSE)+VLOOKUP($B153,C_UKG!$B$2:$D$21,3,FALSE),"--"),"--") -> -- | H153: =IFERROR(IF((VLOOKUP(H27,C_UKG!$B$2:$D$21,3,FALSE)+VLOOKUP($B153,C_UKG!$B$2:$D$21,3,FALSE))<24000,VLOOKUP(H27,C_UKG!$B$2:$D$21,3,FALSE)+VLOOKUP($B153,C_UKG!$B$2:$D$21,3,FALSE),"--"),"--") -> -- | I153: =IFERROR(IF((VLOOKUP(I27,C_UKG!$B$2:$D$21,3,FALSE)+VLOOKUP($B153,C_UKG!$B$2:$D$21,3,FALSE))<24000,VLOOKUP(I27,C_UKG!$B$2:$D$21,3,FALSE)+VLOOKUP($B153,C_UKG!$B$2:$D$21,3,FALSE),"--"),"--") -> -- | J153: =IFERROR(IF((VLOOKUP(J27,C_UKG!$B$2:$D$21,3,FALSE)+VLOOKUP($B153,C_UKG!$B$2:$D$21,3,FALSE))<24000,VLOOKUP(J27,C_UKG!$B$2:$D$21,3,FALSE)+VLOOKUP($B153,C_UKG!$B$2:$D$21,3,FALSE),"--"),"--") -> -- | K153: =IFERROR(IF((VLOOKUP(K27,C_UKG!$B$2:$D$21,3,FALSE)+VLOOKUP($B153,C_UKG!$B$2:$D$21,3,FALSE))<24000,VLOOKUP(K27,C_UKG!$B$2:$D$21,3,FALSE)+VLOOKUP($B153,C_UKG!$B$2:$D$21,3,FALSE),"--"),"--") -> -- | L153: =IFERROR(IF((VLOOKUP(L27,C_UKG!$B$2:$D$21,3,FALSE)+VLOOKUP($B153,C_UKG!$B$2:$D$21,3,FALSE))<24000,VLOOKUP(L27,C_UKG!$B$2:$D$21,3,FALSE)+VLOOKUP($B153,C_UKG!$B$2:$D$21,3,FALSE),"--"),"--") -> -- | M153: =IFERROR(IF((VLOOKUP(M27,C_UKG!$B$2:$D$21,3,FALSE)+VLOOKUP($B153,C_UKG!$B$2:$D$21,3,FALSE))<24000,VLOOKUP(M27,C_UKG!$B$2:$D$21,3,FALSE)+VLOOKUP($B153,C_UKG!$B$2:$D$21,3,FALSE),"--"),"--") -> -- | N153: =IFERROR(IF((VLOOKUP(N27,C_UKG!$B$2:$D$21,3,FALSE)+VLOOKUP($B153,C_UKG!$B$2:$D$21,3,FALSE))<24000,VLOOKUP(N27,C_UKG!$B$2:$D$21,3,FALSE)+VLOOKUP($B153,C_UKG!$B$2:$D$21,3,FALSE),"--"),"--") -> -- | O153: =IFERROR(IF((VLOOKUP(O27,C_UKG!$B$2:$D$21,3,FALSE)+VLOOKUP($B153,C_UKG!$B$2:$D$21,3,FALSE))<24000,VLOOKUP(O27,C_UKG!$B$2:$D$21,3,FALSE)+VLOOKUP($B153,C_UKG!$B$2:$D$21,3,FALSE),"--"),"--") -> -- | P153: =IFERROR(IF((VLOOKUP(P27,C_UKG!$B$2:$D$21,3,FALSE)+VLOOKUP($B153,C_UKG!$B$2:$D$21,3,FALSE))<24000,VLOOKUP(P27,C_UKG!$B$2:$D$21,3,FALSE)+VLOOKUP($B153,C_UKG!$B$2:$D$21,3,FALSE),"--"),"--") -> -- | Q153: =IFERROR(IF((VLOOKUP(Q27,C_UKG!$B$2:$D$21,3,FALSE)+VLOOKUP($B153,C_UKG!$B$2:$D$21,3,FALSE))<24000,VLOOKUP(Q27,C_UKG!$B$2:$D$21,3,FALSE)+VLOOKUP($B153,C_UKG!$B$2:$D$21,3,FALSE),"--"),"--") -> -- | R153: =IFERROR(IF((VLOOKUP(R27,C_UKG!$B$2:$D$21,3,FALSE)+VLOOKUP($B153,C_UKG!$B$2:$D$21,3,FALSE))<24000,VLOOKUP(R27,C_UKG!$B$2:$D$21,3,FALSE)+VLOOKUP($B153,C_UKG!$B$2:$D$21,3,FALSE),"--"),"--") -> -- | S153: =IFERROR(IF((VLOOKUP(S27,C_UKG!$B$2:$D$21,3,FALSE)+VLOOKUP($B153,C_UKG!$B$2:$D$21,3,FALSE))<24000,VLOOKUP(S27,C_UKG!$B$2:$D$21,3,FALSE)+VLOOKUP($B153,C_UKG!$B$2:$D$21,3,FALSE),"--"),"--") -> -- | T153: =IFERROR(IF((VLOOKUP(T27,C_UKG!$B$2:$D$21,3,FALSE)+VLOOKUP($B153,C_UKG!$B$2:$D$21,3,FALSE))<24000,VLOOKUP(T27,C_UKG!$B$2:$D$21,3,FALSE)+VLOOKUP($B153,C_UKG!$B$2:$D$21,3,FALSE),"--"),"--") -> -- | U153: =IFERROR(IF((VLOOKUP(U27,C_UKG!$B$2:$D$21,3,FALSE)+VLOOKUP($B153,C_UKG!$B$2:$D$21,3,FALSE))<24000,VLOOKUP(U27,C_UKG!$B$2:$D$21,3,FALSE)+VLOOKUP($B153,C_UKG!$B$2:$D$21,3,FALSE),"--"),"--") -> -- | V153: =IFERROR(IF((VLOOKUP(V27,C_UKG!$B$2:$D$21,3,FALSE)+VLOOKUP($B153,C_UKG!$B$2:$D$21,3,FALSE))<24000,VLOOKUP(V27,C_UKG!$B$2:$D$21,3,FALSE)+VLOOKUP($B153,C_UKG!$B$2:$D$21,3,FALSE),"--"),"--") -> --
A154: 24 | C154: =IFERROR(IF((VLOOKUP(C28,C_UKG!$B$2:$D$21,3,FALSE)+VLOOKUP($B154,C_UKG!$B$2:$D$21,3,FALSE))<24000,VLOOKUP(C28,C_UKG!$B$2:$D$21,3,FALSE)+VLOOKUP($B154,C_UKG!$B$2:$D$21,3,FALSE),"--"),"--") -> -- | D154: =IFERROR(IF((VLOOKUP(D28,C_UKG!$B$2:$D$21,3,FALSE)+VLOOKUP($B154,C_UKG!$B$2:$D$21,3,FALSE))<24000,VLOOKUP(D28,C_UKG!$B$2:$D$21,3,FALSE)+VLOOKUP($B154,C_UKG!$B$2:$D$21,3,FALSE),"--"),"--") -> -- | E154: =IFERROR(IF((VLOOKUP(E28,C_UKG!$B$2:$D$21,3,FALSE)+VLOOKUP($B154,C_UKG!$B$2:$D$21,3,FALSE))<24000,VLOOKUP(E28,C_UKG!$B$2:$D$21,3,FALSE)+VLOOKUP($B154,C_UKG!$B$2:$D$21,3,FALSE),"--"),"--") -> -- | F154: =IFERROR(IF((VLOOKUP(F28,C_UKG!$B$2:$D$21,3,FALSE)+VLOOKUP($B154,C_UKG!$B$2:$D$21,3,FALSE))<24000,VLOOKUP(F28,C_UKG!$B$2:$D$21,3,FALSE)+VLOOKUP($B154,C_UKG!$B$2:$D$21,3,FALSE),"--"),"--") -> -- | G154: =IFERROR(IF((VLOOKUP(G28,C_UKG!$B$2:$D$21,3,FALSE)+VLOOKUP($B154,C_UKG!$B$2:$D$21,3,FALSE))<24000,VLOOKUP(G28,C_UKG!$B$2:$D$21,3,FALSE)+VLOOKUP($B154,C_UKG!$B$2:$D$21,3,FALSE),"--"),"--") -> -- | H154: =IFERROR(IF((VLOOKUP(H28,C_UKG!$B$2:$D$21,3,FALSE)+VLOOKUP($B154,C_UKG!$B$2:$D$21,3,FALSE))<24000,VLOOKUP(H28,C_UKG!$B$2:$D$21,3,FALSE)+VLOOKUP($B154,C_UKG!$B$2:$D$21,3,FALSE),"--"),"--") -> -- | I154: =IFERROR(IF((VLOOKUP(I28,C_UKG!$B$2:$D$21,3,FALSE)+VLOOKUP($B154,C_UKG!$B$2:$D$21,3,FALSE))<24000,VLOOKUP(I28,C_UKG!$B$2:$D$21,3,FALSE)+VLOOKUP($B154,C_UKG!$B$2:$D$21,3,FALSE),"--"),"--") -> -- | J154: =IFERROR(IF((VLOOKUP(J28,C_UKG!$B$2:$D$21,3,FALSE)+VLOOKUP($B154,C_UKG!$B$2:$D$21,3,FALSE))<24000,VLOOKUP(J28,C_UKG!$B$2:$D$21,3,FALSE)+VLOOKUP($B154,C_UKG!$B$2:$D$21,3,FALSE),"--"),"--") -> -- | K154: =IFERROR(IF((VLOOKUP(K28,C_UKG!$B$2:$D$21,3,FALSE)+VLOOKUP($B154,C_UKG!$B$2:$D$21,3,FALSE))<24000,VLOOKUP(K28,C_UKG!$B$2:$D$21,3,FALSE)+VLOOKUP($B154,C_UKG!$B$2:$D$21,3,FALSE),"--"),"--") -> -- | L154: =IFERROR(IF((VLOOKUP(L28,C_UKG!$B$2:$D$21,3,FALSE)+VLOOKUP($B154,C_UKG!$B$2:$D$21,3,FALSE))<24000,VLOOKUP(L28,C_UKG!$B$2:$D$21,3,FALSE)+VLOOKUP($B154,C_UKG!$B$2:$D$21,3,FALSE),"--"),"--") -> -- | M154: =IFERROR(IF((VLOOKUP(M28,C_UKG!$B$2:$D$21,3,FALSE)+VLOOKUP($B154,C_UKG!$B$2:$D$21,3,FALSE))<24000,VLOOKUP(M28,C_UKG!$B$2:$D$21,3,FALSE)+VLOOKUP($B154,C_UKG!$B$2:$D$21,3,FALSE),"--"),"--") -> -- | N154: =IFERROR(IF((VLOOKUP(N28,C_UKG!$B$2:$D$21,3,FALSE)+VLOOKUP($B154,C_UKG!$B$2:$D$21,3,FALSE))<24000,VLOOKUP(N28,C_UKG!$B$2:$D$21,3,FALSE)+VLOOKUP($B154,C_UKG!$B$2:$D$21,3,FALSE),"--"),"--") -> -- | O154: =IFERROR(IF((VLOOKUP(O28,C_UKG!$B$2:$D$21,3,FALSE)+VLOOKUP($B154,C_UKG!$B$2:$D$21,3,FALSE))<24000,VLOOKUP(O28,C_UKG!$B$2:$D$21,3,FALSE)+VLOOKUP($B154,C_UKG!$B$2:$D$21,3,FALSE),"--"),"--") -> -- | P154: =IFERROR(IF((VLOOKUP(P28,C_UKG!$B$2:$D$21,3,FALSE)+VLOOKUP($B154,C_UKG!$B$2:$D$21,3,FALSE))<24000,VLOOKUP(P28,C_UKG!$B$2:$D$21,3,FALSE)+VLOOKUP($B154,C_UKG!$B$2:$D$21,3,FALSE),"--"),"--") -> -- | Q154: =IFERROR(IF((VLOOKUP(Q28,C_UKG!$B$2:$D$21,3,FALSE)+VLOOKUP($B154,C_UKG!$B$2:$D$21,3,FALSE))<24000,VLOOKUP(Q28,C_UKG!$B$2:$D$21,3,FALSE)+VLOOKUP($B154,C_UKG!$B$2:$D$21,3,FALSE),"--"),"--") -> -- | R154: =IFERROR(IF((VLOOKUP(R28,C_UKG!$B$2:$D$21,3,FALSE)+VLOOKUP($B154,C_UKG!$B$2:$D$21,3,FALSE))<24000,VLOOKUP(R28,C_UKG!$B$2:$D$21,3,FALSE)+VLOOKUP($B154,C_UKG!$B$2:$D$21,3,FALSE),"--"),"--") -> -- | S154: =IFERROR(IF((VLOOKUP(S28,C_UKG!$B$2:$D$21,3,FALSE)+VLOOKUP($B154,C_UKG!$B$2:$D$21,3,FALSE))<24000,VLOOKUP(S28,C_UKG!$B$2:$D$21,3,FALSE)+VLOOKUP($B154,C_UKG!$B$2:$D$21,3,FALSE),"--"),"--") -> -- | T154: =IFERROR(IF((VLOOKUP(T28,C_UKG!$B$2:$D$21,3,FALSE)+VLOOKUP($B154,C_UKG!$B$2:$D$21,3,FALSE))<24000,VLOOKUP(T28,C_UKG!$B$2:$D$21,3,FALSE)+VLOOKUP($B154,C_UKG!$B$2:$D$21,3,FALSE),"--"),"--") -> -- | U154: =IFERROR(IF((VLOOKUP(U28,C_UKG!$B$2:$D$21,3,FALSE)+VLOOKUP($B154,C_UKG!$B$2:$D$21,3,FALSE))<24000,VLOOKUP(U28,C_UKG!$B$2:$D$21,3,FALSE)+VLOOKUP($B154,C_UKG!$B$2:$D$21,3,FALSE),"--"),"--") -> -- | V154: =IFERROR(IF((VLOOKUP(V28,C_UKG!$B$2:$D$21,3,FALSE)+VLOOKUP($B154,C_UKG!$B$2:$D$21,3,FALSE))<24000,VLOOKUP(V28,C_UKG!$B$2:$D$21,3,FALSE)+VLOOKUP($B154,C_UKG!$B$2:$D$21,3,FALSE),"--"),"--") -> --
A155: 25 | B155: I | C155: =IFERROR(IF((VLOOKUP(C29,C_UKG!$B$2:$D$21,3,FALSE)+VLOOKUP($B155,C_UKG!$B$2:$D$21,3,FALSE))<24000,VLOOKUP(C29,C_UKG!$B$2:$D$21,3,FALSE)+VLOOKUP($B155,C_UKG!$B$2:$D$21,3,FALSE),"--"),"--") -> -- | D155: =IFERROR(IF((VLOOKUP(D29,C_UKG!$B$2:$D$21,3,FALSE)+VLOOKUP($B155,C_UKG!$B$2:$D$21,3,FALSE))<24000,VLOOKUP(D29,C_UKG!$B$2:$D$21,3,FALSE)+VLOOKUP($B155,C_UKG!$B$2:$D$21,3,FALSE),"--"),"--") -> -- | E155: =IFERROR(IF((VLOOKUP(E29,C_UKG!$B$2:$D$21,3,FALSE)+VLOOKUP($B155,C_UKG!$B$2:$D$21,3,FALSE))<24000,VLOOKUP(E29,C_UKG!$B$2:$D$21,3,FALSE)+VLOOKUP($B155,C_UKG!$B$2:$D$21,3,FALSE),"--"),"--") -> -- | F155: =IFERROR(IF((VLOOKUP(F29,C_UKG!$B$2:$D$21,3,FALSE)+VLOOKUP($B155,C_UKG!$B$2:$D$21,3,FALSE))<24000,VLOOKUP(F29,C_UKG!$B$2:$D$21,3,FALSE)+VLOOKUP($B155,C_UKG!$B$2:$D$21,3,FALSE),"--"),"--") -> -- | G155: =IFERROR(IF((VLOOKUP(G29,C_UKG!$B$2:$D$21,3,FALSE)+VLOOKUP($B155,C_UKG!$B$2:$D$21,3,FALSE))<24000,VLOOKUP(G29,C_UKG!$B$2:$D$21,3,FALSE)+VLOOKUP($B155,C_UKG!$B$2:$D$21,3,FALSE),"--"),"--") -> -- | H155: =IFERROR(IF((VLOOKUP(H29,C_UKG!$B$2:$D$21,3,FALSE)+VLOOKUP($B155,C_UKG!$B$2:$D$21,3,FALSE))<24000,VLOOKUP(H29,C_UKG!$B$2:$D$21,3,FALSE)+VLOOKUP($B155,C_UKG!$B$2:$D$21,3,FALSE),"--"),"--") -> -- | I155: =IFERROR(IF((VLOOKUP(I29,C_UKG!$B$2:$D$21,3,FALSE)+VLOOKUP($B155,C_UKG!$B$2:$D$21,3,FALSE))<24000,VLOOKUP(I29,C_UKG!$B$2:$D$21,3,FALSE)+VLOOKUP($B155,C_UKG!$B$2:$D$21,3,FALSE),"--"),"--") -> -- | J155: =IFERROR(IF((VLOOKUP(J29,C_UKG!$B$2:$D$21,3,FALSE)+VLOOKUP($B155,C_UKG!$B$2:$D$21,3,FALSE))<24000,VLOOKUP(J29,C_UKG!$B$2:$D$21,3,FALSE)+VLOOKUP($B155,C_UKG!$B$2:$D$21,3,FALSE),"--"),"--") -> -- | K155: =IFERROR(IF((VLOOKUP(K29,C_UKG!$B$2:$D$21,3,FALSE)+VLOOKUP($B155,C_UKG!$B$2:$D$21,3,FALSE))<24000,VLOOKUP(K29,C_UKG!$B$2:$D$21,3,FALSE)+VLOOKUP($B155,C_UKG!$B$2:$D$21,3,FALSE),"--"),"--") -> -- | L155: =IFERROR(IF((VLOOKUP(L29,C_UKG!$B$2:$D$21,3,FALSE)+VLOOKUP($B155,C_UKG!$B$2:$D$21,3,FALSE))<24000,VLOOKUP(L29,C_UKG!$B$2:$D$21,3,FALSE)+VLOOKUP($B155,C_UKG!$B$2:$D$21,3,FALSE),"--"),"--") -> -- | M155: =IFERROR(IF((VLOOKUP(M29,C_UKG!$B$2:$D$21,3,FALSE)+VLOOKUP($B155,C_UKG!$B$2:$D$21,3,FALSE))<24000,VLOOKUP(M29,C_UKG!$B$2:$D$21,3,FALSE)+VLOOKUP($B155,C_UKG!$B$2:$D$21,3,FALSE),"--"),"--") -> -- | N155: =IFERROR(IF((VLOOKUP(N29,C_UKG!$B$2:$D$21,3,FALSE)+VLOOKUP($B155,C_UKG!$B$2:$D$21,3,FALSE))<24000,VLOOKUP(N29,C_UKG!$B$2:$D$21,3,FALSE)+VLOOKUP($B155,C_UKG!$B$2:$D$21,3,FALSE),"--"),"--") -> -- | O155: =IFERROR(IF((VLOOKUP(O29,C_UKG!$B$2:$D$21,3,FALSE)+VLOOKUP($B155,C_UKG!$B$2:$D$21,3,FALSE))<24000,VLOOKUP(O29,C_UKG!$B$2:$D$21,3,FALSE)+VLOOKUP($B155,C_UKG!$B$2:$D$21,3,FALSE),"--"),"--") -> -- | P155: =IFERROR(IF((VLOOKUP(P29,C_UKG!$B$2:$D$21,3,FALSE)+VLOOKUP($B155,C_UKG!$B$2:$D$21,3,FALSE))<24000,VLOOKUP(P29,C_UKG!$B$2:$D$21,3,FALSE)+VLOOKUP($B155,C_UKG!$B$2:$D$21,3,FALSE),"--"),"--") -> -- | Q155: =IFERROR(IF((VLOOKUP(Q29,C_UKG!$B$2:$D$21,3,FALSE)+VLOOKUP($B155,C_UKG!$B$2:$D$21,3,FALSE))<24000,VLOOKUP(Q29,C_UKG!$B$2:$D$21,3,FALSE)+VLOOKUP($B155,C_UKG!$B$2:$D$21,3,FALSE),"--"),"--") -> -- | R155: =IFERROR(IF((VLOOKUP(R29,C_UKG!$B$2:$D$21,3,FALSE)+VLOOKUP($B155,C_UKG!$B$2:$D$21,3,FALSE))<24000,VLOOKUP(R29,C_UKG!$B$2:$D$21,3,FALSE)+VLOOKUP($B155,C_UKG!$B$2:$D$21,3,FALSE),"--"),"--") -> -- | S155: =IFERROR(IF((VLOOKUP(S29,C_UKG!$B$2:$D$21,3,FALSE)+VLOOKUP($B155,C_UKG!$B$2:$D$21,3,FALSE))<24000,VLOOKUP(S29,C_UKG!$B$2:$D$21,3,FALSE)+VLOOKUP($B155,C_UKG!$B$2:$D$21,3,FALSE),"--"),"--") -> -- | T155: =IFERROR(IF((VLOOKUP(T29,C_UKG!$B$2:$D$21,3,FALSE)+VLOOKUP($B155,C_UKG!$B$2:$D$21,3,FALSE))<24000,VLOOKUP(T29,C_UKG!$B$2:$D$21,3,FALSE)+VLOOKUP($B155,C_UKG!$B$2:$D$21,3,FALSE),"--"),"--") -> -- | U155: =IFERROR(IF((VLOOKUP(U29,C_UKG!$B$2:$D$21,3,FALSE)+VLOOKUP($B155,C_UKG!$B$2:$D$21,3,FALSE))<24000,VLOOKUP(U29,C_UKG!$B$2:$D$21,3,FALSE)+VLOOKUP($B155,C_UKG!$B$2:$D$21,3,FALSE),"--"),"--") -> -- | V155: =IFERROR(IF((VLOOKUP(V29,C_UKG!$B$2:$D$21,3,FALSE)+VLOOKUP($B155,C_UKG!$B$2:$D$21,3,FALSE))<24000,VLOOKUP(V29,C_UKG!$B$2:$D$21,3,FALSE)+VLOOKUP($B155,C_UKG!$B$2:$D$21,3,FALSE),"--"),"--") -> --
A156: 26 | C156: =IFERROR(IF((VLOOKUP(C30,C_UKG!$B$2:$D$21,3,FALSE)+VLOOKUP($B156,C_UKG!$B$2:$D$21,3,FALSE))<24000,VLOOKUP(C30,C_UKG!$B$2:$D$21,3,FALSE)+VLOOKUP($B156,C_UKG!$B$2:$D$21,3,FALSE),"--"),"--") -> -- | D156: =IFERROR(IF((VLOOKUP(D30,C_UKG!$B$2:$D$21,3,FALSE)+VLOOKUP($B156,C_UKG!$B$2:$D$21,3,FALSE))<24000,VLOOKUP(D30,C_UKG!$B$2:$D$21,3,FALSE)+VLOOKUP($B156,C_UKG!$B$2:$D$21,3,FALSE),"--"),"--") -> -- | E156: =IFERROR(IF((VLOOKUP(E30,C_UKG!$B$2:$D$21,3,FALSE)+VLOOKUP($B156,C_UKG!$B$2:$D$21,3,FALSE))<24000,VLOOKUP(E30,C_UKG!$B$2:$D$21,3,FALSE)+VLOOKUP($B156,C_UKG!$B$2:$D$21,3,FALSE),"--"),"--") -> -- | F156: =IFERROR(IF((VLOOKUP(F30,C_UKG!$B$2:$D$21,3,FALSE)+VLOOKUP($B156,C_UKG!$B$2:$D$21,3,FALSE))<24000,VLOOKUP(F30,C_UKG!$B$2:$D$21,3,FALSE)+VLOOKUP($B156,C_UKG!$B$2:$D$21,3,FALSE),"--"),"--") -> -- | G156: =IFERROR(IF((VLOOKUP(G30,C_UKG!$B$2:$D$21,3,FALSE)+VLOOKUP($B156,C_UKG!$B$2:$D$21,3,FALSE))<24000,VLOOKUP(G30,C_UKG!$B$2:$D$21,3,FALSE)+VLOOKUP($B156,C_UKG!$B$2:$D$21,3,FALSE),"--"),"--") -> -- | H156: =IFERROR(IF((VLOOKUP(H30,C_UKG!$B$2:$D$21,3,FALSE)+VLOOKUP($B156,C_UKG!$B$2:$D$21,3,FALSE))<24000,VLOOKUP(H30,C_UKG!$B$2:$D$21,3,FALSE)+VLOOKUP($B156,C_UKG!$B$2:$D$21,3,FALSE),"--"),"--") -> -- | I156: =IFERROR(IF((VLOOKUP(I30,C_UKG!$B$2:$D$21,3,FALSE)+VLOOKUP($B156,C_UKG!$B$2:$D$21,3,FALSE))<24000,VLOOKUP(I30,C_UKG!$B$2:$D$21,3,FALSE)+VLOOKUP($B156,C_UKG!$B$2:$D$21,3,FALSE),"--"),"--") -> -- | J156: =IFERROR(IF((VLOOKUP(J30,C_UKG!$B$2:$D$21,3,FALSE)+VLOOKUP($B156,C_UKG!$B$2:$D$21,3,FALSE))<24000,VLOOKUP(J30,C_UKG!$B$2:$D$21,3,FALSE)+VLOOKUP($B156,C_UKG!$B$2:$D$21,3,FALSE),"--"),"--") -> -- | K156: =IFERROR(IF((VLOOKUP(K30,C_UKG!$B$2:$D$21,3,FALSE)+VLOOKUP($B156,C_UKG!$B$2:$D$21,3,FALSE))<24000,VLOOKUP(K30,C_UKG!$B$2:$D$21,3,FALSE)+VLOOKUP($B156,C_UKG!$B$2:$D$21,3,FALSE),"--"),"--") -> -- | L156: =IFERROR(IF((VLOOKUP(L30,C_UKG!$B$2:$D$21,3,FALSE)+VLOOKUP($B156,C_UKG!$B$2:$D$21,3,FALSE))<24000,VLOOKUP(L30,C_UKG!$B$2:$D$21,3,FALSE)+VLOOKUP($B156,C_UKG!$B$2:$D$21,3,FALSE),"--"),"--") -> -- | M156: =IFERROR(IF((VLOOKUP(M30,C_UKG!$B$2:$D$21,3,FALSE)+VLOOKUP($B156,C_UKG!$B$2:$D$21,3,FALSE))<24000,VLOOKUP(M30,C_UKG!$B$2:$D$21,3,FALSE)+VLOOKUP($B156,C_UKG!$B$2:$D$21,3,FALSE),"--"),"--") -> -- | N156: =IFERROR(IF((VLOOKUP(N30,C_UKG!$B$2:$D$21,3,FALSE)+VLOOKUP($B156,C_UKG!$B$2:$D$21,3,FALSE))<24000,VLOOKUP(N30,C_UKG!$B$2:$D$21,3,FALSE)+VLOOKUP($B156,C_UKG!$B$2:$D$21,3,FALSE),"--"),"--") -> -- | O156: =IFERROR(IF((VLOOKUP(O30,C_UKG!$B$2:$D$21,3,FALSE)+VLOOKUP($B156,C_UKG!$B$2:$D$21,3,FALSE))<24000,VLOOKUP(O30,C_UKG!$B$2:$D$21,3,FALSE)+VLOOKUP($B156,C_UKG!$B$2:$D$21,3,FALSE),"--"),"--") -> -- | P156: =IFERROR(IF((VLOOKUP(P30,C_UKG!$B$2:$D$21,3,FALSE)+VLOOKUP($B156,C_UKG!$B$2:$D$21,3,FALSE))<24000,VLOOKUP(P30,C_UKG!$B$2:$D$21,3,FALSE)+VLOOKUP($B156,C_UKG!$B$2:$D$21,3,FALSE),"--"),"--") -> -- | Q156: =IFERROR(IF((VLOOKUP(Q30,C_UKG!$B$2:$D$21,3,FALSE)+VLOOKUP($B156,C_UKG!$B$2:$D$21,3,FALSE))<24000,VLOOKUP(Q30,C_UKG!$B$2:$D$21,3,FALSE)+VLOOKUP($B156,C_UKG!$B$2:$D$21,3,FALSE),"--"),"--") -> -- | R156: =IFERROR(IF((VLOOKUP(R30,C_UKG!$B$2:$D$21,3,FALSE)+VLOOKUP($B156,C_UKG!$B$2:$D$21,3,FALSE))<24000,VLOOKUP(R30,C_UKG!$B$2:$D$21,3,FALSE)+VLOOKUP($B156,C_UKG!$B$2:$D$21,3,FALSE),"--"),"--") -> -- | S156: =IFERROR(IF((VLOOKUP(S30,C_UKG!$B$2:$D$21,3,FALSE)+VLOOKUP($B156,C_UKG!$B$2:$D$21,3,FALSE))<24000,VLOOKUP(S30,C_UKG!$B$2:$D$21,3,FALSE)+VLOOKUP($B156,C_UKG!$B$2:$D$21,3,FALSE),"--"),"--") -> -- | T156: =IFERROR(IF((VLOOKUP(T30,C_UKG!$B$2:$D$21,3,FALSE)+VLOOKUP($B156,C_UKG!$B$2:$D$21,3,FALSE))<24000,VLOOKUP(T30,C_UKG!$B$2:$D$21,3,FALSE)+VLOOKUP($B156,C_UKG!$B$2:$D$21,3,FALSE),"--"),"--") -> -- | U156: =IFERROR(IF((VLOOKUP(U30,C_UKG!$B$2:$D$21,3,FALSE)+VLOOKUP($B156,C_UKG!$B$2:$D$21,3,FALSE))<24000,VLOOKUP(U30,C_UKG!$B$2:$D$21,3,FALSE)+VLOOKUP($B156,C_UKG!$B$2:$D$21,3,FALSE),"--"),"--") -> -- | V156: =IFERROR(IF((VLOOKUP(V30,C_UKG!$B$2:$D$21,3,FALSE)+VLOOKUP($B156,C_UKG!$B$2:$D$21,3,FALSE))<24000,VLOOKUP(V30,C_UKG!$B$2:$D$21,3,FALSE)+VLOOKUP($B156,C_UKG!$B$2:$D$21,3,FALSE),"--"),"--") -> --
A157: 27 | C157: =IFERROR(IF((VLOOKUP(C31,C_UKG!$B$2:$D$21,3,FALSE)+VLOOKUP($B157,C_UKG!$B$2:$D$21,3,FALSE))<24000,VLOOKUP(C31,C_UKG!$B$2:$D$21,3,FALSE)+VLOOKUP($B157,C_UKG!$B$2:$D$21,3,FALSE),"--"),"--") -> -- | D157: =IFERROR(IF((VLOOKUP(D31,C_UKG!$B$2:$D$21,3,FALSE)+VLOOKUP($B157,C_UKG!$B$2:$D$21,3,FALSE))<24000,VLOOKUP(D31,C_UKG!$B$2:$D$21,3,FALSE)+VLOOKUP($B157,C_UKG!$B$2:$D$21,3,FALSE),"--"),"--") -> -- | E157: =IFERROR(IF((VLOOKUP(E31,C_UKG!$B$2:$D$21,3,FALSE)+VLOOKUP($B157,C_UKG!$B$2:$D$21,3,FALSE))<24000,VLOOKUP(E31,C_UKG!$B$2:$D$21,3,FALSE)+VLOOKUP($B157,C_UKG!$B$2:$D$21,3,FALSE),"--"),"--") -> -- | F157: =IFERROR(IF((VLOOKUP(F31,C_UKG!$B$2:$D$21,3,FALSE)+VLOOKUP($B157,C_UKG!$B$2:$D$21,3,FALSE))<24000,VLOOKUP(F31,C_UKG!$B$2:$D$21,3,FALSE)+VLOOKUP($B157,C_UKG!$B$2:$D$21,3,FALSE),"--"),"--") -> -- | G157: =IFERROR(IF((VLOOKUP(G31,C_UKG!$B$2:$D$21,3,FALSE)+VLOOKUP($B157,C_UKG!$B$2:$D$21,3,FALSE))<24000,VLOOKUP(G31,C_UKG!$B$2:$D$21,3,FALSE)+VLOOKUP($B157,C_UKG!$B$2:$D$21,3,FALSE),"--"),"--") -> -- | H157: =IFERROR(IF((VLOOKUP(H31,C_UKG!$B$2:$D$21,3,FALSE)+VLOOKUP($B157,C_UKG!$B$2:$D$21,3,FALSE))<24000,VLOOKUP(H31,C_UKG!$B$2:$D$21,3,FALSE)+VLOOKUP($B157,C_UKG!$B$2:$D$21,3,FALSE),"--"),"--") -> -- | I157: =IFERROR(IF((VLOOKUP(I31,C_UKG!$B$2:$D$21,3,FALSE)+VLOOKUP($B157,C_UKG!$B$2:$D$21,3,FALSE))<24000,VLOOKUP(I31,C_UKG!$B$2:$D$21,3,FALSE)+VLOOKUP($B157,C_UKG!$B$2:$D$21,3,FALSE),"--"),"--") -> -- | J157: =IFERROR(IF((VLOOKUP(J31,C_UKG!$B$2:$D$21,3,FALSE)+VLOOKUP($B157,C_UKG!$B$2:$D$21,3,FALSE))<24000,VLOOKUP(J31,C_UKG!$B$2:$D$21,3,FALSE)+VLOOKUP($B157,C_UKG!$B$2:$D$21,3,FALSE),"--"),"--") -> -- | K157: =IFERROR(IF((VLOOKUP(K31,C_UKG!$B$2:$D$21,3,FALSE)+VLOOKUP($B157,C_UKG!$B$2:$D$21,3,FALSE))<24000,VLOOKUP(K31,C_UKG!$B$2:$D$21,3,FALSE)+VLOOKUP($B157,C_UKG!$B$2:$D$21,3,FALSE),"--"),"--") -> -- | L157: =IFERROR(IF((VLOOKUP(L31,C_UKG!$B$2:$D$21,3,FALSE)+VLOOKUP($B157,C_UKG!$B$2:$D$21,3,FALSE))<24000,VLOOKUP(L31,C_UKG!$B$2:$D$21,3,FALSE)+VLOOKUP($B157,C_UKG!$B$2:$D$21,3,FALSE),"--"),"--") -> -- | M157: =IFERROR(IF((VLOOKUP(M31,C_UKG!$B$2:$D$21,3,FALSE)+VLOOKUP($B157,C_UKG!$B$2:$D$21,3,FALSE))<24000,VLOOKUP(M31,C_UKG!$B$2:$D$21,3,FALSE)+VLOOKUP($B157,C_UKG!$B$2:$D$21,3,FALSE),"--"),"--") -> -- | N157: =IFERROR(IF((VLOOKUP(N31,C_UKG!$B$2:$D$21,3,FALSE)+VLOOKUP($B157,C_UKG!$B$2:$D$21,3,FALSE))<24000,VLOOKUP(N31,C_UKG!$B$2:$D$21,3,FALSE)+VLOOKUP($B157,C_UKG!$B$2:$D$21,3,FALSE),"--"),"--") -> -- | O157: =IFERROR(IF((VLOOKUP(O31,C_UKG!$B$2:$D$21,3,FALSE)+VLOOKUP($B157,C_UKG!$B$2:$D$21,3,FALSE))<24000,VLOOKUP(O31,C_UKG!$B$2:$D$21,3,FALSE)+VLOOKUP($B157,C_UKG!$B$2:$D$21,3,FALSE),"--"),"--") -> -- | P157: =IFERROR(IF((VLOOKUP(P31,C_UKG!$B$2:$D$21,3,FALSE)+VLOOKUP($B157,C_UKG!$B$2:$D$21,3,FALSE))<24000,VLOOKUP(P31,C_UKG!$B$2:$D$21,3,FALSE)+VLOOKUP($B157,C_UKG!$B$2:$D$21,3,FALSE),"--"),"--") -> -- | Q157: =IFERROR(IF((VLOOKUP(Q31,C_UKG!$B$2:$D$21,3,FALSE)+VLOOKUP($B157,C_UKG!$B$2:$D$21,3,FALSE))<24000,VLOOKUP(Q31,C_UKG!$B$2:$D$21,3,FALSE)+VLOOKUP($B157,C_UKG!$B$2:$D$21,3,FALSE),"--"),"--") -> -- | R157: =IFERROR(IF((VLOOKUP(R31,C_UKG!$B$2:$D$21,3,FALSE)+VLOOKUP($B157,C_UKG!$B$2:$D$21,3,FALSE))<24000,VLOOKUP(R31,C_UKG!$B$2:$D$21,3,FALSE)+VLOOKUP($B157,C_UKG!$B$2:$D$21,3,FALSE),"--"),"--") -> -- | S157: =IFERROR(IF((VLOOKUP(S31,C_UKG!$B$2:$D$21,3,FALSE)+VLOOKUP($B157,C_UKG!$B$2:$D$21,3,FALSE))<24000,VLOOKUP(S31,C_UKG!$B$2:$D$21,3,FALSE)+VLOOKUP($B157,C_UKG!$B$2:$D$21,3,FALSE),"--"),"--") -> -- | T157: =IFERROR(IF((VLOOKUP(T31,C_UKG!$B$2:$D$21,3,FALSE)+VLOOKUP($B157,C_UKG!$B$2:$D$21,3,FALSE))<24000,VLOOKUP(T31,C_UKG!$B$2:$D$21,3,FALSE)+VLOOKUP($B157,C_UKG!$B$2:$D$21,3,FALSE),"--"),"--") -> -- | U157: =IFERROR(IF((VLOOKUP(U31,C_UKG!$B$2:$D$21,3,FALSE)+VLOOKUP($B157,C_UKG!$B$2:$D$21,3,FALSE))<24000,VLOOKUP(U31,C_UKG!$B$2:$D$21,3,FALSE)+VLOOKUP($B157,C_UKG!$B$2:$D$21,3,FALSE),"--"),"--") -> -- | V157: =IFERROR(IF((VLOOKUP(V31,C_UKG!$B$2:$D$21,3,FALSE)+VLOOKUP($B157,C_UKG!$B$2:$D$21,3,FALSE))<24000,VLOOKUP(V31,C_UKG!$B$2:$D$21,3,FALSE)+VLOOKUP($B157,C_UKG!$B$2:$D$21,3,FALSE),"--"),"--") -> --
A158: 28 | B158: J | C158: =IFERROR(IF((VLOOKUP(C32,C_UKG!$B$2:$D$21,3,FALSE)+VLOOKUP($B158,C_UKG!$B$2:$D$21,3,FALSE))<24000,VLOOKUP(C32,C_UKG!$B$2:$D$21,3,FALSE)+VLOOKUP($B158,C_UKG!$B$2:$D$21,3,FALSE),"--"),"--") -> -- | D158: =IFERROR(IF((VLOOKUP(D32,C_UKG!$B$2:$D$21,3,FALSE)+VLOOKUP($B158,C_UKG!$B$2:$D$21,3,FALSE))<24000,VLOOKUP(D32,C_UKG!$B$2:$D$21,3,FALSE)+VLOOKUP($B158,C_UKG!$B$2:$D$21,3,FALSE),"--"),"--") -> -- | E158: =IFERROR(IF((VLOOKUP(E32,C_UKG!$B$2:$D$21,3,FALSE)+VLOOKUP($B158,C_UKG!$B$2:$D$21,3,FALSE))<24000,VLOOKUP(E32,C_UKG!$B$2:$D$21,3,FALSE)+VLOOKUP($B158,C_UKG!$B$2:$D$21,3,FALSE),"--"),"--") -> -- | F158: =IFERROR(IF((VLOOKUP(F32,C_UKG!$B$2:$D$21,3,FALSE)+VLOOKUP($B158,C_UKG!$B$2:$D$21,3,FALSE))<24000,VLOOKUP(F32,C_UKG!$B$2:$D$21,3,FALSE)+VLOOKUP($B158,C_UKG!$B$2:$D$21,3,FALSE),"--"),"--") -> -- | G158: =IFERROR(IF((VLOOKUP(G32,C_UKG!$B$2:$D$21,3,FALSE)+VLOOKUP($B158,C_UKG!$B$2:$D$21,3,FALSE))<24000,VLOOKUP(G32,C_UKG!$B$2:$D$21,3,FALSE)+VLOOKUP($B158,C_UKG!$B$2:$D$21,3,FALSE),"--"),"--") -> -- | H158: =IFERROR(IF((VLOOKUP(H32,C_UKG!$B$2:$D$21,3,FALSE)+VLOOKUP($B158,C_UKG!$B$2:$D$21,3,FALSE))<24000,VLOOKUP(H32,C_UKG!$B$2:$D$21,3,FALSE)+VLOOKUP($B158,C_UKG!$B$2:$D$21,3,FALSE),"--"),"--") -> -- | I158: =IFERROR(IF((VLOOKUP(I32,C_UKG!$B$2:$D$21,3,FALSE)+VLOOKUP($B158,C_UKG!$B$2:$D$21,3,FALSE))<24000,VLOOKUP(I32,C_UKG!$B$2:$D$21,3,FALSE)+VLOOKUP($B158,C_UKG!$B$2:$D$21,3,FALSE),"--"),"--") -> -- | J158: =IFERROR(IF((VLOOKUP(J32,C_UKG!$B$2:$D$21,3,FALSE)+VLOOKUP($B158,C_UKG!$B$2:$D$21,3,FALSE))<24000,VLOOKUP(J32,C_UKG!$B$2:$D$21,3,FALSE)+VLOOKUP($B158,C_UKG!$B$2:$D$21,3,FALSE),"--"),"--") -> -- | K158: =IFERROR(IF((VLOOKUP(K32,C_UKG!$B$2:$D$21,3,FALSE)+VLOOKUP($B158,C_UKG!$B$2:$D$21,3,FALSE))<24000,VLOOKUP(K32,C_UKG!$B$2:$D$21,3,FALSE)+VLOOKUP($B158,C_UKG!$B$2:$D$21,3,FALSE),"--"),"--") -> -- | L158: =IFERROR(IF((VLOOKUP(L32,C_UKG!$B$2:$D$21,3,FALSE)+VLOOKUP($B158,C_UKG!$B$2:$D$21,3,FALSE))<24000,VLOOKUP(L32,C_UKG!$B$2:$D$21,3,FALSE)+VLOOKUP($B158,C_UKG!$B$2:$D$21,3,FALSE),"--"),"--") -> -- | M158: =IFERROR(IF((VLOOKUP(M32,C_UKG!$B$2:$D$21,3,FALSE)+VLOOKUP($B158,C_UKG!$B$2:$D$21,3,FALSE))<24000,VLOOKUP(M32,C_UKG!$B$2:$D$21,3,FALSE)+VLOOKUP($B158,C_UKG!$B$2:$D$21,3,FALSE),"--"),"--") -> -- | N158: =IFERROR(IF((VLOOKUP(N32,C_UKG!$B$2:$D$21,3,FALSE)+VLOOKUP($B158,C_UKG!$B$2:$D$21,3,FALSE))<24000,VLOOKUP(N32,C_UKG!$B$2:$D$21,3,FALSE)+VLOOKUP($B158,C_UKG!$B$2:$D$21,3,FALSE),"--"),"--") -> -- | O158: =IFERROR(IF((VLOOKUP(O32,C_UKG!$B$2:$D$21,3,FALSE)+VLOOKUP($B158,C_UKG!$B$2:$D$21,3,FALSE))<24000,VLOOKUP(O32,C_UKG!$B$2:$D$21,3,FALSE)+VLOOKUP($B158,C_UKG!$B$2:$D$21,3,FALSE),"--"),"--") -> -- | P158: =IFERROR(IF((VLOOKUP(P32,C_UKG!$B$2:$D$21,3,FALSE)+VLOOKUP($B158,C_UKG!$B$2:$D$21,3,FALSE))<24000,VLOOKUP(P32,C_UKG!$B$2:$D$21,3,FALSE)+VLOOKUP($B158,C_UKG!$B$2:$D$21,3,FALSE),"--"),"--") -> -- | Q158: =IFERROR(IF((VLOOKUP(Q32,C_UKG!$B$2:$D$21,3,FALSE)+VLOOKUP($B158,C_UKG!$B$2:$D$21,3,FALSE))<24000,VLOOKUP(Q32,C_UKG!$B$2:$D$21,3,FALSE)+VLOOKUP($B158,C_UKG!$B$2:$D$21,3,FALSE),"--"),"--") -> -- | R158: =IFERROR(IF((VLOOKUP(R32,C_UKG!$B$2:$D$21,3,FALSE)+VLOOKUP($B158,C_UKG!$B$2:$D$21,3,FALSE))<24000,VLOOKUP(R32,C_UKG!$B$2:$D$21,3,FALSE)+VLOOKUP($B158,C_UKG!$B$2:$D$21,3,FALSE),"--"),"--") -> -- | S158: =IFERROR(IF((VLOOKUP(S32,C_UKG!$B$2:$D$21,3,FALSE)+VLOOKUP($B158,C_UKG!$B$2:$D$21,3,FALSE))<24000,VLOOKUP(S32,C_UKG!$B$2:$D$21,3,FALSE)+VLOOKUP($B158,C_UKG!$B$2:$D$21,3,FALSE),"--"),"--") -> -- | T158: =IFERROR(IF((VLOOKUP(T32,C_UKG!$B$2:$D$21,3,FALSE)+VLOOKUP($B158,C_UKG!$B$2:$D$21,3,FALSE))<24000,VLOOKUP(T32,C_UKG!$B$2:$D$21,3,FALSE)+VLOOKUP($B158,C_UKG!$B$2:$D$21,3,FALSE),"--"),"--") -> -- | U158: =IFERROR(IF((VLOOKUP(U32,C_UKG!$B$2:$D$21,3,FALSE)+VLOOKUP($B158,C_UKG!$B$2:$D$21,3,FALSE))<24000,VLOOKUP(U32,C_UKG!$B$2:$D$21,3,FALSE)+VLOOKUP($B158,C_UKG!$B$2:$D$21,3,FALSE),"--"),"--") -> -- | V158: =IFERROR(IF((VLOOKUP(V32,C_UKG!$B$2:$D$21,3,FALSE)+VLOOKUP($B158,C_UKG!$B$2:$D$21,3,FALSE))<24000,VLOOKUP(V32,C_UKG!$B$2:$D$21,3,FALSE)+VLOOKUP($B158,C_UKG!$B$2:$D$21,3,FALSE),"--"),"--") -> --
A159: 29 | C159: =IFERROR(IF((VLOOKUP(C33,C_UKG!$B$2:$D$21,3,FALSE)+VLOOKUP($B159,C_UKG!$B$2:$D$21,3,FALSE))<24000,VLOOKUP(C33,C_UKG!$B$2:$D$21,3,FALSE)+VLOOKUP($B159,C_UKG!$B$2:$D$21,3,FALSE),"--"),"--") -> -- | D159: =IFERROR(IF((VLOOKUP(D33,C_UKG!$B$2:$D$21,3,FALSE)+VLOOKUP($B159,C_UKG!$B$2:$D$21,3,FALSE))<24000,VLOOKUP(D33,C_UKG!$B$2:$D$21,3,FALSE)+VLOOKUP($B159,C_UKG!$B$2:$D$21,3,FALSE),"--"),"--") -> -- | E159: =IFERROR(IF((VLOOKUP(E33,C_UKG!$B$2:$D$21,3,FALSE)+VLOOKUP($B159,C_UKG!$B$2:$D$21,3,FALSE))<24000,VLOOKUP(E33,C_UKG!$B$2:$D$21,3,FALSE)+VLOOKUP($B159,C_UKG!$B$2:$D$21,3,FALSE),"--"),"--") -> -- | F159: =IFERROR(IF((VLOOKUP(F33,C_UKG!$B$2:$D$21,3,FALSE)+VLOOKUP($B159,C_UKG!$B$2:$D$21,3,FALSE))<24000,VLOOKUP(F33,C_UKG!$B$2:$D$21,3,FALSE)+VLOOKUP($B159,C_UKG!$B$2:$D$21,3,FALSE),"--"),"--") -> -- | G159: =IFERROR(IF((VLOOKUP(G33,C_UKG!$B$2:$D$21,3,FALSE)+VLOOKUP($B159,C_UKG!$B$2:$D$21,3,FALSE))<24000,VLOOKUP(G33,C_UKG!$B$2:$D$21,3,FALSE)+VLOOKUP($B159,C_UKG!$B$2:$D$21,3,FALSE),"--"),"--") -> -- | H159: =IFERROR(IF((VLOOKUP(H33,C_UKG!$B$2:$D$21,3,FALSE)+VLOOKUP($B159,C_UKG!$B$2:$D$21,3,FALSE))<24000,VLOOKUP(H33,C_UKG!$B$2:$D$21,3,FALSE)+VLOOKUP($B159,C_UKG!$B$2:$D$21,3,FALSE),"--"),"--") -> -- | I159: =IFERROR(IF((VLOOKUP(I33,C_UKG!$B$2:$D$21,3,FALSE)+VLOOKUP($B159,C_UKG!$B$2:$D$21,3,FALSE))<24000,VLOOKUP(I33,C_UKG!$B$2:$D$21,3,FALSE)+VLOOKUP($B159,C_UKG!$B$2:$D$21,3,FALSE),"--"),"--") -> -- | J159: =IFERROR(IF((VLOOKUP(J33,C_UKG!$B$2:$D$21,3,FALSE)+VLOOKUP($B159,C_UKG!$B$2:$D$21,3,FALSE))<24000,VLOOKUP(J33,C_UKG!$B$2:$D$21,3,FALSE)+VLOOKUP($B159,C_UKG!$B$2:$D$21,3,FALSE),"--"),"--") -> -- | K159: =IFERROR(IF((VLOOKUP(K33,C_UKG!$B$2:$D$21,3,FALSE)+VLOOKUP($B159,C_UKG!$B$2:$D$21,3,FALSE))<24000,VLOOKUP(K33,C_UKG!$B$2:$D$21,3,FALSE)+VLOOKUP($B159,C_UKG!$B$2:$D$21,3,FALSE),"--"),"--") -> -- | L159: =IFERROR(IF((VLOOKUP(L33,C_UKG!$B$2:$D$21,3,FALSE)+VLOOKUP($B159,C_UKG!$B$2:$D$21,3,FALSE))<24000,VLOOKUP(L33,C_UKG!$B$2:$D$21,3,FALSE)+VLOOKUP($B159,C_UKG!$B$2:$D$21,3,FALSE),"--"),"--") -> -- | M159: =IFERROR(IF((VLOOKUP(M33,C_UKG!$B$2:$D$21,3,FALSE)+VLOOKUP($B159,C_UKG!$B$2:$D$21,3,FALSE))<24000,VLOOKUP(M33,C_UKG!$B$2:$D$21,3,FALSE)+VLOOKUP($B159,C_UKG!$B$2:$D$21,3,FALSE),"--"),"--") -> -- | N159: =IFERROR(IF((VLOOKUP(N33,C_UKG!$B$2:$D$21,3,FALSE)+VLOOKUP($B159,C_UKG!$B$2:$D$21,3,FALSE))<24000,VLOOKUP(N33,C_UKG!$B$2:$D$21,3,FALSE)+VLOOKUP($B159,C_UKG!$B$2:$D$21,3,FALSE),"--"),"--") -> -- | O159: =IFERROR(IF((VLOOKUP(O33,C_UKG!$B$2:$D$21,3,FALSE)+VLOOKUP($B159,C_UKG!$B$2:$D$21,3,FALSE))<24000,VLOOKUP(O33,C_UKG!$B$2:$D$21,3,FALSE)+VLOOKUP($B159,C_UKG!$B$2:$D$21,3,FALSE),"--"),"--") -> -- | P159: =IFERROR(IF((VLOOKUP(P33,C_UKG!$B$2:$D$21,3,FALSE)+VLOOKUP($B159,C_UKG!$B$2:$D$21,3,FALSE))<24000,VLOOKUP(P33,C_UKG!$B$2:$D$21,3,FALSE)+VLOOKUP($B159,C_UKG!$B$2:$D$21,3,FALSE),"--"),"--") -> -- | Q159: =IFERROR(IF((VLOOKUP(Q33,C_UKG!$B$2:$D$21,3,FALSE)+VLOOKUP($B159,C_UKG!$B$2:$D$21,3,FALSE))<24000,VLOOKUP(Q33,C_UKG!$B$2:$D$21,3,FALSE)+VLOOKUP($B159,C_UKG!$B$2:$D$21,3,FALSE),"--"),"--") -> -- | R159: =IFERROR(IF((VLOOKUP(R33,C_UKG!$B$2:$D$21,3,FALSE)+VLOOKUP($B159,C_UKG!$B$2:$D$21,3,FALSE))<24000,VLOOKUP(R33,C_UKG!$B$2:$D$21,3,FALSE)+VLOOKUP($B159,C_UKG!$B$2:$D$21,3,FALSE),"--"),"--") -> -- | S159: =IFERROR(IF((VLOOKUP(S33,C_UKG!$B$2:$D$21,3,FALSE)+VLOOKUP($B159,C_UKG!$B$2:$D$21,3,FALSE))<24000,VLOOKUP(S33,C_UKG!$B$2:$D$21,3,FALSE)+VLOOKUP($B159,C_UKG!$B$2:$D$21,3,FALSE),"--"),"--") -> -- | T159: =IFERROR(IF((VLOOKUP(T33,C_UKG!$B$2:$D$21,3,FALSE)+VLOOKUP($B159,C_UKG!$B$2:$D$21,3,FALSE))<24000,VLOOKUP(T33,C_UKG!$B$2:$D$21,3,FALSE)+VLOOKUP($B159,C_UKG!$B$2:$D$21,3,FALSE),"--"),"--") -> -- | U159: =IFERROR(IF((VLOOKUP(U33,C_UKG!$B$2:$D$21,3,FALSE)+VLOOKUP($B159,C_UKG!$B$2:$D$21,3,FALSE))<24000,VLOOKUP(U33,C_UKG!$B$2:$D$21,3,FALSE)+VLOOKUP($B159,C_UKG!$B$2:$D$21,3,FALSE),"--"),"--") -> -- | V159: =IFERROR(IF((VLOOKUP(V33,C_UKG!$B$2:$D$21,3,FALSE)+VLOOKUP($B159,C_UKG!$B$2:$D$21,3,FALSE))<24000,VLOOKUP(V33,C_UKG!$B$2:$D$21,3,FALSE)+VLOOKUP($B159,C_UKG!$B$2:$D$21,3,FALSE),"--"),"--") -> --
A160: 30 | C160: =IFERROR(IF((VLOOKUP(C34,C_UKG!$B$2:$D$21,3,FALSE)+VLOOKUP($B160,C_UKG!$B$2:$D$21,3,FALSE))<24000,VLOOKUP(C34,C_UKG!$B$2:$D$21,3,FALSE)+VLOOKUP($B160,C_UKG!$B$2:$D$21,3,FALSE),"--"),"--") -> -- | D160: =IFERROR(IF((VLOOKUP(D34,C_UKG!$B$2:$D$21,3,FALSE)+VLOOKUP($B160,C_UKG!$B$2:$D$21,3,FALSE))<24000,VLOOKUP(D34,C_UKG!$B$2:$D$21,3,FALSE)+VLOOKUP($B160,C_UKG!$B$2:$D$21,3,FALSE),"--"),"--") -> -- | E160: =IFERROR(IF((VLOOKUP(E34,C_UKG!$B$2:$D$21,3,FALSE)+VLOOKUP($B160,C_UKG!$B$2:$D$21,3,FALSE))<24000,VLOOKUP(E34,C_UKG!$B$2:$D$21,3,FALSE)+VLOOKUP($B160,C_UKG!$B$2:$D$21,3,FALSE),"--"),"--") -> -- | F160: =IFERROR(IF((VLOOKUP(F34,C_UKG!$B$2:$D$21,3,FALSE)+VLOOKUP($B160,C_UKG!$B$2:$D$21,3,FALSE))<24000,VLOOKUP(F34,C_UKG!$B$2:$D$21,3,FALSE)+VLOOKUP($B160,C_UKG!$B$2:$D$21,3,FALSE),"--"),"--") -> -- | G160: =IFERROR(IF((VLOOKUP(G34,C_UKG!$B$2:$D$21,3,FALSE)+VLOOKUP($B160,C_UKG!$B$2:$D$21,3,FALSE))<24000,VLOOKUP(G34,C_UKG!$B$2:$D$21,3,FALSE)+VLOOKUP($B160,C_UKG!$B$2:$D$21,3,FALSE),"--"),"--") -> -- | H160: =IFERROR(IF((VLOOKUP(H34,C_UKG!$B$2:$D$21,3,FALSE)+VLOOKUP($B160,C_UKG!$B$2:$D$21,3,FALSE))<24000,VLOOKUP(H34,C_UKG!$B$2:$D$21,3,FALSE)+VLOOKUP($B160,C_UKG!$B$2:$D$21,3,FALSE),"--"),"--") -> -- | I160: =IFERROR(IF((VLOOKUP(I34,C_UKG!$B$2:$D$21,3,FALSE)+VLOOKUP($B160,C_UKG!$B$2:$D$21,3,FALSE))<24000,VLOOKUP(I34,C_UKG!$B$2:$D$21,3,FALSE)+VLOOKUP($B160,C_UKG!$B$2:$D$21,3,FALSE),"--"),"--") -> -- | J160: =IFERROR(IF((VLOOKUP(J34,C_UKG!$B$2:$D$21,3,FALSE)+VLOOKUP($B160,C_UKG!$B$2:$D$21,3,FALSE))<24000,VLOOKUP(J34,C_UKG!$B$2:$D$21,3,FALSE)+VLOOKUP($B160,C_UKG!$B$2:$D$21,3,FALSE),"--"),"--") -> -- | K160: =IFERROR(IF((VLOOKUP(K34,C_UKG!$B$2:$D$21,3,FALSE)+VLOOKUP($B160,C_UKG!$B$2:$D$21,3,FALSE))<24000,VLOOKUP(K34,C_UKG!$B$2:$D$21,3,FALSE)+VLOOKUP($B160,C_UKG!$B$2:$D$21,3,FALSE),"--"),"--") -> -- | L160: =IFERROR(IF((VLOOKUP(L34,C_UKG!$B$2:$D$21,3,FALSE)+VLOOKUP($B160,C_UKG!$B$2:$D$21,3,FALSE))<24000,VLOOKUP(L34,C_UKG!$B$2:$D$21,3,FALSE)+VLOOKUP($B160,C_UKG!$B$2:$D$21,3,FALSE),"--"),"--") -> -- | M160: =IFERROR(IF((VLOOKUP(M34,C_UKG!$B$2:$D$21,3,FALSE)+VLOOKUP($B160,C_UKG!$B$2:$D$21,3,FALSE))<24000,VLOOKUP(M34,C_UKG!$B$2:$D$21,3,FALSE)+VLOOKUP($B160,C_UKG!$B$2:$D$21,3,FALSE),"--"),"--") -> -- | N160: =IFERROR(IF((VLOOKUP(N34,C_UKG!$B$2:$D$21,3,FALSE)+VLOOKUP($B160,C_UKG!$B$2:$D$21,3,FALSE))<24000,VLOOKUP(N34,C_UKG!$B$2:$D$21,3,FALSE)+VLOOKUP($B160,C_UKG!$B$2:$D$21,3,FALSE),"--"),"--") -> -- | O160: =IFERROR(IF((VLOOKUP(O34,C_UKG!$B$2:$D$21,3,FALSE)+VLOOKUP($B160,C_UKG!$B$2:$D$21,3,FALSE))<24000,VLOOKUP(O34,C_UKG!$B$2:$D$21,3,FALSE)+VLOOKUP($B160,C_UKG!$B$2:$D$21,3,FALSE),"--"),"--") -> -- | P160: =IFERROR(IF((VLOOKUP(P34,C_UKG!$B$2:$D$21,3,FALSE)+VLOOKUP($B160,C_UKG!$B$2:$D$21,3,FALSE))<24000,VLOOKUP(P34,C_UKG!$B$2:$D$21,3,FALSE)+VLOOKUP($B160,C_UKG!$B$2:$D$21,3,FALSE),"--"),"--") -> -- | Q160: =IFERROR(IF((VLOOKUP(Q34,C_UKG!$B$2:$D$21,3,FALSE)+VLOOKUP($B160,C_UKG!$B$2:$D$21,3,FALSE))<24000,VLOOKUP(Q34,C_UKG!$B$2:$D$21,3,FALSE)+VLOOKUP($B160,C_UKG!$B$2:$D$21,3,FALSE),"--"),"--") -> -- | R160: =IFERROR(IF((VLOOKUP(R34,C_UKG!$B$2:$D$21,3,FALSE)+VLOOKUP($B160,C_UKG!$B$2:$D$21,3,FALSE))<24000,VLOOKUP(R34,C_UKG!$B$2:$D$21,3,FALSE)+VLOOKUP($B160,C_UKG!$B$2:$D$21,3,FALSE),"--"),"--") -> -- | S160: =IFERROR(IF((VLOOKUP(S34,C_UKG!$B$2:$D$21,3,FALSE)+VLOOKUP($B160,C_UKG!$B$2:$D$21,3,FALSE))<24000,VLOOKUP(S34,C_UKG!$B$2:$D$21,3,FALSE)+VLOOKUP($B160,C_UKG!$B$2:$D$21,3,FALSE),"--"),"--") -> -- | T160: =IFERROR(IF((VLOOKUP(T34,C_UKG!$B$2:$D$21,3,FALSE)+VLOOKUP($B160,C_UKG!$B$2:$D$21,3,FALSE))<24000,VLOOKUP(T34,C_UKG!$B$2:$D$21,3,FALSE)+VLOOKUP($B160,C_UKG!$B$2:$D$21,3,FALSE),"--"),"--") -> -- | U160: =IFERROR(IF((VLOOKUP(U34,C_UKG!$B$2:$D$21,3,FALSE)+VLOOKUP($B160,C_UKG!$B$2:$D$21,3,FALSE))<24000,VLOOKUP(U34,C_UKG!$B$2:$D$21,3,FALSE)+VLOOKUP($B160,C_UKG!$B$2:$D$21,3,FALSE),"--"),"--") -> -- | V160: =IFERROR(IF((VLOOKUP(V34,C_UKG!$B$2:$D$21,3,FALSE)+VLOOKUP($B160,C_UKG!$B$2:$D$21,3,FALSE))<24000,VLOOKUP(V34,C_UKG!$B$2:$D$21,3,FALSE)+VLOOKUP($B160,C_UKG!$B$2:$D$21,3,FALSE),"--"),"--") -> --
A161: 31 | B161: K | C161: =IFERROR(IF((VLOOKUP(C35,C_UKG!$B$2:$D$21,3,FALSE)+VLOOKUP($B161,C_UKG!$B$2:$D$21,3,FALSE))<24000,VLOOKUP(C35,C_UKG!$B$2:$D$21,3,FALSE)+VLOOKUP($B161,C_UKG!$B$2:$D$21,3,FALSE),"--"),"--") -> -- | D161: =IFERROR(IF((VLOOKUP(D35,C_UKG!$B$2:$D$21,3,FALSE)+VLOOKUP($B161,C_UKG!$B$2:$D$21,3,FALSE))<24000,VLOOKUP(D35,C_UKG!$B$2:$D$21,3,FALSE)+VLOOKUP($B161,C_UKG!$B$2:$D$21,3,FALSE),"--"),"--") -> -- | E161: =IFERROR(IF((VLOOKUP(E35,C_UKG!$B$2:$D$21,3,FALSE)+VLOOKUP($B161,C_UKG!$B$2:$D$21,3,FALSE))<24000,VLOOKUP(E35,C_UKG!$B$2:$D$21,3,FALSE)+VLOOKUP($B161,C_UKG!$B$2:$D$21,3,FALSE),"--"),"--") -> -- | F161: =IFERROR(IF((VLOOKUP(F35,C_UKG!$B$2:$D$21,3,FALSE)+VLOOKUP($B161,C_UKG!$B$2:$D$21,3,FALSE))<24000,VLOOKUP(F35,C_UKG!$B$2:$D$21,3,FALSE)+VLOOKUP($B161,C_UKG!$B$2:$D$21,3,FALSE),"--"),"--") -> -- | G161: =IFERROR(IF((VLOOKUP(G35,C_UKG!$B$2:$D$21,3,FALSE)+VLOOKUP($B161,C_UKG!$B$2:$D$21,3,FALSE))<24000,VLOOKUP(G35,C_UKG!$B$2:$D$21,3,FALSE)+VLOOKUP($B161,C_UKG!$B$2:$D$21,3,FALSE),"--"),"--") -> -- | H161: =IFERROR(IF((VLOOKUP(H35,C_UKG!$B$2:$D$21,3,FALSE)+VLOOKUP($B161,C_UKG!$B$2:$D$21,3,FALSE))<24000,VLOOKUP(H35,C_UKG!$B$2:$D$21,3,FALSE)+VLOOKUP($B161,C_UKG!$B$2:$D$21,3,FALSE),"--"),"--") -> -- | I161: =IFERROR(IF((VLOOKUP(I35,C_UKG!$B$2:$D$21,3,FALSE)+VLOOKUP($B161,C_UKG!$B$2:$D$21,3,FALSE))<24000,VLOOKUP(I35,C_UKG!$B$2:$D$21,3,FALSE)+VLOOKUP($B161,C_UKG!$B$2:$D$21,3,FALSE),"--"),"--") -> -- | J161: =IFERROR(IF((VLOOKUP(J35,C_UKG!$B$2:$D$21,3,FALSE)+VLOOKUP($B161,C_UKG!$B$2:$D$21,3,FALSE))<24000,VLOOKUP(J35,C_UKG!$B$2:$D$21,3,FALSE)+VLOOKUP($B161,C_UKG!$B$2:$D$21,3,FALSE),"--"),"--") -> -- | K161: =IFERROR(IF((VLOOKUP(K35,C_UKG!$B$2:$D$21,3,FALSE)+VLOOKUP($B161,C_UKG!$B$2:$D$21,3,FALSE))<24000,VLOOKUP(K35,C_UKG!$B$2:$D$21,3,FALSE)+VLOOKUP($B161,C_UKG!$B$2:$D$21,3,FALSE),"--"),"--") -> -- | L161: =IFERROR(IF((VLOOKUP(L35,C_UKG!$B$2:$D$21,3,FALSE)+VLOOKUP($B161,C_UKG!$B$2:$D$21,3,FALSE))<24000,VLOOKUP(L35,C_UKG!$B$2:$D$21,3,FALSE)+VLOOKUP($B161,C_UKG!$B$2:$D$21,3,FALSE),"--"),"--") -> -- | M161: =IFERROR(IF((VLOOKUP(M35,C_UKG!$B$2:$D$21,3,FALSE)+VLOOKUP($B161,C_UKG!$B$2:$D$21,3,FALSE))<24000,VLOOKUP(M35,C_UKG!$B$2:$D$21,3,FALSE)+VLOOKUP($B161,C_UKG!$B$2:$D$21,3,FALSE),"--"),"--") -> -- | N161: =IFERROR(IF((VLOOKUP(N35,C_UKG!$B$2:$D$21,3,FALSE)+VLOOKUP($B161,C_UKG!$B$2:$D$21,3,FALSE))<24000,VLOOKUP(N35,C_UKG!$B$2:$D$21,3,FALSE)+VLOOKUP($B161,C_UKG!$B$2:$D$21,3,FALSE),"--"),"--") -> -- | O161: =IFERROR(IF((VLOOKUP(O35,C_UKG!$B$2:$D$21,3,FALSE)+VLOOKUP($B161,C_UKG!$B$2:$D$21,3,FALSE))<24000,VLOOKUP(O35,C_UKG!$B$2:$D$21,3,FALSE)+VLOOKUP($B161,C_UKG!$B$2:$D$21,3,FALSE),"--"),"--") -> -- | P161: =IFERROR(IF((VLOOKUP(P35,C_UKG!$B$2:$D$21,3,FALSE)+VLOOKUP($B161,C_UKG!$B$2:$D$21,3,FALSE))<24000,VLOOKUP(P35,C_UKG!$B$2:$D$21,3,FALSE)+VLOOKUP($B161,C_UKG!$B$2:$D$21,3,FALSE),"--"),"--") -> -- | Q161: =IFERROR(IF((VLOOKUP(Q35,C_UKG!$B$2:$D$21,3,FALSE)+VLOOKUP($B161,C_UKG!$B$2:$D$21,3,FALSE))<24000,VLOOKUP(Q35,C_UKG!$B$2:$D$21,3,FALSE)+VLOOKUP($B161,C_UKG!$B$2:$D$21,3,FALSE),"--"),"--") -> -- | R161: =IFERROR(IF((VLOOKUP(R35,C_UKG!$B$2:$D$21,3,FALSE)+VLOOKUP($B161,C_UKG!$B$2:$D$21,3,FALSE))<24000,VLOOKUP(R35,C_UKG!$B$2:$D$21,3,FALSE)+VLOOKUP($B161,C_UKG!$B$2:$D$21,3,FALSE),"--"),"--") -> -- | S161: =IFERROR(IF((VLOOKUP(S35,C_UKG!$B$2:$D$21,3,FALSE)+VLOOKUP($B161,C_UKG!$B$2:$D$21,3,FALSE))<24000,VLOOKUP(S35,C_UKG!$B$2:$D$21,3,FALSE)+VLOOKUP($B161,C_UKG!$B$2:$D$21,3,FALSE),"--"),"--") -> -- | T161: =IFERROR(IF((VLOOKUP(T35,C_UKG!$B$2:$D$21,3,FALSE)+VLOOKUP($B161,C_UKG!$B$2:$D$21,3,FALSE))<24000,VLOOKUP(T35,C_UKG!$B$2:$D$21,3,FALSE)+VLOOKUP($B161,C_UKG!$B$2:$D$21,3,FALSE),"--"),"--") -> -- | U161: =IFERROR(IF((VLOOKUP(U35,C_UKG!$B$2:$D$21,3,FALSE)+VLOOKUP($B161,C_UKG!$B$2:$D$21,3,FALSE))<24000,VLOOKUP(U35,C_UKG!$B$2:$D$21,3,FALSE)+VLOOKUP($B161,C_UKG!$B$2:$D$21,3,FALSE),"--"),"--") -> -- | V161: =IFERROR(IF((VLOOKUP(V35,C_UKG!$B$2:$D$21,3,FALSE)+VLOOKUP($B161,C_UKG!$B$2:$D$21,3,FALSE))<24000,VLOOKUP(V35,C_UKG!$B$2:$D$21,3,FALSE)+VLOOKUP($B161,C_UKG!$B$2:$D$21,3,FALSE),"--"),"--") -> --
A162: 32 | C162: =IFERROR(IF((VLOOKUP(C36,C_UKG!$B$2:$D$21,3,FALSE)+VLOOKUP($B162,C_UKG!$B$2:$D$21,3,FALSE))<24000,VLOOKUP(C36,C_UKG!$B$2:$D$21,3,FALSE)+VLOOKUP($B162,C_UKG!$B$2:$D$21,3,FALSE),"--"),"--") -> -- | D162: =IFERROR(IF((VLOOKUP(D36,C_UKG!$B$2:$D$21,3,FALSE)+VLOOKUP($B162,C_UKG!$B$2:$D$21,3,FALSE))<24000,VLOOKUP(D36,C_UKG!$B$2:$D$21,3,FALSE)+VLOOKUP($B162,C_UKG!$B$2:$D$21,3,FALSE),"--"),"--") -> -- | E162: =IFERROR(IF((VLOOKUP(E36,C_UKG!$B$2:$D$21,3,FALSE)+VLOOKUP($B162,C_UKG!$B$2:$D$21,3,FALSE))<24000,VLOOKUP(E36,C_UKG!$B$2:$D$21,3,FALSE)+VLOOKUP($B162,C_UKG!$B$2:$D$21,3,FALSE),"--"),"--") -> -- | F162: =IFERROR(IF((VLOOKUP(F36,C_UKG!$B$2:$D$21,3,FALSE)+VLOOKUP($B162,C_UKG!$B$2:$D$21,3,FALSE))<24000,VLOOKUP(F36,C_UKG!$B$2:$D$21,3,FALSE)+VLOOKUP($B162,C_UKG!$B$2:$D$21,3,FALSE),"--"),"--") -> -- | G162: =IFERROR(IF((VLOOKUP(G36,C_UKG!$B$2:$D$21,3,FALSE)+VLOOKUP($B162,C_UKG!$B$2:$D$21,3,FALSE))<24000,VLOOKUP(G36,C_UKG!$B$2:$D$21,3,FALSE)+VLOOKUP($B162,C_UKG!$B$2:$D$21,3,FALSE),"--"),"--") -> -- | H162: =IFERROR(IF((VLOOKUP(H36,C_UKG!$B$2:$D$21,3,FALSE)+VLOOKUP($B162,C_UKG!$B$2:$D$21,3,FALSE))<24000,VLOOKUP(H36,C_UKG!$B$2:$D$21,3,FALSE)+VLOOKUP($B162,C_UKG!$B$2:$D$21,3,FALSE),"--"),"--") -> -- | I162: =IFERROR(IF((VLOOKUP(I36,C_UKG!$B$2:$D$21,3,FALSE)+VLOOKUP($B162,C_UKG!$B$2:$D$21,3,FALSE))<24000,VLOOKUP(I36,C_UKG!$B$2:$D$21,3,FALSE)+VLOOKUP($B162,C_UKG!$B$2:$D$21,3,FALSE),"--"),"--") -> -- | J162: =IFERROR(IF((VLOOKUP(J36,C_UKG!$B$2:$D$21,3,FALSE)+VLOOKUP($B162,C_UKG!$B$2:$D$21,3,FALSE))<24000,VLOOKUP(J36,C_UKG!$B$2:$D$21,3,FALSE)+VLOOKUP($B162,C_UKG!$B$2:$D$21,3,FALSE),"--"),"--") -> -- | K162: =IFERROR(IF((VLOOKUP(K36,C_UKG!$B$2:$D$21,3,FALSE)+VLOOKUP($B162,C_UKG!$B$2:$D$21,3,FALSE))<24000,VLOOKUP(K36,C_UKG!$B$2:$D$21,3,FALSE)+VLOOKUP($B162,C_UKG!$B$2:$D$21,3,FALSE),"--"),"--") -> -- | L162: =IFERROR(IF((VLOOKUP(L36,C_UKG!$B$2:$D$21,3,FALSE)+VLOOKUP($B162,C_UKG!$B$2:$D$21,3,FALSE))<24000,VLOOKUP(L36,C_UKG!$B$2:$D$21,3,FALSE)+VLOOKUP($B162,C_UKG!$B$2:$D$21,3,FALSE),"--"),"--") -> -- | M162: =IFERROR(IF((VLOOKUP(M36,C_UKG!$B$2:$D$21,3,FALSE)+VLOOKUP($B162,C_UKG!$B$2:$D$21,3,FALSE))<24000,VLOOKUP(M36,C_UKG!$B$2:$D$21,3,FALSE)+VLOOKUP($B162,C_UKG!$B$2:$D$21,3,FALSE),"--"),"--") -> -- | N162: =IFERROR(IF((VLOOKUP(N36,C_UKG!$B$2:$D$21,3,FALSE)+VLOOKUP($B162,C_UKG!$B$2:$D$21,3,FALSE))<24000,VLOOKUP(N36,C_UKG!$B$2:$D$21,3,FALSE)+VLOOKUP($B162,C_UKG!$B$2:$D$21,3,FALSE),"--"),"--") -> -- | O162: =IFERROR(IF((VLOOKUP(O36,C_UKG!$B$2:$D$21,3,FALSE)+VLOOKUP($B162,C_UKG!$B$2:$D$21,3,FALSE))<24000,VLOOKUP(O36,C_UKG!$B$2:$D$21,3,FALSE)+VLOOKUP($B162,C_UKG!$B$2:$D$21,3,FALSE),"--"),"--") -> -- | P162: =IFERROR(IF((VLOOKUP(P36,C_UKG!$B$2:$D$21,3,FALSE)+VLOOKUP($B162,C_UKG!$B$2:$D$21,3,FALSE))<24000,VLOOKUP(P36,C_UKG!$B$2:$D$21,3,FALSE)+VLOOKUP($B162,C_UKG!$B$2:$D$21,3,FALSE),"--"),"--") -> -- | Q162: =IFERROR(IF((VLOOKUP(Q36,C_UKG!$B$2:$D$21,3,FALSE)+VLOOKUP($B162,C_UKG!$B$2:$D$21,3,FALSE))<24000,VLOOKUP(Q36,C_UKG!$B$2:$D$21,3,FALSE)+VLOOKUP($B162,C_UKG!$B$2:$D$21,3,FALSE),"--"),"--") -> -- | R162: =IFERROR(IF((VLOOKUP(R36,C_UKG!$B$2:$D$21,3,FALSE)+VLOOKUP($B162,C_UKG!$B$2:$D$21,3,FALSE))<24000,VLOOKUP(R36,C_UKG!$B$2:$D$21,3,FALSE)+VLOOKUP($B162,C_UKG!$B$2:$D$21,3,FALSE),"--"),"--") -> -- | S162: =IFERROR(IF((VLOOKUP(S36,C_UKG!$B$2:$D$21,3,FALSE)+VLOOKUP($B162,C_UKG!$B$2:$D$21,3,FALSE))<24000,VLOOKUP(S36,C_UKG!$B$2:$D$21,3,FALSE)+VLOOKUP($B162,C_UKG!$B$2:$D$21,3,FALSE),"--"),"--") -> -- | T162: =IFERROR(IF((VLOOKUP(T36,C_UKG!$B$2:$D$21,3,FALSE)+VLOOKUP($B162,C_UKG!$B$2:$D$21,3,FALSE))<24000,VLOOKUP(T36,C_UKG!$B$2:$D$21,3,FALSE)+VLOOKUP($B162,C_UKG!$B$2:$D$21,3,FALSE),"--"),"--") -> -- | U162: =IFERROR(IF((VLOOKUP(U36,C_UKG!$B$2:$D$21,3,FALSE)+VLOOKUP($B162,C_UKG!$B$2:$D$21,3,FALSE))<24000,VLOOKUP(U36,C_UKG!$B$2:$D$21,3,FALSE)+VLOOKUP($B162,C_UKG!$B$2:$D$21,3,FALSE),"--"),"--") -> -- | V162: =IFERROR(IF((VLOOKUP(V36,C_UKG!$B$2:$D$21,3,FALSE)+VLOOKUP($B162,C_UKG!$B$2:$D$21,3,FALSE))<24000,VLOOKUP(V36,C_UKG!$B$2:$D$21,3,FALSE)+VLOOKUP($B162,C_UKG!$B$2:$D$21,3,FALSE),"--"),"--") -> --
A163: 33 | C163: =IFERROR(IF((VLOOKUP(C37,C_UKG!$B$2:$D$21,3,FALSE)+VLOOKUP($B163,C_UKG!$B$2:$D$21,3,FALSE))<24000,VLOOKUP(C37,C_UKG!$B$2:$D$21,3,FALSE)+VLOOKUP($B163,C_UKG!$B$2:$D$21,3,FALSE),"--"),"--") -> -- | D163: =IFERROR(IF((VLOOKUP(D37,C_UKG!$B$2:$D$21,3,FALSE)+VLOOKUP($B163,C_UKG!$B$2:$D$21,3,FALSE))<24000,VLOOKUP(D37,C_UKG!$B$2:$D$21,3,FALSE)+VLOOKUP($B163,C_UKG!$B$2:$D$21,3,FALSE),"--"),"--") -> -- | E163: =IFERROR(IF((VLOOKUP(E37,C_UKG!$B$2:$D$21,3,FALSE)+VLOOKUP($B163,C_UKG!$B$2:$D$21,3,FALSE))<24000,VLOOKUP(E37,C_UKG!$B$2:$D$21,3,FALSE)+VLOOKUP($B163,C_UKG!$B$2:$D$21,3,FALSE),"--"),"--") -> -- | F163: =IFERROR(IF((VLOOKUP(F37,C_UKG!$B$2:$D$21,3,FALSE)+VLOOKUP($B163,C_UKG!$B$2:$D$21,3,FALSE))<24000,VLOOKUP(F37,C_UKG!$B$2:$D$21,3,FALSE)+VLOOKUP($B163,C_UKG!$B$2:$D$21,3,FALSE),"--"),"--") -> -- | G163: =IFERROR(IF((VLOOKUP(G37,C_UKG!$B$2:$D$21,3,FALSE)+VLOOKUP($B163,C_UKG!$B$2:$D$21,3,FALSE))<24000,VLOOKUP(G37,C_UKG!$B$2:$D$21,3,FALSE)+VLOOKUP($B163,C_UKG!$B$2:$D$21,3,FALSE),"--"),"--") -> -- | H163: =IFERROR(IF((VLOOKUP(H37,C_UKG!$B$2:$D$21,3,FALSE)+VLOOKUP($B163,C_UKG!$B$2:$D$21,3,FALSE))<24000,VLOOKUP(H37,C_UKG!$B$2:$D$21,3,FALSE)+VLOOKUP($B163,C_UKG!$B$2:$D$21,3,FALSE),"--"),"--") -> -- | I163: =IFERROR(IF((VLOOKUP(I37,C_UKG!$B$2:$D$21,3,FALSE)+VLOOKUP($B163,C_UKG!$B$2:$D$21,3,FALSE))<24000,VLOOKUP(I37,C_UKG!$B$2:$D$21,3,FALSE)+VLOOKUP($B163,C_UKG!$B$2:$D$21,3,FALSE),"--"),"--") -> -- | J163: =IFERROR(IF((VLOOKUP(J37,C_UKG!$B$2:$D$21,3,FALSE)+VLOOKUP($B163,C_UKG!$B$2:$D$21,3,FALSE))<24000,VLOOKUP(J37,C_UKG!$B$2:$D$21,3,FALSE)+VLOOKUP($B163,C_UKG!$B$2:$D$21,3,FALSE),"--"),"--") -> -- | K163: =IFERROR(IF((VLOOKUP(K37,C_UKG!$B$2:$D$21,3,FALSE)+VLOOKUP($B163,C_UKG!$B$2:$D$21,3,FALSE))<24000,VLOOKUP(K37,C_UKG!$B$2:$D$21,3,FALSE)+VLOOKUP($B163,C_UKG!$B$2:$D$21,3,FALSE),"--"),"--") -> -- | L163: =IFERROR(IF((VLOOKUP(L37,C_UKG!$B$2:$D$21,3,FALSE)+VLOOKUP($B163,C_UKG!$B$2:$D$21,3,FALSE))<24000,VLOOKUP(L37,C_UKG!$B$2:$D$21,3,FALSE)+VLOOKUP($B163,C_UKG!$B$2:$D$21,3,FALSE),"--"),"--") -> -- | M163: =IFERROR(IF((VLOOKUP(M37,C_UKG!$B$2:$D$21,3,FALSE)+VLOOKUP($B163,C_UKG!$B$2:$D$21,3,FALSE))<24000,VLOOKUP(M37,C_UKG!$B$2:$D$21,3,FALSE)+VLOOKUP($B163,C_UKG!$B$2:$D$21,3,FALSE),"--"),"--") -> -- | N163: =IFERROR(IF((VLOOKUP(N37,C_UKG!$B$2:$D$21,3,FALSE)+VLOOKUP($B163,C_UKG!$B$2:$D$21,3,FALSE))<24000,VLOOKUP(N37,C_UKG!$B$2:$D$21,3,FALSE)+VLOOKUP($B163,C_UKG!$B$2:$D$21,3,FALSE),"--"),"--") -> -- | O163: =IFERROR(IF((VLOOKUP(O37,C_UKG!$B$2:$D$21,3,FALSE)+VLOOKUP($B163,C_UKG!$B$2:$D$21,3,FALSE))<24000,VLOOKUP(O37,C_UKG!$B$2:$D$21,3,FALSE)+VLOOKUP($B163,C_UKG!$B$2:$D$21,3,FALSE),"--"),"--") -> -- | P163: =IFERROR(IF((VLOOKUP(P37,C_UKG!$B$2:$D$21,3,FALSE)+VLOOKUP($B163,C_UKG!$B$2:$D$21,3,FALSE))<24000,VLOOKUP(P37,C_UKG!$B$2:$D$21,3,FALSE)+VLOOKUP($B163,C_UKG!$B$2:$D$21,3,FALSE),"--"),"--") -> -- | Q163: =IFERROR(IF((VLOOKUP(Q37,C_UKG!$B$2:$D$21,3,FALSE)+VLOOKUP($B163,C_UKG!$B$2:$D$21,3,FALSE))<24000,VLOOKUP(Q37,C_UKG!$B$2:$D$21,3,FALSE)+VLOOKUP($B163,C_UKG!$B$2:$D$21,3,FALSE),"--"),"--") -> -- | R163: =IFERROR(IF((VLOOKUP(R37,C_UKG!$B$2:$D$21,3,FALSE)+VLOOKUP($B163,C_UKG!$B$2:$D$21,3,FALSE))<24000,VLOOKUP(R37,C_UKG!$B$2:$D$21,3,FALSE)+VLOOKUP($B163,C_UKG!$B$2:$D$21,3,FALSE),"--"),"--") -> -- | S163: =IFERROR(IF((VLOOKUP(S37,C_UKG!$B$2:$D$21,3,FALSE)+VLOOKUP($B163,C_UKG!$B$2:$D$21,3,FALSE))<24000,VLOOKUP(S37,C_UKG!$B$2:$D$21,3,FALSE)+VLOOKUP($B163,C_UKG!$B$2:$D$21,3,FALSE),"--"),"--") -> -- | T163: =IFERROR(IF((VLOOKUP(T37,C_UKG!$B$2:$D$21,3,FALSE)+VLOOKUP($B163,C_UKG!$B$2:$D$21,3,FALSE))<24000,VLOOKUP(T37,C_UKG!$B$2:$D$21,3,FALSE)+VLOOKUP($B163,C_UKG!$B$2:$D$21,3,FALSE),"--"),"--") -> -- | U163: =IFERROR(IF((VLOOKUP(U37,C_UKG!$B$2:$D$21,3,FALSE)+VLOOKUP($B163,C_UKG!$B$2:$D$21,3,FALSE))<24000,VLOOKUP(U37,C_UKG!$B$2:$D$21,3,FALSE)+VLOOKUP($B163,C_UKG!$B$2:$D$21,3,FALSE),"--"),"--") -> -- | V163: =IFERROR(IF((VLOOKUP(V37,C_UKG!$B$2:$D$21,3,FALSE)+VLOOKUP($B163,C_UKG!$B$2:$D$21,3,FALSE))<24000,VLOOKUP(V37,C_UKG!$B$2:$D$21,3,FALSE)+VLOOKUP($B163,C_UKG!$B$2:$D$21,3,FALSE),"--"),"--") -> --
